Workbook

Sheet Index
B1: List of Statistical Tables | C1: Page | E1: Hyperlinks to tables [worksheet name]
A2: =GNI!A1 -> Table 1a : FSM: Income measures in current prices and real terms, FY2004-FY2011 | C2: 1 | E2: [GNI]
A3: =cerNApc!M1 -> Table 1b : FSM and States: Current and constant price GDP, GDP per capita, FY1981-FY2011 | C3: =C2+1 -> 2 | E3: [cerNApc]
A4: =gdpFSM!A1 -> Table 1c : FSM: Constant price GDP by industry, FY2004-FY2011 | C4: =C3+2 -> 4 | E4: [gdpFSM]
A5: =gdpFSM!A24 -> Table 1d : FSM: Constant price GDP by industry sector, annual % growth, FY2004-FY2011 | C5: =C4+1 -> 5
A6: =gdpFSM!A47 -> Table 1e : FSM: Constant price GDP by industry sector, contribution to % growth, FY2004-FY2011 | C6: =C5+1 -> 6
A7: =gdpFSM!A70 -> Table 1f : FSM: Current price GDP by industry, FY2004-FY2011 | C7: 7
A8: =gdpFSM!A93 -> Table 1g : FSM: Implicit GDP price deflators by industry, FY2004-FY2011 | C8: 8
A9: =gdpFSM!A115 -> Table 1h : FSM: Share of GDP by industry, current prices, FY2004-FY2011 | C9: 9
A10: =gdpFSM!A138 -> Table 1i : FSM: Constant price GDP by institutional sector, FY2004-FY2011 | C10: 10
A11: =gdpFSM!A151 -> Table 1j : FSM: Constant price GDP by institutional sector, annual % growth, FY2004-FY2011 | C11: =C10 -> 10
A12: =gdpFSM!A164 -> Table 1k : FSM: Current price GDP by institutional sector, FY2004-FY2011 | C12: 11
A13: =gdpFSM!A177 -> Table 1l : FSM: Implicit GDP price deflators by institutional sector, FY2004-FY2011 | C13: =C12 -> 11
A14: =gdpFSM!A190 -> Table 1m : FSM: Share of GDP by institutional sector, current prices, FY2004-FY2011 | C14: 12
A15: =gdpFSM!A203 -> Table 1n : FSM: GDP by income component, current prices, FY2004-FY2011 | C15: =C14 -> 12
A16: =gdpFSM!A218 -> Table 1o : FSM: Current price GDP by institutional sector and income components, FY2004-FY2011 | C16: 13
A17: =gdp_C!A1 -> Table 2a : Chuuk: Constant price GDP by industry, FY2004-FY2011 | C17: =C16+1 -> 14 | E17: [gdp_C]
A18: =gdp_C!A24 -> Table 2b : Chuuk: Constant price GDP by industry sector, annual % growth, FY2004-FY2011 | C18: =C17+1 -> 15
A19: =gdp_C!A47 -> Table 2c : Chuuk: Constant price GDP by industry sector, contribution to % growth, FY2004-FY2011 | C19: 16
A20: =gdp_C!A70 -> Table 2d : Chuuk: Current price GDP by industry, FY2004-FY2011 | C20: 17
A21: =gdp_C!A93 -> Table 2e : Chuuk: Implicit GDP price deflators by industry, FY2004-FY2011 | C21: 18
A22: =gdp_C!A115 -> Table 2f : Chuuk: Share of GDP by industry, current prices, FY2004-FY2011 | C22: 19
A23: =gdp_C!A138 -> Table 2g : Chuuk: Constant price GDP by institutional sector, FY2004-FY2011 | C23: 20
A24: =gdp_C!A151 -> Table 2h : Chuuk: Constant price GDP by institutional sector, annual % growth, FY2004-FY2011 | C24: =C23 -> 20
A25: =gdp_C!A164 -> Table 2i : Chuuk: Current price GDP by institutional sector, FY2004-FY2011 | C25: 21
A26: =gdp_C!A177 -> Table 2j : Chuuk: Implicit GDP price deflators by institutional sector, FY2004-FY2011 | C26: =C25 -> 21
A27: =gdp_C!A190 -> Table 2k : Chuuk: Share of GDP by institutional sector, current prices, FY2004-FY2011 | C27: 22
A28: =gdp_C!A203 -> Table 2l : Chuuk: GDP by income component, current prices, FY2004-FY2011 | C28: =C27 -> 22
A29: =gdp_C!A218 -> Table 2m : Chuuk: Current price GDP by institutional sector and income components, FY2004-FY2011 | C29: 23
A30: =gdp_K!A1 -> Table 3a : Kosrae: Constant price GDP by industry, FY2004-FY2011 | C30: =C29+1 -> 24 | E30: [gdp_K]
A31: =gdp_K!A24 -> Table 3b : Kosrae: Constant price GDP by industry sector, annual % growth, FY2004-FY2011 | C31: =C30+1 -> 25
A32: =gdp_K!A47 -> Table 3c : Kosrae: Constant price GDP by industry sector, contribution to % growth, FY2004-FY2011 | C32: 26
A33: =gdp_K!A70 -> Table 3d : Kosrae: Current price GDP by industry, FY2004-FY2011 | C33: 27
A34: =gdp_K!A93 -> Table 3e : Kosrae: Implicit GDP price deflators by industry, FY2004-FY2011 | C34: 28
A35: =gdp_K!A115 -> Table 3f : Kosrae: Share of GDP by industry, current prices, FY2004-FY2011 | C35: 29
A36: =gdp_K!A138 -> Table 3g : Kosrae: Constant price GDP by institutional sector, FY2004-FY2011 | C36: 30
A37: =gdp_K!A151 -> Table 3h : Kosrae: Constant price GDP by institutional sector, annual % growth, FY2004-FY2011 | C37: =C36 -> 30
A38: =gdp_K!A164 -> Table 3i : Kosrae: Current price GDP by institutional sector, FY2004-FY2011 | C38: 31
A39: =gdp_K!A177 -> Table 3j : Kosrae: Implicit GDP price deflators by institutional sector, FY2004-FY2011 | C39: =C38 -> 31
A40: =gdp_K!A190 -> Table 3k : Kosrae: Share of GDP by institutional sector, current prices, FY2004-FY2011 | C40: 32
A41: =gdp_K!A203 -> Table 3l : Kosrae: GDP by income component, current prices, FY2004-FY2011 | C41: =C40 -> 32
A42: =gdp_K!A218 -> Table 3m : Kosrae: Current price GDP by institutional sector and income components, FY2004-FY2011 | C42: 33
A43: =gdp_P!A1 -> Table 4a : Pohnpei: Constant price GDP by industry, FY2004-FY2011 | C43: 34 | E43: [gdp_P]
A44: =gdp_P!A24 -> Table 4b : Pohnpei: Constant price GDP by industry sector, annual % growth, FY2004-FY2011 | C44: 35
A45: =gdp_P!A47 -> Table 4c : Pohnpei: Constant price GDP by industry sector, contribution to % growth, FY2004-FY2011 | C45: 36
A46: =gdp_P!A70 -> Table 4d : Pohnpei: Current price GDP by industry, FY2004-FY2011 | C46: 37
A47: =gdp_P!A93 -> Table 4e : Pohnpei: Implicit GDP price deflators by industry, FY2004-FY2011 | C47: 38
A48: =gdp_P!A115 -> Table 4f : Pohnpei: Share of GDP by industry, current prices, FY2004-FY2011 | C48: 39
A49: =gdp_P!A138 -> Table 4g : Pohnpei: Constant price GDP by institutional sector, FY2004-FY2011 | C49: 40
A50: =gdp_P!A151 -> Table 4h : Pohnpei: Constant price GDP by institutional sector, annual % growth, FY2004-FY2011 | C50: =C49 -> 40
A51: =gdp_P!A164 -> Table 4i : Pohnpei: Current price GDP by institutional sector, FY2004-FY2011 | C51: 41
A52: =gdp_P!A177 -> Table 4j : Pohnpei: Implicit GDP price deflators by institutional sector, FY2004-FY2011 | C52: =C51 -> 41
A53: =gdp_P!A190 -> Table 4k : Pohnpei: Share of GDP by institutional sector, current prices, FY2004-FY2011 | C53: 42
A54: =gdp_P!A203 -> Table 4l : Pohnpei: GDP by income component, current prices, FY2004-FY2011 | C54: =C53 -> 42
A55: =gdp_P!A218 -> Table 4m : Pohnpei: Current price GDP by institutional sector and income components, FY2004-FY2011 | C55: 43
C57: continued
B60: List of Statistical Tables (continued)
A62: =gdp_Y!A1 -> Table 5a : Yap: Constant price GDP by industry, FY2004-FY2011 | C62: =C55+1 -> 44 | E62: [gdp_Y]
A63: =gdp_Y!A24 -> Table 5b : Yap: Constant price GDP by industry sector, annual % growth, FY2004-FY2011 | C63: =C62+1 -> 45
A64: =gdp_Y!A47 -> Table 5c : Yap: Constant price GDP by industry sector, contribution to % growth, FY2004-FY2011 | C64: =C63+1 -> 46
A65: =gdp_Y!A70 -> Table 5d : Yap: Current price GDP by industry, FY2004-FY2011 | C65: =C64+1 -> 47
A66: =gdp_Y!A93 -> Table 5e : Yap: Implicit GDP price deflators by industry, FY2004-FY2011 | C66: =C65+1 -> 48
A67: =gdp_Y!A115 -> Table 5f : Yap: Share of GDP by industry, current prices, FY2004-FY2011 | C67: 49
A68: =gdp_Y!A138 -> Table 5g : Yap: Constant price GDP by institutional sector, FY2004-FY2011 | C68: 50
A69: =gdp_Y!A151 -> Table 5h : Yap: Constant price GDP by institutional sector, annual % growth, FY2004-FY2011 | C69: =C68 -> 50
A70: =gdp_Y!A164 -> Table 5i : Yap: Current price GDP by institutional sector, FY2004-FY2011 | C70: 51
A71: =gdp_Y!A177 -> Table 5j : Yap: Implicit GDP price deflators by institutional sector, FY2004-FY2011 | C71: =C70 -> 51
A72: =gdp_Y!A190 -> Table 5k : Yap: Share of GDP by institutional sector, current prices, FY2004-FY2011 | C72: 52
A73: =gdp_Y!A203 -> Table 5l : Yap: GDP by income component, current prices, FY2004-FY2011 | C73: =C72 -> 52
A74: =gdp_Y!A218 -> Table 5m : Yap: Current price GDP by institutional sector and income components, FY2004-FY2011 | C74: 53
A75: =Visitors!A1 -> Table 6a : FSM, Sum of four FSM states: Visitor arrivals by Year, FY2004-FY2011 | C75: =C74+1 -> 54 | E75: [Visitors]
A76: =Visitors!A25 -> Table 6b : Chuuk : Visitor Arrivals by Year, FY2004-FY2011 | C76: =C75+1 -> 55
A77: =Visitors!A51 -> Table 6c : Kosrae : Visitor Arrivals by Year, FY2004-FY2011 | C77: =C76+1 -> 56
A78: =Visitors!A74 -> Table 6d : Pohnpei : Visitor Arrivals by Year, FY2004-FY2011 | C78: =C77+1 -> 57
A79: =Visitors!A99 -> Table 6e : Yap : Visitor Arrivals by Year, FY2004-FY2011 | C79: 58
A80: =Fish!A2 -> Table 6f: Total fish catch in FSM EEZ, by method, CY1998-FY2011 | C80: =C79+1 -> 59 | E80: [Fish] | F80: 2011 not yet available
A81: =Fish!A23 -> Table 6g: Total fish catch, by FSM and Domestically Based vessels, CY2001-FY2011 | C81: =C80 -> 59
A82: =Fish!A41 -> Table 6h: License fees collected, FY1999-FY2011 | C82: =C81+1 -> 60
A83: =E_ind!C1 -> Table 7a : Employment by Industry, FSM and States, FY2004-FY2011 | C83: =C82+1 -> 61 | E83: [E_ind]
A84: =E_inst!B1 -> Table 7b : Employment by Institution, FSM and States, FY2004-FY2011 | C84: =C83+5 -> 66 | E84: [E_inst]
A85: =EinstWR!B1 -> Table 7c : Average Nominal Wage Rates by Institution, FSM and States, FY2004-FY2011 | C85: =C84+3 -> 69 | E85: [EinstWR]
A86: =EinstWR!B62 -> Table 7d : Average Real Wage Rates by Institution, FSM and States, FY1995-FY2011 | C86: =C85+3 -> 72
A87: =EinstW!B1 -> Table 7e : Employee Earnings by Institution, FSM and States, FY2004-FY2011 | C87: =C86+3 -> 75 | E87: [EinstW]
A88: =E_Priv!C1 -> Table 7f : Employment by Industry, FSM and States, Private Sector, FY2004-FY2011 | C88: =C87+3 -> 78 | E88: [E_Priv]
A89: =E_PrivW!C1 -> Table 7g : Earnings by Industry, FSM and States, Private Sector, FY2004-FY2011 | C89: =C88+5 -> 83 | E89: [E_PrivW]
A90: =BSurv!A1 -> Table 8a : FSM Commercial Banking Survey, FY2004-FY2011 | C90: =C89+5 -> 88 | E90: [BSurv]
A91: =IntRt!A1 -> Table 8b: Interest Rates of Domestic Money Banks, CY2004-CY2011 | C91: =C90+1 -> 89 | E91: [IntRt]
A92: =cpiFSM!A1 -> Table 9a : FSM : CPI Index, FY1999 to FY2011 | C92: =C91+1 -> 90 | E92: [cpiFSM]
A93: =cpiFSM!AL1 -> Table 9b : FSM : CPI Index, Domestic Item, FY1999 to FY2011 | C93: =C92+1 -> 91
A94: =cpiFSM!BW1 -> Table 9c : FSM : CPI Index, Imported Items, FY1999 to FY2011 | C94: 92
A95: =cpiState!A1 -> Table 9d : Chuuk : State CPI Index, FY1999 to FY2011 | C95: 93 | E95: [cpiState]
A96: =cpiState!AL1 -> Table 9e : Kosrae : State CPI Index, FY1999 to FY2011 | C96: 94
A97: =cpiState!BW1 -> Table 9e : Pohnpei : State CPI Index, FY1999 to FY2011 | C97: 95
A98: =cpiState!DH1 -> Table 9f : Yap : State CPI Index, FY1999 to FY2011 | C98: 96
A99: =Imports!A1 -> Table 10a : FSM and States: Imports by Major Category, FY2004-FY2011 | C99: =C98+1 -> 97 | E99: [Imports]
A100: =BOPsum!A1 -> Table 10b : FSM Balance of Payments (summary) FY2004-FY2011 | C100: =C99+2 -> 99 | E100: [BOPsum]
A101: =BOPdet!A1 -> Table 10c : FSM Balance of Payments (detail), FY2004-FY2011 | C101: =C100+2 -> 101 | E101: [BOPdet]
A102: =IIP!A1 -> Table 10d : FSM International Investment Position, FY2004-FY2011 | C102: =C101+3 -> 104 | E102: [IIP]
A103: =ExtDebt!A1 -> Table 10e : FSM External Debt, FY2004-FY2011 | C103: =C102+1 -> 105 | E103: [ExtDebt]
A104: =gfsFSM!A1 -> Table 11a : FSM Consolidated Government Finances (GFS Format), FY2004-FY2011 | C104: =C103+1 -> 106 | E104: [gfsFSM]
A105: =gfsN!A1 -> Table 11b : National Government Finances (GFS Format), FY2004-FY2011 | C105: =C104+2 -> 108 | E105: [gfsN]
A106: =gfsC!A1 -> Table 11c : Chuuk Government Finances (GFS Format), FY2004-FY2011 | C106: 110 | E106: [gfsC]
A107: =gfsK!A1 -> Table 11d : Kosrae Government Finances (GFS Format), FY2004-FY2011 | C107: 112 | E107: [gfsK]
A108: =gfsP!A1 -> Table 11e : Pohnpei Government Finances (GFS Format), FY2004-FY2011 | C108: 114 | E108: [gfsP]
A109: =gfsY!A1 -> Table 11f : Yap Government Finances (GFS Format), FY2004-FY2011 | C109: 116 | E109: [gfsY]
A110: =Nf!A1 -> Table 11g : National Government Finances (Audit Format), FY2004-FY2011 | C110: 118 | E110: [Nf]
A111: =Cf!A1 -> Table 11h : Chuuk State Government Finances (Audit Format), FY2004-FY2011 | C111: 120 | E111: [Cf]
A112: =Kf!A1 -> Table 11i : Kosrae State Government Finances (Audit Format), FY2004-FY2011 | C112: 122 | E112: [Kf]
A113: =Pf!A1 -> Table 11j : Pohnpei State Government Finances (Audit Format), FY2004-FY2011 | C113: 124 | E113: [Pf]
A114: =Yf!A1 -> Table 11k : Yap State Government Finances (Audit Format), FY2004-FY2011 | C114: 126 | E114: [Yf]
A115: =CII!A1 -> Table 11l : FSM Compact grants awarded, FY2004-FY2011 | C115: 128 | E115: [CII] | F115: Need Kevin's Input to finalise
A116: =Census!A1 -> Table 12a: Population growth by State and outer islands, 1980 to 2010 | C116: =C115+3 -> 131 | E116: [Census]
A117: =Census!A18 -> Table 12b: Age and sex distribution, and Households, by State and outer islands, 2010 | C117: =C116+1 -> 132
A118: =Census!A44 -> Table 12c: Labour Force Indicators, by State and outer islands, 2010 | C118: =C117+1 -> 133
A119: =NetArr!A1 -> Table 12d: Net Air Passengers from the USA, FY1991 to FY2011 | C119: =C118+1 -> 134 | E119: [NetArr]
E123: `

Sheet GNI
A1: Table 1a : FSM: Income measures in current prices and real terms, FY2004-FY2011
B2: (US$ millions 1) | C2: FY1995 | D2: FY1996 | E2: FY1997 | F2: FY1998 | G2: FY1999 | H2: FY2000 | I2: FY2001 | J2: FY2002 | K2: FY2003 | L2: FY2004 | M2: FY2005 | N2: FY2006 | O2: FY2007 | P2: FY2008 | Q2: FY2009 | R2: FY2010 | S2: FY2011
A3: Current prices
B4: Gross Domestic Product (GDP) | C4: =[2]cerTabGNI!C4 -> 222.1035871 | D4: =[2]cerTabGNI!D4 -> 218.8457233 | E4: =[2]cerTabGNI!E4 -> 206.9003323 | F4: =[2]cerTabGNI!F4 -> 219.6461996 | G4: =[2]cerTabGNI!G4 -> 220.6605039 | H4: =[2]cerTabGNI!H4 -> 233.2263228 | I4: =[2]cerTabGNI!I4 -> 240.0519 | J4: =[2]cerTabGNI!J4 -> 241.5433958 | K4: =[2]cerTabGNI!K4 -> 244.9909836 | L4: =[2]cerTabGNI!L4 -> 239.5633104 | M4: =[2]cerTabGNI!M4 -> 249.8455926 | N4: =[2]cerTabGNI!N4 -> 252.991205 | O4: =[2]cerTabGNI!O4 -> 255.8908364 | P4: =[2]cerTabGNI!P4 -> 261.3396424 | Q4: =[2]cerTabGNI!Q4 -> 277.5109228 | R4: =[2]cerTabGNI!R4 -> 294.1172305 | S4: =[2]cerTabGNI!S4 -> 310.2875193
B5: Primary incomes 2
B6: Receivable from the rest of the world | C6: =[2]cerTabGNI!C6 -> 30.57137468 | D6: =[2]cerTabGNI!D6 -> 29.6479111 | E6: =[2]cerTabGNI!E6 -> 19.82378925 | F6: =[2]cerTabGNI!F6 -> 19.22181211 | G6: =[2]cerTabGNI!G6 -> 22.69765946 | H6: =[2]cerTabGNI!H6 -> 21.13895807 | I6: =[2]cerTabGNI!I6 -> 19.2738638 | J6: =[2]cerTabGNI!J6 -> 18.41477037 | K6: =[2]cerTabGNI!K6 -> 18.35012608 | L6: =[2]cerTabGNI!L6 -> 19.49473717 | M6: =[2]cerTabGNI!M6 -> 23.68419653 | N6: =[2]cerTabGNI!N6 -> 27.21075913 | O6: =[2]cerTabGNI!O6 -> 29.75774834 | P6: =[2]cerTabGNI!P6 -> 27.71993808 | Q6: =[2]cerTabGNI!Q6 -> 30.74951949 | R6: =[2]cerTabGNI!R6 -> 26.37148413 | S6: =[2]cerTabGNI!S6 -> 28.0619668
B7: Payable to the rest of the world | C7: =[2]cerTabGNI!C7 -> -19.14412195 | D7: =[2]cerTabGNI!D7 -> -19.07087851 | E7: =[2]cerTabGNI!E7 -> -17.1058191 | F7: =[2]cerTabGNI!F7 -> -18.34631378 | G7: =[2]cerTabGNI!G7 -> -16.5590947 | H7: =[2]cerTabGNI!H7 -> -14.82792455 | I7: =[2]cerTabGNI!I7 -> -14.05087292 | J7: =[2]cerTabGNI!J7 -> -13.71896859 | K7: =[2]cerTabGNI!K7 -> -14.10851295 | L7: =[2]cerTabGNI!L7 -> -12.0471756 | M7: =[2]cerTabGNI!M7 -> -11.45609738 | N7: =[2]cerTabGNI!N7 -> -11.90105637 | O7: =[2]cerTabGNI!O7 -> -12.24122081 | P7: =[2]cerTabGNI!P7 -> -15.47942953 | Q7: =[2]cerTabGNI!Q7 -> -10.19424038 | R7: =[2]cerTabGNI!R7 -> -12.78836411 | S7: =[2]cerTabGNI!S7 -> -13.11373187
B8: Gross National Income (GNI) | C8: =[2]cerTabGNI!C8 -> 233.5308399 | D8: =[2]cerTabGNI!D8 -> 229.4227559 | E8: =[2]cerTabGNI!E8 -> 209.6183025 | F8: =[2]cerTabGNI!F8 -> 220.521698 | G8: =[2]cerTabGNI!G8 -> 226.7990687 | H8: =[2]cerTabGNI!H8 -> 239.5373564 | I8: =[2]cerTabGNI!I8 -> 245.2748909 | J8: =[2]cerTabGNI!J8 -> 246.2391976 | K8: =[2]cerTabGNI!K8 -> 249.2325967 | L8: =[2]cerTabGNI!L8 -> 247.010872 | M8: =[2]cerTabGNI!M8 -> 262.0736918 | N8: =[2]cerTabGNI!N8 -> 268.3009078 | O8: =[2]cerTabGNI!O8 -> 273.4073639 | P8: =[2]cerTabGNI!P8 -> 273.5801509 | Q8: =[2]cerTabGNI!Q8 -> 298.0662019 | R8: =[2]cerTabGNI!R8 -> 307.7003505 | S8: =[2]cerTabGNI!S8 -> 325.2357542
B9: Secondary Incomes (Current transfers) 2
B10: Receivable from the rest of the world | C10: =[2]cerTabGNI!C10 -> 98.23672002 | D10: =[2]cerTabGNI!D10 -> 99.75652895 | E10: =[2]cerTabGNI!E10 -> 86.71254506 | F10: =[2]cerTabGNI!F10 -> 92.64702337 | G10: =[2]cerTabGNI!G10 -> 93.0864675 | H10: =[2]cerTabGNI!H10 -> 96.70201567 | I10: =[2]cerTabGNI!I10 -> 100.7186437 | J10: =[2]cerTabGNI!J10 -> 111.5595408 | K10: =[2]cerTabGNI!K10 -> 132.4976906 | L10: =[2]cerTabGNI!L10 -> 110.3779904 | M10: =[2]cerTabGNI!M10 -> 126.7561358 | N10: =[2]cerTabGNI!N10 -> 113.9068362 | O10: =[2]cerTabGNI!O10 -> 111.7853884 | P10: =[2]cerTabGNI!P10 -> 116.2099274 | Q10: =[2]cerTabGNI!Q10 -> 122.8196468 | R10: =[2]cerTabGNI!R10 -> 127.3750816 | S10: =[2]cerTabGNI!S10 -> 123.7039416
B11: Payable to the rest of the world | C11: =[2]cerTabGNI!C11 -> -9.524128241 | D11: =[2]cerTabGNI!D11 -> -9.57951493 | E11: =[2]cerTabGNI!E11 -> -8.725687663 | F11: =[2]cerTabGNI!F11 -> -9.054146621 | G11: =[2]cerTabGNI!G11 -> -9.1530207 | H11: =[2]cerTabGNI!H11 -> -9.377781064 | I11: =[2]cerTabGNI!I11 -> -9.774721471 | J11: =[2]cerTabGNI!J11 -> -9.931661232 | K11: =[2]cerTabGNI!K11 -> -10.32780948 | L11: =[2]cerTabGNI!L11 -> -9.972915888 | M11: =[2]cerTabGNI!M11 -> -10.39606856 | N11: =[2]cerTabGNI!N11 -> -10.64806207 | O11: =[2]cerTabGNI!O11 -> -10.54361148 | P11: =[2]cerTabGNI!P11 -> -10.6797447 | Q11: =[2]cerTabGNI!Q11 -> -14.39421498 | R11: =[2]cerTabGNI!R11 -> -15.25236 | S11: =[2]cerTabGNI!S11 -> -15.66620358
B12: Gross National Disposable Income (GNDI) | C12: =[2]cerTabGNI!C12 -> 322.2434316 | D12: =[2]cerTabGNI!D12 -> 319.59977 | E12: =[2]cerTabGNI!E12 -> 287.6051599 | F12: =[2]cerTabGNI!F12 -> 304.1145747 | G12: =[2]cerTabGNI!G12 -> 310.7325155 | H12: =[2]cerTabGNI!H12 -> 326.861591 | I12: =[2]cerTabGNI!I12 -> 336.2188132 | J12: =[2]cerTabGNI!J12 -> 347.8670772 | K12: =[2]cerTabGNI!K12 -> 371.4024778 | L12: =[2]cerTabGNI!L12 -> 347.4159466 | M12: =[2]cerTabGNI!M12 -> 378.433759 | N12: =[2]cerTabGNI!N12 -> 371.5596819 | O12: =[2]cerTabGNI!O12 -> 374.6491408 | P12: =[2]cerTabGNI!P12 -> 379.1103336 | Q12: =[2]cerTabGNI!Q12 -> 406.4916338 | R12: =[2]cerTabGNI!R12 -> 419.8230721 | S12: =[2]cerTabGNI!S12 -> 433.2734922
A13: Constant 2004 prices
B14: GDP, at constant prices | C14: =[2]cerTabGNI!C14 -> 239.1185715 | D14: =[2]cerTabGNI!D14 -> 231.678293 | E14: =[2]cerTabGNI!E14 -> 217.6252597 | F14: =[2]cerTabGNI!F14 -> 224.0577101 | G14: =[2]cerTabGNI!G14 -> 227.1580689 | H14: =[2]cerTabGNI!H14 -> 237.523811 | I14: =[2]cerTabGNI!I14 -> 241.6737961 | J14: =[2]cerTabGNI!J14 -> 243.1236342 | K14: =[2]cerTabGNI!K14 -> 247.5627195 | L14: =[2]cerTabGNI!L14 -> 239.5633104 | M14: =[2]cerTabGNI!M14 -> 244.7392073 | N14: =[2]cerTabGNI!N14 -> 244.3393065 | O14: =[2]cerTabGNI!O14 -> 239.3066787 | P14: =[2]cerTabGNI!P14 -> 233.181331 | Q14: =[2]cerTabGNI!Q14 -> 235.4244364 | R14: =[2]cerTabGNI!R14 -> 241.3819972 | S14: =[2]cerTabGNI!S14 -> 246.3317455
B15: Trading gains/losses 3 | C15: =[2]cerTabGNI!C15 -> n.a | D15: =[2]cerTabGNI!D15 -> n.a | E15: =[2]cerTabGNI!E15 -> n.a | F15: =[2]cerTabGNI!F15 -> n.a | G15: =[2]cerTabGNI!G15 -> n.a | H15: =[2]cerTabGNI!H15 -> n.a | I15: =[2]cerTabGNI!I15 -> n.a | J15: =[2]cerTabGNI!J15 -> n.a | K15: =[2]cerTabGNI!K15 -> n.a | L15: =[2]cerTabGNI!L15 -> n.a | M15: =[2]cerTabGNI!M15 -> n.a | N15: =[2]cerTabGNI!N15 -> n.a | O15: =[2]cerTabGNI!O15 -> n.a | P15: =[2]cerTabGNI!P15 -> n.a | Q15: =[2]cerTabGNI!Q15 -> n.a | R15: =[2]cerTabGNI!R15 -> n.a | S15: =[2]cerTabGNI!S15 -> n.a
B16: Real Gross Domestic Income | C16: =[2]cerTabGNI!C16 -> 239.1185715 | D16: =[2]cerTabGNI!D16 -> 231.678293 | E16: =[2]cerTabGNI!E16 -> 217.6252597 | F16: =[2]cerTabGNI!F16 -> 224.0577101 | G16: =[2]cerTabGNI!G16 -> 227.1580689 | H16: =[2]cerTabGNI!H16 -> 237.523811 | I16: =[2]cerTabGNI!I16 -> 241.6737961 | J16: =[2]cerTabGNI!J16 -> 243.1236342 | K16: =[2]cerTabGNI!K16 -> 247.5627195 | L16: =[2]cerTabGNI!L16 -> 239.5633104 | M16: =[2]cerTabGNI!M16 -> 244.7392073 | N16: =[2]cerTabGNI!N16 -> 244.3393065 | O16: =[2]cerTabGNI!O16 -> 239.3066787 | P16: =[2]cerTabGNI!P16 -> 233.181331 | Q16: =[2]cerTabGNI!Q16 -> 235.4244364 | R16: =[2]cerTabGNI!R16 -> 241.3819972 | S16: =[2]cerTabGNI!S16 -> 246.3317455
B17: Primary incomes 4
B18: Receivable from the rest of the world | C18: =[2]cerTabGNI!C18 -> 33.60125373 | D18: =[2]cerTabGNI!D18 -> 31.8781704 | E18: =[2]cerTabGNI!E18 -> 21.21400715 | F18: =[2]cerTabGNI!F18 -> 19.98202036 | G18: =[2]cerTabGNI!G18 -> 23.66532625 | H18: =[2]cerTabGNI!H18 -> 21.59527722 | I18: =[2]cerTabGNI!I18 -> 19.48760007 | J18: =[2]cerTabGNI!J18 -> 18.60624644 | K18: =[2]cerTabGNI!K18 -> 18.59368839 | L18: =[2]cerTabGNI!L18 -> 19.49473717 | M18: =[2]cerTabGNI!M18 -> 22.8677084 | N18: =[2]cerTabGNI!N18 -> 25.32345854 | O18: =[2]cerTabGNI!O18 -> 26.7549836 | P18: =[2]cerTabGNI!P18 -> 23.51117541 | Q18: =[2]cerTabGNI!Q18 -> 24.23361177 | R18: =[2]cerTabGNI!R18 -> 20.02200642 | S18: =[2]cerTabGNI!S18 -> 20.47507
B19: Payable to the rest of the world | C19: =[2]cerTabGNI!C19 -> -21.04146463 | D19: =[2]cerTabGNI!D19 -> -20.50548225 | E19: =[2]cerTabGNI!E19 -> -18.3054291 | F19: =[2]cerTabGNI!F19 -> -19.07189673 | G19: =[2]cerTabGNI!G19 -> -17.26505674 | H19: =[2]cerTabGNI!H19 -> -15.14800967 | I19: =[2]cerTabGNI!I19 -> -14.20668916 | J19: =[2]cerTabGNI!J19 -> -13.8616179 | K19: =[2]cerTabGNI!K19 -> -14.29577608 | L19: =[2]cerTabGNI!L19 -> -12.0471756 | M19: =[2]cerTabGNI!M19 -> -11.0611603 | N19: =[2]cerTabGNI!N19 -> -11.07561557 | O19: =[2]cerTabGNI!O19 -> -11.0059961 | P19: =[2]cerTabGNI!P19 -> -13.12916292 | Q19: =[2]cerTabGNI!Q19 -> -8.034052812 | R19: =[2]cerTabGNI!R19 -> -9.709302181 | S19: =[2]cerTabGNI!S19 -> -9.568273662
B20: Real Gross National Income (GNI) | C20: =[2]cerTabGNI!C20 -> 251.6783606 | D20: =[2]cerTabGNI!D20 -> 243.0509812 | E20: =[2]cerTabGNI!E20 -> 220.5338377 | F20: =[2]cerTabGNI!F20 -> 224.9678337 | G20: =[2]cerTabGNI!G20 -> 233.5583384 | H20: =[2]cerTabGNI!H20 -> 243.9710785 | I20: =[2]cerTabGNI!I20 -> 246.954707 | J20: =[2]cerTabGNI!J20 -> 247.8682628 | K20: =[2]cerTabGNI!K20 -> 251.8606318 | L20: =[2]cerTabGNI!L20 -> 247.010872 | M20: =[2]cerTabGNI!M20 -> 256.5457554 | N20: =[2]cerTabGNI!N20 -> 258.5871494 | O20: =[2]cerTabGNI!O20 -> 255.0556662 | P20: =[2]cerTabGNI!P20 -> 243.5633435 | Q20: =[2]cerTabGNI!Q20 -> 251.6239954 | R20: =[2]cerTabGNI!R20 -> 251.6947014 | S20: =[2]cerTabGNI!S20 -> 257.2385418
B21: Secondary Incomes (Current transfers) 4
B22: Receivable from the rest of the world | C22: =[2]cerTabGNI!C22 -> 107.972801 | D22: =[2]cerTabGNI!D22 -> 107.2606976 | E22: =[2]cerTabGNI!E22 -> 92.79358896 | F22: =[2]cerTabGNI!F22 -> 96.31114367 | G22: =[2]cerTabGNI!G22 -> 97.05501249 | H22: =[2]cerTabGNI!H22 -> 98.78948761 | I22: =[2]cerTabGNI!I22 -> 101.8355566 | J22: =[2]cerTabGNI!J22 -> 112.7195326 | K22: =[2]cerTabGNI!K22 -> 134.2563402 | L22: =[2]cerTabGNI!L22 -> 110.3779904 | M22: =[2]cerTabGNI!M22 -> 122.3863494 | N22: =[2]cerTabGNI!N22 -> 106.0064157 | O22: =[2]cerTabGNI!O22 -> 100.5054616 | P22: =[2]cerTabGNI!P22 -> 98.5655877 | Q22: =[2]cerTabGNI!Q22 -> 96.793826 | R22: =[2]cerTabGNI!R22 -> 96.70690848 | S22: =[2]cerTabGNI!S22 -> 90.25906418
B23: Payable to the rest of the world | C23: =[2]cerTabGNI!C23 -> -10.46804905 | D23: =[2]cerTabGNI!D23 -> -10.30013239 | E23: =[2]cerTabGNI!E23 -> -9.337609383 | F23: =[2]cerTabGNI!F23 -> -9.41223133 | G23: =[2]cerTabGNI!G23 -> -9.543240411 | H23: =[2]cerTabGNI!H23 -> -9.580215882 | I23: =[2]cerTabGNI!I23 -> -9.88311761 | J23: =[2]cerTabGNI!J23 -> -10.03493026 | K23: =[2]cerTabGNI!K23 -> -10.4648911 | L23: =[2]cerTabGNI!L23 -> -9.972915888 | M23: =[2]cerTabGNI!M23 -> -10.03767487 | N23: =[2]cerTabGNI!N23 -> -9.909527222 | O23: =[2]cerTabGNI!O23 -> -9.479687407 | P23: =[2]cerTabGNI!P23 -> -9.058221929 | Q23: =[2]cerTabGNI!Q23 -> -11.34404125 | R23: =[2]cerTabGNI!R23 -> -11.58004033 | S23: =[2]cerTabGNI!S23 -> -11.43065335
B24: Real Gross National Disposable Income (GNDI) 1 | C24: =[2]cerTabGNI!C24 -> 349.1831126 | D24: =[2]cerTabGNI!D24 -> 340.0115464 | E24: =[2]cerTabGNI!E24 -> 303.9898173 | F24: =[2]cerTabGNI!F24 -> 311.8667461 | G24: =[2]cerTabGNI!G24 -> 321.0701105 | H24: =[2]cerTabGNI!H24 -> 333.1803503 | I24: =[2]cerTabGNI!I24 -> 338.907146 | J24: =[2]cerTabGNI!J24 -> 350.5528651 | K24: =[2]cerTabGNI!K24 -> 375.6520809 | L24: =[2]cerTabGNI!L24 -> 347.4159466 | M24: =[2]cerTabGNI!M24 -> 368.8944299 | N24: =[2]cerTabGNI!N24 -> 354.6840379 | O24: =[2]cerTabGNI!O24 -> 346.0814404 | P24: =[2]cerTabGNI!P24 -> 333.0707093 | Q24: =[2]cerTabGNI!Q24 -> 337.0737801 | R24: =[2]cerTabGNI!R24 -> 336.8215696 | S24: =[2]cerTabGNI!S24 -> 336.0669526
B25: Annual changes
B26: GDP at constant prices | D26: =D14/C14-1 -> -0.03111543555 | E26: -0.0606575314 | F26: 0.02955746234 | G26: 0.01383732244 | H26: 0.04563228657 | I26: 0.01747186983 | J26: 0.005999153226 | K26: 0.01825855097 | L26: -0.03231265622 | M26: 0.0216055492 | N26: -0.001633987788 | O26: =O14/N14-1 -> -0.0205968816 | P26: =P14/O14-1 -> -0.02559622545 | Q26: =Q14/P14-1 -> 0.009619575572 | R26: =R14/Q14-1 -> 0.02530561756 | S26: =S14/R14-1 -> 0.02050587188
B27: Real GNI | D27: =D20/C20-1 -> -0.03427938513 | E27: =E20/D20-1 -> -0.09264370514 | F27: 0.02010573998 | G27: 0.03818547973 | H27: 0.04458303741 | I27: 0.01222943506 | J27: 0.003699284719 | K27: 0.01610681814 | L27: -0.01925572787 | M27: 0.03860106782 | N27: 0.007957231608 | O27: -0.01365683964 | P27: -0.04505809606 | Q27: 0.03309468404 | R27: 0.0002809987898 | S27: 0.02202605127
B28: Real GNDI | D28: =D24/C24-1 -> -0.02626577812 | E28: -0.1059426643 | F28: 0.02591181781 | G28: 0.02951056666 | H28: 0.03771836554 | I28: 0.01718827571 | J28: 0.03436256598 | K28: 0.07159894632 | L28: -0.07516565406 | M28: 0.06182353917 | N28: -0.0385215685 | O28: =O24/N24-1 -> -0.02425425609 | P28: =P24/O24-1 -> -0.03759442034 | Q28: =Q24/P24-1 -> 0.01201868179 | R28: =R24/Q24-1 -> -0.0007482354701 | S28: =S24/R24-1 -> -0.002240405566
B29: Per capita income measures 5
B30: Population 6 | C30: =[2]cerTabGNI!C30 -> 105753.675 | D30: =[2]cerTabGNI!D30 -> 106002.4052 | E30: =[2]cerTabGNI!E30 -> 106252.1966 | F30: =[2]cerTabGNI!F30 -> 106503.0554 | G30: =[2]cerTabGNI!G30 -> 106754.9878 | H30: =[2]cerTabGNI!H30 -> 107008 | I30: =[2]cerTabGNI!I30 -> 106717.5 | J30: =[2]cerTabGNI!J30 -> 106427 | K30: =[2]cerTabGNI!K30 -> 106136.5 | L30: =[2]cerTabGNI!L30 -> 105846 | M30: =[2]cerTabGNI!M30 -> 105555.5 | N30: =[2]cerTabGNI!N30 -> 105013 | O30: =[2]cerTabGNI!O30 -> 104470.5 | P30: =[2]cerTabGNI!P30 -> 103928 | Q30: =[2]cerTabGNI!Q30 -> 103385.5 | R30: =[2]cerTabGNI!R30 -> 102843 | S30: =[2]cerTabGNI!S30 -> 103639.5
B31: Current price GDP per capita (US$) | C31: =C4/C$30*1000000 -> 2100.197342 | D31: =D4/D$30*1000000 -> 2064.535451 | E31: 1947.256988 | F31: 2062.346464 | G31: 2066.980743 | H31: 2179.522305 | I31: 2249.414576 | J31: 2269.568773 | K31: 2308.263261 | L31: 2263.319449 | M31: 2366.959492 | N31: 2409.141773 | O31: =O4/O$30*1000000 -> 2449.407597 | P31: =P4/P$30*1000000 -> 2514.622069 | Q31: =Q4/Q$30*1000000 -> 2684.23447 | R31: =R4/R$30*1000000 -> 2859.866306 | S31: =S4/S$30*1000000 -> 2993.911774
B32: Current price GNI per capita (US$) | C32: =C8/C$30*1000000 -> 2208.252714 | D32: =D8/D$30*1000000 -> 2164.316513 | E32: 1972.837355 | F32: 2070.56687 | G32: 2124.482176 | H32: 2238.499517 | I32: 2298.356792 | J32: 2313.691052 | K32: 2348.227016 | L32: 2333.681689 | M32: 2482.804702 | N32: 2554.930416 | O32: =O8/O$30*1000000 -> 2617.077203 | P32: =P8/P$30*1000000 -> 2632.400805 | Q32: =Q8/Q$30*1000000 -> 2883.056153 | R32: =R8/R$30*1000000 -> 2991.942578 | S32: =S8/S$30*1000000 -> 3138.144763
B33: Current price GNDI per capita (US$) | C33: =C12/C$30*1000000 -> 3047.113319 | D33: =D12/D$30*1000000 -> 3015.023758 | E33: 2706.816133 | F33: 2855.453993 | G33: 2910.707237 | H33: 3054.552846 | I33: 3150.54994 | J33: 3268.59798 | K33: 3499.290798 | L33: 3282.277522 | M33: 3585.163814 | N33: 3538.225571 | O33: =O12/O$30*1000000 -> 3586.171607 | P33: =P12/P$30*1000000 -> 3647.817081 | Q33: =Q12/Q$30*1000000 -> 3931.805077 | R33: =R12/R$30*1000000 -> 4082.1745 | S33: =S12/S$30*1000000 -> 4180.582618
B34: Constant price GDP per capita (US$) | C34: =C14/C30*1000000 -> 2261.089948 | D34: =D14/D30*1000000 -> 2185.594682 | E34: 2048.195395 | F34: 2103.767909 | G34: 2127.845018 | H34: 2219.682743 | I34: 2264.612609 | J34: 2284.41687 | K34: 2332.493718 | L34: 2263.319449 | M34: 2318.583184 | N34: 2326.75294 | O34: =O14/O30*1000000 -> 2290.66271 | P34: =P14/P30*1000000 -> 2243.681501 | Q34: =Q14/Q30*1000000 -> 2277.151403 | R34: =R14/R30*1000000 -> 2347.092142 | S34: =S14/S30*1000000 -> 2376.813334
B35: Real GDI per capita | C35: =C16/C30*1000000 -> 2261.089948 | D35: =D16/D30*1000000 -> 2185.594682 | E35: 2048.195395 | F35: 2103.767909 | G35: 2127.845018 | H35: 2219.682743 | I35: 2264.612609 | J35: 2284.41687 | K35: 2332.493718 | L35: 2263.319449 | M35: 2318.583184 | N35: 2326.75294 | O35: =O16/O30*1000000 -> 2290.66271 | P35: =P16/P30*1000000 -> 2243.681501 | Q35: =Q16/Q30*1000000 -> 2277.151403 | R35: =R16/R30*1000000 -> 2347.092142 | S35: =S16/S30*1000000 -> 2376.813334
B36: Real GNI per capita (US$) | C36: =C20/C30*1000000 -> 2379.854512 | D36: =D20/D30*1000000 -> 2292.881759 | E36: 2075.569681 | F36: 2112.313426 | G36: 2187.797903 | H36: 2279.933075 | I36: 2314.097566 | J36: 2328.997931 | K36: 2372.987915 | L36: 2333.681689 | M36: 2430.434752 | N36: 2462.429884 | O36: =O20/O30*1000000 -> 2441.413281 | P36: =P20/P30*1000000 -> 2343.577703 | Q36: =Q20/Q30*1000000 -> 2433.842225 | R36: =R20/R30*1000000 -> 2447.368332 | S36: =S20/S30*1000000 -> 2482.051166
B37: Real GNDI per capita (US$) | C37: =C24/C30*1000000 -> 3301.853222 | D37: =D24/D30*1000000 -> 3207.583318 | E37: 2861.021486 | F37: 2928.242246 | G37: 3007.54201 | H37: 3113.602256 | I37: 3175.741054 | J37: 3293.833944 | K37: 3539.329834 | L37: 3282.277522 | M37: 3494.791176 | N37: 3377.525048 | O37: =O24/O30*1000000 -> 3312.719288 | P37: =P24/P30*1000000 -> 3204.821696 | Q37: =Q24/Q30*1000000 -> 3260.358369 | R37: =R24/R30*1000000 -> 3275.104475 | S37: =S24/S30*1000000 -> 3242.653165
B38: Annual changes
B39: Real GDI per capita | D39: =D35/C35-1 -> -0.03338888214 | E39: =E35/D35-1 -> -0.06286585914 | F39: 0.02713242812 | G39: 0.01144475537 | H39: 0.04315996903 | I39: 0.02024157094 | J39: 0.008745098841 | K39: 0.02104556683 | L39: -0.02965678662 | M39: 0.02441711668 | N39: 0.00352359805 | O39: -0.0155109847 | P39: -0.02050987675 | Q39: 0.0149174038 | R39: 0.03071413634 | S39: 0.01266298449
B40: Real GNI per capita | D40: =D36/C36-1 -> -0.03654540764 | E40: -0.09477683565 | F40: 0.01770296849 | G40: 0.03573545315 | H40: 0.04211320075 | I40: 0.01498486553 | J40: 0.006438952681 | K40: 0.01888794462 | L40: -0.01656402283 | M40: 0.04145940879 | N40: 0.01316436595 | O40: -0.008534904124 | P40: -0.04007333755 | Q40: 0.0385156944 | R40: 0.005557511939 | S40: 0.01417148086
B41: Real GNDI per capita | D41: -0.02855060422 | E41: -0.1080445299 | F41: 0.0234953706 | G41: 0.02708101211 | H41: 0.03526475987 | I41: 0.01995720484 | J41: 0.03718593153 | K41: 0.07453195705 | L41: -0.07262739681 | M41: 0.06474579085 | N41: -0.0335545449 | O41: -0.0191873514 | P41: -0.03257070173 | Q41: 0.01732909896 | R41: 0.004522848437 | S41: -0.009908481125
B42: FSM Implicit Price deflators
B43: Gross Domestic Product (GDP) | C43: =C4/C14*100 -> 92.88428988 | D43: =D4/D14*100 -> 94.46103927 | E43: 95.07183707 | F43: 98.03108295 | G43: 97.13962838 | H43: 98.1907127 | I43: 99.32889039 | J43: 99.35002683 | K43: 98.96117805 | L43: 100 | M43: 102.0864598 | N43: 103.540936 | O43: =O4/O14*100 -> 106.9300856 | P43: =P4/P14*100 -> 112.0757143 | Q43: =Q4/Q14*100 -> 117.8768555 | R43: =R4/R14*100 -> 121.8472106 | S43: =S4/S14*100 -> 125.963269
B44: Gross National Income (GNI) | C44: =C8/C20*100 -> 92.78939965 | D44: =D8/D20*100 -> 94.39285323 | E44: 95.05040342 | F44: 98.02365712 | G44: 97.10596088 | H44: 98.18268534 | I44: 99.31978779 | J44: 99.34276977 | K44: 98.95655187 | L44: 100 | M44: 102.1547565 | N44: 103.7564737 | O44: =O8/O20*100 -> 107.1951735 | P44: =P8/P20*100 -> 112.324025 | Q44: =Q8/Q20*100 -> 118.4569864 | R44: =R8/R20*100 -> 122.2514216 | S44: =S8/S20*100 -> 126.4335243
B45: Gross National Disposable Income (GNDI) | C45: =C12/C24*100 -> 92.28494163 | D45: =D12/D24*100 -> 93.9967402 | E45: 94.61012951 | F45: 97.51426805 | G45: 96.78026866 | H45: 98.10350181 | I45: 99.2067642 | J45: 99.23384225 | K45: 98.86873963 | L45: 100 | M45: 102.5859238 | N45: 104.7579373 | O45: =O12/O24*100 -> 108.2546179 | P45: =P12/P24*100 -> 113.8227779 | Q45: =Q12/Q24*100 -> 120.5942609 | R45: =R12/R24*100 -> 124.6425734 | S45: =S12/S24*100 -> 128.9247541
B46: Other Price Indexes
B47: FSM CPI | C47: =[2]cerTabGNI!C43 -> 85.80964244 | D47: =[2]cerTabGNI!D43 -> 88.46354891 | E47: =[2]cerTabGNI!E43 -> 90.54610942 | F47: =[2]cerTabGNI!F43 -> 92.01840389 | G47: =[2]cerTabGNI!G43 -> 94.08834753 | H47: =[2]cerTabGNI!H43 -> 97.39994568 | I47: =[2]cerTabGNI!I43 -> 98.68275541 | J47: =[2]cerTabGNI!J43 -> 98.52544599 | K47: =[2]cerTabGNI!K43 -> 98.28445822 | L47: =[2]cerTabGNI!L43 -> 100 | M47: =[2]cerTabGNI!M43 -> 104.0865057 | N47: =[2]cerTabGNI!N43 -> 108.6620398 | O47: =[2]cerTabGNI!O43 -> 112.6166583 | P47: =[2]cerTabGNI!P43 -> 120.0718664 | Q47: =[2]cerTabGNI!Q43 -> 129.9004929 | R47: =[2]cerTabGNI!R43 -> 135.0803775 | S47: =[2]cerTabGNI!S43 -> 141.4793111
B48: US CPI | C48: =[2]cerTabGNI!C44 -> 80.10251371 | D48: =[2]cerTabGNI!D44 -> 82.57991104 | E48: =[2]cerTabGNI!E44 -> 84.52396217 | F48: =[2]cerTabGNI!F44 -> 85.89833554 | G48: =[2]cerTabGNI!G44 -> 87.83060894 | H48: =[2]cerTabGNI!H44 -> 90.92195542 | I48: =[2]cerTabGNI!I44 -> 93.5411064 | J48: =[2]cerTabGNI!J44 -> 95.0621 | K48: =[2]cerTabGNI!K44 -> 97.3 | L48: =[2]cerTabGNI!L44 -> 100 | M48: =[2]cerTabGNI!M44 -> 103.4 | N48: =[2]cerTabGNI!N44 -> 106.7088 | O48: =[2]cerTabGNI!O44 -> 109.6966464 | P48: =[2]cerTabGNI!P44 -> 113.865119 | Q48: =[2]cerTabGNI!Q44 -> 113.4779776 | R48: =[2]cerTabGNI!R44 -> 115.3896897 | S48: =[2]cerTabGNI!S44 -> 118.4513931
B49: US GDP deflator | C49: =[2]cerTabGNI!C45 -> 84.56777587 | D49: =[2]cerTabGNI!D45 -> 86.2110087 | E49: =[2]cerTabGNI!E45 -> 87.78576264 | F49: =[2]cerTabGNI!F45 -> 88.88819455 | G49: =[2]cerTabGNI!G45 -> 90.09842212 | H49: =[2]cerTabGNI!H45 -> 91.84242046 | I49: =[2]cerTabGNI!I45 -> 94.02671458 | J49: =[2]cerTabGNI!J45 -> 95.58792897 | K49: =[2]cerTabGNI!K45 -> 97.53397907 | L49: =[2]cerTabGNI!L45 -> 100 | M49: =[2]cerTabGNI!M45 -> 103.2507941 | N49: =[2]cerTabGNI!N45 -> 106.7617039 | O49: =[2]cerTabGNI!O45 -> 109.9091288 | P49: =[2]cerTabGNI!P45 -> 112.4858095 | Q49: =[2]cerTabGNI!Q45 -> 114.1147217 | R49: =[2]cerTabGNI!R45 -> 115.1512784 | S49: =[2]cerTabGNI!S45 -> 117.4285268
A50: 1) GDP, GNI and GNDI are at purchasers prices.
A51: 2) Refer to Balance of Payments tables for breakdown of primary and secondary Income flows
A52: 3) Changes in the terms of trade. Not currently estimated.
A53: 4) Primary, Secondary income and capital grants are deflated by an equal weighting of the RMI CPI and the RMI GDP implicit price deflator, as a proxy for the Gross Domestic Expenditure deflator.
A54: 5) Income comparisons between countries should be made at Purchasing Power Parity (PPP) rather than US$. However, these measures are currently not available for the FSM
A55: 6) 2000 and 2010 FSM Census and estimates by Graduate School consultants.

Sheet cerNApc
M1: Table 1b : FSM and States: Current and constant price GDP, GDP per capita, FY1981-FY2011 | AB1: Table 1b : FSM and States: Current and constant price GDP, GDP per capita, FY1981-FY2011
C2: GDP $'000 (old series) 3 | H2: GDP $'000 (new series) 4 | M2: Current price GDP US$' millions 1 | R2: Constant price GDP US$' millions 2 | W2: Real GDP annual growth | AB2: Population 3 | AG2: Current Price GDP per capita (1) | AL2: Constant price GDP per capita, US$ 2 | AQ2: Real per capita GDP growth (1) | AV2: US CPI | AW2: FSM Deflator, from 1995 | BB2: GDP Deflator linked US CPI
C3: FSM | D3: Chuuk | E3: Kosrae | F3: Pohnpei | G3: Yap | H3: FSM | I3: Chuuk | J3: Kosrae | K3: Pohnpei | L3: Yap | M3: FSM | N3: Chuuk | O3: Kosrae | P3: Pohnpei | Q3: Yap | R3: FSM | S3: Chuuk | T3: Kosrae | U3: Pohnpei | V3: Yap | W3: FSM | X3: Chuuk | Y3: Kosrae | Z3: Pohnpei | AA3: Yap | AB3: FSM | AC3: Chuuk | AD3: Kosrae | AE3: Pohnpei | AF3: Yap | AG3: FSM | AH3: Chuuk | AI3: Kosrae | AJ3: Pohnpei | AK3: Yap | AL3: FSM | AM3: Chuuk | AN3: Kosrae | AO3: Pohnpei | AP3: Yap | AQ3: FSM | AR3: Chuuk | AS3: Kosrae | AT3: Pohnpei | AU3: Yap | AW3: FSM | AX3: Chuuk | AY3: Kosrae | AZ3: Pohnpei | BA3: Yap | BB3: FSM | BC3: Chuuk | BD3: Kosrae | BE3: Pohnpei | BF3: Yap
B4: FY1980 | M4: =(AVERAGE(H$19:H$20)/AVERAGE(C$19:C$20)) -> 1.082935766 | N4: =(AVERAGE(I$19:I$20)/AVERAGE(D$19:D$20)) -> 1.25831288 | O4: =(AVERAGE(J$19:J$20)/AVERAGE(E$19:E$20)) -> 0.9506328787 | P4: =(AVERAGE(K$19:K$20)/AVERAGE(F$19:F$20)) -> 0.962436368 | Q4: =(AVERAGE(L$19:L$20)/AVERAGE(G$19:G$20)) -> 1.181949421
B5: FY1981 | C5: 73.10594365 | D5: 26.87169894 | E5: 5.567545828 | F5: 28.47696499 | G5: 12.1897339 | M5: =SUM(N5:Q5) -> 80.92061267 | N5: =D5*N$4 -> 33.81300487 | O5: =E5*O$4 -> 5.292692118 | P5: =F5*P$4 -> 27.40726675 | Q5: =G5*Q$4 -> 14.40764893 | R5: =M5/BB5*100 -> 148.3879155 | S5: =N5/BC5*100 -> 58.44882661 | T5: =O5/BD5*100 -> 9.914791735 | U5: =P5/BE5*100 -> 52.31529147 | V5: =Q5/BF5*100 -> 26.74860862 | AB5: =SUM(AC5:AF5) -> 75372.55023 | AC5: 38520.33669 | AD5: 5626.219535 | AE5: 22901.01258 | AF5: 8324.981423 | AG5: =M5/AB5*1000000 -> 1073.608528 | AH5: =N5/AC5*1000000 -> 877.7961923 | AI5: =O5/AD5*1000000 -> 940.7190895 | AJ5: =P5/AE5*1000000 -> 1196.770957 | AK5: =Q5/AF5*1000000 -> 1730.652382 | AL5: =R5/AB5*1000000 -> 1968.726214 | AM5: =S5/AC5*1000000 -> 1517.349838 | AN5: =T5/AD5*1000000 -> 1762.247576 | AO5: =U5/AE5*1000000 -> 2284.409534 | AP5: =V5/AF5*1000000 -> 3213.053251 | AV5: 88.88333333 | BB5: =BB6*($AV5/$AV6) -> 54.5331555 | BC5: =BC6*($AV5/$AV6) -> 57.85061366 | BD5: =BD6*($AV5/$AV6) -> 53.38177805 | BE5: =BE6*($AV5/$AV6) -> 52.38863434 | BF5: =BF6*($AV5/$AV6) -> 53.86317148
B6: FY1982 | C6: 76.44258992 | D6: 27.91485307 | E6: 6.779523295 | F6: 28.60376807 | G6: 13.14444549 | M6: 84.63583329 | N6: 35.12561915 | O6: 6.444837746 | P6: 27.52930665 | Q6: 15.53606974 | R6: 144.5359778 | S6: 56.54553749 | T6: 11.24349346 | U6: 48.93735749 | V6: 26.86158032 | W6: =R6/R5-1 -> -0.02595856733 | X6: =S6/S5-1 -> -0.03256334181 | Y6: =T6/T5-1 -> 0.1340120659 | Z6: =U6/U5-1 -> -0.06456876925 | AA6: =V6/V5-1 -> 0.004223460824 | AB6: 77654.63572 | AC6: 39581.10165 | AD6: 5764.76894 | AE6: 23752.55332 | AF6: 8556.211814 | AG6: 1089.90059 | AH6: 887.4340957 | AI6: 1117.969829 | AJ6: 1159.004099 | AK6: 1815.764976 | AL6: 1861.266574 | AM6: 1428.599386 | AN6: 1950.380592 | AO6: 2060.298817 | AP6: 3139.424422 | AQ6: =AG6/AG5-1 -> 0.01517504939 | AR6: =AH6/AH5-1 -> 0.01097965959 | AS6: =AI6/AI5-1 -> 0.188420477 | AT6: =AJ6/AJ5-1 -> -0.0315572986 | AU6: =AK6/AK5-1 -> 0.0491794858 | AV6: 95.44166667 | BB6: 58.55693136 | BC6: 62.11917103 | BD6: 57.32059854 | BE6: 56.25417486 | BF6: 57.83751199
B7: FY1983 | C7: 80.65284686 | D7: 27.67355968 | E7: 7.632968544 | F7: 30.64392051 | G7: 14.70239813 | M7: 88.94846195 | N7: 34.82199657 | O7: 7.25615086 | P7: 29.49282355 | Q7: 17.37749096 | R7: 146.7499073 | S7: 54.15589273 | T7: 12.22962919 | U7: 50.64998209 | V7: 29.02653336 | W7: 0.01531749788 | X7: -0.04226053677 | Y7: 0.08770723596 | Z7: 0.03499626237 | AA7: 0.08059663699 | AB7: 80007.43004 | AC7: 40671.07773 | AD7: 5906.730217 | AE7: 24635.75735 | AF7: 8793.86474 | AG7: 1111.75252 | AH7: 856.1857349 | AI7: 1228.454761 | AJ7: 1197.15514 | AK7: 1976.092591 | AL7: 1834.203489 | AM7: 1331.557848 | AN7: 2070.456706 | AO7: 2055.953928 | AP7: 3300.77096 | AQ7: 0.0200494705 | AR7: -0.03521203546 | AS7: 0.09882639906 | AT7: 0.03291708934 | AU7: 0.08829755889 | AV7: 98.79166667 | BB7: 60.61227812 | BC7: 64.29955231 | BD7: 59.33255004 | BE7: 58.22869492 | BF7: 59.86760715
B8: FY1984 | C8: 80.6472862 | D8: 29.59655856 | E8: 8.25425052 | F8: 27.76441761 | G8: 15.0320595 | M8: 89.57711205 | N8: 37.24173083 | O8: 7.846761933 | P8: 26.72148525 | Q8: 17.76713403 | R8: 141.9555791 | S8: 55.6336974 | T8: 12.70321003 | U8: 44.07979372 | V8: 28.50634223 | W8: -0.03267005956 | X8: 0.02728797557 | Y8: 0.0387240553 | Z8: -0.1297174866 | AA8: -0.01792122835 | AB8: 82433.17736 | AC8: 41791.06934 | AD8: 6052.187385 | AE8: 25551.80204 | AF8: 9038.118592 | AG8: 1086.663343 | AH8: 891.1408926 | AI8: 1296.516686 | AJ8: 1045.776936 | AK8: 1965.800056 | AL8: 1722.068512 | AM8: 1331.23412 | AN8: 2098.945261 | AO8: 1725.114872 | AP8: 3154.012855 | AQ8: -0.02256723219 | AR8: 0.04082660604 | AS8: 0.05540450234 | AT8: -0.1264482767 | AU8: -0.005208528952 | AV8: 102.85 | BB8: 63.10221312 | BC8: 66.94095947 | BD8: 61.76991418 | BE8: 60.62071301 | BF8: 62.32695128
B9: FY1985 | C9: 97.4601737 | D9: 35.39376036 | E9: 8.32810293 | F9: 37.22499038 | G9: 16.51332003 | M9: 107.7979866 | N9: 44.53642452 | O9: 7.916968462 | P9: 35.82668454 | Q9: 19.51790905 | R9: 164.7568311 | S9: 64.16538247 | T9: 12.36116174 | U9: 56.99843765 | V9: 30.20193567 | W9: 0.1606224441 | X9: 0.1533546297 | Y9: -0.02692613017 | Z9: 0.293074056 | AA9: 0.05948127012 | AB9: 84934.19481 | AC9: 42941.90305 | AD9: 6201.226533 | AE9: 26501.90851 | AF9: 9289.156713 | AG9: 1269.19419 | AH9: 1037.132064 | AI9: 1276.677835 | AJ9: 1351.853 | AK9: 2101.149723 | AL9: 1939.817426 | AM9: 1494.237048 | AN9: 1993.341426 | AO9: 2150.729545 | AP9: 3251.310814 | AQ9: 0.1679736863 | AR9: 0.163825016 | AS9: -0.01530165544 | AT9: 0.2926781552 | AU9: 0.06885220425 | AV9: 106.6416667 | BB9: 65.42853843 | BC9: 69.40880395 | BD9: 64.04712298 | BE9: 62.85555537 | BF9: 64.6246958
B10: FY1986 | C10: 107.8190567 | D10: 38.77320363 | E10: 10.38057664 | F10: 42.29247649 | G10: 16.3727999 | M10: 118.7125778 | N10: 48.78882151 | O10: 9.868117452 | P10: 40.70381746 | Q10: 19.35182137 | R10: 177.0931933 | S10: 68.60853086 | T10: 15.03858714 | U10: 63.20680333 | V10: 29.22777042 | W10: 0.07487618039 | X10: 0.06924525687 | Y10: 0.2165998191 | Z10: 0.1089216817 | AA10: -0.03225506028 | AB10: 87512.87489 | AC10: 44124.42818 | AD10: 6353.93587 | AE10: 27487.34331 | AF10: 9547.16754 | AG10: 1356.515575 | AH10: 1105.710001 | AI10: 1553.071616 | AJ10: 1480.820354 | AK10: 2026.969914 | AL10: 2023.62445 | AM10: 1554.887705 | AN10: 2366.814436 | AO10: 2299.487536 | AP10: 3061.407511 | AQ10: 0.06880064975 | AR10: 0.06612266612 | AS10: 0.2164945411 | AT10: 0.09540042745 | AU10: -0.03530438964 | AV10: 109.2583333 | BB10: 67.03395853 | BC10: 71.11188784 | BD10: 65.61864729 | BE10: 64.39784219 | BF10: 66.21039201
B11: FY1987 | C11: 113.1108397 | D11: 38.92661471 | E11: 10.92051993 | F11: 46.59072393 | G11: 16.67298114 | M11: 123.9104935 | N11: 48.98186064 | O11: 10.3814053 | P11: 44.84060712 | Q11: 19.70662041 | R11: 179.7073674 | S11: 66.96466989 | T11: 15.38089245 | U11: 67.69441362 | V11: 28.93601055 | W11: 0.01476157297 | X11: -0.02396000836 | Y11: 0.02276179982 | Z11: 0.07099884904 | AA11: -0.009982282852 | AB11: 90171.68801 | AC11: 45339.51743 | AD11: 6510.405775 | AE11: 28509.42006 | AF11: 9812.344742 | AG11: 1374.161848 | AH11: 1080.334847 | AI11: 1594.586522 | AJ11: 1572.834769 | AK11: 2008.34978 | AL11: 1992.946693 | AM11: 1476.960358 | AN11: 2362.509033 | AO11: 2374.457757 | AP11: 2948.939454 | AQ11: 0.01300853002 | AR11: -0.02294919403 | AS11: 0.02673083755 | AT11: 0.06213745942 | AU11: -0.009186191553 | AV11: 112.3833333 | BB11: 68.95125961 | BC11: 73.14582559 | BD11: 67.49546773 | BE11: 66.23974523 | BF11: 68.10413749
B12: FY1988 | C12: 124.7260045 | D12: 44.52442653 | E12: 10.37823954 | F12: 51.94543717 | G12: 17.87790129 | M12: 137.0165081 | N12: 56.02565935 | O12: 9.865895731 | P12: 49.99417788 | Q12: 21.13077509 | R12: 190.8467978 | S12: 73.56167624 | T12: 14.03835099 | U12: 72.48613846 | V12: 29.7986176 | W12: 0.06198649791 | X12: 0.09851472965 | Y12: -0.08728631703 | Z12: 0.07078464214 | AA12: 0.02981084931 | AB12: 92913.18503 | AC12: 46588.06756 | AD12: 6670.728856 | AE12: 29569.50124 | AF12: 10084.88737 | AG12: 1474.672384 | AH12: 1202.575301 | AI12: 1478.983173 | AJ12: 1690.734567 | AK12: 2095.291133 | AL12: 2054.033534 | AM12: 1578.981059 | AN12: 2104.470336 | AO12: 2451.381843 | AP12: 2954.779414 | AQ12: 0.07314315666 | AR12: 0.1131505233 | AS12: -0.0724973821 | AT12: 0.07496006576 | AU12: 0.0432899458 | AV12: 117.0166667 | BB12: 71.79397801 | BC12: 76.16147731 | BD12: 70.27816682 | BE12: 68.97067348 | BF12: 70.91193079
B13: FY1989 | C13: 131.7717298 | D13: 45.45118364 | E13: 10.64631029 | F13: 57.23586415 | G13: 18.43837168 | M13: 144.1916423 | N13: 57.19180977 | O13: 10.1207326 | P13: 55.08587721 | Q13: 21.79322274 | R13: 191.7204178 | S13: 71.68276948 | T13: 13.7469965 | U13: 76.24161704 | V13: 29.33718525 | W13: 0.004577598305 | X13: -0.02554192421 | Y13: -0.02075418256 | Z13: 0.05180961023 | AA13: -0.01548502537 | AB13: 95740 | AC13: 47871 | AD13: 6835 | AE13: 30669 | AF13: 10365 | AG13: 1506.075228 | AH13: 1194.706811 | AI13: 1480.721668 | AJ13: 1796.141942 | AK13: 2102.578171 | AL13: 2002.511153 | AM13: 1497.415334 | AN13: 2011.265032 | AO13: 2485.950538 | AP13: 2830.40861 | AQ13: 0.02129479372 | AR13: -0.00654303243 | AS13: 0.001175466276 | AT13: 0.06234412951 | AU13: 0.00347781632 | AV13: 122.5833333 | BB13: 75.20933033 | BC13: 79.78459843 | BD13: 73.62140963 | BE13: 72.25171677 | BF13: 74.28532275
B14: FY1990 | C14: 143.9186187 | D14: 48.4124665 | E14: 11.40908279 | F14: 61.94383864 | G14: 22.15323075 | M14: 157.5648807 | N14: 60.91803013 | O14: 10.84584922 | P14: 59.61700308 | Q14: 26.18399827 | R14: 199.5448773 | S14: 72.72431975 | T14: 14.03176535 | U14: 78.59136819 | V14: 33.57266591 | W14: 0.04081182157 | X14: 0.01452999495 | Y14: 0.02071498737 | Z14: 0.03081979678 | AA14: 0.1443724281 | AB14: 97616.73536 | AC14: 48914.13737 | AD14: 6928.790436 | AE14: 31251.08145 | AF14: 10522.7261 | AG14: 1614.117498 | AH14: 1245.40743 | AI14: 1565.33082 | AJ14: 1907.678081 | AK14: 2488.328406 | AL14: 2044.166674 | AM14: 1486.775065 | AN14: 2025.139234 | AO14: 2514.836752 | AP14: 3190.491284 | AQ14: 0.07173763202 | AR14: 0.04243770802 | AS14: 0.05714048368 | AT14: 0.06209761953 | AU14: 0.1834653474 | AV14: 128.7 | BB14: 78.96212765 | BC14: 83.7656926 | BD14: 77.29497283 | BE14: 75.856935 | BF14: 77.9920139
B15: FY1991 | C15: 160.1250062 | D15: 55.09180022 | E15: 12.54577504 | F15: 68.71137223 | G15: 23.77605868 | M15: 175.4815703 | N15: 69.32272178 | O15: 11.92642624 | P15: 66.13032353 | Q15: 28.1020988 | R15: 211.5637688 | S15: 78.78400362 | T15: 14.68884684 | U15: 82.99157012 | V15: 34.30182653 | W15: 0.06023152145 | X15: 0.08332403634 | Y15: 0.0468281413 | Z15: 0.05598836159 | AA15: 0.02171887744 | AB15: 99530.93605 | AC15: 49980.00533 | AD15: 7023.867872 | AE15: 31844.2105 | AF15: 10682.85235 | AG15: 1763.085703 | AH15: 1387.009091 | AI15: 1697.985563 | AJ15: 2076.682778 | AK15: 2630.5801 | AL15: 2125.60815 | AM15: 1576.310428 | AN15: 2091.276076 | AO15: 2606.174523 | AP15: 3210.923956 | AQ15: 0.09229080565 | AR15: 0.1136990655 | AS15: 0.08474549967 | AT15: 0.08859183271 | AU15: 0.05716757219 | AV15: 135.1916667 | BB15: 82.94500109 | BC15: 87.99085931 | BD15: 81.19375448 | BE15: 79.68318159 | BF15: 81.92595451
B16: FY1992 | C16: 171.6205665 | D16: 58.21544313 | E16: 12.48588261 | F16: 72.08012026 | G16: 28.8391205 | M16: 188.5816433 | N16: 73.25324189 | O16: 11.86949053 | P16: 69.37252914 | Q16: 34.08638179 | R16: 220.7048821 | S16: 80.81501014 | T16: 14.19097371 | U16: 84.51301647 | V16: 40.38891023 | W16: 0.04320736625 | X16: 0.0257794277 | Y16: -0.03389463722 | Z16: 0.0183325408 | AA16: 0.1774565473 | AB16: 101483.3612 | AC16: 51069.09918 | AD16: 7120.249969 | AE16: 32448.59683 | AF16: 10845.41527 | AG16: 1858.251846 | AH16: 1434.394635 | AI16: 1667.004752 | AJ16: 2137.920771 | AK16: 3142.930071 | AL16: 2174.788846 | AM16: 1582.463984 | AN16: 1993.044313 | AO16: 2604.519909 | AP16: 3724.053826 | AQ16: 0.05397703741 | AR16: 0.0341638308 | AS16: -0.01824562699 | AT16: 0.02948837127 | AU16: 0.1947669154 | AV16: 139.2666667 | BB16: 85.4451617 | BC16: 90.64311414 | BD16: 83.64112833 | BE16: 82.08502316 | BF16: 84.39539862
B17: FY1993 | C17: 188.8297363 | D17: 61.01099303 | E17: 13.85402123 | F17: 84.34614509 | G17: 29.61857695 | M17: 206.1264638 | N17: 76.77091832 | O17: 13.17008808 | P17: 81.17779753 | Q17: 35.00765989 | R17: 234.1352362 | S17: 82.20200655 | T17: 15.28232029 | U17: 95.98289393 | V17: 40.25916964 | W17: 0.06085209361 | X17: 0.01716260878 | Y17: 0.07690427767 | Z17: 0.1357172888 | AA17: -0.003212282441 | AB17: 103474.7857 | AC17: 52181.92502 | AD17: 7217.954629 | AE17: 33064.45409 | AF17: 11010.45194 | AG17: 1992.045332 | AH17: 1471.216677 | AI17: 1824.628826 | AJ17: 2455.137995 | AK17: 3179.493457 | AL17: 2262.727433 | AM17: 1575.296552 | AN17: 2117.264665 | AO17: 2902.902726 | AP17: 3656.450241 | AQ17: 0.07199965214 | AR17: 0.02567078866 | AS17: 0.09455526388 | AT17: 0.1483765109 | AU17: 0.01163353444 | AV17: 143.4916667 | BB17: 88.03735276 | BC17: 93.39299799 | BD17: 86.17858956 | BE17: 84.57527608 | BF17: 86.95574251
B18: FY1994 | C18: 196.264194 | D18: 60.25513558 | E18: 16.80408867 | F18: 88.58691809 | G18: 30.61805169 | M18: =SUM(N18:Q18) -> 213.2425925 | N18: 75.81981317 | O18: 15.97451919 | P18: 85.2592717 | Q18: 36.18898848 | R18: 236.0227021 | S18: 79.10705051 | T18: 18.06238989 | U18: 98.23019214 | V18: 40.55318563 | W18: 0.008061434499 | X18: -0.03765061418 | Y18: 0.1819141037 | Z18: 0.0234135283 | AA18: 0.007303081238 | AB18: 105506 | AC18: 53319 | AD18: 7317 | AE18: 33692 | AF18: 11178 | AG18: 2021.141855 | AH18: 1422.00366 | AI18: 2183.206121 | AJ18: 2530.549439 | AK18: 3237.519098 | AL18: 2237.054784 | AM18: 1483.65593 | AN18: 2468.551304 | AO18: 2915.534612 | AP18: 3627.946469 | AQ18: 0.01460635564 | AR18: -0.03345055641 | AS18: 0.1965206788 | AT18: 0.03071576585 | AU18: 0.01824996421 | AV18: 147.2583333 | BB18: 90.34833966 | BC18: 95.84457097 | BD18: 88.44078379 | BE18: 86.79538322 | BF18: 89.23833707
B19: FY1995 | C19: 205.8432112 | D19: 64.00950859 | E19: 16.41906426 | F19: 95.69011962 | G19: 29.72451869 | H19: =[3]cerNApc!G19 -> 222.1035871 | I19: =[3]cerNApc!H19 -> 79.16819483 | J19: =[3]cerNApc!I19 -> 15.7153269 | K19: =[3]cerNApc!J19 -> 91.88996922 | L19: =[3]cerNApc!K19 -> 35.33009619 | M19: =H19 -> 222.1035871 | N19: =I19 -> 79.16819483 | O19: =J19 -> 15.7153269 | P19: =K19 -> 91.88996922 | Q19: =L19 -> 35.33009619 | R19: 239.1185715 | S19: 80.34542187 | T19: 17.28417868 | U19: 102.9791711 | V19: 38.50979988 | W19: 0.01311682909 | X19: 0.01565437398 | Y19: -0.04308462054 | Z19: 0.04834541047 | AA19: -0.05038779848 | AB19: 105753.675 | AC19: 53364.9011 | AD19: 7377.246175 | AE19: 33823.05231 | AF19: 11188.47543 | AG19: 2100.197342 | AH19: 1483.525561 | AI19: 2130.242983 | AJ19: 2716.785238 | AK19: 3157.722106 | AL19: 2261.089948 | AM19: 1505.585511 | AN19: 2342.903878 | AO19: 3044.644526 | AP19: 3441.916652 | AQ19: 0.03911426931 | AR19: 0.04326423495 | AS19: -0.02425933949 | AT19: 0.07359500503 | AU19: -0.02464757422 | AV19: 151.3916667 | AW19: =[3]cerNApc!AV19 -> 92.88428988 | AX19: =[3]cerNApc!AW19 -> 98.53479264 | AY19: =[3]cerNApc!AX19 -> 90.92319162 | AZ19: =[3]cerNApc!AY19 -> 89.23160698 | BA19: =[3]cerNApc!AZ19 -> 91.74313109 | BB19: =AW19 -> 92.88428988 | BC19: =AX19 -> 98.53479264 | BD19: =AY19 -> 90.92319162 | BE19: =AZ19 -> 89.23160698 | BF19: =BA19 -> 91.74313109
B20: FY1996 | C20: 201.3363504 | D20: 57.37266467 | E20: 17.40197767 | F20: 94.55885213 | G20: 32.0028559 | H20: =[3]cerNApc!G20 -> 218.8457233 | I20: =[3]cerNApc!H20 -> 73.56855714 | J20: =[3]cerNApc!I20 -> 16.43606756 | K20: =[3]cerNApc!J20 -> 91.21256016 | L20: =[3]cerNApc!K20 -> 37.62853849 | M20: 218.8457233 | N20: 73.56855714 | O20: 16.43606756 | P20: 91.21256016 | Q20: 37.62853849 | R20: 231.678293 | S20: 75.00423143 | T20: 17.5689535 | U20: 99.641523 | V20: 39.46358509 | W20: -0.03111543555 | X20: -0.06647784416 | Y20: 0.01647604003 | Z20: -0.03241090462 | AA20: 0.02476733736 | AB20: 106002.4052 | AC20: 53410.84171 | AD20: 7437.9884 | AE20: 33954.61438 | AF20: 11198.96067 | AG20: 2064.535451 | AH20: 1377.408683 | AI20: 2209.746328 | AJ20: 2686.308233 | AK20: 3360.002735 | AL20: 2185.594682 | AM20: 1404.288512 | AN20: 2362.057125 | AO20: 2934.550276 | AP20: 3523.861388 | AQ20: -0.0169802571 | AR20: -0.0715301985 | AS20: 0.03732125673 | AT20: -0.01121803977 | AU20: 0.06405903443 | AV20: 155.625 | AW20: =[3]cerNApc!AV20 -> 94.46103927 | AX20: =[3]cerNApc!AW20 -> 98.08587561 | AY20: =[3]cerNApc!AX20 -> 93.55177336 | AZ20: =[3]cerNApc!AY20 -> 91.54071256 | BA20: =[3]cerNApc!AZ20 -> 95.3500256 | BB20: 94.46103927 | BC20: 98.08587561 | BD20: 93.55177336 | BE20: 91.54071256 | BF20: 95.3500256
B21: FY1997 | H21: =[3]cerNApc!G21 -> 206.9003323 | I21: =[3]cerNApc!H21 -> 69.74740198 | J21: =[3]cerNApc!I21 -> 15.43389179 | K21: =[3]cerNApc!J21 -> 84.15576715 | L21: =[3]cerNApc!K21 -> 37.56327138 | M21: 206.9003323 | N21: 69.74740198 | O21: 15.43389179 | P21: 84.15576715 | Q21: 37.56327138 | R21: 217.6252597 | S21: 71.8841365 | T21: 16.53624157 | U21: 90.18805557 | V21: 39.01682605 | W21: -0.0606575314 | X21: -0.04159891882 | Y21: -0.05878050335 | Z21: -0.0948747786 | AA21: -0.01132079195 | AB21: 106252.1966 | AC21: 53456.82188 | AD21: 7499.230761 | AE21: 34086.68819 | AF21: 11209.45574 | AG21: 1947.256988 | AH21: 1304.742772 | AI21: 2058.063325 | AJ21: 2468.874848 | AK21: 3351.034364 | AL21: 2048.195395 | AM21: 1344.713995 | AN21: 2205.058371 | AO21: 2645.843887 | AP21: 3480.706553 | AQ21: -0.05680622361 | AR21: -0.05275551947 | AS21: -0.06864272213 | AT21: -0.08094133867 | AU21: -0.002669156041 | AV21: 159.775 | AW21: =[3]cerNApc!AV21 -> 95.07183707 | AX21: =[3]cerNApc!AW21 -> 97.02752982 | AY21: =[3]cerNApc!AX21 -> 93.33373447 | AZ21: =[3]cerNApc!AY21 -> 93.31143311 | BA21: =[3]cerNApc!AZ21 -> 96.27454405 | BB21: 95.07183707 | BC21: 97.02752982 | BD21: 93.33373447 | BE21: 93.31143311 | BF21: 96.27454405
B22: FY1998 | H22: =[3]cerNApc!G22 -> 219.6461996 | I22: =[3]cerNApc!H22 -> 71.62881789 | J22: =[3]cerNApc!I22 -> 14.05578869 | K22: =[3]cerNApc!J22 -> 90.11820389 | L22: =[3]cerNApc!K22 -> 43.84338917 | M22: 219.6461996 | N22: 71.62881789 | O22: 14.05578869 | P22: 90.11820389 | Q22: 43.84338917 | R22: 224.0577101 | S22: 72.34449665 | T22: 14.51369183 | U22: 93.15979755 | V22: 44.03972407 | W22: 0.02955746234 | X22: 0.00640419679 | Y22: -0.1223101227 | Z22: 0.03295050505 | AA22: 0.128736715 | AB22: 106503.0554 | AC22: 53502.84162 | AD22: 7560.977374 | AE22: 34219.27573 | AF22: 11219.96065 | AG22: 2062.346464 | AH22: 1338.7853 | AI22: 1858.990973 | AJ22: 2633.550885 | AK22: 3907.624149 | AL22: 2103.767909 | AM22: 1352.161763 | AN22: 1919.552343 | AO22: 2722.436275 | AP22: 3925.122864 | AQ22: 0.05910338294 | AR22: 0.02609137123 | AS22: -0.09672800118 | AT22: 0.06670084415 | AU22: 0.1660949202 | AW22: =[3]cerNApc!AV22 -> 98.03108295 | AX22: =[3]cerNApc!AW22 -> 99.01073504 | AY22: =[3]cerNApc!AX22 -> 96.84502641 | AZ22: =[3]cerNApc!AY22 -> 96.73507914 | BA22: =[3]cerNApc!AZ22 -> 99.55418681 | BB22: 98.03108295 | BC22: 99.01073504 | BD22: 96.84502641 | BE22: 96.73507914 | BF22: 99.55418681
B23: FY1999 | H23: =[3]cerNApc!G23 -> 220.6605039 | I23: =[3]cerNApc!H23 -> 74.42897701 | J23: =[3]cerNApc!I23 -> 15.43362488 | K23: =[3]cerNApc!J23 -> 90.80963269 | L23: =[3]cerNApc!K23 -> 39.98826937 | M23: 220.6605039 | N23: 74.42897701 | O23: 15.43362488 | P23: 90.80963269 | Q23: 39.98826937 | R23: 227.1580689 | S23: 75.94886448 | T23: 15.63017657 | U23: 95.08192349 | V23: 40.49710434 | W23: 0.01383732244 | X23: 0.04982228079 | Y23: 0.07692630899 | Z23: 0.0206325689 | AA23: -0.08044146061 | AB23: 106754.9878 | AC23: 53548.90099 | AD23: 7623.232391 | AE23: 34352.379 | AF23: 11230.4754 | AG23: 2066.980743 | AH23: 1389.925389 | AI23: 2024.551277 | AJ23: 2643.474348 | AK23: 3560.692487 | AL23: 2127.845018 | AM23: 1418.308557 | AN23: 2050.334526 | AO23: 2767.841013 | AP23: 3606.000896 | AQ23: 0.002247090533 | AR23: 0.03819887189 | AS23: 0.08905922969 | AT23: 0.003768092564 | AU23: -0.08878327303 | AW23: =[3]cerNApc!AV23 -> 97.13962838 | AX23: =[3]cerNApc!AW23 -> 97.99880159 | AY23: =[3]cerNApc!AX23 -> 98.74248575 | AZ23: =[3]cerNApc!AY23 -> 95.50672657 | BA23: =[3]cerNApc!AZ23 -> 98.74352753 | BB23: 97.13962838 | BC23: 97.99880159 | BD23: 98.74248575 | BE23: 95.50672657 | BF23: 98.74352753
B24: FY2000 | H24: =[3]cerNApc!G24 -> 233.2263228 | I24: =[3]cerNApc!H24 -> 80.1347094 | J24: =[3]cerNApc!I24 -> 16.31926346 | K24: =[3]cerNApc!J24 -> 95.28305361 | L24: =[3]cerNApc!K24 -> 41.48929636 | M24: 233.2263228 | N24: 80.1347094 | O24: 16.31926346 | P24: 95.28305361 | Q24: 41.48929636 | R24: 237.523811 | S24: 80.36464442 | T24: 16.46356662 | U24: 98.24167889 | V24: 42.45392105 | W24: 0.04563228657 | X24: 0.05814148728 | Y24: 0.05331929829 | Z24: 0.03323192554 | AA24: 0.04831991672 | AB24: 107008 | AC24: 53595 | AD24: 7686 | AE24: 34486 | AF24: 11241 | AG24: 2179.522305 | AH24: 1495.190025 | AI24: 2123.245311 | AJ24: 2762.948838 | AK24: 3690.890167 | AL24: 2219.682743 | AM24: 1499.480258 | AN24: 2142.020117 | AO24: 2848.740906 | AP24: 3776.703234 | AQ24: 0.05444732011 | AR24: 0.0757340196 | AS24: 0.04874859671 | AT24: 0.0451960085 | AU24: 0.03656526922 | AW24: =[3]cerNApc!AV24 -> 98.1907127 | AX24: =[3]cerNApc!AW24 -> 99.71388536 | AY24: =[3]cerNApc!AX24 -> 99.12350002 | AZ24: =[3]cerNApc!AY24 -> 96.9884215 | BA24: =[3]cerNApc!AZ24 -> 97.72783135 | BB24: 98.1907127 | BC24: 99.71388536 | BD24: 99.12350002 | BE24: 96.9884215 | BF24: 97.72783135
B25: FY2001 | H25: =[3]cerNApc!G25 -> 240.0519 | I25: =[3]cerNApc!H25 -> 82.13188095 | J25: =[3]cerNApc!I25 -> 17.5522289 | K25: =[3]cerNApc!J25 -> 96.97518579 | L25: =[3]cerNApc!K25 -> 43.39260438 | M25: 240.0519 | N25: 82.13188095 | O25: 17.5522289 | P25: 96.97518579 | Q25: 43.39260438 | R25: 241.6737961 | S25: 81.66217287 | T25: 17.64277142 | U25: 98.14048425 | V25: 44.22836753 | W25: 0.01747186983 | X25: 0.01614551357 | Y25: 0.07162511202 | Z25: -0.001030058124 | AA25: 0.04179699878 | AB25: 106717.5 | AC25: =[3]cerNApc!AB25 -> 53185.9 | AD25: =[3]cerNApc!AC25 -> 7587.8 | AE25: =[3]cerNApc!AD25 -> 34579 | AF25: =[3]cerNApc!AE25 -> 11364.8 | AG25: 2249.414576 | AH25: 1544.241631 | AI25: 2313.217125 | AJ25: 2804.453159 | AK25: 3818.158206 | AL25: 2264.612609 | AM25: 1535.410191 | AN25: 2325.14977 | AO25: 2838.152759 | AP25: 3891.697833 | AQ25: 0.03206770158 | AR25: 0.03280626857 | AS25: 0.08947238128 | AT25: 0.01502174815 | AU25: 0.03448166537 | AW25: =[3]cerNApc!AV25 -> 99.32889039 | AX25: =[3]cerNApc!AW25 -> 100.5751844 | AY25: =[3]cerNApc!AX25 -> 99.48680103 | AZ25: =[3]cerNApc!AY25 -> 98.81262205 | BA25: =[3]cerNApc!AZ25 -> 98.11034592 | BB25: 99.32889039 | BC25: 100.5751844 | BD25: 99.48680103 | BE25: 98.81262205 | BF25: 98.11034592
B26: FY2002 | H26: =[3]cerNApc!G26 -> 241.5433958 | I26: =[3]cerNApc!H26 -> 80.56970516 | J26: =[3]cerNApc!I26 -> 17.66607731 | K26: =[3]cerNApc!J26 -> 101.0410356 | L26: =[3]cerNApc!K26 -> 42.26657776 | M26: 241.5433958 | N26: 80.56970516 | O26: 17.66607731 | P26: 101.0410356 | Q26: 42.26657776 | R26: 243.1236342 | S26: 81.51715531 | T26: 17.70428514 | U26: 101.2794755 | V26: 42.62271832 | W26: 0.005999153226 | X26: -0.001775823001 | Y26: 0.003486624383 | Z26: 0.03198467201 | AA26: -0.03630360576 | AB26: 106427 | AC26: =[3]cerNApc!AB26 -> 52776.8 | AD26: =[3]cerNApc!AC26 -> 7489.6 | AE26: =[3]cerNApc!AD26 -> 34672 | AF26: =[3]cerNApc!AE26 -> 11488.6 | AG26: 2269.568773 | AH26: 1526.61217 | AI26: 2358.747772 | AJ26: 2914.196919 | AK26: 3679.001598 | AL26: 2284.41687 | AM26: 1544.564189 | AN26: 2363.849223 | AO26: 2921.073934 | AP26: 3710.001072 | AQ26: 0.008959752152 | AR26: -0.0114162581 | AS26: 0.0196828246 | AT26: 0.03913196405 | AU26: -0.03644600366 | AW26: =[3]cerNApc!AV26 -> 99.35002683 | AX26: =[3]cerNApc!AW26 -> 98.83772913 | AY26: =[3]cerNApc!AX26 -> 99.78418882 | AZ26: =[3]cerNApc!AY26 -> 99.76457237 | BA26: =[3]cerNApc!AZ26 -> 99.16443492 | BB26: 99.35002683 | BC26: 98.83772913 | BD26: 99.78418882 | BE26: 99.76457237 | BF26: 99.16443492
B27: FY2003 | H27: =[3]cerNApc!G27 -> 244.9909836 | I27: =[3]cerNApc!H27 -> 81.79636296 | J27: =[3]cerNApc!I27 -> 16.99373438 | K27: =[3]cerNApc!J27 -> 100.9914829 | L27: =[3]cerNApc!K27 -> 45.20940332 | M27: 244.9909836 | N27: 81.79636296 | O27: 16.99373438 | P27: 100.9914829 | Q27: 45.20940332 | R27: 247.5627195 | S27: 82.75774543 | T27: 17.2148419 | U27: 102.0374341 | V27: 45.55269805 | W27: 0.01825855097 | X27: 0.01521876122 | Y27: -0.02764546736 | Z27: 0.007483832682 | AA27: 0.06874220719 | AB27: 106136.5 | AC27: =[3]cerNApc!AB27 -> 52367.7 | AD27: =[3]cerNApc!AC27 -> 7391.4 | AE27: =[3]cerNApc!AD27 -> 34765 | AF27: =[3]cerNApc!AE27 -> 11612.4 | AG27: 2308.263261 | AH27: 1561.962106 | AI27: 2299.122546 | AJ27: 2904.975779 | AK27: 3893.200658 | AL27: 2332.493718 | AM27: 1580.320416 | AN27: 2329.036705 | AO27: 2935.062106 | AP27: 3922.76343 | AQ27: 0.0170492687 | AR27: 0.02315580639 | AS27: -0.02527833929 | AT27: -0.003164213282 | AU27: 0.05822206204 | AW27: =[3]cerNApc!AV27 -> 98.96117805 | AX27: =[3]cerNApc!AW27 -> 98.83831722 | AY27: =[3]cerNApc!AX27 -> 98.71559947 | AZ27: =[3]cerNApc!AY27 -> 98.97493389 | BA27: =[3]cerNApc!AZ27 -> 99.24637893 | BB27: 98.96117805 | BC27: 98.83831722 | BD27: 98.71559947 | BE27: 98.97493389 | BF27: 99.24637893
B28: FY2004 | H28: =[3]cerNApc!G28 -> 239.5633104 | I28: =[3]cerNApc!H28 -> 77.8888519 | J28: =[3]cerNApc!I28 -> 16.7622313 | K28: =[3]cerNApc!J28 -> 102.3636602 | L28: =[3]cerNApc!K28 -> 42.548567 | M28: 239.5633104 | N28: 77.8888519 | O28: 16.7622313 | P28: 102.3636602 | Q28: 42.548567 | R28: 239.5633104 | S28: 77.8888519 | T28: 16.7622313 | U28: 102.3636602 | V28: 42.548567 | W28: -0.03231265622 | X28: -0.05883308567 | Y28: -0.02629188261 | Z28: 0.003197122104 | AA28: -0.06594847685 | AB28: 105846 | AC28: =[3]cerNApc!AB28 -> 51958.6 | AD28: =[3]cerNApc!AC28 -> 7293.2 | AE28: =[3]cerNApc!AD28 -> 34858 | AF28: =[3]cerNApc!AE28 -> 11736.2 | AG28: 2263.319449 | AH28: 1499.056016 | AI28: 2298.336985 | AJ28: 2936.590173 | AK28: 3625.412569 | AL28: 2263.319449 | AM28: 1499.056016 | AN28: 2298.336985 | AO28: 2936.590173 | AP28: 3625.412569 | AQ28: -0.01947083438 | AR28: -0.04027376178 | AS28: -0.0003416783052 | AT28: 0.01088284252 | AU28: -0.06878353108 | AW28: =[3]cerNApc!AV28 -> 100 | AX28: =[3]cerNApc!AW28 -> 100 | AY28: =[3]cerNApc!AX28 -> 100 | AZ28: =[3]cerNApc!AY28 -> 100 | BA28: =[3]cerNApc!AZ28 -> 100 | BB28: 100 | BC28: 100 | BD28: 100 | BE28: 100 | BF28: 100
B29: FY2005 | H29: =[3]cerNApc!G29 -> 249.8455926 | I29: =[3]cerNApc!H29 -> 78.50927256 | J29: =[3]cerNApc!I29 -> 16.584777 | K29: =[3]cerNApc!J29 -> 108.4783558 | L29: =[3]cerNApc!K29 -> 46.27318727 | M29: 249.8455926 | N29: 78.50927256 | O29: 16.584777 | P29: 108.4783558 | Q29: 46.27318727 | R29: 244.7392073 | S29: 77.19549825 | T29: 16.43713414 | U29: 106.0610078 | V29: 45.04556718 | W29: 0.0216055492 | X29: -0.008901834294 | Y29: -0.01939462344 | Z29: 0.03611972759 | AA29: 0.05868588203 | AB29: 105555.5 | AC29: =[3]cerNApc!AB29 -> 51549.5 | AD29: =[3]cerNApc!AC29 -> 7195 | AE29: =[3]cerNApc!AD29 -> 34951 | AF29: =[3]cerNApc!AE29 -> 11860 | AG29: 2366.959492 | AH29: 1522.988051 | AI29: 2305.041973 | AJ29: 3103.726812 | AK29: 3901.617813 | AL29: 2318.583184 | AM29: 1497.502367 | AN29: 2284.52177 | AO29: 3034.562896 | AP29: 3798.108531 | AQ29: 0.04579116851 | AR29: 0.01596473737 | AS29: 0.002917321526 | AT29: 0.05691520759 | AU29: 0.07618587917 | AW29: =[3]cerNApc!AV29 -> 102.0864598 | AX29: =[3]cerNApc!AW29 -> 101.7018794 | AY29: =[3]cerNApc!AX29 -> 100.8982275 | AZ29: =[3]cerNApc!AY29 -> 102.2792052 | BA29: =[3]cerNApc!AZ29 -> 102.725285 | BB29: 102.0864598 | BC29: 101.7018794 | BD29: 100.8982275 | BE29: 102.2792052 | BF29: 102.725285
B30: FY2006 | H30: =[3]cerNApc!G30 -> 252.991205 | I30: =[3]cerNApc!H30 -> 79.49285844 | J30: =[3]cerNApc!I30 -> 16.78717785 | K30: =[3]cerNApc!J30 -> 111.274284 | L30: =[3]cerNApc!K30 -> 45.43688474 | M30: 252.991205 | N30: 79.49285844 | O30: 16.78717785 | P30: 111.274284 | Q30: 45.43688474 | R30: 244.3393065 | S30: 79.31187222 | T30: 16.32452687 | U30: 106.5113398 | V30: 42.19156757 | W30: -0.001633987788 | X30: 0.02741576921 | Y30: -0.006850784837 | Z30: 0.004245971728 | AA30: -0.06335805697 | AB30: 105013 | AC30: =[3]cerNApc!AB30 -> 50970.4 | AD30: =[3]cerNApc!AC30 -> 7079.2 | AE30: =[3]cerNApc!AD30 -> 35200 | AF30: =[3]cerNApc!AE30 -> 11763.4 | AG30: 2409.141773 | AH30: 1559.588672 | AI30: 2371.338266 | AJ30: 3161.201249 | AK30: 3862.563948 | AL30: 2326.75294 | AM30: 1556.037861 | AN30: 2305.984697 | AO30: 3025.890335 | AP30: 3586.681365 | AQ30: 0.01782129412 | AR30: 0.02403211261 | AS30: 0.02876142541 | AT30: 0.0185178789 | AU30: -0.01000965943 | AW30: =[3]cerNApc!AV30 -> 103.540936 | AX30: =[3]cerNApc!AW30 -> 100.2281956 | AY30: =[3]cerNApc!AX30 -> 102.8340851 | AZ30: =[3]cerNApc!AY30 -> 104.4717719 | BA30: =[3]cerNApc!AZ30 -> 107.6918621 | BB30: 103.540936 | BC30: 100.2281956 | BD30: 102.8340851 | BE30: 104.4717719 | BF30: 107.6918621
B31: FY2007 | H31: =[3]cerNApc!G31 -> 255.8908364 | I31: =[3]cerNApc!H31 -> 76.25535709 | J31: =[3]cerNApc!I31 -> 17.06393293 | K31: =[3]cerNApc!J31 -> 116.3722602 | L31: =[3]cerNApc!K31 -> 46.19928619 | M31: 255.8908364 | N31: 76.25535709 | O31: 17.06393293 | P31: 116.3722602 | Q31: 46.19928619 | R31: 239.3066787 | S31: 72.54925337 | T31: 16.27496678 | U31: 109.2200028 | V31: 41.26245574 | W31: -0.0205968816 | X31: -0.0852661608 | Y31: -0.003035927895 | Z31: 0.02543074762 | AA31: -0.02202126832 | AB31: 104470.5 | AC31: =[3]cerNApc!AB31 -> 50391.3 | AD31: =[3]cerNApc!AC31 -> 6963.4 | AE31: =[3]cerNApc!AD31 -> 35449 | AF31: =[3]cerNApc!AE31 -> 11666.8 | AG31: 2449.407597 | AH31: 1513.264335 | AI31: 2450.51741 | AJ31: 3282.807982 | AK31: 3959.89356 | AL31: 2290.66271 | AM31: 1439.717836 | AN31: 2337.215553 | AO31: 3081.046089 | AP31: 3536.7415 | AQ31: 0.01671376283 | AR31: -0.02970291941 | AS31: 0.03339006713 | AT31: 0.03846851992 | AU31: 0.02519818795 | AW31: =[3]cerNApc!AV31 -> 106.9300856 | AX31: =[3]cerNApc!AW31 -> 105.1083968 | AY31: =[3]cerNApc!AX31 -> 104.8477282 | AZ31: =[3]cerNApc!AY31 -> 106.5484867 | BA31: =[3]cerNApc!AZ31 -> 111.9644611 | BB31: 106.9300856 | BC31: 105.1083968 | BD31: 104.8477282 | BE31: 106.5484867 | BF31: 111.9644611
B32: FY2008 | H32: =[3]cerNApc!G32 -> 261.3396424 | I32: =[3]cerNApc!H32 -> 73.16556819 | J32: =[3]cerNApc!I32 -> 17.29122835 | K32: =[3]cerNApc!J32 -> 124.6666486 | L32: =[3]cerNApc!K32 -> 46.21619727 | M32: 261.3396424 | N32: 73.16556819 | O32: 17.29122835 | P32: 124.6666486 | Q32: 46.21619727 | R32: 233.181331 | S32: 67.91434387 | T32: 15.47582385 | U32: 108.5307958 | V32: 41.26036744 | W32: -0.02559622545 | X32: -0.0638863845 | Y32: -0.04910258457 | Z32: -0.006310263256 | AA32: -5.061018829e-05 | AB32: 103928 | AC32: =[3]cerNApc!AB32 -> 49812.2 | AD32: =[3]cerNApc!AC32 -> 6847.6 | AE32: =[3]cerNApc!AD32 -> 35698 | AF32: =[3]cerNApc!AE32 -> 11570.2 | AG32: 2514.622069 | AH32: 1468.828283 | AI32: 2525.151638 | AJ32: 3492.258629 | AK32: 3994.416455 | AL32: 2243.681501 | AM32: 1363.407837 | AN32: 2260.036195 | AO32: 3040.248637 | AP32: 3566.089388 | AQ32: 0.02662458942 | AR32: -0.02936436899 | AS32: 0.03045651807 | AT32: 0.06380228392 | AU32: 0.0087181371 | AW32: =[3]cerNApc!AV32 -> 112.0757143 | AX32: =[3]cerNApc!AW32 -> 107.7321285 | AY32: =[3]cerNApc!AX32 -> 111.7305839 | AZ32: =[3]cerNApc!AY32 -> 114.8675338 | BA32: =[3]cerNApc!AZ32 -> 112.0111141 | BB32: 112.0757143 | BC32: 107.7321285 | BD32: 111.7305839 | BE32: 114.8675338 | BF32: 112.0111141
B33: FY2009 | H33: =[3]cerNApc!G33 -> 277.5109228 | I33: =[3]cerNApc!H33 -> 77.51871041 | J33: =[3]cerNApc!I33 -> 19.76111631 | K33: =[3]cerNApc!J33 -> 130.349781 | L33: =[3]cerNApc!K33 -> 49.88131507 | M33: 277.5109228 | N33: 77.51871041 | O33: 19.76111631 | P33: 130.349781 | Q33: 49.88131507 | R33: 235.4244364 | S33: 68.67520325 | T33: 16.26441754 | U33: 108.3267136 | V33: 42.15810199 | W33: 0.009619575572 | X33: 0.01120322069 | Y33: 0.05095649183 | Z33: -0.001880408154 | AA33: 0.02175779351 | AB33: 103385.5 | AC33: =[3]cerNApc!AB33 -> 49233.1 | AD33: =[3]cerNApc!AC33 -> 6731.8 | AE33: =[3]cerNApc!AD33 -> 35947 | AF33: =[3]cerNApc!AE33 -> 11473.6 | AG33: 2684.23447 | AH33: 1574.524261 | AI33: 2935.487732 | AJ33: 3626.165772 | AK33: 4347.485974 | AL33: 2277.151403 | AM33: 1394.899026 | AN33: 2416.057747 | AO33: 3013.511938 | AP33: 3674.356958 | AQ33: 0.06745045443 | AR33: 0.07195938402 | AS33: 0.1624995855 | AT33: 0.03834399366 | AU33: 0.08839076313 | AW33: =[3]cerNApc!AV33 -> 117.8768555 | AX33: =[3]cerNApc!AW33 -> 112.877293 | AY33: =[3]cerNApc!AX33 -> 121.4990716 | AZ33: =[3]cerNApc!AY33 -> 120.3302275 | BA33: =[3]cerNApc!AZ33 -> 118.3196413 | BB33: 117.8768555 | BC33: 112.877293 | BD33: 121.4990716 | BE33: 120.3302275 | BF33: 118.3196413
B34: FY2010 | H34: =[3]cerNApc!G34 -> 294.1172305 | I34: =[3]cerNApc!H34 -> 84.64336873 | J34: =[3]cerNApc!I34 -> 20.16374755 | K34: =[3]cerNApc!J34 -> 139.6999203 | L34: =[3]cerNApc!K34 -> 49.61019392 | M34: 294.1172305 | N34: 84.64336873 | O34: 20.16374755 | P34: 139.6999203 | Q34: 49.61019392 | R34: 241.3819972 | S34: 71.46086102 | T34: 16.00548274 | U34: 113.2777711 | V34: 40.63788235 | W34: 0.02530561756 | X34: 0.04056278877 | Y34: -0.01592032416 | Z34: 0.04570486133 | AA34: -0.03605996393 | AB34: 102843 | AC34: =[3]cerNApc!AB34 -> 48654 | AD34: =[3]cerNApc!AC34 -> 6616 | AE34: =[3]cerNApc!AD34 -> 36196 | AF34: =[3]cerNApc!AE34 -> 11377 | AG34: 2859.866306 | AH34: 1739.700101 | AI34: 3047.724841 | AJ34: 3859.540289 | AK34: 4360.569036 | AL34: 2347.092142 | AM34: 1468.756135 | AN34: 2419.208395 | AO34: 3129.566004 | AP34: 3571.933054 | AQ34: 0.06543088461 | AR34: 0.1049052365 | AS34: 0.0382345692 | AT34: 0.06435847989 | AU34: 0.003009339721 | AW34: =[3]cerNApc!AV34 -> 121.8472106 | AX34: =[3]cerNApc!AW34 -> 118.4471717 | AY34: =[3]cerNApc!AX34 -> 125.9802524 | AZ34: =[3]cerNApc!AY34 -> 123.3250963 | BA34: =[3]cerNApc!AZ34 -> 122.0786888 | BB34: 121.8472106 | BC34: 118.4471717 | BD34: 125.9802524 | BE34: 123.3250963 | BF34: 122.0786888
B35: FY2011 | H35: =[3]cerNApc!G35 -> 310.2875193 | I35: =[3]cerNApc!H35 -> 87.89439764 | J35: =[3]cerNApc!I35 -> 21.91397277 | K35: =[3]cerNApc!J35 -> 147.7283 | L35: =[3]cerNApc!K35 -> 52.75084883 | M35: 310.2875193 | N35: 87.89439764 | O35: 21.91397277 | P35: 147.7283 | Q35: 52.75084883 | R35: 246.3317455 | S35: 71.9806251 | T35: 17.21039333 | U35: 115.940673 | V35: 41.20005408 | W35: 0.02050587188 | X35: 0.007273409196 | Y35: 0.07528111543 | Z35: 0.02350771803 | AA35: 0.01383368662 | AB35: =SUM(AC35:AF35) -> 103639.5 | AC35: =[3]cerNApc!AB35 -> 48652.3 | AD35: =[3]cerNApc!AC35 -> 6566.6 | AE35: =[3]cerNApc!AD35 -> 36735.6 | AF35: =[3]cerNApc!AE35 -> 11685 | AG35: 2993.911774 | AH35: 1806.58258 | AI35: 3337.187094 | AJ35: 4021.393418 | AK35: 4514.407259 | AL35: 2376.813334 | AM35: 1479.490694 | AN35: 2620.898689 | AO35: 3156.084914 | AP35: 3525.892519 | AQ35: 0.04687123574 | AR35: 0.03844483212 | AS35: 0.09497650489 | AT35: 0.04193585676 | AU35: 0.03527939178 | AW35: =[3]cerNApc!AV35 -> 125.963269 | AX35: =[3]cerNApc!AW35 -> 122.1084111 | AY35: =[3]cerNApc!AX35 -> 127.3298776 | AZ35: =[3]cerNApc!AY35 -> 127.417149 | BA35: =[3]cerNApc!AZ35 -> 128.0358728 | BB35: 125.963269 | BC35: 122.1084111 | BD35: 127.3298776 | BE35: 127.417149 | BF35: 128.0358728
B36: FY2012 | H36: =[3]cerNApc!G36 -> 0 | I36: =[3]cerNApc!H36 -> 0 | J36: =[3]cerNApc!I36 -> 0 | K36: =[3]cerNApc!J36 -> 0 | L36: =[3]cerNApc!K36 -> 0 | M36: 0 | N36: 0 | O36: 0 | P36: 0 | Q36: 0 | AB36: 103807 | AC36: =[3]cerNApc!AB36 -> 48570.6 | AD36: =[3]cerNApc!AC36 -> 6616.2 | AE36: =[3]cerNApc!AD36 -> 36971.2 | AF36: =[3]cerNApc!AE36 -> 11649 | AG36: 0 | AH36: 0 | AI36: 0 | AJ36: 0 | AK36: 0 | AQ36: -1 | AR36: -1 | AS36: -1 | AT36: -1 | AU36: -1 | AW36: =[3]cerNApc!AV36 -> 0 | AX36: =[3]cerNApc!AW36 -> 0 | AY36: =[3]cerNApc!AX36 -> 0 | AZ36: =[3]cerNApc!AY36 -> 0 | BA36: =[3]cerNApc!AZ36 -> 0 | BB36: 0 | BC36: 0 | BD36: 0 | BE36: 0 | BF36: 0
B37: FY2013 | H37: =[3]cerNApc!G37 -> 0 | I37: =[3]cerNApc!H37 -> 0 | J37: =[3]cerNApc!I37 -> 0 | K37: =[3]cerNApc!J37 -> 0 | L37: =[3]cerNApc!K37 -> 0 | M37: 0 | N37: 0 | O37: 0 | P37: 0 | Q37: 0 | AB37: 0 | AC37: =[3]cerNApc!AB37 -> 0 | AD37: =[3]cerNApc!AC37 -> 0 | AE37: =[3]cerNApc!AD37 -> 0 | AF37: =[3]cerNApc!AE37 -> 0 | AW37: =[3]cerNApc!AV37 -> 0 | AX37: =[3]cerNApc!AW37 -> 0 | AY37: =[3]cerNApc!AX37 -> 0 | AZ37: =[3]cerNApc!AY37 -> 0 | BA37: =[3]cerNApc!AZ37 -> 0 | BB37: 0 | BC37: 0 | BD37: 0 | BE37: 0 | BF37: 0
B38: FY2014 | H38: =[3]cerNApc!G38 -> 0 | I38: =[3]cerNApc!H38 -> 0 | J38: =[3]cerNApc!I38 -> 0 | K38: =[3]cerNApc!J38 -> 0 | L38: =[3]cerNApc!K38 -> 0 | M38: 0 | N38: 0 | O38: 0 | P38: 0 | Q38: 0 | AB38: 0 | AC38: =[3]cerNApc!AB38 -> 0 | AD38: =[3]cerNApc!AC38 -> 0 | AE38: =[3]cerNApc!AD38 -> 0 | AF38: =[3]cerNApc!AE38 -> 0 | AW38: =[3]cerNApc!AV38 -> 0 | AX38: =[3]cerNApc!AW38 -> 0 | AY38: =[3]cerNApc!AX38 -> 0 | AZ38: =[3]cerNApc!AY38 -> 0 | BA38: =[3]cerNApc!AZ38 -> 0 | BB38: 0 | BC38: 0 | BD38: 0 | BE38: 0 | BF38: 0
B39: FY2015 | H39: =[3]cerNApc!G39 -> 0 | I39: =[3]cerNApc!H39 -> 0 | J39: =[3]cerNApc!I39 -> 0 | K39: =[3]cerNApc!J39 -> 0 | L39: =[3]cerNApc!K39 -> 0 | M39: 0 | N39: 0 | O39: 0 | P39: 0 | Q39: 0 | AB39: 0 | AC39: =[3]cerNApc!AB39 -> 0 | AD39: =[3]cerNApc!AC39 -> 0 | AE39: =[3]cerNApc!AD39 -> 0 | AF39: =[3]cerNApc!AE39 -> 0 | AW39: =[3]cerNApc!AV39 -> 0 | AX39: =[3]cerNApc!AW39 -> 0 | AY39: =[3]cerNApc!AX39 -> 0 | AZ39: =[3]cerNApc!AY39 -> 0 | BA39: =[3]cerNApc!AZ39 -> 0 | BB39: 0 | BC39: 0 | BD39: 0 | BE39: 0 | BF39: 0
B40: FY2016 | H40: =[3]cerNApc!G40 -> 0 | I40: =[3]cerNApc!H40 -> 0 | J40: =[3]cerNApc!I40 -> 0 | K40: =[3]cerNApc!J40 -> 0 | L40: =[3]cerNApc!K40 -> 0 | M40: 0 | N40: 0 | O40: 0 | P40: 0 | Q40: 0 | AB40: 0 | AC40: =[3]cerNApc!AB40 -> 0 | AD40: =[3]cerNApc!AC40 -> 0 | AE40: =[3]cerNApc!AD40 -> 0 | AF40: =[3]cerNApc!AE40 -> 0 | AW40: =[3]cerNApc!AV40 -> 0 | AX40: =[3]cerNApc!AW40 -> 0 | AY40: =[3]cerNApc!AX40 -> 0 | AZ40: =[3]cerNApc!AY40 -> 0 | BA40: =[3]cerNApc!AZ40 -> 0 | BB40: 0 | BC40: 0 | BD40: 0 | BE40: 0 | BF40: 0
B41: FY2017 | H41: =[3]cerNApc!G41 -> 0 | I41: =[3]cerNApc!H41 -> 0 | J41: =[3]cerNApc!I41 -> 0 | K41: =[3]cerNApc!J41 -> 0 | L41: =[3]cerNApc!K41 -> 0 | M41: 0 | N41: 0 | O41: 0 | P41: 0 | Q41: 0 | AB41: 0 | AC41: =[3]cerNApc!AB41 -> 0 | AD41: =[3]cerNApc!AC41 -> 0 | AE41: =[3]cerNApc!AD41 -> 0 | AF41: =[3]cerNApc!AE41 -> 0 | AW41: =[3]cerNApc!AV41 -> 0 | AX41: =[3]cerNApc!AW41 -> 0 | AY41: =[3]cerNApc!AX41 -> 0 | AZ41: =[3]cerNApc!AY41 -> 0 | BA41: =[3]cerNApc!AZ41 -> 0 | BB41: 0 | BC41: 0 | BD41: 0 | BE41: 0 | BF41: 0
B42: FY2018 | H42: =[3]cerNApc!G42 -> 0 | I42: =[3]cerNApc!H42 -> 0 | J42: =[3]cerNApc!I42 -> 0 | K42: =[3]cerNApc!J42 -> 0 | L42: =[3]cerNApc!K42 -> 0 | M42: 0 | N42: 0 | O42: 0 | P42: 0 | Q42: 0 | AB42: 0 | AC42: =[3]cerNApc!AB42 -> 0 | AD42: =[3]cerNApc!AC42 -> 0 | AE42: =[3]cerNApc!AD42 -> 0 | AF42: =[3]cerNApc!AE42 -> 0 | AW42: =[3]cerNApc!AV42 -> 0 | AX42: =[3]cerNApc!AW42 -> 0 | AY42: =[3]cerNApc!AX42 -> 0 | AZ42: =[3]cerNApc!AY42 -> 0 | BA42: =[3]cerNApc!AZ42 -> 0 | BB42: 0 | BC42: 0 | BD42: 0 | BE42: 0 | BF42: 0
B43: FY2019 | H43: =[3]cerNApc!G43 -> 0 | I43: =[3]cerNApc!H43 -> 0 | J43: =[3]cerNApc!I43 -> 0 | K43: =[3]cerNApc!J43 -> 0 | L43: =[3]cerNApc!K43 -> 0 | M43: 0 | N43: 0 | O43: 0 | P43: 0 | Q43: 0 | AB43: 0 | AC43: =[3]cerNApc!AB43 -> 0 | AD43: =[3]cerNApc!AC43 -> 0 | AE43: =[3]cerNApc!AD43 -> 0 | AF43: =[3]cerNApc!AE43 -> 0 | AW43: =[3]cerNApc!AV43 -> 0 | AX43: =[3]cerNApc!AW43 -> 0 | AY43: =[3]cerNApc!AX43 -> 0 | AZ43: =[3]cerNApc!AY43 -> 0 | BA43: =[3]cerNApc!AZ43 -> 0 | BB43: 0 | BC43: 0 | BD43: 0 | BE43: 0 | BF43: 0
B44: FY2020 | H44: =[3]cerNApc!G44 -> 0 | I44: =[3]cerNApc!H44 -> 0 | J44: =[3]cerNApc!I44 -> 0 | K44: =[3]cerNApc!J44 -> 0 | L44: =[3]cerNApc!K44 -> 0 | M44: 0 | N44: 0 | O44: 0 | P44: 0 | Q44: 0 | AB44: 0 | AC44: =[3]cerNApc!AB44 -> 0 | AD44: =[3]cerNApc!AC44 -> 0 | AE44: =[3]cerNApc!AD44 -> 0 | AF44: =[3]cerNApc!AE44 -> 0 | AW44: =[3]cerNApc!AV44 -> 0 | AX44: =[3]cerNApc!AW44 -> 0 | AY44: =[3]cerNApc!AX44 -> 0 | AZ44: =[3]cerNApc!AY44 -> 0 | BA44: =[3]cerNApc!AZ44 -> 0 | BB44: 0 | BC44: 0 | BD44: 0 | BE44: 0 | BF44: 0
B45: FY2021 | H45: =[3]cerNApc!G45 -> 0 | I45: =[3]cerNApc!H45 -> 0 | J45: =[3]cerNApc!I45 -> 0 | K45: =[3]cerNApc!J45 -> 0 | L45: =[3]cerNApc!K45 -> 0 | M45: 0 | N45: 0 | O45: 0 | P45: 0 | Q45: 0 | AB45: 0 | AC45: =[3]cerNApc!AB45 -> 0 | AD45: =[3]cerNApc!AC45 -> 0 | AE45: =[3]cerNApc!AD45 -> 0 | AF45: =[3]cerNApc!AE45 -> 0 | AW45: =[3]cerNApc!AV45 -> 0 | AX45: =[3]cerNApc!AW45 -> 0 | AY45: =[3]cerNApc!AX45 -> 0 | AZ45: =[3]cerNApc!AY45 -> 0 | BA45: =[3]cerNApc!AZ45 -> 0 | BB45: 0 | BC45: 0 | BD45: 0 | BE45: 0 | BF45: 0
B46: FY2022 | H46: =[3]cerNApc!G46 -> 0 | I46: =[3]cerNApc!H46 -> 0 | J46: =[3]cerNApc!I46 -> 0 | K46: =[3]cerNApc!J46 -> 0 | L46: =[3]cerNApc!K46 -> 0 | M46: 0 | N46: 0 | O46: 0 | P46: 0 | Q46: 0 | AB46: 0 | AC46: =[3]cerNApc!AB46 -> 0 | AD46: =[3]cerNApc!AC46 -> 0 | AE46: =[3]cerNApc!AD46 -> 0 | AF46: =[3]cerNApc!AE46 -> 0 | AW46: =[3]cerNApc!AV46 -> 0 | AX46: =[3]cerNApc!AW46 -> 0 | AY46: =[3]cerNApc!AX46 -> 0 | AZ46: =[3]cerNApc!AY46 -> 0 | BA46: =[3]cerNApc!AZ46 -> 0 | BB46: 0 | BC46: 0 | BD46: 0 | BE46: 0 | BF46: 0
B47: FY2023 | H47: =[3]cerNApc!G47 -> 0 | I47: =[3]cerNApc!H47 -> 0 | J47: =[3]cerNApc!I47 -> 0 | K47: =[3]cerNApc!J47 -> 0 | L47: =[3]cerNApc!K47 -> 0 | M47: 0 | N47: 0 | O47: 0 | P47: 0 | Q47: 0 | AB47: 0 | AC47: =[3]cerNApc!AB47 -> 0 | AD47: =[3]cerNApc!AC47 -> 0 | AE47: =[3]cerNApc!AD47 -> 0 | AF47: =[3]cerNApc!AE47 -> 0 | AW47: =[3]cerNApc!AV47 -> 0 | AX47: =[3]cerNApc!AW47 -> 0 | AY47: =[3]cerNApc!AX47 -> 0 | AZ47: =[3]cerNApc!AY47 -> 0 | BA47: =[3]cerNApc!AZ47 -> 0 | BB47: 0 | BC47: 0 | BD47: 0 | BE47: 0 | BF47: 0
M48: 1 1981-1994 are old EMPAT estimates, linked via the average figures for 1995-1996. Details of the old estimates are available on request. | AB48: 1 1981-1994 are old EMPAT estimates, linked via the average figures for 1995-1996. Details of the old estimates are available on request.
M49: 2 Constant price GDP is in 2000 prices. U.S. CPI used as deflator for 1981-1997 | AB49: 2 Constant price GDP is in 2000 prices. U.S. CPI used as deflator for 1981-1997
M50: 3 GDP estimates old series, EMPAT, 1981-1997 | AB50: 3 GDP estimates old series, EMPAT, 1981-1997
M51: 4 GDP estimates, new series from 1995 | AB51: 4 GDP estimates, new series from 1995
M52: 3 1999 and 2010 from FSM population censuses. Other years estimated by Graduate School consultants. | AB52: 3 1999 and 2010 from FSM population censuses. Other years estimated by Graduate School consultants.

Sheet gdpFSM
A1: Table 1c : FSM: Constant price GDP by industry, FY2004-FY2011
B2: (constant prices of FY2004, US$ millions) | C2: FY1995 | D2: FY1996 | E2: FY1997 | F2: FY1998 | G2: FY1999 | H2: FY2000 | I2: FY2001 | J2: FY2002 | K2: FY2003 | L2: FY2004 | M2: FY2005 | N2: FY2006 | O2: FY2007 | P2: FY2008 | Q2: FY2009 | R2: FY2010 | S2: FY2011
A3: A | B3: Agriculture, Hunting and Forestry | C3: =[3]indFSM!D3 -> 29.95263375 | D3: =[3]indFSM!E3 -> 30.07931315 | E3: =[3]indFSM!F3 -> 30.26641109 | F3: =[3]indFSM!G3 -> 30.43608834 | G3: =[3]indFSM!H3 -> 30.89307447 | H3: =[3]indFSM!I3 -> 31.47273097 | I3: =[3]indFSM!J3 -> 31.81225974 | J3: =[3]indFSM!K3 -> 32.12600246 | K3: =[3]indFSM!L3 -> 32.57803229 | L3: =[3]indFSM!M3 -> 31.17721204 | M3: =[3]indFSM!N3 -> 32.3699217 | N3: =[3]indFSM!O3 -> 33.67091137 | O3: =[3]indFSM!P3 -> 34.00359699 | P3: =[3]indFSM!Q3 -> 33.72411032 | Q3: =[3]indFSM!R3 -> 33.70615083 | R3: =[3]indFSM!S3 -> 33.92775183 | S3: =[3]indFSM!T3 -> 34.50633134
A4: B | B4: Fisheries | C4: =[3]indFSM!D4 -> 26.74411392 | D4: =[3]indFSM!E4 -> 24.33408986 | E4: =[3]indFSM!F4 -> 19.30154561 | F4: =[3]indFSM!G4 -> 27.00181266 | G4: =[3]indFSM!H4 -> 21.56770893 | H4: =[3]indFSM!I4 -> 24.57655232 | I4: =[3]indFSM!J4 -> 22.46712025 | J4: =[3]indFSM!K4 -> 23.35706187 | K4: =[3]indFSM!L4 -> 24.68732362 | L4: =[3]indFSM!M4 -> 21.43016688 | M4: =[3]indFSM!N4 -> 22.43982029 | N4: =[3]indFSM!O4 -> 21.37351615 | O4: =[3]indFSM!P4 -> 23.50002995 | P4: =[3]indFSM!Q4 -> 23.68019501 | Q4: =[3]indFSM!R4 -> 23.21609135 | R4: =[3]indFSM!S4 -> 23.38023275 | S4: =[3]indFSM!T4 -> 25.35296026
A5: C | B5: Mining and Quarrying | C5: =[3]indFSM!D5 -> 0 | D5: =[3]indFSM!E5 -> 0 | E5: =[3]indFSM!F5 -> 0 | F5: =[3]indFSM!G5 -> 0 | G5: =[3]indFSM!H5 -> 0 | H5: =[3]indFSM!I5 -> 0 | I5: =[3]indFSM!J5 -> 0 | J5: =[3]indFSM!K5 -> 0 | K5: =[3]indFSM!L5 -> 0 | L5: =[3]indFSM!M5 -> 0 | M5: =[3]indFSM!N5 -> 0 | N5: =[3]indFSM!O5 -> 0 | O5: =[3]indFSM!P5 -> 0 | P5: =[3]indFSM!Q5 -> 0 | Q5: =[3]indFSM!R5 -> 0 | R5: =[3]indFSM!S5 -> 0.0008510612449 | S5: =[3]indFSM!T5 -> 0.003340676865
A6: D | B6: Manufacturing | C6: =[3]indFSM!D6 -> 3.554915036 | D6: =[3]indFSM!E6 -> 2.901483147 | E6: =[3]indFSM!F6 -> 3.267114239 | F6: =[3]indFSM!G6 -> 3.62091864 | G6: =[3]indFSM!H6 -> 3.403644851 | H6: =[3]indFSM!I6 -> 3.941405092 | I6: =[3]indFSM!J6 -> 4.653796897 | J6: =[3]indFSM!K6 -> 4.461916729 | K6: =[3]indFSM!L6 -> 4.140437895 | L6: =[3]indFSM!M6 -> 3.3672391 | M6: =[3]indFSM!N6 -> 1.353490512 | N6: =[3]indFSM!O6 -> 0.8920051439 | O6: =[3]indFSM!P6 -> 0.9769813239 | P6: =[3]indFSM!Q6 -> 0.9941117257 | Q6: =[3]indFSM!R6 -> 0.9421267511 | R6: =[3]indFSM!S6 -> 0.9677731152 | S6: =[3]indFSM!T6 -> 0.9950635323
A7: E | B7: Electricity, Gas and Water Supply | C7: =[3]indFSM!D7 -> 4.936570907 | D7: =[3]indFSM!E7 -> 5.083170252 | E7: =[3]indFSM!F7 -> 4.863369093 | F7: =[3]indFSM!G7 -> 4.814584482 | G7: =[3]indFSM!H7 -> 4.799625215 | H7: =[3]indFSM!I7 -> 4.714038986 | I7: =[3]indFSM!J7 -> 4.771644668 | J7: =[3]indFSM!K7 -> 4.946422399 | K7: =[3]indFSM!L7 -> 5.130999957 | L7: =[3]indFSM!M7 -> 4.962887901 | M7: =[3]indFSM!N7 -> 4.847271248 | N7: =[3]indFSM!O7 -> 4.590339717 | O7: =[3]indFSM!P7 -> 4.484086525 | P7: =[3]indFSM!Q7 -> 4.105901387 | Q7: =[3]indFSM!R7 -> 4.289362605 | R7: =[3]indFSM!S7 -> 4.309190005 | S7: =[3]indFSM!T7 -> 4.099907852
A8: F | B8: Construction | C8: =[3]indFSM!D8 -> 10.5811518 | D8: =[3]indFSM!E8 -> 9.293129735 | E8: =[3]indFSM!F8 -> 6.334862866 | F8: =[3]indFSM!G8 -> 8.245456054 | G8: =[3]indFSM!H8 -> 8.58753953 | H8: =[3]indFSM!I8 -> 9.234428792 | I8: =[3]indFSM!J8 -> 8.975662947 | J8: =[3]indFSM!K8 -> 6.778896417 | K8: =[3]indFSM!L8 -> 6.138522164 | L8: =[3]indFSM!M8 -> 6.407512892 | M8: =[3]indFSM!N8 -> 8.002348624 | N8: =[3]indFSM!O8 -> 5.739820998 | O8: =[3]indFSM!P8 -> 5.036199944 | P8: =[3]indFSM!Q8 -> 6.217430233 | Q8: =[3]indFSM!R8 -> 10.24849007 | R8: =[3]indFSM!S8 -> 12.64334794 | S8: =[3]indFSM!T8 -> 15.05689327
A9: G | B9: Wholesale and Retail Trade and Repairs | C9: =[3]indFSM!D9 -> 27.78274582 | D9: =[3]indFSM!E9 -> 27.05785292 | E9: =[3]indFSM!F9 -> 25.44491475 | F9: =[3]indFSM!G9 -> 24.77193195 | G9: =[3]indFSM!H9 -> 25.18013588 | H9: =[3]indFSM!I9 -> 26.87727086 | I9: =[3]indFSM!J9 -> 28.43258188 | J9: =[3]indFSM!K9 -> 26.53674943 | K9: =[3]indFSM!L9 -> 28.2362752 | L9: =[3]indFSM!M9 -> 28.14234084 | M9: =[3]indFSM!N9 -> 27.99749784 | N9: =[3]indFSM!O9 -> 27.275144 | O9: =[3]indFSM!P9 -> 26.8106641 | P9: =[3]indFSM!Q9 -> 26.47969284 | Q9: =[3]indFSM!R9 -> 24.87114654 | R9: =[3]indFSM!S9 -> 25.75816275 | S9: =[3]indFSM!T9 -> 25.28442706
A10: H | B10: Hotels and Restaurants | C10: =[3]indFSM!D10 -> 5.13005443 | D10: =[3]indFSM!E10 -> 5.045774123 | E10: =[3]indFSM!F10 -> 5.03676283 | F10: =[3]indFSM!G10 -> 5.247101786 | G10: =[3]indFSM!H10 -> 5.194828975 | H10: =[3]indFSM!I10 -> 5.470337666 | I10: =[3]indFSM!J10 -> 5.482532294 | J10: =[3]indFSM!K10 -> 5.007647932 | K10: =[3]indFSM!L10 -> 4.944548845 | L10: =[3]indFSM!M10 -> 4.798690497 | M10: =[3]indFSM!N10 -> 4.903921531 | N10: =[3]indFSM!O10 -> 4.944272064 | O10: =[3]indFSM!P10 -> 4.695662903 | P10: =[3]indFSM!Q10 -> 4.306837826 | Q10: =[3]indFSM!R10 -> 3.834236714 | R10: =[3]indFSM!S10 -> 3.845763233 | S10: =[3]indFSM!T10 -> 3.769903854
A11: I | B11: Transport, Storage and Communications | C11: =[3]indFSM!D11 -> 16.93041389 | D11: =[3]indFSM!E11 -> 15.8651708 | E11: =[3]indFSM!F11 -> 14.75809831 | F11: =[3]indFSM!G11 -> 15.04729899 | G11: =[3]indFSM!H11 -> 15.43557628 | H11: =[3]indFSM!I11 -> 16.14616827 | I11: =[3]indFSM!J11 -> 16.78664888 | J11: =[3]indFSM!K11 -> 16.50741185 | K11: =[3]indFSM!L11 -> 16.53875049 | L11: =[3]indFSM!M11 -> 16.53165904 | M11: =[3]indFSM!N11 -> 16.42433715 | N11: =[3]indFSM!O11 -> 15.8940841 | O11: =[3]indFSM!P11 -> 16.00102495 | P11: =[3]indFSM!Q11 -> 13.69063186 | Q11: =[3]indFSM!R11 -> 13.66959555 | R11: =[3]indFSM!S11 -> 13.14403831 | S11: =[3]indFSM!T11 -> 13.23914209
A12: J | B12: Financial Intermediation | C12: =[3]indFSM!D12 -> 3.342086532 | D12: =[3]indFSM!E12 -> 2.847662261 | E12: =[3]indFSM!F12 -> 2.809582826 | F12: =[3]indFSM!G12 -> 2.326946231 | G12: =[3]indFSM!H12 -> 3.758107955 | H12: =[3]indFSM!I12 -> 4.440470029 | I12: =[3]indFSM!J12 -> 5.387892396 | J12: =[3]indFSM!K12 -> 6.71917539 | K12: =[3]indFSM!L12 -> 3.543792272 | L12: =[3]indFSM!M12 -> 3.308098881 | M12: =[3]indFSM!N12 -> 4.491636411 | N12: =[3]indFSM!O12 -> 5.165082774 | O12: =[3]indFSM!P12 -> 5.534084661 | P12: =[3]indFSM!Q12 -> 4.999668383 | Q12: =[3]indFSM!R12 -> 4.087196539 | R12: =[3]indFSM!S12 -> 4.223799166 | S12: =[3]indFSM!T12 -> 4.499326418
A13: K | B13: Real Estate, Renting, Business Activities | C13: =[3]indFSM!D13 -> 27.66098802 | D13: =[3]indFSM!E13 -> 27.77013795 | E13: =[3]indFSM!F13 -> 27.76305598 | F13: =[3]indFSM!G13 -> 27.73911342 | G13: =[3]indFSM!H13 -> 28.96643953 | H13: =[3]indFSM!I13 -> 29.32950168 | I13: =[3]indFSM!J13 -> 30.1000971 | J13: =[3]indFSM!K13 -> 30.04007192 | K13: =[3]indFSM!L13 -> 30.29038995 | L13: =[3]indFSM!M13 -> 29.9909238 | M13: =[3]indFSM!N13 -> 29.73835807 | N13: =[3]indFSM!O13 -> 29.37731366 | O13: =[3]indFSM!P13 -> 28.99883458 | P13: =[3]indFSM!Q13 -> 28.66354365 | Q13: =[3]indFSM!R13 -> 28.5613852 | R13: =[3]indFSM!S13 -> 29.24916287 | S13: =[3]indFSM!T13 -> 29.79112244
A14: L | B14: Public Administration | C14: =[3]indFSM!D14 -> 35.03858875 | D14: =[3]indFSM!E14 -> 33.19412144 | E14: =[3]indFSM!F14 -> 32.4679956 | F14: =[3]indFSM!G14 -> 31.10067641 | G14: =[3]indFSM!H14 -> 33.11712767 | H14: =[3]indFSM!I14 -> 32.33457096 | I14: =[3]indFSM!J14 -> 33.31554638 | J14: =[3]indFSM!K14 -> 35.60559187 | K14: =[3]indFSM!L14 -> 34.48645465 | L14: =[3]indFSM!M14 -> 31.89426457 | M14: =[3]indFSM!N14 -> 30.85851402 | N14: =[3]indFSM!O14 -> 32.78539949 | O14: =[3]indFSM!P14 -> 27.68104703 | P14: =[3]indFSM!Q14 -> 25.37002511 | Q14: =[3]indFSM!R14 -> 25.16214882 | R14: =[3]indFSM!S14 -> 26.32434723 | S14: =[3]indFSM!T14 -> 27.27888533
A15: M | B15: Education | C15: =[3]indFSM!D15 -> 25.6096418 | D15: =[3]indFSM!E15 -> 26.04019304 | E15: =[3]indFSM!F15 -> 24.61959754 | F15: =[3]indFSM!G15 -> 22.85480701 | G15: =[3]indFSM!H15 -> 23.80936475 | H15: =[3]indFSM!I15 -> 24.74583751 | I15: =[3]indFSM!J15 -> 26.71531372 | J15: =[3]indFSM!K15 -> 28.56285493 | K15: =[3]indFSM!L15 -> 29.65666723 | L15: =[3]indFSM!M15 -> 30.14220925 | M15: =[3]indFSM!N15 -> 31.41377935 | N15: =[3]indFSM!O15 -> 33.85189453 | O15: =[3]indFSM!P15 -> 33.69551582 | P15: =[3]indFSM!Q15 -> 33.65132634 | Q15: =[3]indFSM!R15 -> 34.12081233 | R15: =[3]indFSM!S15 -> 33.47214119 | S15: =[3]indFSM!T15 -> 31.8700519
A16: N | B16: Health and Social Work | C16: =[3]indFSM!D16 -> 8.63917202 | D16: =[3]indFSM!E16 -> 8.701454275 | E16: =[3]indFSM!F16 -> 7.720487425 | F16: =[3]indFSM!G16 -> 6.566748407 | G16: =[3]indFSM!H16 -> 6.35701556 | H16: =[3]indFSM!I16 -> 7.06122889 | I16: =[3]indFSM!J16 -> 7.885282987 | J16: =[3]indFSM!K16 -> 8.482738193 | K16: =[3]indFSM!L16 -> 8.512770159 | L16: =[3]indFSM!M16 -> 8.758791561 | M16: =[3]indFSM!N16 -> 9.113662964 | N16: =[3]indFSM!O16 -> 9.619414243 | O16: =[3]indFSM!P16 -> 10.2337312 | P16: =[3]indFSM!Q16 -> 10.79170709 | Q16: =[3]indFSM!R16 -> 11.07164113 | R16: =[3]indFSM!S16 -> 11.76916783 | S16: =[3]indFSM!T16 -> 12.31705392
A17: O | B17: Other Community, Social, Personal Services | C17: =[3]indFSM!D17 -> 2.724940589 | D17: =[3]indFSM!E17 -> 2.786934223 | E17: =[3]indFSM!F17 -> 2.707517265 | F17: =[3]indFSM!G17 -> 2.818348675 | G17: =[3]indFSM!H17 -> 2.991204507 | H17: =[3]indFSM!I17 -> 3.089958395 | I17: =[3]indFSM!J17 -> 3.100843657 | J17: =[3]indFSM!K17 -> 3.326353955 | K17: =[3]indFSM!L17 -> 3.272762085 | L17: =[3]indFSM!M17 -> 3.280715377 | M17: =[3]indFSM!N17 -> 3.095830312 | N17: =[3]indFSM!O17 -> 3.080241968 | O17: =[3]indFSM!P17 -> 3.01134813 | P17: =[3]indFSM!Q17 -> 3.048948608 | Q17: =[3]indFSM!R17 -> 2.989080926 | R17: =[3]indFSM!S17 -> 3.161627548 | S17: =[3]indFSM!T17 -> 3.106919433
B18: less intermediate FISIM | C18: =[3]indFSM!D18 -> -2.529551033 | D18: =[3]indFSM!E18 -> -2.301031376 | E18: =[3]indFSM!F18 -> -1.934171957 | F18: =[3]indFSM!G18 -> -1.918140229 | G18: =[3]indFSM!H18 -> -2.63741381 | H18: =[3]indFSM!I18 -> -3.167536932 | I18: =[3]indFSM!J18 -> -3.684300179 | J18: =[3]indFSM!K18 -> -4.765692799 | K18: =[3]indFSM!L18 -> -2.665054787 | L18: =[3]indFSM!M18 -> -2.353101729 | M18: =[3]indFSM!N18 -> -2.953682754 | N18: =[3]indFSM!O18 -> -3.459584905 | O18: =[3]indFSM!P18 -> -3.666570665 | P18: =[3]indFSM!Q18 -> -3.627790492 | Q18: =[3]indFSM!R18 -> -3.177750569 | R18: =[3]indFSM!S18 -> -3.294433164 | S18: =[3]indFSM!T18 -> -3.25796542
B19: GDP at basic prices | C19: =[3]indFSM!D19 -> 226.0984662 | D19: =[3]indFSM!E19 -> 218.6994558 | E19: =[3]indFSM!F19 -> 205.4271435 | F19: =[3]indFSM!G19 -> 210.6736928 | G19: =[3]indFSM!H19 -> 211.4239803 | H19: =[3]indFSM!I19 -> 220.2669635 | I19: =[3]indFSM!J19 -> 226.2029236 | J19: =[3]indFSM!K19 -> 227.6932025 | K19: =[3]indFSM!L19 -> 229.492672 | L19: =[3]indFSM!M19 -> 221.8396109 | M19: =[3]indFSM!N19 -> 224.0967073 | N19: =[3]indFSM!O19 -> 224.7998553 | O19: =[3]indFSM!P19 -> 220.9962374 | P19: =[3]indFSM!Q19 -> 216.0963399 | Q19: =[3]indFSM!R19 -> 217.5917148 | R19: =[3]indFSM!S19 -> 222.8829237 | S19: =[3]indFSM!T19 -> 227.9133639
B20: Taxes on products | C20: =[3]indFSM!D20 -> 16.20148187 | D20: =[3]indFSM!E20 -> 16.53902916 | E20: =[3]indFSM!F20 -> 15.33527763 | F20: =[3]indFSM!G20 -> 17.30681791 | G20: =[3]indFSM!H20 -> 19.2151567 | H20: =[3]indFSM!I20 -> 20.97996582 | I20: =[3]indFSM!J20 -> 19.46186116 | J20: =[3]indFSM!K20 -> 17.78209594 | K20: =[3]indFSM!L20 -> 19.51360653 | L20: =[3]indFSM!M20 -> 18.85573455 | M20: =[3]indFSM!N20 -> 21.73027389 | N20: =[3]indFSM!O20 -> 20.52713996 | O20: =[3]indFSM!P20 -> 19.25908312 | P20: =[3]indFSM!Q20 -> 17.96463153 | Q20: =[3]indFSM!R20 -> 18.64336446 | R20: =[3]indFSM!S20 -> 19.27099006 | S20: =[3]indFSM!T20 -> 19.18737031
B21: less subsidies | C21: =[3]indFSM!D21 -> -3.18137656 | D21: =[3]indFSM!E21 -> -3.560191933 | E21: =[3]indFSM!F21 -> -3.13716141 | F21: =[3]indFSM!G21 -> -3.922800623 | G21: =[3]indFSM!H21 -> -3.481068101 | H21: =[3]indFSM!I21 -> -3.723118324 | I21: =[3]indFSM!J21 -> -3.9909887 | J21: =[3]indFSM!K21 -> -2.351664255 | K21: =[3]indFSM!L21 -> -1.443559074 | L21: =[3]indFSM!M21 -> -1.132035 | M21: =[3]indFSM!N21 -> -1.087773831 | N21: =[3]indFSM!O21 -> -0.9876888008 | O21: =[3]indFSM!P21 -> -0.9486418651 | P21: =[3]indFSM!Q21 -> -0.8796404378 | Q21: =[3]indFSM!R21 -> -0.8106428328 | R21: =[3]indFSM!S21 -> -0.7719165547 | S21: =[3]indFSM!T21 -> -0.7689887674
B22: GDP at purchasers prices | C22: =[3]indFSM!D22 -> 239.1185715 | D22: =[3]indFSM!E22 -> 231.678293 | E22: =[3]indFSM!F22 -> 217.6252597 | F22: =[3]indFSM!G22 -> 224.0577101 | G22: =[3]indFSM!H22 -> 227.1580689 | H22: =[3]indFSM!I22 -> 237.523811 | I22: =[3]indFSM!J22 -> 241.6737961 | J22: =[3]indFSM!K22 -> 243.1236342 | K22: =[3]indFSM!L22 -> 247.5627195 | L22: =[3]indFSM!M22 -> 239.5633104 | M22: =[3]indFSM!N22 -> 244.7392073 | N22: =[3]indFSM!O22 -> 244.3393065 | O22: =[3]indFSM!P22 -> 239.3066787 | P22: =[3]indFSM!Q22 -> 233.181331 | Q22: =[3]indFSM!R22 -> 235.4244364 | R22: =[3]indFSM!S22 -> 241.3819972 | S22: =[3]indFSM!T22 -> 246.3317455
A23: Source: SBOC estimates
A24: Table 1d : FSM: Constant price GDP by industry sector, annual % growth, FY2004-FY2011
C25: =C2 -> FY1995 | D25: FY1996 | E25: FY1997 | F25: FY1998 | G25: FY1999 | H25: FY2000 | I25: FY2001 | J25: FY2002 | K25: FY2003 | L25: FY2004 | M25: FY2005 | N25: FY2006 | O25: FY2007 | P25: FY2008 | Q25: FY2009 | R25: =R2 -> FY2010 | S25: =S2 -> FY2011
A26: A | B26: Agriculture, Hunting and Forestry | D26: =IF(C3>0.1,D3/C3-1,"") -> 0.004229324289 | E26: =IF(D3>0.1,E3/D3-1,"") -> 0.00622015337 | F26: 0.005606123857 | G26: 0.0150146143 | H26: 0.01876331548 | I26: 0.01078803029 | J26: 0.009862320819 | K26: 0.0140705284 | L26: -0.0429989214 | M26: 0.03825581518 | N26: 0.04019131349 | O26: 0.009880505535 | P26: -0.008219326742 | Q26: -0.0005325414403 | R26: 0.006574497234 | S26: 0.01705328183
A27: B | B27: Fisheries | D27: =IF(C4>0.1,D4/C4-1,"") -> -0.09011418627 | E27: -0.2068104573 | F27: 0.3989456189 | G27: -0.2012495903 | H27: 0.1395068618 | I27: -0.08583108138 | J27: 0.03961084491 | K27: 0.05695329986 | L27: -0.1319364056 | M27: 0.0471136515 | N27: -0.0475183905 | O27: 0.09949293267 | P27: 0.007666588736 | Q27: -0.01959881087 | R27: 0.007070156604 | S27: 0.08437587108
A28: C | B28: Mining and Quarrying
A29: D | B29: Manufacturing | D29: -0.1838108317 | E29: 0.126015239 | F29: 0.1082926324 | G29: -0.0600051564 | H29: 0.1579954035 | I29: 0.1807456449 | J29: -0.04123088583 | K29: -0.07204949212 | L29: -0.1867432417 | M29: -0.5980414601 | N29: -0.3409594409 | O29: 0.09526422643 | P29: 0.01753401152 | Q29: -0.05229288941 | R29: 0.02722177667 | S29: 0.02819918917
A30: E | B30: Electricity, Gas and Water Supply | D30: 0.02969659459 | E30: -0.04324095944 | F30: -0.010031032 | G30: -0.003107073301 | H30: -0.01783185668 | I30: 0.01222002668 | J30: 0.03662840436 | K30: 0.0373153652 | L30: -0.03276399494 | M30: -0.02329624509 | N30: -0.05300539573 | O30: -0.02314713038 | P30: -0.08433939344 | Q30: 0.04468232442 | R30: 0.00462245826 | S30: -0.04856647125
A31: F | B31: Construction | D31: -0.1217279637 | E31: -0.3183283731 | F31: 0.3015997706 | G31: 0.04148751436 | H31: 0.07532882489 | I31: -0.02802185713 | J31: -0.2447469946 | K31: -0.094465856 | L31: 0.04382011185 | M31: 0.2489009011 | N31: -0.2827329491 | O31: -0.122585888 | P31: 0.2345479334 | Q31: 0.6483482213 | R31: 0.2336790939 | S31: 0.1908944798
A32: G | B32: Wholesale and Retail Trade and Repairs | D32: -0.02609147788 | E32: -0.05961072265 | F32: -0.02644861699 | G32: 0.01647848583 | H32: 0.06739975482 | I32: 0.05786714848 | J32: -0.06667816757 | K32: 0.0640442336 | L32: -0.003326726511 | M32: -0.005146799818 | N32: -0.02580065713 | O32: -0.01702942053 | P32: -0.01234476202 | Q32: -0.06074641056 | R32: 0.03566446774 | S32: -0.01839167243
A33: H | B33: Hotels and Restaurants | D33: -0.01642873551 | E33: -0.001785908826 | F33: 0.04176074245 | G33: -0.009962225409 | H33: 0.05303518036 | I33: 0.002229227558 | J33: -0.08661770447 | K33: -0.01260054371 | L33: -0.02949881845 | M33: 0.02192911463 | N33: 0.008228217525 | O33: -0.05028225746 | P33: -0.08280515125 | Q33: -0.1097327392 | R33: 0.003006209503 | S33: -0.01972544185
A34: I | B34: Transport, Storage and Communications | D34: -0.06291890437 | E34: -0.06978005491 | F34: 0.01959606684 | G34: 0.02580378637 | H34: 0.04603598739 | I34: 0.03966765375 | J34: -0.01663447143 | K34: 0.001898458788 | L34: -0.000428778138 | M34: -0.006491900668 | N34: -0.03228459385 | O34: 0.006728343263 | P34: -0.1443903187 | Q34: -0.0015365475 | R34: -0.03844716809 | S34: 0.007235506428
A35: J | B35: Financial Intermediation | D35: -0.1479387999 | E35: -0.01337217404 | F35: -0.1717822984 | G35: 0.6150385883 | H35: 0.181570642 | I35: 0.213360829 | J35: 0.2470878957 | K35: -0.4725852405 | L35: -0.06650880556 | M35: 0.3577696956 | N35: 0.1499334098 | O35: 0.07144162127 | P35: -0.09656814278 | Q35: -0.1825064732 | R35: 0.03342208411 | S35: 0.06523209107
A36: K | B36: Real Estate, Renting, Business Activities | D36: 0.003945988359 | E36: -0.0002550211187 | F36: -0.0008623892186 | G36: 0.04424532549 | H36: 0.01253388951 | I36: 0.02627373038 | J36: -0.00199418537 | K36: 0.008332803965 | L36: -0.009886506921 | M36: -0.008421405525 | N36: -0.01214069769 | O36: -0.01288337949 | P36: -0.01156222084 | Q36: -0.003564055051 | R36: 0.0240806832 | S36: 0.01852906246
A37: L | B37: Public Administration | D37: -0.05264102733 | E37: -0.02187513346 | F37: -0.04211283048 | G37: 0.06483625119 | H37: -0.02362996938 | I37: 0.03033828461 | J37: 0.06873804388 | K37: -0.03143150166 | L37: -0.07516545563 | M37: -0.03247450793 | N37: 0.06244258782 | O37: -0.1556898054 | P37: -0.08348751802 | Q37: -0.008193775704 | R37: 0.04618836078 | S37: 0.03626065625
A38: M | B38: Education | D38: 0.01681207602 | E38: -0.05455395439 | F38: -0.07168234688 | G38: 0.04176616967 | H38: 0.0393321185 | I38: 0.07958818158 | J38: 0.06915663539 | K38: 0.03829492207 | L38: 0.01637210312 | M38: 0.04218569689 | N38: 0.07761292118 | O38: -0.004619496658 | P38: -0.001311434881 | Q38: 0.01395148542 | R38: -0.01901101101 | S38: -0.04786336448
A39: N | B39: Health and Social Work | D39: 0.007209285296 | E39: -0.1127359656 | F39: -0.1494386241 | G39: -0.0319386147 | H39: 0.1107773487 | I39: 0.1167012301 | J39: 0.07576839111 | K39: 0.003540362284 | L39: 0.02890027544 | M39: 0.0405160232 | N39: 0.05549374402 | O39: 0.06386219979 | P39: 0.0545232119 | Q39: 0.02593973639 | R39: 0.06300120257 | S39: 0.04655266152
A40: O | B40: Other Community, Social, Personal Services | D40: 0.02275045354 | E40: -0.0284961722 | F40: 0.04093470097 | G40: 0.06133230908 | H40: 0.03301475631 | I40: 0.003522785831 | J40: 0.07272546545 | K40: -0.01611129495 | L40: 0.002430146621 | M40: -0.05635510659 | N40: -0.005035270829 | O40: -0.02236637226 | P40: 0.01248626084 | Q40: -0.01963551696 | R40: 0.05772564417 | S40: -0.01730378235
B41: less intermediate FISIM
B42: GDP at basic prices | D42: -0.03272472626 | E42: -0.06068745018 | F42: 0.02553970846 | G42: 0.003561372351 | H42: 0.04182582879 | I42: 0.02694893528 | J42: 0.006588238942 | K42: 0.007903044398 | L42: -0.03334773642 | M42: 0.0101744516 | N42: 0.00313769904 | O42: -0.01692001917 | P42: -0.02217185957 | Q42: 0.006919945505 | R42: =IF(Q19>0.1,R19/Q19-1,"") -> 0.02431714314 | S42: 0.02256987746
B43: Taxes on products | D43: 0.02083434648 | E43: -0.07278247826 | F43: 0.1285624117 | G43: 0.1102651455 | H43: 0.09184463832 | I43: -0.0723597299 | J43: -0.08631061579 | K43: 0.09737381932 | L43: -0.0337135005 | M43: 0.1524490774 | N43: -0.05536671723 | O43: -0.06177464779 | P43: -0.06721252399 | Q43: 0.03778162293 | R43: 0.03366482485 | S43: -0.004339151978
B44: less subsidies
B45: GDP at purchasers prices | D45: -0.03111543555 | E45: -0.0606575314 | F45: 0.02955746234 | G45: =IF(F22>0.1,G22/F22-1,"") -> 0.01383732244 | H45: 0.04563228657 | I45: 0.01747186983 | J45: 0.005999153226 | K45: 0.01825855097 | L45: -0.03231265622 | M45: 0.0216055492 | N45: -0.001633987788 | O45: -0.0205968816 | P45: -0.02559622545 | Q45: 0.009619575572 | R45: 0.02530561756 | S45: 0.02050587188
A46: Source: SBOC estimates
A47: Table 1e : FSM: Constant price GDP by industry sector, contribution to % growth, FY2004-FY2011
C48: =C2 -> FY1995 | D48: =D2 -> FY1996 | E48: FY1997 | F48: FY1998 | G48: FY1999 | H48: FY2000 | I48: FY2001 | J48: FY2002 | K48: FY2003 | L48: FY2004 | M48: FY2005 | N48: FY2006 | O48: FY2007 | P48: FY2008 | Q48: =Q2 -> FY2009 | R48: FY2010 | S48: =S2 -> FY2011
A49: A | B49: Agriculture, Hunting and Forestry | D49: =(D3-C3)/(D$22-C$22)*((D$22-C$22)/C$22) -> 0.0005297765064 | E49: =(E3-D3)/(E$22-D$22)*((E$22-D$22)/D$22) -> 0.0008075764829 | F49: =(F3-E3)/(F$22-E$22)*((F$22-E$22)/E$22) -> 0.0007796762633 | G49: 0.00203959117 | H49: 0.002551775973 | I49: 0.00142945153 | J49: 0.001298207405 | K49: 0.001859259103 | L49: -0.005658445879 | M49: 0.004978682501 | N49: 0.005315820398 | O49: 0.001361572278 | P49: -0.001167901688 | Q49: -7.701940034e-05 | R49: 0.0009412828965 | S49: 0.002396945591
A50: B | B50: Fisheries | D50: =(D4-C4)/(D$22-C$22)*((D$22-C$22)/C$22) -> -0.01007878245 | E50: =(E4-D4)/(E$22-D$22)*((E$22-D$22)/D$22) -> -0.02172212245 | F50: 0.03538314931 | G50: -0.02425314323 | H50: 0.01324559327 | I50: -0.008880928835 | J50: 0.003682408397 | K50: 0.005471544355 | L50: -0.01315689515 | M50: 0.00421455778 | N50: -0.004356899554 | O50: 0.008703117946 | P50: 0.0007528626693 | Q50: -0.001990312266 | R50: 0.0006972148009 | S50: 0.008172637261
A51: C | B51: Mining and Quarrying | D51: 0 | E51: 0 | F51: 0 | G51: 0 | H51: 0 | I51: 0 | J51: 0 | K51: 0 | L51: 0 | M51: 0 | N51: 0 | O51: 0 | P51: 0 | Q51: 0 | R51: 3.615008101e-06 | S51: 1.031400705e-05
A52: D | B52: Manufacturing | D52: -0.002732668923 | E52: 0.001578184505 | F52: 0.001625750621 | G52: -0.0009697224398 | H52: 0.002367339378 | I52: 0.002999243749 | J52: -0.0007939634816 | K52: -0.001322285409 | L52: -0.003123244065 | M52: -0.008405914013 | N52: -0.001885620916 | O52: 0.0003477794107 | P52: 7.158346721e-05 | Q52: -0.0002229379784 | R52: 0.000108936712 | S52: 0.0001130590411
A53: E | B53: Electricity, Gas and Water Supply | D53: 0.0006130822208 | E53: -0.0009487343671 | F53: -0.0002241679622 | G53: -6.676524049e-05 | H53: -0.0003767694865 | I53: 0.000242525926 | J53: 0.0007231968597 | K53: 0.0007591921652 | L53: -0.0006790685486 | M53: -0.0004826141894 | N53: -0.001049817614 | O53: -0.0004348591861 | P53: -0.001580336745 | Q53: 0.0007867748976 | R53: 8.421980278e-05 | S53: -0.0008670164094
A54: F | B54: Construction | D54: -0.005386541302 | E54: -0.01276885646 | F54: 0.008779280449 | G54: 0.00152676503 | H54: 0.002847749431 | I54: -0.001089431174 | J54: -0.009089800244 | K54: -0.002633944885 | L54: 0.001086555877 | M54: 0.00665726204 | N54: -0.009244647194 | O54: -0.002879688348 | P54: 0.00493605233 | Q54: 0.01728723228 | R54: 0.01017251186 | S54: 0.009998862203
A55: G | B55: Wholesale and Retail Trade and Repairs | D55: -0.003031520694 | E55: -0.006961973626 | F55: -0.003092392885 | G55: 0.001821869595 | H55: 0.007471163111 | I55: 0.006548021511 | J55: -0.007844592547 | K55: 0.006990376664 | L55: -0.0003794366353 | M55: -0.0006046125947 | N55: -0.00295152481 | O55: -0.001900962657 | P55: -0.001383042337 | Q55: -0.006898263621 | R55: 0.003767732088 | S55: -0.001962597448
A56: H | B56: Hotels and Restaurants | D56: -0.0003524624075 | E56: -3.889571362e-05 | F56: 0.0009665190321 | G56: -0.0002333006559 | H56: 0.001212850122 | I56: 5.134065266e-05 | J56: -0.00196498077 | K56: -0.0002595349762 | L56: -0.0005891773568 | M56: 0.0004392618962 | N56: 0.0001648715525 | O56: -0.001017475102 | P56: -0.001624798267 | Q56: -0.002026753642 | R56: 4.896058803e-05 | S56: -0.000314271072
A57: I | B57: Transport, Storage and Communications | D57: -0.004454873939 | E57: -0.004778490358 | F57: 0.001328892984 | G57: 0.001732934289 | H57: 0.003128182936 | I57: 0.002696490132 | J57: -0.001155429491 | K57: 0.0001289000191 | L57: -2.864508298e-05 | M57: -0.0004479896699 | N57: -0.002166604444 | O57: 0.0004376735582 | P57: -0.009654528258 | Q57: -9.021436696e-05 | R57: -0.002232381846 | S57: 0.0003939969626
A58: J | B58: Financial Intermediation | D58: -0.002067694984 | E58: -0.0001643634147 | F58: -0.002217741617 | G58: 0.006387469211 | H58: 0.003003908588 | I58: 0.003988746907 | J58: 0.00550859471 | K58: -0.01306077514 | L58: -0.0009520552678 | M58: 0.004940395621 | N58: 0.002751689728 | O58: 0.001510202729 | P58: -0.002233185804 | Q58: -0.003913142789 | R58: 0.000580239794 | S58: 0.001141457338
A59: K | B59: Real Estate, Renting, Business Activities | D59: 0.0004564678353 | E59: -3.05681277e-05 | F59: -0.0001100173766 | G59: 0.005477723134 | H59: 0.001598279799 | I59: 0.00324428703 | J59: -0.0002483727001 | K59: 0.001029591513 | L59: -0.0012096577 | M59: -0.001054275511 | N59: -0.001475220988 | O59: -0.001548989745 | P59: -0.001401093072 | Q59: -0.0004381073179 | R59: 0.002921437041 | S59: 0.002245236066
A60: L | B60: Public Administration | D60: -0.007713609595 | E60: -0.003134198838 | F60: -0.006282906665 | G60: 0.008999695956 | H60: -0.003444987523 | I60: 0.004130008746 | J60: 0.009475770753 | K60: -0.004603160953 | L60: -0.01047084182 | M60: -0.004323494052 | N60: 0.007873219387 | O60: -0.0208904271 | P60: -0.009657155935 | Q60: -0.0008914791528 | R60: 0.004936609068 | S60: 0.003954470991
A61: M | B61: Education | D61: 0.00180057635 | E61: -0.006131759195 | F61: -0.008109309247 | G61: 0.004260320909 | H61: 0.004122559944 | I61: 0.008291700108 | J61: 0.007644772583 | K61: 0.004498996188 | L61: 0.001961288901 | M61: 0.005307866636 | N61: 0.009962094783 | O61: -0.0006400063744 | P61: -0.0001846562537 | Q61: 0.002013394412 | R61: -0.00275532629 | S61: -0.006637153195
A62: N | B62: Health and Social Work | D62: 0.0002604659915 | E62: -0.004234176786 | F62: -0.005301494045 | G62: -0.0009360661909 | H62: 0.003100102643 | I62: 0.003469353638 | J62: 0.002472155505 | K62: 0.0001235254913 | L62: 0.0009937740339 | M62: 0.001481326174 | N62: 0.002066490633 | O62: 0.002514196194 | P62: 0.002331635279 | Q62: 0.001200499354 | R62: 0.002962847511 | S62: 0.002269788522
A63: O | B63: Other Community, Social, Personal Services | D63: 0.0002592589688 | E63: -0.0003427898078 | F63: 0.0005092764038 | G63: 0.000771479062 | H63: 0.0004347364298 | I63: 4.582808607e-05 | J63: 0.0009331185336 | K63: -0.0002204305223 | L63: 3.21263708e-05 | M63: -0.0007717586822 | N63: -6.369369352e-05 | O63: -0.0002819597039 | P63: 0.000157122561 | Q63: -0.0002567430327 | R63: 0.0007329172134 | S63: -0.000226645382
B64: less intermediate FISIM | D64: 0.0009556750681 | E64: 0.001583486371 | F64: 7.366666718e-05 | G64: -0.003210215711 | H64: -0.002333719088 | I64: -0.002175627131 | J64: -0.004474596077 | K64: 0.008640204887 | L64: 0.001260097069 | M64: -0.00250698249 | N64: -0.002067107091 | O64: -0.0008471242858 | P64: 0.000162052198 | Q64: 0.001929999804 | R64: -0.0004956265249 | S64: 0.0001510789727
B65: GDP at basic prices | D65: =SUM(D49:D64) -> -0.03094285136 | E65: =SUM(E49:E64) -> -0.05728768179 | F65: =SUM(F49:F64) -> 0.02410818193 | G65: 0.003348634886 | H65: 0.03892876553 | I65: 0.02499101087 | J65: 0.006166489434 | K65: 0.007401458499 | L65: -0.03091362525 | M65: 0.009421711445 | N65: 0.002873050179 | O65: -0.01556695038 | P65: -0.02047538986 | Q65: 0.006412927182 | R65: 0.02247518972 | S65: =SUM(S49:S64) -> 0.02084016345
B66: Taxes on products | D66: 0.001411631412 | E66: -0.005195789017 | F66: 0.009059335665 | G66: 0.008517175298 | H66: 0.007769079593 | I66: -0.006391378841 | J66: -0.00695054759 | K66: 0.007121934494 | L66: -0.002657395205 | M66: 0.01199908004 | N66: -0.0049159836 | O66: -0.005189737416 | P66: -0.005409174508 | Q66: 0.00291075161 | R66: 0.002665932258 | S66: -0.0003464208418
B67: less subsidies | D67: -0.001584215607 | E67: 0.001825939401 | F67: -0.003610055258 | G67: 0.001971512259 | H67: -0.001065558554 | I67: -0.0011277622 | J67: 0.006783211381 | K67: 0.003735157976 | L67: 0.001258364242 | M67: 0.0001847577116 | N67: 0.0004089456337 | O67: 0.0001598061981 | P67: 0.0002883389117 | Q67: 0.00029589678 | R67: 0.0001644955754 | S67: 1.212926936e-05
B68: GDP at purchasers prices | D68: =SUM(D65:D67) -> -0.03111543555 | E68: =SUM(E65:E67) -> -0.0606575314 | F68: =SUM(F65:F67) -> 0.02955746234 | G68: 0.01383732244 | H68: 0.04563228657 | I68: 0.01747186983 | J68: 0.005999153226 | K68: 0.01825855097 | L68: -0.03231265622 | M68: 0.0216055492 | N68: -0.001633987788 | O68: -0.0205968816 | P68: -0.02559622545 | Q68: 0.009619575572 | R68: 0.02530561756 | S68: =SUM(S65:S67) -> 0.02050587188
A69: Source: SBOC estimates
A70: Table 1f : FSM: Current price GDP by industry, FY2004-FY2011
B71: (US$ millions) | C71: =C2 -> FY1995 | D71: FY1996 | E71: FY1997 | F71: FY1998 | G71: FY1999 | H71: FY2000 | I71: FY2001 | J71: FY2002 | K71: FY2003 | L71: FY2004 | M71: FY2005 | N71: FY2006 | O71: FY2007 | P71: FY2008 | Q71: FY2009 | R71: =R2 -> FY2010 | S71: =S2 -> FY2011
A72: A | B72: Agriculture, Hunting and Forestry | C72: =[3]indFSM!D45 -> 27.31088661 | D72: =[3]indFSM!E45 -> 28.18059968 | E72: =[3]indFSM!F45 -> 29.09658045 | F72: =[3]indFSM!G45 -> 29.72181584 | G72: =[3]indFSM!H45 -> 30.71476021 | H72: =[3]indFSM!I45 -> 31.57037448 | I72: =[3]indFSM!J45 -> 32.52122953 | J72: =[3]indFSM!K45 -> 32.66678213 | K72: =[3]indFSM!L45 -> 32.54743713 | L72: =[3]indFSM!M45 -> 31.17721204 | M72: =[3]indFSM!N45 -> 32.91412978 | N72: =[3]indFSM!O45 -> 34.72492417 | O72: =[3]indFSM!P45 -> 36.56545006 | P72: =[3]indFSM!Q45 -> 37.78377617 | Q72: =[3]indFSM!R45 -> 40.00548274 | R72: =[3]indFSM!S45 -> 41.53282692 | S72: =[3]indFSM!T45 -> 43.58372921
A73: B | B73: Fisheries | C73: =[3]indFSM!D46 -> 25.69193007 | D73: =[3]indFSM!E46 -> 22.8975561 | E73: =[3]indFSM!F46 -> 18.48147366 | F73: =[3]indFSM!G46 -> 25.84308137 | G73: =[3]indFSM!H46 -> 21.38972948 | H73: =[3]indFSM!I46 -> 24.53636855 | I73: =[3]indFSM!J46 -> 23.13177014 | J73: =[3]indFSM!K46 -> 23.77109065 | K73: =[3]indFSM!L46 -> 24.48394368 | L73: =[3]indFSM!M46 -> 21.43016688 | M73: =[3]indFSM!N46 -> 22.94748307 | N73: =[3]indFSM!O46 -> 21.95622941 | O73: =[3]indFSM!P46 -> 27.11728053 | P73: =[3]indFSM!Q46 -> 30.14872328 | Q73: =[3]indFSM!R46 -> 28.42081242 | R73: =[3]indFSM!S46 -> 29.79915953 | S73: =[3]indFSM!T46 -> 36.59167984
A74: C | B74: Mining and Quarrying | C74: =[3]indFSM!D47 -> 0 | D74: =[3]indFSM!E47 -> 0 | E74: =[3]indFSM!F47 -> 0 | F74: =[3]indFSM!G47 -> 0 | G74: =[3]indFSM!H47 -> 0 | H74: =[3]indFSM!I47 -> 0 | I74: =[3]indFSM!J47 -> 0 | J74: =[3]indFSM!K47 -> 0 | K74: =[3]indFSM!L47 -> 0 | L74: =[3]indFSM!M47 -> 0 | M74: =[3]indFSM!N47 -> 0 | N74: =[3]indFSM!O47 -> 0 | O74: =[3]indFSM!P47 -> 0 | P74: =[3]indFSM!Q47 -> 0 | Q74: =[3]indFSM!R47 -> 0 | R74: =[3]indFSM!S47 -> 0.001132330798 | S74: =[3]indFSM!T47 -> 0.004635936069
A75: D | B75: Manufacturing | C75: =[3]indFSM!D48 -> 3.138366002 | D75: =[3]indFSM!E48 -> 2.632149047 | E75: =[3]indFSM!F48 -> 3.036528857 | F75: =[3]indFSM!G48 -> 3.429985797 | G75: =[3]indFSM!H48 -> 3.294555583 | H75: =[3]indFSM!I48 -> 3.879075268 | I75: =[3]indFSM!J48 -> 4.610849466 | J75: =[3]indFSM!K48 -> 4.40756001 | K75: =[3]indFSM!L48 -> 4.075228524 | L75: =[3]indFSM!M48 -> 3.3672391 | M75: =[3]indFSM!N48 -> 1.401251006 | N75: =[3]indFSM!O48 -> 0.9545582509 | O75: =[3]indFSM!P48 -> 1.075285582 | P75: =[3]indFSM!Q48 -> 1.166758793 | Q75: =[3]indFSM!R48 -> 1.187239246 | R75: =[3]indFSM!S48 -> 1.283753714 | S75: =[3]indFSM!T48 -> 1.375394058
A76: E | B76: Electricity, Gas and Water Supply | C76: =[3]indFSM!D49 -> 2.851646864 | D76: =[3]indFSM!E49 -> 5.48890752 | E76: =[3]indFSM!F49 -> 5.727553727 | F76: =[3]indFSM!G49 -> 6.696170787 | G76: =[3]indFSM!H49 -> 5.793671022 | H76: =[3]indFSM!I49 -> 6.276170887 | I76: =[3]indFSM!J49 -> 6.523490429 | J76: =[3]indFSM!K49 -> 5.504255693 | K76: =[3]indFSM!L49 -> 6.281160867 | L76: =[3]indFSM!M49 -> 4.962887901 | M76: =[3]indFSM!N49 -> 4.732708014 | N76: =[3]indFSM!O49 -> 3.623766454 | O76: =[3]indFSM!P49 -> 1.679577183 | P76: =[3]indFSM!Q49 -> 1.342788739 | Q76: =[3]indFSM!R49 -> 5.195892696 | R76: =[3]indFSM!S49 -> 4.083214463 | S76: =[3]indFSM!T49 -> 4.156113159
A77: F | B77: Construction | C77: =[3]indFSM!D50 -> 9.480680779 | D77: =[3]indFSM!E50 -> 8.543538816 | E77: =[3]indFSM!F50 -> 5.962035281 | F77: =[3]indFSM!G50 -> 7.880799664 | G77: =[3]indFSM!H50 -> 8.356117292 | H77: =[3]indFSM!I50 -> 9.101298097 | I77: =[3]indFSM!J50 -> 8.89758939 | J77: =[3]indFSM!K50 -> 6.70500682 | K77: =[3]indFSM!L50 -> 6.045054036 | L77: =[3]indFSM!M50 -> 6.407512892 | M77: =[3]indFSM!N50 -> 6.943575185 | N77: =[3]indFSM!O50 -> 5.639106114 | O77: =[3]indFSM!P50 -> 5.421361994 | P77: =[3]indFSM!Q50 -> 7.164127376 | Q77: =[3]indFSM!R50 -> 12.74854179 | R77: =[3]indFSM!S50 -> 16.60539143 | S77: =[3]indFSM!T50 -> 20.57365949
A78: G | B78: Wholesale and Retail Trade and Repairs | C78: =[3]indFSM!D51 -> 23.15407225 | D78: =[3]indFSM!E51 -> 23.22654361 | E78: =[3]indFSM!F51 -> 22.61318341 | F78: =[3]indFSM!G51 -> 22.71424254 | G78: =[3]indFSM!H51 -> 23.61425754 | H78: =[3]indFSM!I51 -> 25.31583611 | I78: =[3]indFSM!J51 -> 27.13290494 | J78: =[3]indFSM!K51 -> 25.62643896 | K78: =[3]indFSM!L51 -> 27.43488036 | L78: =[3]indFSM!M51 -> 28.14234084 | M78: =[3]indFSM!N51 -> 30.13489164 | N78: =[3]indFSM!O51 -> 31.85460657 | O78: =[3]indFSM!P51 -> 32.97388281 | P78: =[3]indFSM!Q51 -> 36.78428971 | Q78: =[3]indFSM!R51 -> 34.80811899 | R78: =[3]indFSM!S51 -> 36.60767565 | S78: =[3]indFSM!T51 -> 37.29928744
A79: H | B79: Hotels and Restaurants | C79: =[3]indFSM!D52 -> 4.545978669 | D79: =[3]indFSM!E52 -> 4.596272751 | E79: =[3]indFSM!F52 -> 4.710300254 | F79: =[3]indFSM!G52 -> 4.985802562 | G79: =[3]indFSM!H52 -> 5.030882104 | H79: =[3]indFSM!I52 -> 5.387177322 | I79: =[3]indFSM!J52 -> 5.431427753 | J79: =[3]indFSM!K52 -> 4.946408813 | K79: =[3]indFSM!L52 -> 4.866272051 | L79: =[3]indFSM!M52 -> 4.798690497 | M79: =[3]indFSM!N52 -> 5.065244094 | N79: =[3]indFSM!O52 -> 5.265212005 | O79: =[3]indFSM!P52 -> 5.146651335 | P79: =[3]indFSM!Q52 -> 5.03503889 | Q79: =[3]indFSM!R52 -> 4.827779585 | R79: =[3]indFSM!S52 -> 5.116760019 | S79: =[3]indFSM!T52 -> 5.231584483
A80: I | B80: Transport, Storage and Communications | C80: =[3]indFSM!D53 -> 15.37836113 | D80: =[3]indFSM!E53 -> 14.79666081 | E80: =[3]indFSM!F53 -> 13.83569506 | F80: =[3]indFSM!G53 -> 14.33862131 | G80: =[3]indFSM!H53 -> 14.9166903 | H80: =[3]indFSM!I53 -> 15.85666284 | I80: =[3]indFSM!J53 -> 16.60510574 | J80: =[3]indFSM!K53 -> 16.25811069 | K80: =[3]indFSM!L53 -> 16.30559369 | L80: =[3]indFSM!M53 -> 16.53165904 | M80: =[3]indFSM!N53 -> 16.66442707 | N80: =[3]indFSM!O53 -> 16.58792255 | O80: =[3]indFSM!P53 -> 17.10762621 | P80: =[3]indFSM!Q53 -> 15.61552154 | Q80: =[3]indFSM!R53 -> 16.67039768 | R80: =[3]indFSM!S53 -> 16.70981886 | S80: =[3]indFSM!T53 -> 17.3924903
A81: J | B81: Financial Intermediation | C81: =[3]indFSM!D54 -> 2.953233276 | D81: =[3]indFSM!E54 -> 2.58950351 | E81: =[3]indFSM!F54 -> 2.618592083 | F81: =[3]indFSM!G54 -> 2.188737021 | G81: =[3]indFSM!H54 -> 3.56713335 | H81: =[3]indFSM!I54 -> 4.351922967 | I81: =[3]indFSM!J54 -> 5.325412751 | J81: =[3]indFSM!K54 -> 6.635332907 | K81: =[3]indFSM!L54 -> 3.487034583 | L81: =[3]indFSM!M54 -> 3.308098881 | M81: =[3]indFSM!N54 -> 4.612399545 | N81: =[3]indFSM!O54 -> 5.466393279 | O81: =[3]indFSM!P54 -> 6.05040241 | P81: =[3]indFSM!Q54 -> 5.824805901 | Q81: =[3]indFSM!R54 -> 5.123114343 | R81: =[3]indFSM!S54 -> 5.592609741 | S81: =[3]indFSM!T54 -> 6.207887044
A82: K | B82: Real Estate, Renting, Business Activities | C82: =[3]indFSM!D55 -> 25.05073574 | D82: =[3]indFSM!E55 -> 25.9108761 | E82: =[3]indFSM!F55 -> 26.56338273 | F82: =[3]indFSM!G55 -> 26.97067705 | G82: =[3]indFSM!H55 -> 28.46273986 | H82: =[3]indFSM!I55 -> 29.35712508 | I82: =[3]indFSM!J55 -> 30.31672001 | J82: =[3]indFSM!K55 -> 30.33972094 | K82: =[3]indFSM!L55 -> 30.33576687 | L82: =[3]indFSM!M55 -> 29.9909238 | M82: =[3]indFSM!N55 -> 29.78441963 | N82: =[3]indFSM!O55 -> 29.72240407 | O82: =[3]indFSM!P55 -> 29.45718816 | P82: =[3]indFSM!Q55 -> 29.47399281 | Q82: =[3]indFSM!R55 -> 30.6255168 | R82: =[3]indFSM!S55 -> 32.18313823 | S82: =[3]indFSM!T55 -> 33.17021614
A83: L | B83: Public Administration | C83: =[3]indFSM!D56 -> 35.72364365 | D83: =[3]indFSM!E56 -> 34.12043354 | E83: =[3]indFSM!F56 -> 31.98629826 | F83: =[3]indFSM!G56 -> 32.45623013 | G83: =[3]indFSM!H56 -> 32.20561518 | H83: =[3]indFSM!I56 -> 31.33942444 | I83: =[3]indFSM!J56 -> 32.50128724 | J83: =[3]indFSM!K56 -> 35.00304749 | K83: =[3]indFSM!L56 -> 33.99437021 | L83: =[3]indFSM!M56 -> 31.89426457 | M83: =[3]indFSM!N56 -> 33.93548856 | N83: =[3]indFSM!O56 -> 35.1568065 | O83: =[3]indFSM!P56 -> 31.60265033 | P83: =[3]indFSM!Q56 -> 30.02411532 | Q83: =[3]indFSM!R56 -> 31.01734964 | R83: =[3]indFSM!S56 -> 31.09122768 | S83: =[3]indFSM!T56 -> 32.29627896
A84: M | B84: Education | C84: =[3]indFSM!D57 -> 26.54313313 | D84: =[3]indFSM!E57 -> 27.23441307 | E84: =[3]indFSM!F57 -> 23.90491406 | F84: =[3]indFSM!G57 -> 23.05908124 | G84: =[3]indFSM!H57 -> 22.96947625 | H84: =[3]indFSM!I57 -> 24.60014792 | I84: =[3]indFSM!J57 -> 26.38805408 | J84: =[3]indFSM!K57 -> 28.5448795 | K84: =[3]indFSM!L57 -> 29.3921301 | L84: =[3]indFSM!M57 -> 30.14220925 | M84: =[3]indFSM!N57 -> 30.06352472 | N84: =[3]indFSM!O57 -> 31.15295624 | O84: =[3]indFSM!P57 -> 31.08575961 | P84: =[3]indFSM!Q57 -> 31.43382401 | Q84: =[3]indFSM!R57 -> 32.88109131 | R84: =[3]indFSM!S57 -> 34.49888372 | S84: =[3]indFSM!T57 -> 32.26124497
A85: N | B85: Health and Social Work | C85: =[3]indFSM!D58 -> 9.229826376 | D85: =[3]indFSM!E58 -> 9.421575608 | E85: =[3]indFSM!F58 -> 7.813008584 | F85: =[3]indFSM!G58 -> 6.920688814 | G85: =[3]indFSM!H58 -> 6.658899741 | H85: =[3]indFSM!I58 -> 7.237444663 | I85: =[3]indFSM!J58 -> 7.914494863 | J85: =[3]indFSM!K58 -> 8.433128539 | K85: =[3]indFSM!L58 -> 8.486854513 | L85: =[3]indFSM!M58 -> 8.758791561 | M85: =[3]indFSM!N58 -> 9.083024563 | N85: =[3]indFSM!O58 -> 10.08201182 | O85: =[3]indFSM!P58 -> 10.80992519 | P85: =[3]indFSM!Q58 -> 11.33774309 | Q85: =[3]indFSM!R58 -> 12.20223604 | R85: =[3]indFSM!S58 -> 13.78869452 | S85: =[3]indFSM!T58 -> 14.35414773
A86: O | B86: Other Community, Social, Personal Services | C86: =[3]indFSM!D59 -> 2.29257743 | D86: =[3]indFSM!E59 -> 2.363920289 | E86: =[3]indFSM!F59 -> 2.346547105 | F86: =[3]indFSM!G59 -> 2.421278168 | G86: =[3]indFSM!H59 -> 2.579084583 | H86: =[3]indFSM!I59 -> 2.881261023 | I86: =[3]indFSM!J59 -> 2.922919377 | J86: =[3]indFSM!K59 -> 3.182373447 | K86: =[3]indFSM!L59 -> 3.143314019 | L86: =[3]indFSM!M59 -> 3.280715377 | M86: =[3]indFSM!N59 -> 3.258330108 | N86: =[3]indFSM!O59 -> 3.38960013 | O86: =[3]indFSM!P59 -> 3.405083824 | P86: =[3]indFSM!Q59 -> 3.621182226 | Q86: =[3]indFSM!R59 -> 3.779801549 | R86: =[3]indFSM!S59 -> 4.178831521 | S86: =[3]indFSM!T59 -> 4.293578542
B87: less intermediate FISIM | C87: =[3]indFSM!D60 -> -2.241486411 | D87: =[3]indFSM!E60 -> -2.096006377 | E87: =[3]indFSM!F60 -> -1.808816883 | F87: =[3]indFSM!G60 -> -1.823108436 | G87: =[3]indFSM!H60 -> -2.554859186 | H87: =[3]indFSM!I60 -> -3.11963379 | I87: =[3]indFSM!J60 -> -3.649903507 | J87: =[3]indFSM!K60 -> -4.70742376 | K87: =[3]indFSM!L60 -> -2.622742034 | L87: =[3]indFSM!M60 -> -2.353101729 | M87: =[3]indFSM!N60 -> -3.050849005 | N87: =[3]indFSM!O60 -> -3.684151628 | O87: =[3]indFSM!P60 -> -4.018721361 | P87: =[3]indFSM!Q60 -> -4.241178087 | Q87: =[3]indFSM!R60 -> -4.001182104 | R87: =[3]indFSM!S60 -> -4.383219371 | S87: =[3]indFSM!T60 -> -4.521155445
B88: GDP at basic prices | C88: =[3]indFSM!D61 -> 211.1035856 | D88: =[3]indFSM!E61 -> 209.9069441 | E88: =[3]indFSM!F61 -> 196.8872766 | F88: =[3]indFSM!G61 -> 207.8041039 | G88: =[3]indFSM!H61 -> 206.9987533 | H88: =[3]indFSM!I61 -> 218.5706558 | I88: =[3]indFSM!J61 -> 226.5733522 | J88: =[3]indFSM!K61 -> 227.3167128 | K88: =[3]indFSM!L61 -> 228.2562986 | L88: =[3]indFSM!M61 -> 221.8396109 | M88: =[3]indFSM!N61 -> 228.490048 | N88: =[3]indFSM!O61 -> 231.8923459 | O88: =[3]indFSM!P61 -> 235.4794039 | P88: =[3]indFSM!Q61 -> 242.5155098 | Q88: =[3]indFSM!R61 -> 255.4921927 | R88: =[3]indFSM!S61 -> 268.689899 | S88: =[3]indFSM!T61 -> 284.2707719
B89: Taxes on products | C89: =[3]indFSM!D62 -> 14.17074557 | D89: =[3]indFSM!E62 -> 14.81030817 | E89: =[3]indFSM!F62 -> 14.17132827 | F89: =[3]indFSM!G62 -> 16.51539777 | G89: =[3]indFSM!H62 -> 18.47056964 | H89: =[3]indFSM!I62 -> 20.41208699 | I89: =[3]indFSM!J62 -> 19.15156182 | J89: =[3]indFSM!K62 -> 17.465022 | K89: =[3]indFSM!L62 -> 19.162579 | L89: =[3]indFSM!M62 -> 18.85573455 | M89: =[3]indFSM!N62 -> 22.58828865 | N89: =[3]indFSM!O62 -> 22.21972208 | O89: =[3]indFSM!P62 -> 21.52107576 | P89: =[3]indFSM!Q62 -> 21.84191607 | Q89: =[3]indFSM!R62 -> 24.39733254 | R89: =[3]indFSM!S62 -> 26.519363 | S89: =[3]indFSM!T62 -> 27.48981988
B90: less subsidies | C90: =[3]indFSM!D63 -> -3.170744 | D90: =[3]indFSM!E63 -> -5.8715289 | E90: =[3]indFSM!F63 -> -4.1582726 | F90: =[3]indFSM!G63 -> -4.673302 | G90: =[3]indFSM!H63 -> -4.808819 | H90: =[3]indFSM!I63 -> -5.75642 | I90: =[3]indFSM!J63 -> -5.673014 | J90: =[3]indFSM!K63 -> -3.238339 | K90: =[3]indFSM!L63 -> -2.427894 | L90: =[3]indFSM!M63 -> -1.132035 | M90: =[3]indFSM!N63 -> -1.232744 | N90: =[3]indFSM!O63 -> -1.120863 | O90: =[3]indFSM!P63 -> -1.109643251 | P90: =[3]indFSM!Q63 -> -3.017783471 | Q90: =[3]indFSM!R63 -> -2.378602471 | R90: =[3]indFSM!S63 -> -1.092031471 | S90: =[3]indFSM!T63 -> -1.473072471
B91: GDP at purchasers prices | C91: =[3]indFSM!D64 -> 222.1035871 | D91: =[3]indFSM!E64 -> 218.8457233 | E91: =[3]indFSM!F64 -> 206.9003323 | F91: =[3]indFSM!G64 -> 219.6461996 | G91: =[3]indFSM!H64 -> 220.6605039 | H91: =[3]indFSM!I64 -> 233.2263228 | I91: =[3]indFSM!J64 -> 240.0519 | J91: =[3]indFSM!K64 -> 241.5433958 | K91: =[3]indFSM!L64 -> 244.9909836 | L91: =[3]indFSM!M64 -> 239.5633104 | M91: =[3]indFSM!N64 -> 249.8455926 | N91: =[3]indFSM!O64 -> 252.991205 | O91: =[3]indFSM!P64 -> 255.8908364 | P91: =[3]indFSM!Q64 -> 261.3396424 | Q91: =[3]indFSM!R64 -> 277.5109228 | R91: =[3]indFSM!S64 -> 294.1172305 | S91: =[3]indFSM!T64 -> 310.2875193
A92: Source: SBOC estimates
A93: Table 1g : FSM: Implicit GDP price deflators by industry, FY2004-FY2011
B94: (FY2004=100) | C94: =C2 -> FY1995 | D94: FY1996 | E94: FY1997 | F94: FY1998 | G94: FY1999 | H94: FY2000 | I94: FY2001 | J94: FY2002 | K94: FY2003 | L94: FY2004 | M94: FY2005 | N94: FY2006 | O94: FY2007 | P94: FY2008 | Q94: FY2009 | R94: =R2 -> FY2010 | S94: =S2 -> FY2011
A95: A | B95: Agriculture, Hunting and Forestry | C95: =IF(C72<>0,C72/C3*100,0) -> 91.18025092 | D95: 93.68764353 | E95: 96.13488816 | F95: 97.65320533 | G95: 99.42280184 | H95: 100.310248 | I95: 102.2286055 | J95: 101.6833083 | K95: 99.90608656 | L95: 100 | M95: 101.6812153 | N95: 103.1303364 | O95: 107.5340649 | P95: 112.0378738 | Q95: 118.6889685 | R95: 122.4154997 | S95: =IF(S72<>0,S72/S3*100,0) -> 126.3064705
A96: B | B96: Fisheries | C96: =IF(C73<>0,C73/C4*100,0) -> 96.06573676 | D96: 94.09662015 | E96: 95.75126281 | F96: 95.70869073 | G96: 99.17478742 | H96: 99.83649551 | I96: 102.9583226 | J96: 101.7726064 | K96: 99.17617663 | L96: 100 | M96: 102.26233 | N96: 102.7263332 | O96: 115.392536 | P96: 127.3161951 | Q96: 122.4185932 | R96: 127.4545033 | S96: =IF(S73<>0,S73/S4*100,0) -> 144.329023
A97: C | B97: Mining and Quarrying | C97: =IF(C74<>0,C74/C5*100,0) -> 0 | D97: 0 | E97: 0 | F97: 0 | G97: 0 | H97: 0 | I97: 0 | J97: 0 | K97: 0 | L97: 0 | M97: 0 | N97: 0 | O97: 0 | P97: 0 | Q97: 0 | R97: 133.0492729 | S97: =IF(S74<>0,S74/S5*100,0) -> 138.7723583
A98: D | B98: Manufacturing | C98: =IF(C75<>0,C75/C6*100,0) -> 88.28244756 | D98: 90.71736466 | E98: 92.94223082 | F98: 94.72695021 | G98: 96.79492803 | H98: 98.41858874 | I98: 99.07715287 | J98: 98.78176304 | K98: 98.42506103 | L98: 100 | M98: 103.5286907 | N98: 107.0126397 | O98: 110.0620406 | P98: 117.3669682 | Q98: 126.016934 | R98: 132.6502766 | S98: =IF(S75<>0,S75/S6*100,0) -> 138.2217329
A99: E | B99: Electricity, Gas and Water Supply | C99: =IF(C76<>0,C76/C7*100,0) -> 57.76574301 | D99: 107.9819728 | E99: 117.7692587 | F99: 139.0809697 | G99: 120.7109047 | H99: 133.1378655 | I99: 136.7136676 | J99: 111.2775103 | K99: 122.4159212 | L99: 100 | M99: 97.63654173 | N99: 78.94331743 | O99: 37.45639549 | P99: 32.70387211 | Q99: 121.1343776 | R99: 94.75596246 | S99: =IF(S76<>0,S76/S7*100,0) -> 101.3708919
A100: F | B100: Construction | C100: =IF(C77<>0,C77/C8*100,0) -> 89.59970484 | D100: 91.93392386 | E100: 94.11467 | F100: 95.57748671 | G100: 97.30513918 | H100: 98.55832236 | I100: 99.13016389 | J100: 98.91000552 | K100: 98.47735131 | L100: 100 | M100: 86.76921627 | N100: 98.24533058 | O100: 107.6478705 | P100: 115.2265021 | Q100: 124.3943421 | R100: 131.3369806 | S100: =IF(S77<>0,S77/S8*100,0) -> 136.6394722
A101: G | B101: Wholesale and Retail Trade and Repairs | C101: =IF(C78<>0,C78/C9*100,0) -> 83.33975486 | D101: 85.84030551 | E101: 88.87113055 | F101: 91.69346416 | G101: 93.78129512 | H101: 94.19050111 | I101: 95.42891691 | J101: 96.56962332 | K101: 97.16182521 | L101: 100 | M101: 107.6342315 | N101: 116.7898749 | O101: 122.9879375 | P101: 138.9150922 | Q101: 139.9538173 | R101: 142.1206784 | S101: =IF(S78<>0,S78/S9*100,0) -> 147.5188161
A102: H | B102: Hotels and Restaurants | C102: =IF(C79<>0,C79/C10*100,0) -> 88.61462838 | D102: 91.09152806 | E102: 93.51840483 | F102: 95.02012284 | G102: 96.84403718 | H102: 98.47979505 | I102: 99.06786611 | J102: 98.77708817 | K102: 98.41690726 | L102: 100 | M102: 103.2896644 | N102: 106.4911465 | O102: 109.6043613 | P102: 116.9080215 | Q102: 125.9124031 | R102: 133.0492729 | S102: =IF(S79<>0,S79/S10*100,0) -> 138.7723583
A103: I | B103: Transport, Storage and Communications | C103: =IF(C80<>0,C80/C11*100,0) -> 90.83275361 | D103: 93.2650584 | E103: 93.7498502 | F103: 95.29033298 | G103: 96.63837637 | H103: 98.20697129 | I103: 98.91852658 | J103: 98.48976224 | K103: 98.59023932 | L103: 100 | M103: 101.4617936 | N103: 104.3653881 | O103: 106.9158149 | P103: 114.0599039 | Q103: 121.9523842 | R103: 127.1285009 | S103: =IF(S80<>0,S80/S11*100,0) -> 131.3717323
A104: J | B104: Financial Intermediation | C104: =IF(C81<>0,C81/C12*100,0) -> 88.36495548 | D104: 90.93436203 | E104: 93.20216721 | F104: 94.06048976 | G104: 94.91833104 | H104: 98.0059079 | I104: 98.84036948 | J104: 98.75219088 | K104: 98.39839119 | L104: 100 | M104: 102.6886222 | N104: 105.8336046 | O104: 109.3297768 | P104: 116.5038449 | Q104: 125.3454365 | R104: 132.4070942 | S104: =IF(S81<>0,S81/S12*100,0) -> 137.973698
A105: K | B105: Real Estate, Renting, Business Activities | C105: =IF(C82<>0,C82/C13*100,0) -> 90.56341631 | D105: 93.30481591 | E105: 95.67888616 | F105: 97.22977314 | G105: 98.26109225 | H105: 100.094183 | I105: 100.7196751 | J105: 100.9974977 | K105: 100.1498063 | L105: 100 | M105: 100.1548894 | N105: 101.1746833 | O105: 101.5805931 | P105: 102.8274563 | Q105: 107.227001 | R105: 110.0309721 | S105: =IF(S82<>0,S82/S13*100,0) -> 111.3426196
A106: L | B106: Public Administration | C106: =IF(C83<>0,C83/C14*100,0) -> 101.9551441 | D106: 102.7905908 | E106: 98.51639336 | F106: 104.3585988 | G106: 97.24761005 | H106: 96.92234505 | I106: 97.5559184 | J106: 98.30772542 | K106: 98.57310806 | L106: 100 | M106: 109.9712337 | N106: 107.2331191 | O106: 114.1671061 | P106: 118.3448388 | Q106: 123.269876 | R106: 118.108257 | S106: =IF(S83<>0,S83/S14*100,0) -> 118.3929569
A107: M | B107: Education | C107: =IF(C84<>0,C84/C15*100,0) -> 103.6450777 | D107: 104.5860644 | E107: 97.09709522 | F107: 100.8937911 | G107: 96.47244472 | H107: 99.41125617 | I107: 98.77501107 | J107: 99.93706711 | K107: 99.10800115 | L107: 100 | M107: 95.70171227 | N107: 92.02721642 | O107: 92.25488573 | P107: 93.41035683 | Q107: 96.36667202 | R107: 103.067454 | S107: =IF(S84<>0,S84/S15*100,0) -> 101.2274629
A108: N | B108: Health and Social Work | C108: =IF(C85<>0,C85/C16*100,0) -> 106.8369325 | D108: 108.2758733 | E108: 101.1983849 | F108: 105.3898883 | G108: 104.748835 | H108: 102.4955397 | I108: 100.3704607 | J108: 99.41516934 | K108: 99.69556741 | L108: 100 | M108: 99.66381903 | N108: 104.8089994 | O108: 105.6303412 | P108: 105.059774 | Q108: 110.211629 | R108: 117.1594689 | S108: =IF(S85<>0,S85/S16*100,0) -> 116.5388072
A109: O | B109: Other Community, Social, Personal Services | C109: =IF(C86<>0,C86/C17*100,0) -> 84.13311612 | D109: 84.82153145 | E109: 86.66785378 | F109: 85.91123551 | G109: 86.22227523 | H109: 93.24594882 | I109: 94.26206867 | J109: 95.67152174 | K109: 96.04468451 | L109: 100 | M109: 105.2489891 | N109: 110.0433071 | O109: 113.075064 | P109: 118.7682277 | Q109: 126.4536372 | R109: 132.1734283 | S109: =IF(S86<>0,S86/S17*100,0) -> 138.1940741
B110: less intermediate FISIM | C110: =IF(C87<>0,C87/C18*100,0) -> 88.61202567 | D110: 91.0898651 | E110: 93.51892817 | F110: 95.04562846 | G110: 96.86986458 | H110: 98.48768484 | I110: 99.06639875 | J110: 98.7773228 | K110: 98.41231207 | L110: 100 | M110: 103.2896644 | N110: 106.4911465 | O110: 109.6043613 | P110: 116.9080215 | Q110: 125.9124031 | R110: 133.0492729 | S110: =IF(S87<>0,S87/S18*100,0) -> 138.7723583
B111: GDP at basic prices | C111: =IF(C88<>0,C88/C19*100,0) -> 93.36798657 | D111: 95.97963713 | E111: 95.8428732 | F111: 98.63789877 | G111: 97.90694179 | H111: 99.22988559 | I111: 100.1637594 | J111: 99.83465044 | K111: 99.461258 | L111: 100 | M111: 101.9604664 | N111: 103.1550246 | O111: 106.5535806 | P111: 112.2256443 | Q111: 117.4181623 | R111: 120.5520345 | S111: =IF(S88<>0,S88/S19*100,0) -> 124.7275574
B112: Taxes on products less Subsidies | C112: =IF((C89+C90)<>0,(C89+C90)/(C20+C90)*100,0) -> 84.4157996 | D112: 83.79450722 | E112: 89.58621418 | F112: 93.73555119 | G112: 94.83153126 | H112: 96.26973352 | I112: 97.74963538 | J112: 97.81986224 | K112: 97.94549081 | L112: 100 | M112: 104.1859423 | N112: 108.7218281 | O112: 112.463154 | P112: 125.9404827 | Q112: 135.3768968 | R112: 139.8723222 | S112: =IF((S89+S90)<>0,(S89+S90)/(S20+S90)*100,0) -> 146.8686349
B113: GDP at purchasers prices | C113: =IF(C91<>0,C91/C22*100,0) -> 92.88428988 | D113: 94.46103927 | E113: 95.07183707 | F113: 98.03108295 | G113: 97.13962838 | H113: 98.1907127 | I113: 99.32889039 | J113: 99.35002683 | K113: 98.96117805 | L113: 100 | M113: 102.0864598 | N113: 103.540936 | O113: 106.9300856 | P113: 112.0757143 | Q113: 117.8768555 | R113: 121.8472106 | S113: =IF(S91<>0,S91/S22*100,0) -> 125.963269
A114: Source: SBOC estimates
A115: Table 1h : FSM: Share of GDP by industry, current prices, FY2004-FY2011
C116: =C2 -> FY1995 | D116: FY1996 | E116: FY1997 | F116: FY1998 | G116: FY1999 | H116: FY2000 | I116: FY2001 | J116: FY2002 | K116: FY2003 | L116: FY2004 | M116: FY2005 | N116: FY2006 | O116: FY2007 | P116: FY2008 | Q116: FY2009 | R116: =R2 -> FY2010 | S116: =S2 -> FY2011
A117: A | B117: Agriculture, Hunting and Forestry | C117: =IF(C72/C$91<>0,C72/C$91,"~") -> 0.1229646354 | D117: =IF(D72/D$91<>0,D72/D$91,"~") -> 0.1287692501 | E117: 0.1406309025 | F117: 0.1353167771 | G117: 0.1391946436 | H117: 0.1353636849 | I117: 0.1354758264 | J117: 0.1352418766 | K117: 0.1328515713 | L117: 0.1301418484 | M117: 0.1317378843 | N117: 0.1372574361 | O117: 0.1428947225 | P117: 0.1445772858 | Q117: 0.1441582275 | R117: =IF(R72/R$91<>0,R72/R$91,"~") -> 0.1412118115 | S117: 0.1404623986
A118: B | B118: Fisheries | C118: =IF(C73/C$91<>0,C73/C$91,"~") -> 0.1156754396 | D118: 0.1046287574 | E118: 0.08932549046 | F118: 0.117657767 | G118: 0.09693501599 | H118: 0.1052041135 | I118: 0.0963615374 | J118: 0.09841333303 | K118: 0.09993814188 | L118: 0.08945512915 | M118: 0.09184665948 | N118: 0.08678653239 | O118: 0.1059720657 | P118: 0.1153622275 | Q118: 0.1024133109 | R118: =IF(R73/R$91<>0,R73/R$91,"~") -> 0.1013172859 | S118: 0.1179283006
A119: C | B119: Mining and Quarrying | C119: ~ | D119: ~ | E119: ~ | F119: ~ | G119: ~ | H119: ~ | I119: ~ | J119: ~ | K119: ~ | L119: ~ | M119: ~ | N119: ~ | O119: ~ | P119: ~ | Q119: ~ | R119: =IF(R74/R$91<>0,R74/R$91,"~") -> 3.849930167e-06 | S119: 1.494077519e-05
A120: D | B120: Manufacturing | C120: 0.01413019052 | D120: 0.01202741825 | E120: 0.01467628797 | F120: 0.01561595786 | G120: 0.01493042717 | H120: 0.01663223611 | I120: 0.0192077191 | J120: 0.01824748714 | K120: 0.01663419798 | L120: 0.01405573789 | M120: 0.005608467978 | N120: 0.003773088677 | O120: 0.004202126176 | P120: 0.004464530456 | Q120: 0.00427817123 | R120: =IF(R75/R$91<>0,R75/R$91,"~") -> 0.00436476881 | S120: 0.00443264383
A121: E | B121: Electricity, Gas and Water Supply | C121: 0.01283926523 | D121: 0.02508117333 | E121: 0.02768267051 | F121: 0.03048616729 | G121: 0.02625604002 | H121: 0.0269102167 | I121: 0.02717533345 | J121: 0.02278785422 | K121: 0.02563833482 | L121: 0.02071639389 | M121: 0.01894253152 | N121: 0.0143236855 | O121: 0.006563647243 | P121: 0.005138098173 | Q121: 0.01872320067 | R121: =IF(R76/R$91<>0,R76/R$91,"~") -> 0.01388294884 | S121: 0.01339439359
A122: F | B122: Construction | C122: 0.04268585168 | D122: 0.03903909423 | E122: 0.02881597731 | F122: 0.0358795175 | G122: 0.03786865861 | H122: 0.03902346007 | I122: 0.03706527375 | J122: 0.0277590153 | K122: 0.02467459801 | L122: 0.02674663695 | M122: 0.02779146557 | N122: 0.02228973183 | O122: 0.02118622953 | P122: 0.02741309092 | Q122: 0.04593888292 | R122: =IF(R77/R$91<>0,R77/R$91,"~") -> 0.05645841081 | S122: 0.06630514671
A123: G | B123: Wholesale and Retail Trade and Repairs | C123: 0.1042489793 | D123: 0.1061320425 | E123: 0.109295056 | F123: 0.1034128639 | G123: 0.1070162404 | H123: 0.1085462215 | I123: 0.113029328 | J123: 0.1060945545 | K123: 0.1119832247 | L123: 0.1174735012 | M123: 0.1206140613 | N123: 0.1259119129 | O123: 0.1288591779 | P123: 0.1407528126 | Q123: 0.1254297259 | R123: =IF(R78/R$91<>0,R78/R$91,"~") -> 0.1244662735 | S123: 0.1202087906
A124: H | B124: Hotels and Restaurants | C124: 0.02046783092 | D124: 0.02100234211 | E124: 0.02276603523 | F124: 0.02269924347 | G124: 0.02279919611 | H124: 0.02309849616 | I124: 0.02262605608 | J124: 0.02047834426 | K124: 0.0198630659 | L124: 0.02003099092 | M124: 0.02027349789 | N124: 0.02081183812 | O124: 0.02011268324 | P124: 0.01926626533 | Q124: 0.01739671915 | R124: =IF(R79/R$91<>0,R79/R$91,"~") -> 0.0173970087 | S124: 0.01686044123
A125: I | B125: Transport, Storage and Communications | C125: 0.0692395892 | D125: 0.06761229136 | E125: 0.06687130418 | F125: 0.06528053449 | G125: 0.06760018232 | H125: 0.06798830701 | I125: 0.06917298191 | J125: 0.0673092743 | K125: 0.06655589301 | L125: 0.06900747451 | M125: 0.06669890347 | N125: 0.06556719056 | O125: 0.06685517329 | P125: 0.05975182867 | Q125: 0.06007114068 | R125: =IF(R80/R$91<>0,R80/R$91,"~") -> 0.0568134646 | S125: 0.05605281948
A126: J | B126: Financial Intermediation | C126: 0.01329664826 | D126: 0.0118325525 | E126: 0.01265629714 | F126: 0.009964829915 | G126: 0.01616570834 | H126: 0.01865965606 | I126: 0.02218442241 | J126: 0.02747056231 | K126: 0.01423331803 | L126: 0.01380887113 | M126: 0.01846100024 | N126: 0.02160704867 | O126: 0.0236444669 | P126: 0.02228826002 | Q126: 0.01846094666 | R126: =IF(R81/R$91<>0,R81/R$91,"~") -> 0.01901490005 | S126: 0.02000688606
A127: K | B127: Real Estate, Renting, Business Activities | C127: 0.1127885239 | D127: 0.1183979093 | E127: 0.1283873372 | F127: 0.1227914578 | G127: 0.1289888283 | H127: 0.1258739782 | I127: 0.126292356 | J127: 0.1256077436 | K127: 0.1238240135 | L127: 0.1251899707 | M127: 0.1192113069 | N127: 0.1174839421 | O127: 0.1151162292 | P127: 0.112780413 | Q127: 0.1103578789 | R127: =IF(R82/R$91<>0,R82/R$91,"~") -> 0.109422825 | S127: 0.106901548
A128: L | B128: Public Administration | C128: 0.1608422633 | D128: 0.1559108993 | E128: 0.1545976167 | F128: 0.1477659535 | G128: 0.1459509727 | H128: 0.1343734449 | I128: 0.1353927515 | J128: 0.1449141152 | K128: 0.138757638 | L128: 0.1331350135 | M128: 0.1358258443 | N128: 0.1389645403 | O128: 0.123500516 | P128: 0.1148854228 | Q128: 0.1117698335 | R128: =IF(R83/R$91<>0,R83/R$91,"~") -> 0.1057103238 | S128: 0.1040850081
A129: M | B129: Education | C129: 0.1195078993 | D129: 0.1244457175 | E129: 0.1155383068 | F129: 0.1049828373 | G129: 0.1040941892 | H129: 0.1054775791 | I129: 0.1099264537 | J129: 0.1181770232 | K129: 0.1199722931 | L129: 0.1258214757 | M129: 0.1203284173 | N129: 0.123138495 | O129: 0.1214805503 | P129: 0.1202795861 | Q129: 0.1184857554 | R129: =IF(R84/R$91<>0,R84/R$91,"~") -> 0.1172963708 | S129: 0.1039721
A130: N | B130: Health and Social Work | C130: 0.04155640391 | D130: 0.04305122104 | E130: 0.0377621848 | F130: 0.03150834763 | G130: 0.03017712559 | H130: 0.0310318517 | I130: 0.03296993218 | J130: 0.0349135132 | K130: 0.03464149736 | L130: 0.03656148993 | M130: 0.0363545519 | N130: 0.03985123442 | O130: 0.04224428408 | P130: 0.04338317365 | Q130: 0.04397029103 | R130: =IF(R85/R$91<>0,R85/R$91,"~") -> 0.04688162778 | S130: 0.04626079631
A131: O | B131: Other Community, Social, Personal Services | C131: 0.01032210897 | D131: 0.01080176598 | E131: 0.0113414371 | F131: 0.01102353772 | G131: 0.0116880209 | H131: 0.01235392724 | I131: 0.01217619763 | J131: 0.01317516232 | K131: 0.01283032532 | L131: 0.01369456521 | M131: 0.01304137517 | N131: 0.01339809473 | O131: 0.01330678297 | P131: 0.01385623013 | Q131: 0.01362037037 | R131: =IF(R86/R$91<>0,R86/R$91,"~") -> 0.01420804729 | S131: 0.01383741941
B132: less intermediate FISIM | C132: -0.01009207658 | D132: -0.009577552372 | E132: -0.008742455186 | F132: -0.008300204777 | G132: -0.01157823507 | H132: -0.01337599355 | I132: -0.01520464327 | J132: -0.01948893591 | K132: -0.0107054635 | L132: -0.009822462902 | M132: -0.01221093786 | N132: -0.01456237037 | O132: -0.01570482717 | P132: -0.016228606 | Q132: -0.01441810673 | R132: =IF(R87/R$91<>0,R87/R$91,"~") -> -0.01490296697 | S132: -0.0145708582
B133: GDP at basic prices | C133: 0.9504735529 | D133: 0.9591548825 | E133: 0.9516044486 | F133: 0.9460855877 | G133: 0.9380870142 | H133: 0.9371611797 | I133: 0.9438515262 | J133: 0.9411009233 | K133: 0.9316926494 | L133: 0.9260166362 | M133: 0.9145250295 | N133: 0.9166024009 | O133: 0.9202338278 | P133: 0.9279706193 | Q133: 0.9206563481 | R133: =IF(R88/R$91<>0,R88/R$91,"~") -> 0.9135469504 | S133: 0.9161527751
B134: Taxes on products | C134: =IF(C89/C$91<>0,C89/C$91,"~") -> 0.06380241649 | D134: 0.06767465203 | E134: 0.06849350171 | F134: 0.07519091064 | G134: 0.08370582551 | H134: 0.08752051116 | I134: 0.07978092162 | J134: 0.07230593882 | K134: 0.07821748669 | L134: 0.07870877438 | M134: 0.09040899386 | N134: 0.08782804161 | O134: 0.08410256524 | P134: 0.08357674278 | Q134: 0.08791485499 | R134: =IF(R89/R$91<>0,R89/R$91,"~") -> 0.0901659619 | S134: 0.0885946684
B135: less subsidies | C135: -0.01427596934 | D135: -0.02682953457 | E135: -0.02009795032 | F135: -0.02127649833 | G135: -0.02179283974 | H135: -0.02468169086 | I135: -0.02363244781 | J135: -0.0134068621 | K135: -0.009910136138 | L135: -0.004725410573 | M135: -0.004934023398 | N135: -0.004430442552 | O135: -0.004336393077 | P135: -0.01154736206 | Q135: -0.008571203062 | R135: =IF(R90/R$91<>0,R90/R$91,"~") -> -0.003712912261 | S135: -0.004747443515
B136: GDP at purchasers prices | C136: 1 | D136: 1 | E136: 1 | F136: 1 | G136: 1 | H136: 1 | I136: 1 | J136: 1 | K136: 1 | L136: 1 | M136: 1 | N136: 1 | O136: 1 | P136: 1 | Q136: 1 | R136: =IF(R91/R$91<>0,R91/R$91,"~") -> 1 | S136: 1
A137: Source: SBOC estimates
A138: Table 1i : FSM: Constant price GDP by institutional sector, FY2004-FY2011
B139: (constant prices of FY2004, US$ millions) | C139: =C2 -> FY1995 | D139: FY1996 | E139: FY1997 | F139: FY1998 | G139: FY1999 | H139: FY2000 | I139: FY2001 | J139: FY2002 | K139: FY2003 | L139: FY2004 | M139: FY2005 | N139: FY2006 | O139: FY2007 | P139: FY2008 | Q139: FY2009 | R139: =R2 -> FY2010 | S139: =S2 -> FY2011
A140: 1.1 | B140: Private Enterprise | C140: =[3]FSM!D176 -> 61.21469664 | D140: =[3]FSM!E176 -> 57.52806426 | E140: =[3]FSM!F176 -> 51.73965795 | F140: =[3]FSM!G176 -> 53.74703155 | G140: =[3]FSM!H176 -> 54.99602881 | H140: =[3]FSM!I176 -> 59.78496452 | I140: =[3]FSM!J176 -> 60.58971486 | J140: =[3]FSM!K176 -> 57.42029266 | K140: =[3]FSM!L176 -> 58.45480668 | L140: =[3]FSM!M176 -> 57.45425542 | M140: =[3]FSM!N176 -> 55.05938067 | N140: =[3]FSM!O176 -> 52.08034752 | O140: =[3]FSM!P176 -> 51.67991933 | P140: =[3]FSM!Q176 -> 50.42554955 | Q140: =[3]FSM!R176 -> 48.40550318 | R140: =[3]FSM!S176 -> 52.98515062 | S140: =[3]FSM!T176 -> 56.13358215
A141: 1.2 | B141: Public Enterprise | C141: =[3]FSM!D177 -> 19.77768297 | D141: =[3]FSM!E177 -> 17.4631834 | E141: =[3]FSM!F177 -> 13.03549617 | F141: =[3]FSM!G177 -> 20.98458717 | G141: =[3]FSM!H177 -> 16.06921262 | H141: =[3]FSM!I177 -> 19.10799341 | I141: =[3]FSM!J177 -> 19.21515414 | J141: =[3]FSM!K177 -> 18.62231909 | K141: =[3]FSM!L177 -> 19.56358803 | L141: =[3]FSM!M177 -> 16.72713489 | M141: =[3]FSM!N177 -> 17.30874451 | N141: =[3]FSM!O177 -> 15.61975619 | O141: =[3]FSM!P177 -> 17.12458838 | P141: =[3]FSM!Q177 -> 16.71535009 | Q141: =[3]FSM!R177 -> 20.38535192 | R141: =[3]FSM!S177 -> 19.55454288 | S141: =[3]FSM!T177 -> 19.91355226
A142: 2 | B142: Finance (Banks) | C142: =[3]FSM!D178 -> 3.006865581 | D142: =[3]FSM!E178 -> 2.663279551 | E142: =[3]FSM!F178 -> 2.473837965 | F142: =[3]FSM!G178 -> 1.929241807 | G142: =[3]FSM!H178 -> 3.267104289 | H142: =[3]FSM!I178 -> 3.911989612 | I142: =[3]FSM!J178 -> 5.104711399 | J142: =[3]FSM!K178 -> 6.474616156 | K142: =[3]FSM!L178 -> 3.37543411 | L142: =[3]FSM!M178 -> 3.0883955 | M142: =[3]FSM!N178 -> 4.276166956 | N142: =[3]FSM!O178 -> 4.913895121 | O142: =[3]FSM!P178 -> 5.158691845 | P142: =[3]FSM!Q178 -> 4.613353243 | Q142: =[3]FSM!R178 -> 3.762078147 | R142: =[3]FSM!S178 -> 3.858312517 | S142: =[3]FSM!T178 -> 4.074363994
A143: 3 | B143: Government | C143: =[3]FSM!D179 -> 71.66374252 | D143: =[3]FSM!E179 -> 70.26000184 | E143: =[3]FSM!F179 -> 66.58364579 | F143: =[3]FSM!G179 -> 61.85282829 | G143: =[3]FSM!H179 -> 64.83433839 | H143: =[3]FSM!I179 -> 65.35142091 | I143: =[3]FSM!J179 -> 69.30551229 | J143: =[3]FSM!K179 -> 73.69432759 | K143: =[3]FSM!L179 -> 73.91405713 | L143: =[3]FSM!M179 -> 71.88346001 | M143: =[3]FSM!N179 -> 73.9592477 | N143: =[3]FSM!O179 -> 77.83018461 | O143: =[3]FSM!P179 -> 72.48976281 | P143: =[3]FSM!Q179 -> 70.34379325 | Q143: =[3]FSM!R179 -> 70.73100315 | R143: =[3]FSM!S179 -> 71.99326399 | S143: =[3]FSM!T179 -> 72.17006089
A144: 4 | B144: NGOs | C144: =[3]FSM!D180 -> 3.094841825 | D144: =[3]FSM!E180 -> 2.824063874 | E144: =[3]FSM!F180 -> 2.892852232 | F144: =[3]FSM!G180 -> 3.055580067 | G144: =[3]FSM!H180 -> 3.207518534 | H144: =[3]FSM!I180 -> 2.813803522 | I144: =[3]FSM!J180 -> 2.821864755 | J144: =[3]FSM!K180 -> 2.995518191 | K144: =[3]FSM!L180 -> 2.862729405 | L144: =[3]FSM!M180 -> 2.840921844 | M144: =[3]FSM!N180 -> 2.697715263 | N144: =[3]FSM!O180 -> 2.665361766 | O144: =[3]FSM!P180 -> 2.659356353 | P144: =[3]FSM!Q180 -> 2.778083365 | Q144: =[3]FSM!R180 -> 2.699517024 | R144: =[3]FSM!S180 -> 2.804306524 | S144: =[3]FSM!T180 -> 2.784953078
A145: 5 | B145: Households | C145: =[3]FSM!D181 -> 69.87018771 | D145: =[3]FSM!E181 -> 70.26189424 | E145: =[3]FSM!F181 -> 70.63582532 | F145: =[3]FSM!G181 -> 71.02256416 | G145: =[3]FSM!H181 -> 71.68719145 | H145: =[3]FSM!I181 -> 72.46432843 | I145: =[3]FSM!J181 -> 72.85026637 | J145: =[3]FSM!K181 -> 73.25182164 | K145: =[3]FSM!L181 -> 73.98711146 | L145: =[3]FSM!M181 -> 72.19854496 | M145: =[3]FSM!N181 -> 73.74913492 | N145: =[3]FSM!O181 -> 75.149895 | O145: =[3]FSM!P181 -> 75.55048938 | P145: =[3]FSM!Q181 -> 74.84800089 | Q145: =[3]FSM!R181 -> 74.78601194 | R145: =[3]FSM!S181 -> 74.98178029 | S145: =[3]FSM!T181 -> 76.09481698
B146: GDP at basic prices | C146: =[3]FSM!D182 -> 228.6280172 | D146: =[3]FSM!E182 -> 221.0004872 | E146: =[3]FSM!F182 -> 207.3613154 | F146: =[3]FSM!G182 -> 212.591833 | G146: =[3]FSM!H182 -> 214.0613941 | H146: =[3]FSM!I182 -> 223.4345004 | I146: =[3]FSM!J182 -> 229.8872238 | J146: =[3]FSM!K182 -> 232.4588953 | K146: =[3]FSM!L182 -> 232.1577268 | L146: =[3]FSM!M182 -> 224.1927126 | M146: =[3]FSM!N182 -> 227.05039 | N146: =[3]FSM!O182 -> 228.2594402 | O146: =[3]FSM!P182 -> 224.6628081 | P146: =[3]FSM!Q182 -> 219.7241304 | Q146: =[3]FSM!R182 -> 220.7694654 | R146: =[3]FSM!S182 -> 226.1773568 | S146: =[3]FSM!T182 -> 231.1713294
B147: Taxes on Products less Subsidies | C147: =[3]FSM!D183 -> 13.02010531 | D147: =[3]FSM!E183 -> 12.97883723 | E147: =[3]FSM!F183 -> 12.19811622 | F147: =[3]FSM!G183 -> 13.38401728 | G147: =[3]FSM!H183 -> 15.7340886 | H147: =[3]FSM!I183 -> 17.25684749 | I147: =[3]FSM!J183 -> 15.47087246 | J147: =[3]FSM!K183 -> 15.43043168 | K147: =[3]FSM!L183 -> 18.07004746 | L147: =[3]FSM!M183 -> 17.72369955 | M147: =[3]FSM!N183 -> 20.64250006 | N147: =[3]FSM!O183 -> 19.53945116 | O147: =[3]FSM!P183 -> 18.31044125 | P147: =[3]FSM!Q183 -> 17.08499109 | Q147: =[3]FSM!R183 -> 17.83272163 | R147: =[3]FSM!S183 -> 18.49907351 | S147: =[3]FSM!T183 -> 18.41838154
B148: Less intermediate FISIM | C148: =[3]FSM!D184 -> -2.529551033 | D148: =[3]FSM!E184 -> -2.301031376 | E148: =[3]FSM!F184 -> -1.934171957 | F148: =[3]FSM!G184 -> -1.918140229 | G148: =[3]FSM!H184 -> -2.63741381 | H148: =[3]FSM!I184 -> -3.167536932 | I148: =[3]FSM!J184 -> -3.684300179 | J148: =[3]FSM!K184 -> -4.765692799 | K148: =[3]FSM!L184 -> -2.665054787 | L148: =[3]FSM!M184 -> -2.353101729 | M148: =[3]FSM!N184 -> -2.953682754 | N148: =[3]FSM!O184 -> -3.459584905 | O148: =[3]FSM!P184 -> -3.666570665 | P148: =[3]FSM!Q184 -> -3.627790492 | Q148: =[3]FSM!R184 -> -3.177750569 | R148: =[3]FSM!S184 -> -3.294433164 | S148: =[3]FSM!T184 -> -3.25796542
B149: Real GDP at purchasers prices | C149: =[3]FSM!D185 -> 239.1185715 | D149: =[3]FSM!E185 -> 231.678293 | E149: =[3]FSM!F185 -> 217.6252597 | F149: =[3]FSM!G185 -> 224.0577101 | G149: =[3]FSM!H185 -> 227.1580689 | H149: =[3]FSM!I185 -> 237.523811 | I149: =[3]FSM!J185 -> 241.6737961 | J149: =[3]FSM!K185 -> 243.1236342 | K149: =[3]FSM!L185 -> 247.5627195 | L149: =[3]FSM!M185 -> 239.5633104 | M149: =[3]FSM!N185 -> 244.7392073 | N149: =[3]FSM!O185 -> 244.3393065 | O149: =[3]FSM!P185 -> 239.3066787 | P149: =[3]FSM!Q185 -> 233.181331 | Q149: =[3]FSM!R185 -> 235.4244364 | R149: =[3]FSM!S185 -> 241.3819972 | S149: =[3]FSM!T185 -> 246.3317455
A150: Source: SBOC estimates
A151: Table 1j : FSM: Constant price GDP by institutional sector, annual % growth, FY2004-FY2011
C152: =C2 -> FY1995 | D152: FY1996 | E152: FY1997 | F152: FY1998 | G152: FY1999 | H152: FY2000 | I152: FY2001 | J152: FY2002 | K152: FY2003 | L152: FY2004 | M152: FY2005 | N152: FY2006 | O152: FY2007 | P152: FY2008 | Q152: FY2009 | R152: =R2 -> FY2010 | S152: =S2 -> FY2011
A153: 1.1 | B153: Private Enterprise | D153: =D140/C140-1 -> -0.06022462862 | E153: =E140/D140-1 -> -0.1006188265 | F153: 0.03879758173 | G153: 0.02323844172 | H153: 0.08707784567 | I153: 0.01346074784 | J153: -0.05230957431 | K153: 0.01801652283 | L153: -0.01711666357 | M153: -0.04168315693 | N153: -0.05410582387 | O153: -0.007688661993 | P153: -0.02427189901 | Q153: -0.0400599772 | R153: 0.09461005748 | S153: 0.05942101686
A154: 1.2 | B154: Public Enterprise | D154: =D141/C141-1 -> -0.1170258201 | E154: -0.2535441066 | F154: 0.6098034859 | G154: -0.2342373722 | H154: 0.1891057684 | I154: 0.005608162001 | J154: -0.03085247427 | K154: 0.05054520533 | L154: -0.1449863458 | M154: 0.03477042683 | N154: -0.09758005979 | O154: 0.09634159304 | P154: -0.02389770066 | Q154: 0.2195587769 | R154: -0.04075519703 | S154: 0.01835938508
A155: 2 | B155: Finance (Banks) | D155: -0.1142671731 | E155: -0.07113094274 | F155: -0.2201422106 | G155: 0.6934654208 | H155: 0.1973874313 | I155: 0.304888792 | J155: 0.2683608629 | K155: -0.4786665296 | L155: -0.08503753902 | M155: 0.3845917584 | N155: 0.1491354691 | O155: 0.04981724647 | P155: -0.1057125756 | Q155: -0.1845241522 | R155: 0.02558010916 | S155: 0.05599636536
A156: 3 | B156: Government | D156: -0.0195878785 | E156: -0.05232502078 | F156: -0.07105074284 | G156: 0.04820329452 | H156: 0.007975442201 | I156: 0.06050505595 | J156: 0.0633256311 | K156: 0.002981634322 | L156: -0.02747240782 | M156: 0.02887712542 | N156: 0.05233878159 | O156: -0.06861633212 | P156: -0.02960376032 | Q156: 0.005504535348 | R156: 0.01784593446 | S156: 0.002455742241
A157: 4 | B157: NGOs | D157: -0.08749330867 | E157: 0.02435793293 | F157: 0.0562516929 | G157: 0.04972491755 | H157: -0.1227475409 | I157: 0.002864888266 | J157: 0.06153853975 | K157: -0.04432915342 | L157: -0.007617751411 | M157: -0.05040849036 | N157: -0.01199292512 | O157: -0.002253132197 | P157: 0.04464501771 | Q157: -0.02828077155 | R157: 0.03881786969 | S157: -0.006901330341
A158: 5 | B158: Households | D158: 0.005606204063 | E158: 0.005321961384 | F158: 0.005475108847 | G158: 0.009357973774 | H158: 0.0108406672 | I158: 0.005325902352 | J158: 0.00551206321 | K158: 0.01003783659 | L158: -0.02417402799 | M158: 0.02147674818 | N158: 0.0189935797 | O158: 0.005330604645 | P158: -0.009298265259 | Q158: -0.000828197714 | R158: 0.002617713442 | S158: 0.01484409524
B159: GDP at basic prices | D159: -0.03336218441 | E159: -0.06171557322 | F159: 0.02522417267 | G159: 0.006912594076 | H159: 0.04378700028 | I159: 0.02887970917 | J159: 0.01118666574 | K159: -0.00129557754 | L159: -0.03430863277 | M159: 0.01274652229 | N159: 0.005325030157 | O159: -0.01575677263 | P159: -0.02198262256 | Q159: 0.004757488269 | R159: 0.02449564962 | S159: 0.02207989606
B160: Taxes on Products less Subsidies | D160: -0.003169566235 | E160: -0.06015338609 | F160: 0.09722001679 | G160: 0.1755878871 | H160: 0.09678087704 | I160: -0.1034937022 | J160: -0.002613994576 | K160: 0.1710655822 | L160: -0.01916696182 | M160: 0.1646834791 | N160: -0.05343581913 | O160: -0.06289889595 | P160: -0.06692630406 | Q160: 0.04376534559 | R160: 0.03736680756 | S160: -0.004361946416
B161: Less intermediate FISIM | D161: -0.09034000663 | E161: -0.159432602 | F161: -0.008288677498 | G161: 0.3749848787 | H161: 0.2010011168 | I161: 0.1631435587 | J161: 0.2935137115 | K161: -0.4407833448 | L161: -0.1170531498 | M161: 0.2552295198 | N161: 0.171278432 | O161: 0.05982965187 | P161: -0.01057668782 | Q161: -0.1240534491 | R161: 0.03671861361 | S161: -0.01106950493
B162: Real GDP at purchasers prices | D162: -0.03111543555 | E162: -0.0606575314 | F162: 0.02955746234 | G162: 0.01383732244 | H162: 0.04563228657 | I162: 0.01747186983 | J162: 0.005999153226 | K162: 0.01825855097 | L162: -0.03231265622 | M162: 0.0216055492 | N162: -0.001633987788 | O162: -0.0205968816 | P162: -0.02559622545 | Q162: 0.009619575572 | R162: 0.02530561756 | S162: 0.02050587188
A163: Source: SBOC estimates
A164: Table 1k : FSM: Current price GDP by institutional sector, FY2004-FY2011
B165: (US$ millions) | C165: =C2 -> FY1995 | D165: FY1996 | E165: FY1997 | F165: FY1998 | G165: FY1999 | H165: FY2000 | I165: FY2001 | J165: FY2002 | K165: FY2003 | L165: FY2004 | M165: FY2005 | N165: FY2006 | O165: FY2007 | P165: FY2008 | Q165: FY2009 | R165: =R2 -> FY2010 | S165: =S2 -> FY2011
A166: 1.1 | B166: Private Enterprise | C166: =[3]FSM!D204 -> 52.77852421 | D166: =[3]FSM!E204 -> 50.98177597 | E166: =[3]FSM!F204 -> 47.20374541 | F166: =[3]FSM!G204 -> 50.16320232 | G166: =[3]FSM!H204 -> 52.45411167 | H166: =[3]FSM!I204 -> 57.65042005 | I166: =[3]FSM!J204 -> 59.20984944 | J166: =[3]FSM!K204 -> 56.18759771 | K166: =[3]FSM!L204 -> 57.18391501 | L166: =[3]FSM!M204 -> 57.45425542 | M166: =[3]FSM!N204 -> 58.07571488 | N166: =[3]FSM!O204 -> 58.16287523 | O166: =[3]FSM!P204 -> 60.10456003 | P166: =[3]FSM!Q204 -> 63.68010958 | Q166: =[3]FSM!R204 -> 61.61641172 | R166: =[3]FSM!S204 -> 70.60733853 | S166: =[3]FSM!T204 -> 77.95141509
A167: 1.2 | B167: Public Enterprise | C167: =[3]FSM!D205 -> 17.45528393 | D167: =[3]FSM!E205 -> 16.99425116 | E167: =[3]FSM!F205 -> 13.33433867 | F167: =[3]FSM!G205 -> 21.8531701 | G167: =[3]FSM!H205 -> 16.76923607 | H167: =[3]FSM!I205 -> 20.18568336 | I167: =[3]FSM!J205 -> 20.30854443 | J167: =[3]FSM!K205 -> 18.64491396 | K167: =[3]FSM!L205 -> 20.08295585 | L167: =[3]FSM!M205 -> 16.72713489 | M167: =[3]FSM!N205 -> 17.84504553 | N167: =[3]FSM!O205 -> 15.83850787 | O167: =[3]FSM!P205 -> 17.64002377 | P167: =[3]FSM!Q205 -> 20.41944836 | Q167: =[3]FSM!R205 -> 28.41924319 | R167: =[3]FSM!S205 -> 26.79416259 | S167: =[3]FSM!T205 -> 31.43964638
A168: 2 | B168: Finance (Banks) | C168: =[3]FSM!D206 -> 2.6644445 | D168: =[3]FSM!E206 -> 2.42597775 | E168: =[3]FSM!F206 -> 2.31350675 | F168: =[3]FSM!G206 -> 1.83366 | G168: =[3]FSM!H206 -> 3.1648395 | H168: =[3]FSM!I206 -> 3.852828 | I168: =[3]FSM!J206 -> 5.05705375 | J168: =[3]FSM!K206 -> 6.3954525 | K168: =[3]FSM!L206 -> 3.32184275 | L168: =[3]FSM!M206 -> 3.0883955 | M168: =[3]FSM!N206 -> 4.4168385 | N168: =[3]FSM!O206 -> 5.23286325 | O168: =[3]FSM!P206 -> 5.65415125 | P168: =[3]FSM!Q206 -> 5.39338 | Q168: =[3]FSM!R206 -> 4.736923 | R168: =[3]FSM!S206 -> 5.13345675 | S168: =[3]FSM!T206 -> 5.654091
A169: 3 | B169: Government | C169: =[3]FSM!D207 -> 74.33467057 | D169: =[3]FSM!E207 -> 73.57702959 | E169: =[3]FSM!F207 -> 65.59685123 | F169: =[3]FSM!G207 -> 64.00615576 | G169: =[3]FSM!H207 -> 63.37367225 | H169: =[3]FSM!I207 -> 64.4064978 | I169: =[3]FSM!J207 -> 68.02784036 | J169: =[3]FSM!K207 -> 73.0132842 | K169: =[3]FSM!L207 -> 73.24667794 | L169: =[3]FSM!M207 -> 71.88346001 | M169: =[3]FSM!N207 -> 73.92843709 | N169: =[3]FSM!O207 -> 77.18810123 | O169: =[3]FSM!P207 -> 73.7578056 | P169: =[3]FSM!Q207 -> 72.78579559 | Q169: =[3]FSM!R207 -> 75.87902819 | R169: =[3]FSM!S207 -> 79.16784089 | S169: =[3]FSM!T207 -> 78.79515029
A170: 4 | B170: NGOs | C170: =[3]FSM!D208 -> 2.360616651 | D170: =[3]FSM!E208 -> 2.137970624 | E170: =[3]FSM!F208 -> 2.261766001 | F170: =[3]FSM!G208 -> 2.314415249 | G170: =[3]FSM!H208 -> 2.373441215 | H170: =[3]FSM!I208 -> 2.435791054 | I170: =[3]FSM!J208 -> 2.526277715 | J170: =[3]FSM!K208 -> 2.755062263 | K170: =[3]FSM!L208 -> 2.698470807 | L170: =[3]FSM!M208 -> 2.840921844 | M170: =[3]FSM!N208 -> 2.920575722 | N170: =[3]FSM!O208 -> 2.982801551 | O170: =[3]FSM!P208 -> 3.069585521 | P170: =[3]FSM!Q208 -> 3.334292544 | Q170: =[3]FSM!R208 -> 3.421426343 | R170: =[3]FSM!S208 -> 3.68799853 | S170: =[3]FSM!T208 -> 3.823105383
A171: 5 | B171: Households | C171: =[3]FSM!D209 -> 63.75153211 | D171: =[3]FSM!E209 -> 65.88594536 | E171: =[3]FSM!F209 -> 67.98588546 | F171: =[3]FSM!G209 -> 69.45660887 | G171: =[3]FSM!H209 -> 71.4183118 | H171: =[3]FSM!I209 -> 73.15906937 | I171: =[3]FSM!J209 -> 75.09369001 | J171: =[3]FSM!K209 -> 75.02782595 | K171: =[3]FSM!L209 -> 74.34517828 | L171: =[3]FSM!M209 -> 72.19854496 | M171: =[3]FSM!N209 -> 74.35428525 | N171: =[3]FSM!O209 -> 76.17134843 | O171: =[3]FSM!P209 -> 79.27199906 | P171: =[3]FSM!Q209 -> 81.14366179 | Q171: =[3]FSM!R209 -> 85.42034239 | R171: =[3]FSM!S209 -> 87.68232105 | S171: =[3]FSM!T209 -> 91.12851916
B172: GDP at basic prices | C172: =[3]FSM!D210 -> 213.345072 | D172: =[3]FSM!E210 -> 212.0029504 | E172: =[3]FSM!F210 -> 198.6960935 | F172: =[3]FSM!G210 -> 209.6272123 | G172: =[3]FSM!H210 -> 209.5536125 | H172: =[3]FSM!I210 -> 221.6902896 | I172: =[3]FSM!J210 -> 230.2232557 | J172: =[3]FSM!K210 -> 232.0241366 | K172: =[3]FSM!L210 -> 230.8790406 | L172: =[3]FSM!M210 -> 224.1927126 | M172: =[3]FSM!N210 -> 231.540897 | N172: =[3]FSM!O210 -> 235.5764976 | O172: =[3]FSM!P210 -> 239.4981252 | P172: =[3]FSM!Q210 -> 246.7566879 | Q172: =[3]FSM!R210 -> 259.4933748 | R172: =[3]FSM!S210 -> 273.0731183 | S172: =[3]FSM!T210 -> 288.7919273
B173: Taxes on Products less Subsidies | C173: =[3]FSM!D211 -> 11.00000157 | D173: =[3]FSM!E211 -> 8.938779275 | E173: =[3]FSM!F211 -> 10.01305567 | F173: =[3]FSM!G211 -> 11.84209577 | G173: =[3]FSM!H211 -> 13.66175064 | H173: =[3]FSM!I211 -> 14.65566699 | I173: =[3]FSM!J211 -> 13.47854782 | J173: =[3]FSM!K211 -> 14.226683 | K173: =[3]FSM!L211 -> 16.734685 | L173: =[3]FSM!M211 -> 17.72369955 | M173: =[3]FSM!N211 -> 21.35554465 | N173: =[3]FSM!O211 -> 21.09885908 | O173: =[3]FSM!P211 -> 20.41143251 | P173: =[3]FSM!Q211 -> 18.8241326 | Q173: =[3]FSM!R211 -> 22.01873007 | R173: =[3]FSM!S211 -> 25.42733153 | S173: =[3]FSM!T211 -> 26.01674741
B174: Less intermediate FISIM | C174: =[3]FSM!D212 -> -2.241486411 | D174: =[3]FSM!E212 -> -2.096006377 | E174: =[3]FSM!F212 -> -1.808816883 | F174: =[3]FSM!G212 -> -1.823108436 | G174: =[3]FSM!H212 -> -2.554859186 | H174: =[3]FSM!I212 -> -3.11963379 | I174: =[3]FSM!J212 -> -3.649903507 | J174: =[3]FSM!K212 -> -4.70742376 | K174: =[3]FSM!L212 -> -2.622742034 | L174: =[3]FSM!M212 -> -2.353101729 | M174: =[3]FSM!N212 -> -3.050849005 | N174: =[3]FSM!O212 -> -3.684151628 | O174: =[3]FSM!P212 -> -4.018721361 | P174: =[3]FSM!Q212 -> -4.241178087 | Q174: =[3]FSM!R212 -> -4.001182104 | R174: =[3]FSM!S212 -> -4.383219371 | S174: =[3]FSM!T212 -> -4.521155445
B175: GDP at purchasers prices | C175: =[3]FSM!D213 -> 222.1035871 | D175: =[3]FSM!E213 -> 218.8457233 | E175: =[3]FSM!F213 -> 206.9003323 | F175: =[3]FSM!G213 -> 219.6461996 | G175: =[3]FSM!H213 -> 220.6605039 | H175: =[3]FSM!I213 -> 233.2263228 | I175: =[3]FSM!J213 -> 240.0519 | J175: =[3]FSM!K213 -> 241.5433958 | K175: =[3]FSM!L213 -> 244.9909836 | L175: =[3]FSM!M213 -> 239.5633104 | M175: =[3]FSM!N213 -> 249.8455926 | N175: =[3]FSM!O213 -> 252.991205 | O175: =[3]FSM!P213 -> 255.8908364 | P175: =[3]FSM!Q213 -> 261.3396424 | Q175: =[3]FSM!R213 -> 277.5109228 | R175: =[3]FSM!S213 -> 294.1172305 | S175: =[3]FSM!T213 -> 310.2875193
A176: Source: SBOC estimates
A177: Table 1l : FSM: Implicit GDP price deflators by institutional sector, FY2004-FY2011
B178: (FY2004=100) | C178: =C2 -> FY1995 | D178: FY1996 | E178: FY1997 | F178: FY1998 | G178: FY1999 | H178: FY2000 | I178: FY2001 | J178: FY2002 | K178: FY2003 | L178: FY2004 | M178: FY2005 | N178: FY2006 | O178: FY2007 | P178: FY2008 | Q178: FY2009 | R178: =R2 -> FY2010 | S178: =S2 -> FY2011
A179: 1.1 | B179: Private Enterprise | C179: =C140/C166*100 -> 115.9841006 | D179: 112.8404477 | E179: 109.6092217 | F179: 107.144339 | G179: 104.8459826 | H179: 103.7025653 | I179: 102.330466 | J179: 102.1938915 | K179: 102.2224635 | L179: 100 | M179: 94.80620391 | N179: 89.54225065 | O179: 85.98335851 | P179: 79.18571416 | Q179: 78.55943218 | R179: =R140/R166*100 -> 75.04198816 | S179: 72.01098541
A180: 1.2 | B180: Public Enterprise | C180: =C141/C167*100 -> 113.3048483 | D180: 102.7593581 | E180: 97.75885022 | F180: 96.02536872 | G180: 95.82554953 | H180: 94.66111735 | I180: 94.61610705 | J180: 99.87881484 | K180: 97.41388754 | L180: 100 | M180: 96.99467832 | N180: 98.61886183 | O180: 97.07803463 | P180: 81.85994939 | Q180: 71.73080499 | R180: =R141/R167*100 -> 72.98060844 | S180: 63.33898296
A181: 2 | B181: Finance (Banks) | C181: =C142/C168*100 -> 112.8514998 | D181: 109.7816973 | E181: 106.9302247 | F181: 105.2126243 | G181: 103.2312788 | H181: 101.5355373 | I181: 100.9423995 | J181: 101.2378116 | K181: 101.6133021 | L181: 100 | M181: 96.81510782 | N181: 93.90452007 | O181: 91.23724529 | P181: 85.5373299 | Q181: 79.42029345 | R181: =R142/R168*100 -> 75.16012513 | S181: 72.06046019
A182: 3 | B182: Government | C182: =C143/C169*100 -> 96.40688789 | D182: 95.49176182 | E182: 101.5043322 | F182: 96.63574942 | G182: 102.3048469 | H182: 101.4671239 | I182: 101.8781604 | J182: 100.9327664 | K182: 100.9111392 | L182: 100 | M182: 100.0416763 | N182: 100.8318424 | O182: 98.28080191 | P182: 96.64494656 | Q182: 93.21548369 | R182: =R143/R169*100 -> 90.93751097 | S182: 91.59200868
A183: 4 | B183: NGOs | C183: =C144/C170*100 -> 131.1031091 | D183: 132.0908642 | E183: 127.9023661 | F183: 132.0238478 | G183: 135.1421099 | H183: 115.5190843 | I183: 111.7004967 | J183: 108.7277856 | K183: 106.0870993 | L183: 100 | M183: 92.36929699 | N183: 89.35766327 | O183: 86.6356821 | P183: 83.31852494 | Q183: 78.90034019 | R183: =R144/R170*100 -> 76.03871045 | S183: 72.84531289
A184: 5 | B184: Households | C184: =C145/C171*100 -> 109.5976605 | D184: 106.6417031 | E184: 103.8977794 | F184: 102.2545807 | G184: 100.3764856 | H184: 99.05036936 | I184: 97.01250047 | J184: 97.63287249 | K184: 99.51837251 | L184: 100 | M184: 99.18612582 | N184: 98.65900571 | O184: 95.30539191 | P184: 92.24133991 | Q184: 87.5505879 | R184: =R145/R171*100 -> 85.51527764 | S184: 83.5027472
B185: GDP at basic prices | C185: =C146/C172*100 -> 107.1634864 | D185: 104.244062 | E185: 104.3610429 | F185: 101.4142347 | G185: 102.1511352 | H185: 100.7867782 | I185: 99.85404085 | J185: 100.1873765 | K185: 100.5538338 | L185: 100 | M185: 98.06059879 | N185: 96.89397821 | O185: 93.80566461 | P185: 89.04485317 | Q185: 85.07711054 | R185: =R146/R172*100 -> 82.82666496 | S185: 80.04771169
B186: Taxes on Products less Subsidies | C186: =C147/C173*100 -> 118.3645769 | D186: 145.1969763 | E186: 121.8221153 | F186: 113.020681 | G186: 115.1689049 | H186: 117.7486327 | I186: 114.7814487 | J186: 108.4612041 | K186: 107.9796092 | L186: 100 | M186: 96.6610798 | N186: 92.60904147 | O186: 89.70679173 | P186: 90.76110682 | Q186: 80.98887437 | R186: =R147/R173*100 -> 72.75271291 | S186: 70.79432818
B187: Less intermediate FISIM | C187: =C148/C174*100 -> 112.8514998 | D187: 109.7816973 | E187: 106.9302247 | F187: 105.2126243 | G187: 103.2312788 | H187: 101.5355373 | I187: 100.9423995 | J187: 101.2378116 | K187: 101.6133021 | L187: 100 | M187: 96.81510782 | N187: 93.90452007 | O187: 91.23724529 | P187: 85.5373299 | Q187: 79.42029345 | R187: =R148/R174*100 -> 75.16012513 | S187: 72.06046019
B188: GDP at purchasers prices | C188: =C149/C175*100 -> 107.6608328 | D188: 105.8637516 | E188: 105.1836202 | F188: 102.008462 | G188: 102.9445981 | H188: 101.8426257 | I188: 100.6756439 | J188: 100.6542255 | K188: 101.0497267 | L188: 100 | M188: 97.95618356 | N188: 96.58015837 | O188: 93.51904979 | P188: 89.22539607 | Q188: 84.83429555 | R188: =R149/R175*100 -> 82.06999528 | S188: 79.38822227
A189: Source: SBOC estimates
A190: Table 1m : FSM: Share of GDP by institutional sector, current prices, FY2004-FY2011
C191: =C2 -> FY1995 | D191: FY1996 | E191: FY1997 | F191: FY1998 | G191: FY1999 | H191: FY2000 | I191: FY2001 | J191: FY2002 | K191: FY2003 | L191: FY2004 | M191: FY2005 | N191: FY2006 | O191: FY2007 | P191: FY2008 | Q191: FY2009 | R191: =R2 -> FY2010 | S191: =S2 -> FY2011
A192: 1.1 | B192: Private Enterprise | C192: =C140/C$149 -> 0.2560014316 | D192: =D140/D$149 -> 0.2483101179 | E192: =E140/E$149 -> 0.237746565 | F192: 0.2398803037 | G192: 0.2421046678 | H192: 0.2517009317 | I192: 0.2507086653 | J192: 0.2361773377 | K192: 0.2361212011 | L192: 0.2398291095 | M192: 0.2249716393 | N192: 0.213147644 | O192: 0.2159568618 | P192: 0.2162503719 | Q192: =Q140/Q$149 -> 0.2056095107 | R192: 0.2195074663 | S192: =S140/S$149 -> 0.2278779864
A193: 1.2 | B193: Public Enterprise | C193: =C141/C$149 -> 0.08271077752 | D193: 0.07537686494 | E193: =E141/E$149 -> 0.05989881959 | F193: 0.09365706345 | G193: 0.07074022373 | H193: 0.0804466438 | I193: 0.07950863705 | J193: 0.07659608721 | K193: 0.07902477429 | L193: 0.06982344192 | M193: 0.07072321881 | N193: 0.06392649801 | O193: 0.07155917451 | P193: 0.07168391236 | Q193: =Q141/Q$149 -> 0.08658978747 | R193: 0.08101077591 | S193: =S141/S$149 -> 0.08084038144
A194: 2 | B194: Finance (Banks) | C194: 0.01257478899 | D194: 0.01149559381 | E194: =E142/E$149 -> 0.01136742108 | F194: 0.008610468286 | G194: 0.0143825148 | H194: 0.01646988399 | I194: 0.02112232059 | J194: 0.02663096155 | K194: 0.01363466243 | L194: 0.01289177168 | M194: 0.01747234128 | N194: 0.02011094814 | O194: 0.02155682354 | P194: 0.01978440222 | Q194: =Q142/Q$149 -> 0.01597998154 | R194: 0.01598425965 | S194: =S142/S$149 -> 0.0165401499
A195: 3 | B195: Government | C195: 0.2996996096 | D195: 0.3032653639 | E195: =E143/E$149 -> 0.305955503 | F195: 0.2760575758 | G195: 0.28541508 | H195: 0.2751362932 | I195: 0.2867729701 | J195: 0.3031146183 | K195: 0.2985669946 | L195: 0.3000603885 | M195: 0.3021961561 | N195: 0.3185332141 | O195: 0.3029157532 | P195: 0.3016699191 | Q195: =Q143/Q$149 -> 0.300440363 | R195: 0.2982544881 | S195: =S143/S$149 -> 0.2929791317
A196: 4 | B196: NGOs | C196: 0.0129427079 | D196: 0.01218959203 | E196: =E144/E$149 -> 0.01329281461 | F196: 0.01363746896 | G196: 0.01412020515 | H196: 0.01184640609 | I196: 0.01167633728 | J196: 0.01232096666 | K196: 0.01156365309 | L196: 0.01185875182 | M196: 0.01102281605 | N196: 0.01090844451 | O196: 0.01111275443 | P196: 0.01191383269 | Q196: =Q144/Q$149 -> 0.01146659652 | R196: 0.011617712 | S196: =S144/S$149 -> 0.01130570107
A197: 5 | B197: Households | C197: 0.2921989173 | D197: 0.3032735321 | E197: =E145/E$149 -> 0.3245754901 | F197: 0.3169833527 | G197: 0.315582853 | H197: 0.3050823753 | I197: 0.3014404853 | J197: 0.3012945322 | K197: 0.2988620888 | L197: 0.3013756356 | M197: 0.3013376391 | N197: 0.3075636748 | O197: 0.3157057287 | P197: 0.3209862495 | Q197: =Q145/Q$149 -> 0.3176646107 | R197: 0.3106353463 | S197: =S145/S$149 -> 0.3089119384
B198: GDP at basic prices | C198: 0.9561282329 | D198: 0.9539110647 | E198: =E146/E$149 -> 0.9528366134 | F198: 0.948826233 | G198: 0.9423455444 | H198: 0.9406825341 | I198: 0.9512294156 | J198: 0.9561345037 | K198: 0.9377733743 | L198: 0.9358390991 | M198: 0.9277238106 | N198: 0.9341904236 | O198: 0.9388070961 | P198: 0.9422886878 | Q198: =Q146/Q$149 -> 0.93775085 | R198: 0.9370100483 | S198: =S146/S$149 -> 0.9384552889
B199: Taxes on Products less Subsidies | C199: 0.05445041441 | D199: 0.05602094636 | E199: =E147/E$149 -> 0.05605101282 | F199: 0.05973468745 | G199: 0.06926493378 | H199: 0.07265312653 | I199: 0.06401551475 | J199: 0.06346742772 | K199: 0.07299179576 | L199: 0.0739833638 | M199: 0.08434488401 | N199: 0.07996851362 | O199: 0.07651454339 | P199: 0.07326912073 | Q199: =Q147/Q$149 -> 0.07574711403 | R199: 0.07663816575 | S199: =S147/S$149 -> 0.07477063708
B200: Less intermediate FISIM | C200: -0.01057864731 | D200: -0.009932011093 | E200: =E148/E$149 -> -0.008887626186 | F200: -0.008560920436 | G200: -0.01161047822 | H200: -0.01333566062 | I200: -0.01524493031 | J200: -0.0196019314 | K200: -0.0107651701 | L200: -0.009822462902 | M200: -0.01206869462 | N200: -0.01415893724 | O200: -0.01532163952 | P200: -0.01555780849 | Q200: =Q148/Q$149 -> -0.01349796401 | R200: -0.01364821404 | S200: =S148/S$149 -> -0.01322592593
... 44 more rows

Sheet gdp_C
A1: Table 2a : Chuuk: Constant price GDP by industry, FY2004-FY2011
B2: (constant prices of FY2004, US$ millions) | C2: FY1995 | D2: FY1996 | E2: FY1997 | F2: FY1998 | G2: FY1999 | H2: FY2000 | I2: FY2001 | J2: FY2002 | K2: FY2003 | L2: FY2004 | M2: FY2005 | N2: FY2006 | O2: FY2007 | P2: FY2008 | Q2: FY2009 | R2: FY2010 | S2: FY2011
A3: A | B3: Agriculture, Hunting and Forestry | C3: =[3]indChk!D3 -> 13.50669762 | D3: =[3]indChk!E3 -> 13.5189032 | E3: =[3]indChk!F3 -> 13.53816558 | F3: =[3]indChk!G3 -> 13.56289137 | G3: =[3]indChk!H3 -> 13.60599438 | H3: =[3]indChk!I3 -> 13.64353599 | I3: =[3]indChk!J3 -> 13.59257839 | J3: =[3]indChk!K3 -> 13.54188719 | K3: =[3]indChk!L3 -> 13.49817588 | L3: =[3]indChk!M3 -> 13.42988358 | M3: =[3]indChk!N3 -> 13.38094813 | N3: =[3]indChk!O3 -> 13.304401 | O3: =[3]indChk!P3 -> 13.49857991 | P3: =[3]indChk!Q3 -> 13.11283828 | Q3: =[3]indChk!R3 -> 13.01436425 | R3: =[3]indChk!S3 -> 12.9120289 | S3: =[3]indChk!T3 -> 12.93540669
A4: B | B4: Fisheries | C4: =[3]indChk!D4 -> 11.02664725 | D4: =[3]indChk!E4 -> 10.40945991 | E4: =[3]indChk!F4 -> 10.29220771 | F4: =[3]indChk!G4 -> 10.25441018 | G4: =[3]indChk!H4 -> 10.14897339 | H4: =[3]indChk!I4 -> 10.19141049 | I4: =[3]indChk!J4 -> 10.01954616 | J4: =[3]indChk!K4 -> 9.939026298 | K4: =[3]indChk!L4 -> 10.07245616 | L4: =[3]indChk!M4 -> 9.589970277 | M4: =[3]indChk!N4 -> 9.772068329 | N4: =[3]indChk!O4 -> 9.497247556 | O4: =[3]indChk!P4 -> 9.747187742 | P4: =[3]indChk!Q4 -> 9.402010215 | Q4: =[3]indChk!R4 -> 9.314789168 | R4: =[3]indChk!S4 -> 9.172903373 | S4: =[3]indChk!T4 -> 9.195663834
A5: C | B5: Mining and Quarrying | C5: =[3]indChk!D5 -> 0 | D5: =[3]indChk!E5 -> 0 | E5: =[3]indChk!F5 -> 0 | F5: =[3]indChk!G5 -> 0 | G5: =[3]indChk!H5 -> 0 | H5: =[3]indChk!I5 -> 0 | I5: =[3]indChk!J5 -> 0 | J5: =[3]indChk!K5 -> 0 | K5: =[3]indChk!L5 -> 0 | L5: =[3]indChk!M5 -> 0 | M5: =[3]indChk!N5 -> 0 | N5: =[3]indChk!O5 -> 0 | O5: =[3]indChk!P5 -> 0 | P5: =[3]indChk!Q5 -> 0 | Q5: =[3]indChk!R5 -> 0 | R5: =[3]indChk!S5 -> 0 | S5: =[3]indChk!T5 -> 0
A6: D | B6: Manufacturing | C6: =[3]indChk!D6 -> 0.6436728446 | D6: =[3]indChk!E6 -> 0.4153862335 | E6: =[3]indChk!F6 -> 0.4075682802 | F6: =[3]indChk!G6 -> 0.5557950727 | G6: =[3]indChk!H6 -> 0.5949462273 | H6: =[3]indChk!I6 -> 0.5107042139 | I6: =[3]indChk!J6 -> 0.4459652944 | J6: =[3]indChk!K6 -> 0.369191802 | K6: =[3]indChk!L6 -> 0.3394284695 | L6: =[3]indChk!M6 -> 0.1851278778 | M6: =[3]indChk!N6 -> 0.1461209643 | N6: =[3]indChk!O6 -> 0.1243836093 | O6: =[3]indChk!P6 -> 0.2008478205 | P6: =[3]indChk!Q6 -> 0.2012530545 | Q6: =[3]indChk!R6 -> 0.1515404308 | R6: =[3]indChk!S6 -> 0.1385998946 | S6: =[3]indChk!T6 -> 0.1221880794
A7: E | B7: Electricity, Gas and Water Supply | C7: =[3]indChk!D7 -> 0 | D7: =[3]indChk!E7 -> 0.4516121846 | E7: =[3]indChk!F7 -> 0.6375564856 | F7: =[3]indChk!G7 -> 0.6605709745 | G7: =[3]indChk!H7 -> 0.685356157 | H7: =[3]indChk!I7 -> 0.6841490303 | I7: =[3]indChk!J7 -> 0.685095243 | J7: =[3]indChk!K7 -> 1.00241197 | K7: =[3]indChk!L7 -> 1.046700318 | L7: =[3]indChk!M7 -> 0.9519114048 | M7: =[3]indChk!N7 -> 0.9853820541 | N7: =[3]indChk!O7 -> 0.8996756029 | O7: =[3]indChk!P7 -> 0.8559119478 | P7: =[3]indChk!Q7 -> 0.7043042011 | Q7: =[3]indChk!R7 -> 0.8340019491 | R7: =[3]indChk!S7 -> 0.7055843206 | S7: =[3]indChk!T7 -> 0.5721399717
A8: F | B8: Construction | C8: =[3]indChk!D8 -> 3.129125822 | D8: =[3]indChk!E8 -> 1.504025414 | E8: =[3]indChk!F8 -> 0.2890090114 | F8: =[3]indChk!G8 -> 0.4659398435 | G8: =[3]indChk!H8 -> 0.9688135359 | H8: =[3]indChk!I8 -> 1.779845597 | I8: =[3]indChk!J8 -> 1.182344953 | J8: =[3]indChk!K8 -> 0.61448309 | K8: =[3]indChk!L8 -> 0.4384935274 | L8: =[3]indChk!M8 -> 0.5936563225 | M8: =[3]indChk!N8 -> 0.2157560534 | N8: =[3]indChk!O8 -> 0.1839060666 | O8: =[3]indChk!P8 -> 0.2757176425 | P8: =[3]indChk!Q8 -> 0.5802729111 | Q8: =[3]indChk!R8 -> 0.906348148 | R8: =[3]indChk!S8 -> 2.941565024 | S8: =[3]indChk!T8 -> 3.586689176
A9: G | B9: Wholesale and Retail Trade and Repairs | C9: =[3]indChk!D9 -> 7.706347602 | D9: =[3]indChk!E9 -> 6.885161879 | E9: =[3]indChk!F9 -> 6.559852967 | F9: =[3]indChk!G9 -> 6.48970413 | G9: =[3]indChk!H9 -> 7.153708445 | H9: =[3]indChk!I9 -> 7.974404354 | I9: =[3]indChk!J9 -> 8.051693157 | J9: =[3]indChk!K9 -> 7.614221528 | K9: =[3]indChk!L9 -> 9.01400439 | L9: =[3]indChk!M9 -> 8.168618252 | M9: =[3]indChk!N9 -> 7.828238458 | N9: =[3]indChk!O9 -> 7.376707256 | O9: =[3]indChk!P9 -> 6.523952146 | P9: =[3]indChk!Q9 -> 5.954813339 | Q9: =[3]indChk!R9 -> 5.815343894 | R9: =[3]indChk!S9 -> 6.01059976 | S9: =[3]indChk!T9 -> 6.265753197
A10: H | B10: Hotels and Restaurants | C10: =[3]indChk!D10 -> 1.60580212 | D10: =[3]indChk!E10 -> 1.557509494 | E10: =[3]indChk!F10 -> 1.524485346 | F10: =[3]indChk!G10 -> 1.739186574 | G10: =[3]indChk!H10 -> 1.673448013 | H10: =[3]indChk!I10 -> 1.731745419 | I10: =[3]indChk!J10 -> 1.579716698 | J10: =[3]indChk!K10 -> 1.307110096 | K10: =[3]indChk!L10 -> 1.339486354 | L10: =[3]indChk!M10 -> 1.185224467 | M10: =[3]indChk!N10 -> 1.155482559 | N10: =[3]indChk!O10 -> 1.120218609 | O10: =[3]indChk!P10 -> 1.148172453 | P10: =[3]indChk!Q10 -> 1.006196574 | Q10: =[3]indChk!R10 -> 0.8725841714 | R10: =[3]indChk!S10 -> 0.8724319879 | S10: =[3]indChk!T10 -> 0.8966624796
A11: I | B11: Transport, Storage and Communications | C11: =[3]indChk!D11 -> 5.13681841 | D11: =[3]indChk!E11 -> 4.46283988 | E11: =[3]indChk!F11 -> 3.947647492 | F11: =[3]indChk!G11 -> 3.904622488 | G11: =[3]indChk!H11 -> 3.952490025 | H11: =[3]indChk!I11 -> 4.48836201 | I11: =[3]indChk!J11 -> 4.554853682 | J11: =[3]indChk!K11 -> 4.651574791 | K11: =[3]indChk!L11 -> 4.577072626 | L11: =[3]indChk!M11 -> 4.254838411 | M11: =[3]indChk!N11 -> 4.409532217 | N11: =[3]indChk!O11 -> 4.429521795 | O11: =[3]indChk!P11 -> 4.136215804 | P11: =[3]indChk!Q11 -> 3.262442856 | Q11: =[3]indChk!R11 -> 3.24920604 | R11: =[3]indChk!S11 -> 3.209729771 | S11: =[3]indChk!T11 -> 3.466489514
A12: J | B12: Financial Intermediation | C12: =[3]indChk!D12 -> 0.9502241153 | D12: =[3]indChk!E12 -> 0.7424276818 | E12: =[3]indChk!F12 -> 0.7464934307 | F12: =[3]indChk!G12 -> 0.6030860608 | G12: =[3]indChk!H12 -> 0.8172484709 | H12: =[3]indChk!I12 -> 1.214453744 | I12: =[3]indChk!J12 -> 1.548279602 | J12: =[3]indChk!K12 -> 1.816814488 | K12: =[3]indChk!L12 -> 1.339913074 | L12: =[3]indChk!M12 -> 1.154608933 | M12: =[3]indChk!N12 -> 1.446464372 | N12: =[3]indChk!O12 -> 1.641099332 | O12: =[3]indChk!P12 -> 1.610670312 | P12: =[3]indChk!Q12 -> 1.411634138 | Q12: =[3]indChk!R12 -> 1.156640293 | R12: =[3]indChk!S12 -> 1.157987828 | S12: =[3]indChk!T12 -> 1.239238741
A13: K | B13: Real Estate, Renting, Business Activities | C13: =[3]indChk!D13 -> 11.1513371 | D13: =[3]indChk!E13 -> 11.17865206 | E13: =[3]indChk!F13 -> 11.15510652 | F13: =[3]indChk!G13 -> 11.28384815 | G13: =[3]indChk!H13 -> 11.39597104 | H13: =[3]indChk!I13 -> 11.51522358 | I13: =[3]indChk!J13 -> 11.68318012 | J13: =[3]indChk!K13 -> 11.48054173 | K13: =[3]indChk!L13 -> 11.65479653 | L13: =[3]indChk!M13 -> 11.50975642 | M13: =[3]indChk!N13 -> 11.3008852 | N13: =[3]indChk!O13 -> 11.43896326 | O13: =[3]indChk!P13 -> 11.32149611 | P13: =[3]indChk!Q13 -> 11.17902273 | Q13: =[3]indChk!R13 -> 11.06800479 | R13: =[3]indChk!S13 -> 11.15214073 | S13: =[3]indChk!T13 -> 11.18393204
A14: L | B14: Public Administration | C14: =[3]indChk!D14 -> 7.476853579 | D14: =[3]indChk!E14 -> 6.98831312 | E14: =[3]indChk!F14 -> 6.516546129 | F14: =[3]indChk!G14 -> 6.661642528 | G14: =[3]indChk!H14 -> 7.509002199 | H14: =[3]indChk!I14 -> 7.953021335 | I14: =[3]indChk!J14 -> 9.58203952 | J14: =[3]indChk!K14 -> 10.97226587 | K14: =[3]indChk!L14 -> 9.922248687 | L14: =[3]indChk!M14 -> 8.888524635 | M14: =[3]indChk!N14 -> 7.926378753 | N14: =[3]indChk!O14 -> 9.955715249 | O14: =[3]indChk!P14 -> 5.553311046 | P14: =[3]indChk!Q14 -> 3.666512142 | Q14: =[3]indChk!R14 -> 3.469401548 | R14: =[3]indChk!S14 -> 3.959262083 | S14: =[3]indChk!T14 -> 4.554490843
A15: M | B15: Education | C15: =[3]indChk!D15 -> 10.3347706 | D15: =[3]indChk!E15 -> 10.16629405 | E15: =[3]indChk!F15 -> 9.752702098 | F15: =[3]indChk!G15 -> 9.129501321 | G15: =[3]indChk!H15 -> 9.83239346 | H15: =[3]indChk!I15 -> 9.634349921 | I15: =[3]indChk!J15 -> 10.30824967 | J15: =[3]indChk!K15 -> 10.82484699 | K15: =[3]indChk!L15 -> 10.31334403 | L15: =[3]indChk!M15 -> 9.781564879 | M15: =[3]indChk!N15 -> 10.20034203 | N15: =[3]indChk!O15 -> 11.21466657 | O15: =[3]indChk!P15 -> 10.19414847 | P15: =[3]indChk!Q15 -> 9.970969984 | Q15: =[3]indChk!R15 -> 10.93868151 | R15: =[3]indChk!S15 -> 10.53034465 | S15: =[3]indChk!T15 -> 8.571882125
A16: N | B16: Health and Social Work | C16: =[3]indChk!D16 -> 3.203680589 | D16: =[3]indChk!E16 -> 3.036845811 | E16: =[3]indChk!F16 -> 2.785108727 | F16: =[3]indChk!G16 -> 2.518967166 | G16: =[3]indChk!H16 -> 2.456177102 | H16: =[3]indChk!I16 -> 2.672794934 | I16: =[3]indChk!J16 -> 3.34615806 | J16: =[3]indChk!K16 -> 3.458453748 | K16: =[3]indChk!L16 -> 3.055924451 | L16: =[3]indChk!M16 -> 3.063655034 | M16: =[3]indChk!N16 -> 3.1253355 | N16: =[3]indChk!O16 -> 3.24825039 | O16: =[3]indChk!P16 -> 3.399611519 | P16: =[3]indChk!Q16 -> 3.774215423 | Q16: =[3]indChk!R16 -> 3.937320046 | R16: =[3]indChk!S16 -> 4.08273286 | S16: =[3]indChk!T16 -> 4.469425705
A17: O | B17: Other Community, Social, Personal Services | C17: =[3]indChk!D17 -> 0.597685475 | D17: =[3]indChk!E17 -> 0.5526889862 | E17: =[3]indChk!F17 -> 0.5592784568 | F17: =[3]indChk!G17 -> 0.6272554265 | G17: =[3]indChk!H17 -> 0.6348769841 | H17: =[3]indChk!I17 -> 0.6438946023 | I17: =[3]indChk!J17 -> 0.5487862287 | J17: =[3]indChk!K17 -> 0.6510352175 | K17: =[3]indChk!L17 -> 0.6601245357 | L17: =[3]indChk!M17 -> 0.6565119973 | M17: =[3]indChk!N17 -> 0.5342317235 | N17: =[3]indChk!O17 -> 0.4976627017 | O17: =[3]indChk!P17 -> 0.4414995669 | P17: =[3]indChk!Q17 -> 0.4793172868 | Q17: =[3]indChk!R17 -> 0.4405562328 | R17: =[3]indChk!S17 -> 0.4558113733 | S17: =[3]indChk!T17 -> 0.3584131742
B18: less intermediate FISIM | C18: =[3]indChk!D18 -> -0.6965273796 | D18: =[3]indChk!E18 -> -0.6835846689 | E18: =[3]indChk!F18 -> -0.583830297 | F18: =[3]indChk!G18 -> -0.4835789993 | G18: =[3]indChk!H18 -> -0.5598365152 | H18: =[3]indChk!I18 -> -0.8182134932 | I18: =[3]indChk!J18 -> -1.180260985 | J18: =[3]indChk!K18 -> -1.344686151 | K18: =[3]indChk!L18 -> -1.020149785 | L18: =[3]indChk!M18 -> -0.8603333786 | M18: =[3]indChk!N18 -> -1.004282677 | N18: =[3]indChk!O18 -> -1.157231734 | O18: =[3]indChk!P18 -> -1.14982357 | P18: =[3]indChk!Q18 -> -1.09186806 | Q18: =[3]indChk!R18 -> -0.9518599207 | R18: =[3]indChk!S18 -> -0.973245415 | S18: =[3]indChk!T18 -> -0.9679668189
B19: GDP at basic prices | C19: =[3]indChk!D19 -> 75.77313574 | D19: =[3]indChk!E19 -> 71.18653524 | E19: =[3]indChk!F19 -> 68.12789793 | F19: =[3]indChk!G19 -> 67.97384229 | G19: =[3]indChk!H19 -> 70.86956292 | H19: =[3]indChk!I19 -> 73.81968173 | I19: =[3]indChk!J19 -> 75.9482258 | J19: =[3]indChk!K19 -> 76.89917865 | K19: =[3]indChk!L19 -> 76.25201926 | L19: =[3]indChk!M19 -> 72.5535191 | M19: =[3]indChk!N19 -> 71.42288367 | N19: =[3]indChk!O19 -> 73.77518725 | O19: =[3]indChk!P19 -> 67.75749893 | P19: =[3]indChk!Q19 -> 63.61393508 | Q19: =[3]indChk!R19 -> 64.21692256 | R19: =[3]indChk!S19 -> 66.32847714 | S19: =[3]indChk!T19 -> 66.45040875
B20: Taxes on products | C20: =[3]indChk!D20 -> 5.04489678 | D20: =[3]indChk!E20 -> 4.254021213 | E20: =[3]indChk!F20 -> 4.15077515 | F20: =[3]indChk!G20 -> 4.765333206 | G20: =[3]indChk!H20 -> 5.455797054 | H20: =[3]indChk!I20 -> 6.77991101 | I20: =[3]indChk!J20 -> 6.064616693 | J20: =[3]indChk!K20 -> 4.954508485 | K20: =[3]indChk!L20 -> 6.645927423 | L20: =[3]indChk!M20 -> 5.4603428 | M20: =[3]indChk!N20 -> 5.90868173 | N20: =[3]indChk!O20 -> 5.656310205 | O20: =[3]indChk!P20 -> 4.90665322 | P20: =[3]indChk!Q20 -> 4.395845233 | Q20: =[3]indChk!R20 -> 4.572440846 | R20: =[3]indChk!S20 -> 5.228965917 | S20: =[3]indChk!T20 -> 5.608532215
B21: less subsidies | C21: =[3]indChk!D21 -> -0.4726106589 | D21: =[3]indChk!E21 -> -0.4363250222 | E21: =[3]indChk!F21 -> -0.3945365838 | F21: =[3]indChk!G21 -> -0.3946788448 | G21: =[3]indChk!H21 -> -0.3764954908 | H21: =[3]indChk!I21 -> -0.2349483193 | I21: =[3]indChk!J21 -> -0.3506696152 | J21: =[3]indChk!K21 -> -0.3365318312 | K21: =[3]indChk!L21 -> -0.1402012495 | L21: =[3]indChk!M21 -> -0.12501 | M21: =[3]indChk!N21 -> -0.136067152 | N21: =[3]indChk!O21 -> -0.1196252432 | O21: =[3]indChk!P21 -> -0.1148987826 | P21: =[3]indChk!Q21 -> -0.09543644065 | Q21: =[3]indChk!R21 -> -0.1141601501 | R21: =[3]indChk!S21 -> -0.09658204282 | S21: =[3]indChk!T21 -> -0.07831586619
B22: GDP at purchasers prices | C22: =[3]indChk!D22 -> 80.34542187 | D22: =[3]indChk!E22 -> 75.00423143 | E22: =[3]indChk!F22 -> 71.8841365 | F22: =[3]indChk!G22 -> 72.34449665 | G22: =[3]indChk!H22 -> 75.94886448 | H22: =[3]indChk!I22 -> 80.36464442 | I22: =[3]indChk!J22 -> 81.66217287 | J22: =[3]indChk!K22 -> 81.51715531 | K22: =[3]indChk!L22 -> 82.75774543 | L22: =[3]indChk!M22 -> 77.8888519 | M22: =[3]indChk!N22 -> 77.19549825 | N22: =[3]indChk!O22 -> 79.31187222 | O22: =[3]indChk!P22 -> 72.54925337 | P22: =[3]indChk!Q22 -> 67.91434387 | Q22: =[3]indChk!R22 -> 68.67520325 | R22: =[3]indChk!S22 -> 71.46086102 | S22: =[3]indChk!T22 -> 71.9806251
A23: Source: SBOC estimates
A24: Table 2b : Chuuk: Constant price GDP by industry sector, annual % growth, FY2004-FY2011
C25: =C2 -> FY1995 | D25: FY1996 | E25: FY1997 | F25: FY1998 | G25: FY1999 | H25: FY2000 | I25: FY2001 | J25: FY2002 | K25: FY2003 | L25: FY2004 | M25: FY2005 | N25: FY2006 | O25: FY2007 | P25: FY2008 | Q25: FY2009 | R25: =R2 -> FY2010 | S25: =S2 -> FY2011
A26: A | B26: Agriculture, Hunting and Forestry | D26: =IF(C3>0.1,D3/C3-1,"") -> 0.0009036683974 | E26: =IF(D3>0.1,E3/D3-1,"") -> 0.001424847601 | F26: 0.001826377311 | G26: 0.003178010298 | H26: 0.002759196121 | I26: -0.003734926074 | J26: -0.003729329034 | K26: -0.003227859642 | L26: -0.005059372872 | M26: -0.003643772954 | N26: -0.005720606199 | O26: 0.01459508909 | P26: -0.02857646034 | Q26: -0.007509741552 | R26: -0.007863261585 | S26: 0.00181054299
A27: B | B27: Fisheries | D27: =IF(C4>0.1,D4/C4-1,"") -> -0.05597234801 | E27: -0.01126400414 | F27: -0.003672441673 | G27: -0.01028209182 | H27: 0.004181418011 | I27: -0.0168636454 | J27: -0.008036278309 | K27: 0.01342484279 | L27: -0.04790151264 | M27: 0.01898838549 | N27: -0.02812309165 | O27: 0.02631711816 | P27: -0.03541303773 | Q27: -0.009276850926 | R27: -0.01523231418 | S27: 0.002481271181
A28: C | B28: Mining and Quarrying
A29: D | B29: Manufacturing | D29: -0.3546624858 | E29: -0.01882092538 | F29: 0.3636857915 | G29: 0.07044170864 | H29: -0.1415960125 | I29: -0.1267640206 | J29: -0.1721512712 | K29: -0.08061753375 | L29: -0.4545894219 | M29: -0.2107025368 | N29: -0.1487627397 | O29: 0.6147450742 | P29: 0.002017617195 | Q29: -0.247015499 | R29: -0.0853932915 | S29: -0.1184114552
A30: E | B30: Electricity, Gas and Water Supply | E30: 0.4117344644 | F30: 0.03609796067 | G30: 0.03752084706 | H30: -0.001761312992 | I30: 0.001383050546 | J30: 0.4631716973 | K30: 0.04418178343 | L30: -0.09055974445 | M30: 0.03516151736 | N30: -0.0869778893 | O30: -0.04864381671 | P30: -0.1771300741 | Q30: 0.1841501837 | R30: -0.1539776119 | S30: -0.1891260124
A31: F | B31: Construction | D31: -0.5193464567 | E31: -0.8078430001 | F31: 0.6121983229 | G31: 1.079267419 | H31: 0.8371394818 | I31: -0.3357036394 | J31: -0.4802844224 | K31: -0.286402613 | L31: 0.3538542429 | M31: -0.6365640436 | N31: -0.1476203624 | O31: 0.4992308173 | P31: 1.104591153 | Q31: 0.5619342738 | R31: 2.245513361 | S31: 0.2193132385
A32: G | B32: Wholesale and Retail Trade and Repairs | D32: -0.1065596526 | E32: -0.04724782329 | F32: -0.01069365988 | G32: 0.1023165774 | H32: 0.1147231419 | I32: 0.00969210982 | J32: -0.05433287387 | K32: 0.183837948 | L32: -0.09378585827 | M32: -0.04166920072 | N32: -0.05767979659 | O32: -0.1156010509 | P32: -0.0872383478 | Q32: -0.02342129591 | R32: 0.03357597927 | S32: 0.04245057847
A33: H | B33: Hotels and Restaurants | D33: -0.03007383364 | E33: -0.02120317619 | F33: 0.1408352196 | G33: -0.03779845261 | H33: 0.03483669963 | I33: -0.0877893012 | J33: -0.1725667665 | K33: 0.02476934299 | L33: -0.1151649563 | M33: -0.0250939027 | N33: -0.03051880791 | O33: 0.02495391824 | P33: -0.1236537929 | Q33: -0.1327895621 | R33: -0.0001744056305 | S33: 0.0277735022
A34: I | B34: Transport, Storage and Communications | D34: -0.1312054419 | E34: -0.1154404823 | F34: -0.01089889716 | G34: 0.0122591972 | H34: 0.1355783271 | I34: 0.01481423999 | J34: 0.02123473447 | K34: -0.01601654677 | L34: -0.07040181374 | M34: 0.03635715187 | N34: 0.004533264905 | O34: -0.06621617515 | P34: -0.2112493615 | Q34: -0.004057332747 | R34: -0.01214951231 | S34: 0.07999419276
A35: J | B35: Financial Intermediation | D35: -0.2186814986 | E35: 0.005476289427 | F35: -0.1921080132 | G35: 0.3551108606 | H35: 0.4860275516 | I35: 0.274877375 | J35: 0.1734408216 | K35: -0.2624931806 | L35: -0.1382956438 | M35: 0.2527742774 | N35: 0.134559111 | O35: -0.01854185103 | P35: -0.1235735038 | Q35: -0.1806373465 | R35: 0.001165042278 | S35: 0.07016560172
A36: K | B36: Real Estate, Renting, Business Activities | D36: 0.002449478707 | E36: -0.002106295558 | F36: 0.01154104945 | G36: 0.009936582087 | H36: 0.01046444746 | I36: 0.01458560851 | J36: -0.01734445517 | K36: 0.01517827377 | L36: -0.01244467174 | M36: -0.01814731807 | N36: 0.01221833944 | O36: -0.01026903745 | P36: -0.01258432468 | Q36: -0.009930916431 | R36: 0.007601726087 | S36: 0.002850691596
A37: L | B37: Public Administration | D37: -0.0653403807 | E37: -0.06750799256 | F37: 0.0222658439 | G37: 0.1271998111 | H37: 0.05913157618 | I37: 0.2048301037 | J37: 0.1450866852 | K37: -0.09569738799 | L37: -0.1041824373 | M37: -0.1082458475 | N37: 0.256023155 | O37: -0.4421986862 | P37: -0.3397610701 | Q37: -0.05375970045 | R37: 0.1411945341 | S37: 0.1503383072
A38: M | B38: Education | D38: -0.01630191412 | E38: -0.04068266705 | F38: -0.06390031922 | G38: 0.07699129603 | H38: -0.02014194604 | I38: 0.06994760998 | J38: 0.05011494018 | K38: -0.04725267302 | L38: -0.05156224321 | M38: 0.04281289921 | N38: 0.09944024768 | O38: -0.09099852329 | P38: -0.02189280332 | Q38: 0.09705289757 | R38: -0.03732962388 | S38: -0.1859827562
A39: N | B39: Health and Social Work | D39: -0.05207597122 | E39: -0.08289425929 | F39: -0.09555876875 | G39: -0.02492690833 | H39: 0.08819308317 | I39: 0.2519322071 | J39: 0.0335595884 | K39: -0.1163899609 | L39: 0.002529703603 | M39: 0.02013296706 | N39: 0.03932854244 | O39: 0.04659774047 | P39: 0.1101902093 | Q39: 0.04321550418 | R39: 0.03693192651 | S39: 0.09471421668
A40: O | B40: Other Community, Social, Personal Services | D40: -0.0752845614 | E40: 0.0119225655 | F40: 0.1215440518 | G40: 0.0121506443 | H40: 0.01420372518 | I40: -0.1477079839 | J40: 0.1863184304 | K40: 0.01396133104 | L40: -0.005472510382 | M40: -0.1862574855 | N40: -0.06845161034 | O40: -0.1128538157 | P40: 0.08565743373 | Q40: -0.08086721487 | R40: 0.03462699954 | S40: -0.2136809319
B41: less intermediate FISIM
B42: GDP at basic prices | D42: -0.06053069414 | E42: -0.04296651466 | F42: -0.002261270977 | G42: 0.04260051404 | H42: 0.0416274447 | I42: 0.02883437072 | J42: 0.01252106747 | K42: -0.008415686733 | L42: -0.04850363557 | M42: -0.01558346783 | N42: 0.03293487269 | O42: -0.08156791666 | P42: -0.06115284532 | Q42: 0.009478858351 | R42: 0.03288159103 | S42: =IF(R19>0.1,S19/R19-1,"") -> 0.00183829954
B43: Taxes on products | D43: =IF(C20>0.1,D20/C20-1,"") -> -0.1567674427 | E43: -0.02427022751 | F43: 0.1480586236 | G43: 0.1448930891 | H43: 0.2426985355 | I43: -0.1055020214 | J43: -0.1830467223 | K43: 0.341389856 | L43: -0.1783926528 | M43: 0.08210820208 | N43: -0.04271198493 | O43: -0.1325346309 | P43: -0.1041051739 | Q43: 0.0401733007 | R43: 0.143583065 | S43: 0.07258917041
B44: less subsidies
B45: GDP at purchasers prices | D45: -0.06647784416 | E45: -0.04159891882 | F45: 0.00640419679 | G45: 0.04982228079 | H45: 0.05814148728 | I45: 0.01614551357 | J45: -0.001775823001 | K45: 0.01521876122 | L45: -0.05883308567 | M45: -0.008901834294 | N45: 0.02741576921 | O45: -0.0852661608 | P45: -0.0638863845 | Q45: 0.01120322069 | R45: 0.04056278877 | S45: 0.007273409196
A46: Source: SBOC estimates
A47: Table 2c : Chuuk: Constant price GDP by industry sector, contribution to % growth, FY2004-FY2011
C48: =C2 -> FY1995 | D48: =D2 -> FY1996 | E48: FY1997 | F48: FY1998 | G48: FY1999 | H48: FY2000 | I48: FY2001 | J48: FY2002 | K48: FY2003 | L48: FY2004 | M48: FY2005 | N48: FY2006 | O48: FY2007 | P48: FY2008 | Q48: =Q2 -> FY2009 | R48: FY2010 | S48: FY2011
A49: A | B49: Agriculture, Hunting and Forestry | D49: =(D3-C3)/(D$22-C$22)*((D$22-C$22)/C$22) -> 0.0001519137682 | E49: =(E3-D3)/(E$22-D$22)*((E$22-D$22)/D$22) -> 0.0002568172011 | F49: =(F3-E3)/(F$22-E$22)*((F$22-E$22)/E$22) -> 0.0003439673848 | G49: 0.0005958021749 | H49: 0.0004943010957 | I49: -0.0006340798081 | J49: -0.0006207426946 | K49: -0.0005362222343 | L49: -0.0008252074114 | M49: -0.0006282727933 | N49: -0.0009916010204 | O49: 0.002448295726 | P49: -0.005316962142 | Q49: -0.001449973907 | R49: -0.001490135386 | S49: 0.0003271410823
A50: B | B50: Fisheries | D50: =(D4-C4)/(D$22-C$22)*((D$22-C$22)/C$22) -> -0.007681673987 | E50: -0.001563274462 | F50: -0.0005258118738 | G50: -0.001457426506 | H50: 0.0005587588495 | I50: -0.002138556499 | J50: -0.0009860117437 | K50: 0.00163683172 | L50: -0.005830099451 | M50: 0.002337921897 | N50: -0.003560062173 | O50: 0.003151359049 | P50: -0.004757837073 | Q50: -0.001284280201 | R50: -0.002066041139 | S50: 0.0003185024706
A51: C | B51: Mining and Quarrying | D51: 0 | E51: 0 | F51: 0 | G51: 0 | H51: 0 | I51: 0 | J51: 0 | K51: 0 | L51: 0 | M51: 0 | N51: 0 | O51: 0 | P51: 0 | Q51: 0 | R51: 0 | S51: 0
A52: D | B52: Manufacturing | D52: -0.002841314487 | E52: -0.0001042334966 | F52: 0.002062023692 | G52: 0.0005411766809 | H52: -0.00110919385 | I52: -0.0008055646855 | J52: -0.0009401353117 | K52: -0.0003651174093 | L52: -0.001864485202 | M52: -0.0005008022653 | N52: -0.0002815883758 | O52: 0.0009640953997 | P52: 5.585640063e-06 | Q52: -0.0007319900459 | R52: -0.0001884309848 | S52: -0.0002296615936
A53: E | B53: Electricity, Gas and Water Supply | D53: 0.005620882611 | E53: 0.002479117476 | F53: 0.0003201608875 | G53: 0.0003425994188 | H53: -1.589394011e-05 | I53: 1.177399211e-05 | J53: 0.003885724753 | K53: 0.0005433009577 | L53: -0.00114537815 | M53: 0.0004297232347 | N53: -0.001110251934 | O53: -0.0005517919815 | P53: -0.002089721668 | Q53: 0.001909725408 | R53: -0.00186992717 | S53: -0.00186737673
A54: F | B54: Construction | D54: -0.020226422 | E54: -0.01619930475 | F54: 0.002461333483 | G54: 0.00695109809 | H54: 0.01067865948 | I54: -0.007434869512 | J54: -0.006953793204 | K54: -0.002158926694 | L54: 0.001874903604 | M54: -0.004851788926 | N54: -0.0004125886549 | O54: 0.001157601925 | P54: 0.004197910447 | Q54: 0.004801271989 | R54: 0.02963539647 | S54: 0.009027657133
A55: G | B55: Wholesale and Retail Trade and Repairs | D55: -0.01022069091 | E55: -0.004337207455 | F55: -0.0009758597639 | G55: 0.009178366641 | H55: 0.01080590098 | I55: 0.0009617264323 | J55: -0.005357090233 | K55: 0.0171716353 | L55: -0.01021519054 | M55: -0.004370070751 | N55: -0.005849190849 | O55: -0.01075192259 | P55: -0.007844860973 | Q55: -0.00205360808 | R55: 0.002843178568 | S55: 0.00357053404
A56: H | B56: Hotels and Restaurants | D56: -0.0006010625707 | E56: -0.0004402971351 | F56: 0.002986767858 | G56: -0.0009086877971 | H56: 0.0007675875889 | I56: -0.001891736363 | J56: -0.00333822372 | K56: 0.0003971711006 | L56: -0.00186401752 | M56: -0.0003818506335 | N56: -0.0004568135586 | O56: 0.0003524547183 | P56: -0.001956958509 | Q56: -0.001967366463 | R56: -2.215990421e-06 | S56: 0.0003390736046
A57: I | B57: Transport, Storage and Communications | D57: -0.008388511926 | E57: -0.006868844311 | F57: -0.0005985326686 | G57: 0.00066166107 | H57: 0.007055694502 | I57: 0.0008273746805 | J57: 0.001184405277 | K57: -0.0009139446159 | L57: -0.003893704605 | M57: 0.001986084048 | N57: 0.0002589474529 | O57: -0.003698134753 | P57: -0.01204385858 | Q57: -0.0001949045737 | R57: -0.0005748256563 | S57: 0.003593012152
A58: J | B58: Financial Intermediation | D58: -0.002586288412 | E58: 5.420692655e-05 | F58: -0.001994979377 | G58: 0.002960313776 | H58: 0.005229904042 | I58: 0.004153889558 | J58: 0.003288363224 | K58: -0.005850319624 | L58: -0.002239115388 | M58: 0.003747075885 | N58: 0.002521325262 | O58: -0.000383662855 | P58: -0.002743462747 | Q58: -0.003754639013 | R58: 1.962185445e-05 | S58: 0.001136998793
A59: K | B59: Real Estate, Renting, Business Activities | D59: 0.0003399691251 | E59: -0.0003139228912 | F59: 0.001790960317 | G59: 0.001549846756 | H59: 0.001570168837 | I59: 0.002089930768 | J59: -0.002481422999 | K59: 0.002137645809 | L59: -0.001752586616 | M59: -0.00268165733 | N59: 0.001788680098 | O59: -0.00148107892 | P59: -0.001963815978 | Q59: -0.00163467589 | R59: 0.001225128384 | S59: 0.0004448772854
A60: L | B60: Public Administration | D60: -0.006080501514 | E60: -0.006289871665 | F60: 0.002018475924 | G60: 0.01171284217 | H60: 0.00584629064 | I60: 0.02027033401 | J60: 0.01702411658 | K60: -0.01288093506 | L60: -0.0124909644 | M60: -0.01235280606 | N60: 0.02628827512 | O60: -0.05550750575 | P60: -0.02600714433 | Q60: -0.002902341144 | R60: 0.007133004521 | S60: 0.008329437273
A61: M | B61: Education | D61: -0.002096902832 | E61: -0.005514248306 | F61: -0.008669517472 | G61: 0.00971590337 | H61: -0.002607590514 | I61: 0.008385525197 | J61: 0.006326029513 | K61: -0.00627478907 | L61: -0.006425732727 | M61: 0.00537659936 | N61: 0.0131396851 | O61: -0.01286715429 | P61: -0.003076234105 | Q61: 0.01424900063 | R61: -0.005945914206 | S61: -0.02740608626
A62: N | B62: Health and Social Work | D62: -0.002076469004 | E62: -0.003356305094 | F62: -0.003702368474 | G62: -0.0008679314467 | H62: 0.002852153656 | I62: 0.008378847832 | J62: 0.001375124899 | K62: -0.004937970358 | L62: 9.341220031e-05 | M62: 0.0007919036471 | N62: 0.001592254634 | O62: 0.001908429651 | P62: 0.005163442589 | Q62: 0.002401622589 | R62: 0.002117399115 | S62: 0.005411253647
A63: O | B63: Other Community, Social, Personal Services | D63: -0.0005600379934 | E63: 8.785465183e-05 | F63: 0.0009456463282 | G63: 0.0001053508964 | H63: 0.0001187327588 | I63: -0.001183460392 | J63: 0.001252097332 | K63: 0.000111501906 | L63: -4.365196703e-05 | M63: -0.001569932934 | N63: -0.0004737196158 | O63: -0.0007081302365 | P63: 0.0005212695947 | Q63: -0.0005707344254 | R63: 0.0002221346242 | S63: -0.001362958655
B64: less intermediate FISIM | D64: 0.000161088341 | E64: 0.001329983255 | F64: 0.001394623384 | G64: -0.001054088693 | H64: -0.003401986057 | I64: -0.004505059334 | J64: -0.002013480173 | K64: 0.003981203278 | L64: 0.001931135332 | M64: -0.001848137375 | N64: -0.001981320935 | O64: 9.340548408e-05 | P64: 0.0007988436431 | Q64: 0.002061540042 | R64: -0.0003114005244 | S64: 7.386695359e-05
B65: GDP at basic prices | D65: =SUM(D49:D64) -> -0.05708602179 | E65: =SUM(E49:E64) -> -0.04077953006 | F65: =SUM(F49:F64) -> -0.002143110369 | G65: 0.0400268266 | H65: 0.03884348807 | I65: 0.02648607587 | J65: 0.0116449615 | K65: -0.007938935002 | L65: -0.04469068284 | M65: -0.014516011 | N65: 0.03047203055 | O65: -0.07587373942 | P65: -0.05711380419 | Q65: 0.008878646916 | R65: 0.03074697248 | S65: 0.001706271199
B66: Taxes on products | D66: =(D20-C20)/(D$22-C$22)*((D$22-C$22)/C$22) -> -0.009843442833 | E66: -0.001376536506 | F66: 0.008549286191 | G66: 0.009544110205 | H66: 0.01743428245 | I66: -0.008900609486 | J66: -0.01359390975 | K66: 0.020749239 | L66: -0.01432596571 | M66: 0.005756137356 | N66: -0.003269251844 | O66: -0.009452014737 | P66: -0.00704084416 | Q66: 0.002600269727 | R66: 0.009559856251 | S66: 0.005311527074
B67: less subsidies | D67: 0.0004516204638 | E67: 0.0005571477452 | F67: -1.979031756e-06 | G67: 0.0002513439832 | H67: 0.001863716759 | I67: -0.001439952814 | J67: 0.0001731252486 | K67: 0.002408457225 | L67: 0.0001835628731 | M67: -0.0001419606494 | N67: 0.000212990513 | O67: 5.959335632e-05 | P67: 0.0002682638484 | Q67: -0.0002756959487 | R67: 0.000255960033 | S67: 0.0002556109228
B68: GDP at purchasers prices | D68: =SUM(D65:D67) -> -0.06647784416 | E68: =SUM(E65:E67) -> -0.04159891882 | F68: =SUM(F65:F67) -> 0.00640419679 | G68: 0.04982228079 | H68: 0.05814148728 | I68: 0.01614551357 | J68: -0.001775823001 | K68: 0.01521876122 | L68: -0.05883308567 | M68: -0.008901834294 | N68: 0.02741576921 | O68: -0.0852661608 | P68: -0.0638863845 | Q68: 0.01120322069 | R68: 0.04056278877 | S68: 0.007273409196
A69: Source: SBOC estimates
A70: Table 2d : Chuuk: Current price GDP by industry, FY2004-FY2011
B71: (US$ millions) | C71: =C25 -> FY1995 | D71: FY1996 | E71: FY1997 | F71: FY1998 | G71: FY1999 | H71: FY2000 | I71: FY2001 | J71: FY2002 | K71: FY2003 | L71: FY2004 | M71: FY2005 | N71: FY2006 | O71: FY2007 | P71: FY2008 | Q71: FY2009 | R71: =R25 -> FY2010 | S71: =S25 -> FY2011
A72: A | B72: Agriculture, Hunting and Forestry | C72: =[3]indChk!D45 -> 12.93349876 | D72: =[3]indChk!E45 -> 13.30811935 | E72: =[3]indChk!F45 -> 13.68247023 | F72: =[3]indChk!G45 -> 13.93123442 | G72: =[3]indChk!H45 -> 14.24374368 | H72: =[3]indChk!I45 -> 14.22083589 | I72: =[3]indChk!J45 -> 14.43596765 | J72: =[3]indChk!K45 -> 14.10418021 | K72: =[3]indChk!L45 -> 13.59772454 | L72: =[3]indChk!M45 -> 13.42988358 | M72: =[3]indChk!N45 -> 13.62764581 | N72: =[3]indChk!O45 -> 13.41673458 | O72: =[3]indChk!P45 -> 13.776753 | P72: =[3]indChk!Q45 -> 13.6302503 | Q72: =[3]indChk!R45 -> 14.01993618 | R72: =[3]indChk!S45 -> 14.59101235 | S72: =[3]indChk!T45 -> 15.60320667
A73: B | B73: Fisheries | C73: =[3]indChk!D46 -> 10.80473665 | D73: =[3]indChk!E46 -> 10.41678624 | E73: =[3]indChk!F46 -> 10.57236478 | F73: =[3]indChk!G46 -> 10.69282982 | G73: =[3]indChk!H46 -> 10.81062399 | H73: =[3]indChk!I46 -> 10.8481552 | I73: =[3]indChk!J46 -> 10.9839412 | J73: =[3]indChk!K46 -> 10.73864263 | K73: =[3]indChk!L46 -> 10.41738399 | L73: =[3]indChk!M46 -> 9.589970277 | M73: =[3]indChk!N46 -> 9.940004168 | N73: =[3]indChk!O46 -> 9.484729663 | O73: =[3]indChk!P46 -> 9.973021671 | P73: =[3]indChk!Q46 -> 9.875982415 | Q73: =[3]indChk!R46 -> 10.29983271 | R73: =[3]indChk!S46 -> 10.7175204 | S73: =[3]indChk!T46 -> 11.57516565
A74: C | B74: Mining and Quarrying | C74: =[3]indChk!D47 -> 0 | D74: =[3]indChk!E47 -> 0 | E74: =[3]indChk!F47 -> 0 | F74: =[3]indChk!G47 -> 0 | G74: =[3]indChk!H47 -> 0 | H74: =[3]indChk!I47 -> 0 | I74: =[3]indChk!J47 -> 0 | J74: =[3]indChk!K47 -> 0 | K74: =[3]indChk!L47 -> 0 | L74: =[3]indChk!M47 -> 0 | M74: =[3]indChk!N47 -> 0 | N74: =[3]indChk!O47 -> 0 | O74: =[3]indChk!P47 -> 0 | P74: =[3]indChk!Q47 -> 0 | Q74: =[3]indChk!R47 -> 0 | R74: =[3]indChk!S47 -> 0 | S74: =[3]indChk!T47 -> 0
A75: D | B75: Manufacturing | C75: =[3]indChk!D48 -> 0.5605810767 | D75: =[3]indChk!E48 -> 0.3667161768 | E75: =[3]indChk!F48 -> 0.3654307998 | F75: =[3]indChk!G48 -> 0.5192754289 | G75: =[3]indChk!H48 -> 0.5763236047 | H75: =[3]indChk!I48 -> 0.5029807566 | I75: =[3]indChk!J48 -> 0.4418017568 | J75: =[3]indChk!K48 -> 0.364677778 | K75: =[3]indChk!L48 -> 0.3340394047 | L75: =[3]indChk!M48 -> 0.1851278778 | M75: =[3]indChk!N48 -> 0.1509278537 | N75: =[3]indChk!O48 -> 0.1324575316 | O75: =[3]indChk!P48 -> 0.2201379709 | P75: =[3]indChk!Q48 -> 0.2352809641 | Q75: =[3]indChk!R48 -> 0.190808198 | R75: =[3]indChk!S48 -> 0.184406152 | S75: =[3]indChk!T48 -> 0.1695632793
A76: E | B76: Electricity, Gas and Water Supply | C76: =[3]indChk!D49 -> 0 | D76: =[3]indChk!E49 -> 0.2933503 | E76: =[3]indChk!F49 -> 1.3323138 | F76: =[3]indChk!G49 -> 1.5202374 | G76: =[3]indChk!H49 -> 1.1828252 | H76: =[3]indChk!I49 -> 1.959650349 | I76: =[3]indChk!J49 -> 1.764359239 | J76: =[3]indChk!K49 -> 1.088961099 | K76: =[3]indChk!L49 -> 1.390974564 | L76: =[3]indChk!M49 -> 0.9519114048 | M76: =[3]indChk!N49 -> 0.9614886806 | N76: =[3]indChk!O49 -> 0.56031053 | O76: =[3]indChk!P49 -> 0.5506995406 | P76: =[3]indChk!Q49 -> 0.4063458581 | Q76: =[3]indChk!R49 -> 1.2030326 | R76: =[3]indChk!S49 -> 0.4097512 | S76: =[3]indChk!T49 -> 0.2312335
A77: F | B77: Construction | C77: =[3]indChk!D50 -> 2.772122691 | D77: =[3]indChk!E50 -> 1.36890237 | E77: =[3]indChk!F50 -> 0.2690083751 | F77: =[3]indChk!G50 -> 0.4414837154 | G77: =[3]indChk!H50 -> 0.932544239 | H77: =[3]indChk!I50 -> 1.75120502 | I77: =[3]indChk!J50 -> 1.170242949 | J77: =[3]indChk!K50 -> 0.6069846402 | K77: =[3]indChk!L50 -> 0.4310263041 | L77: =[3]indChk!M50 -> 0.5936563225 | M77: =[3]indChk!N50 -> 0.2228537035 | N77: =[3]indChk!O50 -> 0.1958436787 | O77: =[3]indChk!P50 -> 0.3021985611 | P77: =[3]indChk!Q50 -> 0.5792858332 | Q77: =[3]indChk!R50 -> 1.035478076 | R77: =[3]indChk!S50 -> 3.784934203 | S77: =[3]indChk!T50 -> 4.799823561
A78: G | B78: Wholesale and Retail Trade and Repairs | C78: =[3]indChk!D51 -> 6.351686639 | D78: =[3]indChk!E51 -> 5.873193284 | E78: =[3]indChk!F51 -> 5.710925099 | F78: =[3]indChk!G51 -> 5.818523373 | G78: =[3]indChk!H51 -> 6.602992209 | H78: =[3]indChk!I51 -> 7.401409248 | I78: =[3]indChk!J51 -> 7.726819894 | J78: =[3]indChk!K51 -> 7.355787617 | K78: =[3]indChk!L51 -> 8.750864231 | L78: =[3]indChk!M51 -> 8.168618252 | M78: =[3]indChk!N51 -> 8.476490414 | N78: =[3]indChk!O51 -> 8.719552376 | O78: =[3]indChk!P51 -> 8.07912052 | P78: =[3]indChk!Q51 -> 8.397463973 | Q78: =[3]indChk!R51 -> 8.232057249 | R78: =[3]indChk!S51 -> 8.571805028 | S78: =[3]indChk!T51 -> 9.267841493
A79: H | B79: Hotels and Restaurants | C79: =[3]indChk!D52 -> 1.422933786 | D79: =[3]indChk!E52 -> 1.418733297 | E79: =[3]indChk!F52 -> 1.425682355 | F79: =[3]indChk!G52 -> 1.653020809 | G79: =[3]indChk!H52 -> 1.621066824 | H79: =[3]indChk!I52 -> 1.70555597 | I79: =[3]indChk!J52 -> 1.564968444 | J79: =[3]indChk!K52 -> 1.291128359 | K79: =[3]indChk!L52 -> 1.318219491 | L79: =[3]indChk!M52 -> 1.185224467 | M79: =[3]indChk!N52 -> 1.193494058 | N79: =[3]indChk!O52 -> 1.19293364 | O79: =[3]indChk!P52 -> 1.258447084 | P79: =[3]indChk!Q52 -> 1.176324507 | Q79: =[3]indChk!R52 -> 1.098691699 | R79: =[3]indChk!S52 -> 1.160764416 | S79: =[3]indChk!T52 -> 1.244319669
A80: I | B80: Transport, Storage and Communications | C80: =[3]indChk!D53 -> 4.855034555 | D80: =[3]indChk!E53 -> 4.311080644 | E80: =[3]indChk!F53 -> 3.695443303 | F80: =[3]indChk!G53 -> 3.714222066 | G80: =[3]indChk!H53 -> 3.788272387 | H80: =[3]indChk!I53 -> 4.401033505 | I80: =[3]indChk!J53 -> 4.465846081 | J80: =[3]indChk!K53 -> 4.521393241 | K80: =[3]indChk!L53 -> 4.50390449 | L80: =[3]indChk!M53 -> 4.254838411 | M80: =[3]indChk!N53 -> 4.269848222 | N80: =[3]indChk!O53 -> 4.310848222 | O80: =[3]indChk!P53 -> 4.169668081 | P80: =[3]indChk!Q53 -> 3.678836767 | Q80: =[3]indChk!R53 -> 3.943603372 | R80: =[3]indChk!S53 -> 4.1156178 | S80: =[3]indChk!T53 -> 4.452477638
A81: J | B81: Financial Intermediation | C81: =[3]indChk!D54 -> 0.8405282501 | D81: =[3]indChk!E54 -> 0.6761547292 | E81: =[3]indChk!F54 -> 0.6966871615 | F81: =[3]indChk!G54 -> 0.5717814429 | G81: =[3]indChk!H54 -> 0.7902419932 | H81: =[3]indChk!I54 -> 1.19454733 | I81: =[3]indChk!J54 -> 1.533939563 | J81: =[3]indChk!K54 -> 1.794683773 | K81: =[3]indChk!L54 -> 1.316415731 | L81: =[3]indChk!M54 -> 1.154608933 | M81: =[3]indChk!N54 -> 1.467228457 | N81: =[3]indChk!O54 -> 1.704925033 | O81: =[3]indChk!P54 -> 1.743278074 | P81: =[3]indChk!Q54 -> 1.623888447 | Q81: =[3]indChk!R54 -> 1.431913751 | R81: =[3]indChk!S54 -> 1.512192207 | S81: =[3]indChk!T54 -> 1.682364681
A82: K | B82: Real Estate, Renting, Business Activities | C82: =[3]indChk!D55 -> 10.4584769 | D82: =[3]indChk!E55 -> 10.77930032 | E82: =[3]indChk!F55 -> 11.04833716 | F82: =[3]indChk!G55 -> 11.35475389 | G82: =[3]indChk!H55 -> 11.68508383 | H82: =[3]indChk!I55 -> 11.81702017 | I82: =[3]indChk!J55 -> 12.20085021 | J82: =[3]indChk!K55 -> 11.90854434 | K82: =[3]indChk!L55 -> 11.72618848 | L82: =[3]indChk!M55 -> 11.50975642 | M82: =[3]indChk!N55 -> 11.22006313 | N82: =[3]indChk!O55 -> 11.32579702 | O82: =[3]indChk!P55 -> 11.23311494 | P82: =[3]indChk!Q55 -> 11.14240482 | Q82: =[3]indChk!R55 -> 11.09294283 | R82: =[3]indChk!S55 -> 11.2827615 | S82: =[3]indChk!T55 -> 11.35802962
A83: L | B83: Public Administration | C83: =[3]indChk!D56 -> 8.675915251 | D83: =[3]indChk!E56 -> 8.120068423 | E83: =[3]indChk!F56 -> 6.517125923 | F83: =[3]indChk!G56 -> 6.742390394 | G83: =[3]indChk!H56 -> 7.360475003 | H83: =[3]indChk!I56 -> 7.889760766 | I83: =[3]indChk!J56 -> 9.263403159 | J83: =[3]indChk!K56 -> 10.4035828 | K83: =[3]indChk!L56 -> 9.764025756 | L83: =[3]indChk!M56 -> 8.888524635 | M83: =[3]indChk!N56 -> 9.323385068 | N83: =[3]indChk!O56 -> 10.78603038 | O83: =[3]indChk!P56 -> 7.951504154 | P83: =[3]indChk!Q56 -> 5.892035746 | Q83: =[3]indChk!R56 -> 5.605772126 | R83: =[3]indChk!S56 -> 5.5047978 | S83: =[3]indChk!T56 -> 6.185334186
A84: M | B84: Education | C84: =[3]indChk!D57 -> 11.8175262 | D84: =[3]indChk!E57 -> 11.38615433 | E84: =[3]indChk!F57 -> 9.253787076 | F84: =[3]indChk!G57 -> 8.870878285 | G84: =[3]indChk!H57 -> 8.743235886 | H84: =[3]indChk!I57 -> 9.28326037 | I84: =[3]indChk!J57 -> 9.879697341 | J84: =[3]indChk!K57 -> 10.27283941 | K84: =[3]indChk!L57 -> 10.07945457 | L84: =[3]indChk!M57 -> 9.781564879 | M84: =[3]indChk!N57 -> 9.219601953 | N84: =[3]indChk!O57 -> 9.405597179 | O84: =[3]indChk!P57 -> 9.093980988 | P84: =[3]indChk!Q57 -> 8.749422823 | Q84: =[3]indChk!R57 -> 10.15925738 | R84: =[3]indChk!S57 -> 11.51975554 | S84: =[3]indChk!T57 -> 9.397853329
A85: N | B85: Health and Social Work | C85: =[3]indChk!D58 -> 3.842419983 | D85: =[3]indChk!E58 -> 3.599647276 | E85: =[3]indChk!F58 -> 2.763617504 | F85: =[3]indChk!G58 -> 2.537549547 | G85: =[3]indChk!H58 -> 2.440550481 | H85: =[3]indChk!I58 -> 2.65040683 | I85: =[3]indChk!J58 -> 3.207326074 | J85: =[3]indChk!K58 -> 3.203951299 | K85: =[3]indChk!L58 -> 3.00091277 | L85: =[3]indChk!M58 -> 3.063655034 | M85: =[3]indChk!N58 -> 3.206759857 | N85: =[3]indChk!O58 -> 3.311165288 | O85: =[3]indChk!P58 -> 3.604294871 | P85: =[3]indChk!Q58 -> 3.63043615 | Q85: =[3]indChk!R58 -> 4.069888583 | R85: =[3]indChk!S58 -> 4.780172665 | S85: =[3]indChk!T58 -> 5.03662448
A86: O | B86: Other Community, Social, Personal Services | C86: =[3]indChk!D59 -> 0.5016379678 | D86: =[3]indChk!E59 -> 0.4758302498 | E86: =[3]indChk!F59 -> 0.4801743342 | F86: =[3]indChk!G59 -> 0.5538109505 | G86: =[3]indChk!H59 -> 0.5582587555 | H86: =[3]indChk!I59 -> 0.6112049798 | I86: =[3]indChk!J59 -> 0.5410015892 | J86: =[3]indChk!K59 -> 0.6400978063 | K86: =[3]indChk!L59 -> 0.6458586237 | L86: =[3]indChk!M59 -> 0.6565119973 | M86: =[3]indChk!N59 -> 0.5788063398 | N86: =[3]indChk!O59 -> 0.5309826205 | O86: =[3]indChk!P59 -> 0.4942801781 | P86: =[3]indChk!Q59 -> 0.5774706597 | Q86: =[3]indChk!R59 -> 0.5452263492 | R86: =[3]indChk!S59 -> 0.5850254177 | S86: =[3]indChk!T59 -> 0.4866874267
B87: less intermediate FISIM | C87: =[3]indChk!D60 -> -0.6172070204 | D87: =[3]indChk!E60 -> -0.6226763527 | E87: =[3]indChk!F60 -> -0.5459918361 | F87: =[3]indChk!G60 -> -0.459620699 | G87: =[3]indChk!H60 -> -0.5423128742 | H87: =[3]indChk!I60 -> -0.8058395265 | I87: =[3]indChk!J60 -> -1.169242053 | J87: =[3]indChk!K60 -> -1.32824498 | K87: =[3]indChk!L60 -> -1.00395299 | L87: =[3]indChk!M60 -> -0.8603333786 | M87: =[3]indChk!N60 -> -1.037320207 | N87: =[3]indChk!O60 -> -1.23234934 | O87: =[3]indChk!P60 -> -1.26025678 | P87: =[3]indChk!Q60 -> -1.276481346 | Q87: =[3]indChk!R60 -> -1.1985097 | R87: =[3]indChk!S60 -> -1.294895948 | S87: =[3]indChk!T60 -> -1.343270382
B88: GDP at basic prices | C88: =[3]indChk!D61 -> 75.21989169 | D88: =[3]indChk!E61 -> 71.77136064 | E88: =[3]indChk!F61 -> 67.26737607 | F88: =[3]indChk!G61 -> 68.46237084 | G88: =[3]indChk!H61 -> 70.7939252 | H88: =[3]indChk!I61 -> 75.43118687 | I88: =[3]indChk!J61 -> 78.01092309 | J88: =[3]indChk!K61 -> 76.96721002 | K88: =[3]indChk!L61 -> 76.27303996 | L88: =[3]indChk!M61 -> 72.5535191 | M88: =[3]indChk!N61 -> 72.8212775 | N88: =[3]indChk!O61 -> 73.8455584 | O88: =[3]indChk!P61 -> 71.19024285 | P88: =[3]indChk!Q61 -> 68.31894792 | Q88: =[3]indChk!R61 -> 71.7299314 | R88: =[3]indChk!S61 -> 77.42562073 | S88: =[3]indChk!T61 -> 80.1472548
B89: Taxes on products | C89: =[3]indChk!D62 -> 4.3635384 | D89: =[3]indChk!E62 -> 3.817649055 | E89: =[3]indChk!F62 -> 3.838953708 | F89: =[3]indChk!G62 -> 4.55647175 | G89: =[3]indChk!H62 -> 5.25676354 | H89: =[3]indChk!I62 -> 6.60281612 | I89: =[3]indChk!J62 -> 5.96255144 | J89: =[3]indChk!K62 -> 4.860595 | K89: =[3]indChk!L62 -> 6.523323 | L89: =[3]indChk!M62 -> 5.4603428 | M89: =[3]indChk!N62 -> 6.15711106 | N89: =[3]indChk!O62 -> 6.12730004 | O89: =[3]indChk!P62 -> 5.46375424 | P89: =[3]indChk!Q62 -> 5.23109327 | Q89: =[3]indChk!R62 -> 5.88091501 | R89: =[3]indChk!S62 -> 7.217748 | S89: =[3]indChk!T62 -> 8.09340484
B90: less subsidies | C90: =[3]indChk!D63 -> -0.4152352587 | D90: =[3]indChk!E63 -> -2.020452554 | E90: =[3]indChk!F63 -> -1.3589278 | F90: =[3]indChk!G63 -> -1.390024698 | G90: =[3]indChk!H63 -> -1.621711729 | H90: =[3]indChk!I63 -> -1.899293584 | I90: =[3]indChk!J63 -> -1.841593577 | J90: =[3]indChk!K63 -> -1.258099862 | K90: =[3]indChk!L63 -> -1 | L90: =[3]indChk!M63 -> -0.12501 | M90: =[3]indChk!N63 -> -0.4691160071 | N90: =[3]indChk!O63 -> -0.48 | O90: =[3]indChk!P63 -> -0.39864 | P90: =[3]indChk!Q63 -> -0.384473 | Q90: =[3]indChk!R63 -> -0.092136 | R90: =[3]indChk!S63 -> 0 | S90: =[3]indChk!T63 -> -0.346262
B91: GDP at purchasers prices | C91: =[3]indChk!D64 -> 79.16819483 | D91: =[3]indChk!E64 -> 73.56855714 | E91: =[3]indChk!F64 -> 69.74740198 | F91: =[3]indChk!G64 -> 71.62881789 | G91: =[3]indChk!H64 -> 74.42897701 | H91: =[3]indChk!I64 -> 80.1347094 | I91: =[3]indChk!J64 -> 82.13188095 | J91: =[3]indChk!K64 -> 80.56970516 | K91: =[3]indChk!L64 -> 81.79636296 | L91: =[3]indChk!M64 -> 77.8888519 | M91: =[3]indChk!N64 -> 78.50927256 | N91: =[3]indChk!O64 -> 79.49285844 | O91: =[3]indChk!P64 -> 76.25535709 | P91: =[3]indChk!Q64 -> 73.16556819 | Q91: =[3]indChk!R64 -> 77.51871041 | R91: =[3]indChk!S64 -> 84.64336873 | S91: =[3]indChk!T64 -> 87.89439764
A92: Source: SBOC estimates
A93: Table 2e : Chuuk: Implicit GDP price deflators by industry, FY2004-FY2011
B94: (FY2004=100) | C94: =C2 -> FY1995 | D94: FY1996 | E94: FY1997 | F94: FY1998 | G94: FY1999 | H94: FY2000 | I94: FY2001 | J94: FY2002 | K94: FY2003 | L94: FY2004 | M94: FY2005 | N94: FY2006 | O94: FY2007 | P94: FY2008 | Q94: FY2009 | R94: =R2 -> FY2010 | S94: =S2 -> FY2011
A95: A | B95: Agriculture, Hunting and Forestry | C95: =IF(C72<>0,C72/C3*100,0) -> 95.75618797 | D95: =IF(D72<>0,D72/D3*100,0) -> 98.44082139 | E95: 101.06591 | F95: 102.715815 | G95: 104.6872671 | H95: 104.2313071 | I95: 106.2047776 | J95: 104.1522501 | K95: 100.7374971 | L95: 100 | M95: 101.8436487 | N95: 100.844334 | O95: 102.0607581 | P95: 103.945843 | Q95: 107.7266311 | R95: =IF(R72<>0,R72/R3*100,0) -> 113.0032503 | S95: 120.6240132
A96: B | B96: Fisheries | C96: 97.98750612 | D96: =IF(D73<>0,D73/D4*100,0) -> 100.0703815 | E96: 102.7220309 | F96: 104.2754253 | G96: 106.5193845 | H96: 106.4441003 | I96: 109.6251369 | J96: 108.045218 | K96: 103.4244659 | L96: 100 | M96: 101.7185291 | N96: 99.86819452 | O96: 102.3169137 | P96: 105.0411794 | Q96: 110.5750493 | R96: =IF(R73<>0,R73/R4*100,0) -> 116.8389109 | S96: 125.8763462
A97: C | B97: Mining and Quarrying | C97: 0 | D97: =IF(D74<>0,D74/D5*100,0) -> 0 | E97: 0 | F97: 0 | G97: 0 | H97: 0 | I97: 0 | J97: 0 | K97: 0 | L97: 0 | M97: 0 | N97: 0 | O97: 0 | P97: 0 | Q97: 0 | R97: =IF(R74<>0,R74/R5*100,0) -> 0 | S97: 0
A98: D | B98: Manufacturing | C98: 87.09099373 | D98: =IF(D75<>0,D75/D6*100,0) -> 88.28318016 | E98: 89.66124636 | F98: 93.42929694 | G98: 96.86986458 | H98: 98.48768484 | I98: 99.06639875 | J98: 98.7773228 | K98: 98.41231207 | L98: 100 | M98: 103.2896644 | N98: 106.4911465 | O98: 109.6043613 | P98: 116.9080215 | Q98: 125.9124031 | R98: =IF(R75<>0,R75/R6*100,0) -> 133.0492729 | S98: 138.7723583
A99: E | B99: Electricity, Gas and Water Supply | C99: 0 | D99: =IF(D76<>0,D76/D7*100,0) -> 64.95624121 | E99: 208.9718841 | F99: 230.139903 | G99: 172.5854781 | H99: 286.4361801 | I99: 257.534884 | J99: 108.6340878 | K99: 132.8913864 | L99: 100 | M99: 97.5752173 | N99: 62.27917354 | O99: 64.34067687 | P99: 57.69465204 | Q99: 144.2481761 | R99: =IF(R76<>0,R76/R7*100,0) -> 58.07260564 | S99: 40.41554715
A100: F | B100: Construction | C100: 88.59096273 | D100: =IF(D77<>0,D77/D8*100,0) -> 91.01590686 | E100: 93.07958039 | F100: 94.75122628 | G100: 96.2563181 | H100: 98.39083923 | I100: 98.97644054 | J100: 98.77971422 | K100: 98.29707332 | L100: 100 | M100: 103.2896644 | N100: 106.4911465 | O100: 109.6043613 | P100: 99.8298942 | Q100: 114.2472767 | R100: =IF(R77<>0,R77/R8*100,0) -> 128.6707644 | S100: 133.8232371
A101: G | B101: Wholesale and Retail Trade and Repairs | C101: 82.42149156 | D101: =IF(D78<>0,D78/D9*100,0) -> 85.30218153 | E101: 87.05873635 | F101: 89.65776029 | G101: 92.30166786 | H101: 92.81457171 | I101: 95.96515594 | J101: 96.60590502 | K101: 97.08076291 | L101: 100 | M101: 108.2809429 | N101: 118.2038554 | O101: 123.8378262 | P101: 141.0197683 | Q101: 141.5575312 | R101: =IF(R78<>0,R78/R9*100,0) -> 142.6114759 | S101: 147.9126484
A102: H | B102: Hotels and Restaurants | C102: 88.61202567 | D102: =IF(D79<>0,D79/D10*100,0) -> 91.0898651 | E102: 93.51892817 | F102: 95.04562846 | G102: 96.86986458 | H102: 98.48768484 | I102: 99.06639875 | J102: 98.7773228 | K102: 98.41231207 | L102: 100 | M102: 103.2896644 | N102: 106.4911465 | O102: 109.6043613 | P102: 116.9080215 | Q102: 125.9124031 | R102: =IF(R79<>0,R79/R10*100,0) -> 133.0492729 | S102: 138.7723583
A103: I | B103: Transport, Storage and Communications | C103: 94.51442835 | D103: =IF(D80<>0,D80/D11*100,0) -> 96.59949179 | E103: 93.6112789 | F103: 95.12371752 | G103: 95.84521057 | H103: 98.05433462 | I103: 98.04587354 | J103: 97.20134458 | K103: 98.40142069 | L103: 100 | M103: 96.83222644 | N103: 97.32084909 | O103: 100.8087653 | P103: 112.7632553 | Q103: 121.3712927 | R103: =IF(R80<>0,R80/R11*100,0) -> 128.2231868 | S103: 128.4434186
A104: J | B104: Financial Intermediation | C104: 88.45579022 | D104: =IF(D81<>0,D81/D12*100,0) -> 91.07348039 | E104: 93.32796952 | F104: 94.8092619 | G104: 96.69543858 | H104: 98.36087508 | I104: 99.07380819 | J104: 98.78189465 | K104: 98.24635317 | L104: 100 | M104: 101.4355062 | N104: 103.8892041 | O104: 108.2330791 | P104: 115.0360708 | Q104: 123.7994006 | R104: =IF(R81<>0,R81/R12*100,0) -> 130.587919 | S104: 135.7579154
A105: K | B105: Real Estate, Renting, Business Activities | C105: 93.78675228 | D105: =IF(D82<>0,D82/D13*100,0) -> 96.42755014 | E105: 99.04286566 | F105: 100.6283826 | G105: 102.5369737 | H105: 102.6208488 | I105: 104.4309005 | J105: 103.7280698 | K105: 100.6125542 | L105: 100 | M105: 99.28481641 | N105: 99.010695 | O105: 99.2193508 | P105: 99.6724409 | Q105: 100.2253165 | R105: =IF(R82<>0,R82/R13*100,0) -> 101.1712618 | S105: 101.5566759
A106: L | B106: Public Administration | C106: 116.0369821 | D106: =IF(D83<>0,D83/D14*100,0) -> 116.1949713 | E106: 100.0088972 | F106: 101.2121315 | G106: 98.02201155 | H106: 99.20457187 | I106: 96.6746499 | J106: 94.81708633 | K106: 98.40537225 | L106: 100 | M106: 117.6247737 | N106: 108.3400851 | O106: 143.1849232 | P106: 160.6986563 | Q106: 161.5774954 | R106: =IF(R83<>0,R83/R14*100,0) -> 139.0359538 | S106: 135.807369
A107: M | B107: Education | C107: 114.3472522 | D107: =IF(D84<>0,D84/D15*100,0) -> 111.9990654 | E107: 94.8843406 | F107: 97.16717237 | G107: 88.92276252 | H107: 96.35585634 | I107: 95.84262756 | J107: 94.90055077 | K107: 97.73216659 | L107: 100 | M107: 90.38522361 | N107: 83.86871889 | O107: 89.20785305 | P107: 87.74896361 | Q107: 92.87460623 | R107: =IF(R84<>0,R84/R15*100,0) -> 109.3958073 | S107: 109.6358208
A108: N | B108: Health and Social Work | C108: 119.9376741 | D108: =IF(D85<>0,D85/D16*100,0) -> 118.5324347 | E108: 99.22835248 | F108: 100.7376984 | G108: 99.36378278 | H108: 99.16237107 | I108: 95.85100334 | J108: 92.64114927 | K108: 98.19983505 | L108: 100 | M108: 102.6052997 | N108: 101.9368857 | O108: 106.0207865 | P108: 96.19048578 | Q108: 103.3669739 | R108: =IF(R85<>0,R85/R16*100,0) -> 117.0826706 | S108: 112.6906411
A109: O | B109: Other Community, Social, Personal Services | C109: 83.93009179 | D109: =IF(D86<>0,D86/D17*100,0) -> 86.09367324 | E109: 85.85603975 | F109: 88.2911374 | G109: 87.93179931 | H109: 94.92314077 | I109: 98.58148053 | J109: 98.31999699 | K109: 97.83890596 | L109: 100 | M109: 108.3436858 | N109: 106.6952815 | O109: 111.9548501 | P109: 120.4777452 | Q109: 123.758628 | R109: =IF(R86<>0,R86/R17*100,0) -> 128.3481396 | S109: 135.7894915
B110: less intermediate FISIM | C110: 88.61202567 | D110: =IF(D87<>0,D87/D18*100,0) -> 91.0898651 | E110: 93.51892817 | F110: 95.04562846 | G110: 96.86986458 | H110: 98.48768484 | I110: 99.06639875 | J110: 98.7773228 | K110: 98.41231207 | L110: 100 | M110: 103.2896644 | N110: 106.4911465 | O110: 109.6043613 | P110: 116.9080215 | Q110: 125.9124031 | R110: =IF(R87<>0,R87/R18*100,0) -> 133.0492729 | S110: 138.7723583
B111: GDP at basic prices | C111: 99.26986781 | D111: =IF(D88<>0,D88/D19*100,0) -> 100.8215394 | E111: 98.73690237 | F111: 100.7187008 | G111: 99.89327193 | H111: 102.1830291 | I111: 102.7159256 | J111: 100.0884683 | K111: 100.0275674 | L111: 100 | M111: 101.9579073 | N111: 100.0953859 | O111: 105.0662199 | P111: 107.3961984 | Q111: 111.6994221 | R111: =IF(R88<>0,R88/R19*100,0) -> 116.730587 | S111: 120.6121321
B112: Taxes on products less Subsidies | C112: =IF((C89+C90)<>0,(C89+C90)/(C20+C90)*100,0) -> 85.28276038 | D112: =IF((D89+D90)<>0,(D89+D90)/(D20+D90)*100,0) -> 80.46300676 | E112: 88.83099956 | F112: 93.81207806 | G112: 94.80883972 | H112: 96.37146545 | I112: 97.5831235 | J112: 97.45933162 | K112: 97.82844493 | L112: 100 | M112: 104.5670802 | N112: 109.0989492 | O112: 112.3580166 | P112: 120.8220028 | Q112: 129.2050253 | R112: =IF((R89+R90)<>0,(R89+R90)/(R20+R90)*100,0) -> 138.0339462 | S112: 147.2205441
B113: GDP at purchasers prices | C113: =IF(C91<>0,C91/C22*100,0) -> 98.53479264 | D113: 98.08587561 | E113: 97.02752982 | F113: 99.01073504 | G113: 97.99880159 | H113: 99.71388536 | I113: 100.5751844 | J113: 98.83772913 | K113: 98.83831722 | L113: 100 | M113: 101.7018794 | N113: 100.2281956 | O113: 105.1083968 | P113: 107.7321285 | Q113: 112.877293 | R113: =IF(R91<>0,R91/R22*100,0) -> 118.4471717 | S113: 122.1084111
A114: Source: SBOC estimates
A115: Table 2f : Chuuk: Share of GDP by industry, current prices, FY2004-FY2011
C116: =C2 -> FY1995 | D116: FY1996 | E116: FY1997 | F116: FY1998 | G116: FY1999 | H116: FY2000 | I116: FY2001 | J116: FY2002 | K116: FY2003 | L116: FY2004 | M116: FY2005 | N116: FY2006 | O116: FY2007 | P116: FY2008 | Q116: FY2009 | R116: =R2 -> FY2010 | S116: =S2 -> FY2011
A117: A | B117: Agriculture, Hunting and Forestry | C117: =IF(C72/C$91<>0,C72/C$91,"~") -> 0.1633673572 | D117: =IF(D72/D$91<>0,D72/D$91,"~") -> 0.1808941193 | E117: 0.1961717547 | F117: 0.194492033 | G117: 0.1913736323 | H117: 0.1774616268 | I117: 0.1757657012 | J117: 0.1750556265 | K117: 0.1662387427 | L117: 0.1724236941 | M117: 0.17358008 | N117: 0.1687791185 | O117: 0.1806660348 | P117: 0.1862932338 | Q117: 0.1808587385 | R117: =IF(R72/R$91<>0,R72/R$91,"~") -> 0.1723822263 | S117: 0.1775221981
A118: B | B118: Fisheries | C118: =IF(C73/C$91<>0,C73/C$91,"~") -> 0.1364782495 | D118: 0.1415929121 | E118: 0.1515807683 | F118: 0.1492811153 | G118: 0.1452475154 | H118: 0.1353739882 | I118: 0.1337354152 | J118: 0.1332838764 | K118: 0.1273575452 | L118: 0.1231237853 | M118: 0.1266093016 | N118: 0.1193154939 | O118: 0.1307845383 | P118: 0.134981285 | Q118: 0.1328689894 | R118: =IF(R73/R$91<>0,R73/R$91,"~") -> 0.1266197289 | S118: 0.1316940096
A119: C | B119: Mining and Quarrying | C119: ~ | D119: ~ | E119: ~ | F119: ~ | G119: ~ | H119: ~ | I119: ~ | J119: ~ | K119: ~ | L119: ~ | M119: ~ | N119: ~ | O119: ~ | P119: ~ | Q119: ~ | R119: =IF(R74/R$91<>0,R74/R$91,"~") -> ~ | S119: ~
A120: D | B120: Manufacturing | C120: 0.007080887444 | D120: 0.004984686272 | E120: 0.005239346405 | F120: 0.007249532299 | G120: 0.007743269192 | H120: 0.006276690343 | I120: 0.005379174953 | J120: 0.004526239451 | K120: 0.00408379288 | L120: 0.002376821243 | M120: 0.001922420738 | N120: 0.001666282157 | O120: 0.002886852534 | P120: 0.003215733438 | Q120: 0.002461447011 | R120: =IF(R75/R$91<>0,R75/R$91,"~") -> 0.002178624915 | S120: 0.001929170503
A121: E | B121: Electricity, Gas and Water Supply | C121: ~ | D121: 0.003987441258 | E121: 0.01910198462 | F121: 0.02122382366 | G121: 0.01589199862 | H121: 0.02445445131 | I121: 0.02148202646 | J121: 0.01351576373 | K121: 0.01700533512 | L121: 0.01222140758 | M121: 0.01224681683 | N121: 0.007048564375 | O121: 0.007221781677 | P121: 0.005553785314 | Q121: 0.01551925456 | R121: =IF(R76/R$91<>0,R76/R$91,"~") -> 0.004840913189 | S121: 0.002630810452
A122: F | B122: Construction | C122: 0.03501561072 | D122: 0.0186071662 | E122: 0.003856894558 | F122: 0.006163492968 | G122: 0.01252931689 | H122: 0.02185326475 | I122: 0.01424833981 | J122: 0.007533658452 | K122: 0.005269504517 | L122: 0.007621839429 | M122: 0.002838565386 | N122: 0.002463663813 | O122: 0.003962981391 | P122: 0.007917465108 | Q122: 0.01335778254 | R122: =IF(R77/R$91<>0,R77/R$91,"~") -> 0.04471625197 | S122: 0.05460898181
A123: G | B123: Wholesale and Retail Trade and Repairs | C123: 0.08023028253 | D123: 0.07983292744 | E123: 0.0818801122 | F123: 0.08123159845 | G123: 0.08871534279 | H123: 0.09236209008 | I123: 0.09407820452 | J123: 0.09129718922 | K123: 0.1069835371 | L123: 0.1048753198 | M123: 0.1079680162 | N123: 0.1096897576 | O123: 0.1059482354 | P123: 0.1147734403 | Q123: 0.1061944556 | R123: =IF(R78/R$91<>0,R78/R$91,"~") -> 0.1012696583 | S123: 0.1054429149
A124: H | B124: Hotels and Restaurants | C124: 0.01797355351 | D124: 0.01928450621 | E124: 0.02044065177 | F124: 0.02307759444 | G124: 0.02178004977 | H124: 0.02128361084 | I124: 0.01905433585 | J124: 0.01602498552 | K124: 0.01611586926 | L124: 0.01521686914 | M124: 0.01520195028 | N124: 0.01500680266 | O124: 0.01650306459 | P124: 0.01607756949 | Q124: 0.01417324531 | R124: =IF(R79/R$91<>0,R79/R$91,"~") -> 0.01371358954 | S124: 0.014156985
A125: I | B125: Transport, Storage and Communications | C125: 0.0613255685 | D125: 0.05859949972 | E125: 0.0529832395 | F125: 0.05185373953 | G125: 0.05089781613 | H125: 0.05492044006 | I125: 0.0543740875 | J125: 0.05611778313 | K125: 0.05506240531 | L125: 0.05462705262 | M125: 0.05438654674 | N125: 0.05422937741 | O125: 0.05468032988 | P125: 0.05028098405 | Q125: 0.05087292283 | R125: =IF(R80/R$91<>0,R80/R$91,"~") -> 0.04862303878 | S125: 0.0506571267
A126: J | B126: Financial Intermediation | C126: 0.01061699401 | D126: 0.00919081134 | E126: 0.009988718457 | F126: 0.007982561484 | G126: 0.01061739695 | H126: 0.01490674065 | I126: 0.01867654247 | J126: 0.02227492045 | K126: 0.01609381742 | L126: 0.01482380218 | M126: 0.01868860084 | N126: 0.02144752455 | O126: 0.02286105712 | P126: 0.02219470835 | Q126: 0.0184718469 | R126: =IF(R81/R$91<>0,R81/R$91,"~") -> 0.01786545396 | S126: 0.01914074988
A127: K | B127: Real Estate, Renting, Business Activities | C127: 0.1321045266 | D127: 0.1465204802 | E127: 0.1584049993 | F127: 0.1585221455 | G127: 0.156996432 | H127: 0.1474644416 | I127: 0.1485519394 | J127: 0.1478042437 | K127: 0.1433583115 | L127: 0.1477715505 | M127: 0.1429138592 | N127: 0.1424756543 | O127: 0.1473091908 | P127: 0.1522902794 | Q127: 0.1431001983 | R127: =IF(R82/R$91<>0,R82/R$91,"~") -> 0.1332976424 | S127: 0.1292235902
A128: L | B128: Public Administration | C128: 0.109588393 | D128: 0.1103741699 | E128: 0.09343897748 | F128: 0.0941295779 | G128: 0.09889259934 | H128: 0.09845622234 | I128: 0.1127869355 | J128: 0.1291252436 | K128: 0.1193699255 | L128: 0.1141180595 | M128: 0.118755209 | N128: 0.1356855268 | O128: 0.1042746957 | P128: 0.08053017139 | Q128: 0.07231508492 | R128: =IF(R83/R$91<>0,R83/R$91,"~") -> 0.06503519275 | S128: 0.07037233717
A129: M | B129: Education | C129: 0.1492711337 | D129: 0.1547693032 | E129: 0.1326757243 | F129: 0.1238451024 | G129: 0.1174708593 | H129: 0.1158456858 | I129: 0.12029065 | J129: 0.1275025072 | K129: 0.123226195 | L129: 0.1255836315 | M129: 0.1174332872 | N129: 0.1183200273 | O129: 0.1192569458 | P129: 0.119583884 | Q129: 0.131055552 | R129: =IF(R84/R$91<>0,R84/R$91,"~") -> 0.1360975551 | S129: 0.1069220972
A130: N | B130: Health and Social Work | C130: 0.04853489449 | D130: 0.0489291542 | E130: 0.03962323221 | F130: 0.03542637757 | G130: 0.03279032681 | H130: 0.03307439248 | I130: 0.03905092684 | J130: 0.03976620359 | K130: 0.03668760641 | L130: 0.03933367817 | M130: 0.04084561928 | N130: 0.04165361962 | O130: 0.04726612016 | P130: 0.04961946227 | Q130: 0.05250201611 | R130: =IF(R85/R$91<>0,R85/R$91,"~") -> 0.05647427244 | S130: 0.05730313439
A131: O | B131: Other Community, Social, Personal Services | C131: 0.006336357281 | D131: 0.006467848063 | E131: 0.006884476276 | F131: 0.007731677931 | G131: 0.007500556611 | H131: 0.007627219021 | I131: 0.006586986478 | J131: 0.007944646254 | K131: 0.007895933271 | L131: 0.008428831357 | M131: 0.007372458322 | N131: 0.006679626711 | O131: 0.006481907593 | P131: 0.007892655985 | Q131: 0.007033480644 | R131: =IF(R86/R$91<>0,R86/R$91,"~") -> 0.006911650924 | S131: 0.005537183709
B132: less intermediate FISIM | C132: -0.007796148715 | D132: -0.008463892415 | E132: -0.007828131524 | F132: -0.006416700883 | G132: -0.00728631369 | H132: -0.01005606101 | I132: -0.01423615337 | J132: -0.01648566266 | K132: -0.01227380966 | L132: -0.0110456549 | M132: -0.01321270945 | N132: -0.01550264218 | O132: -0.01652679665 | P132: -0.01744647623 | Q132: -0.01546090864 | R132: =IF(R87/R$91<>0,R87/R$91,"~") -> -0.01529825629 | S132: -0.0152827759
B133: GDP at basic prices | C133: 0.9501276599 | D133: 0.975571133 | E133: 0.9644427486 | F133: 0.9557936715 | G133: 0.9511607984 | H133: 0.9413048032 | I133: 0.9498251128 | J133: 0.9552872245 | K133: 0.9324747116 | L133: 0.9315006876 | M133: 0.9275500222 | N133: 0.9289583976 | O133: 0.9335769389 | P133: 0.9337581818 | Q133: 0.9253241059 | R133: =IF(R88/R$91<>0,R88/R$91,"~") -> 0.9147275432 | S133: 0.9118585138
B134: Taxes on products | C134: =IF(C89/C$91<>0,C89/C$91,"~") -> 0.05511731585 | D134: 0.05189240082 | E134: 0.05504081297 | F134: 0.06361227065 | G134: 0.07062791605 | H134: 0.08239645678 | I134: 0.07259728343 | J134: 0.06032782409 | K134: 0.07975077087 | L134: 0.07010429178 | M134: 0.07842527207 | N134: 0.07707988064 | O134: 0.07165075935 | P134: 0.0714966534 | Q134: 0.07586445877 | R134: =IF(R89/R$91<>0,R89/R$91,"~") -> 0.08527245676 | S134: 0.09208100923
B135: less subsidies | C135: -0.005244975707 | D135: -0.02746353378 | E135: -0.01948356156 | F135: -0.01940594217 | G135: -0.02178871448 | H135: -0.02370126002 | I135: -0.02242239622 | J135: -0.0156150486 | K135: -0.01222548245 | L135: -0.001604979364 | M135: -0.005975294279 | N135: -0.006038278274 | O135: -0.005227698292 | P135: -0.005254835157 | Q135: -0.001188564664 | R135: =IF(R90/R$91<>0,R90/R$91,"~") -> ~ | S135: -0.003939522988
B136: GDP at purchasers prices | C136: 1 | D136: 1 | E136: 1 | F136: 1 | G136: 1 | H136: 1 | I136: 1 | J136: 1 | K136: 1 | L136: 1 | M136: 1 | N136: 1 | O136: 1 | P136: 1 | Q136: 1 | R136: =IF(R91/R$91<>0,R91/R$91,"~") -> 1 | S136: 1
A137: Source: SBOC estimates
A138: Table 2g : Chuuk: Constant price GDP by institutional sector, FY2004-FY2011
B139: (constant prices of FY2004, US$ millions) | C139: =C2 -> FY1995 | D139: FY1996 | E139: FY1997 | F139: FY1998 | G139: FY1999 | H139: FY2000 | I139: FY2001 | J139: FY2002 | K139: FY2003 | L139: FY2004 | M139: FY2005 | N139: FY2006 | O139: FY2007 | P139: FY2008 | Q139: FY2009 | R139: =R2 -> FY2010 | S139: =S2 -> FY2011
A140: 1.1 | B140: Private Enterprise | C140: =[3]Chk!D176 -> 16.90400892 | D140: =[3]Chk!E176 -> 13.41541929 | E140: =[3]Chk!F176 -> 11.25023314 | F140: =[3]Chk!G176 -> 11.77074541 | G140: =[3]Chk!H176 -> 13.16245021 | H140: =[3]Chk!I176 -> 15.33791772 | I140: =[3]Chk!J176 -> 14.64275823 | J140: =[3]Chk!K176 -> 13.25702005 | K140: =[3]Chk!L176 -> 14.81897163 | L140: =[3]Chk!M176 -> 13.65721383 | M140: =[3]Chk!N176 -> 12.32241428 | N140: =[3]Chk!O176 -> 12.02906584 | O140: =[3]Chk!P176 -> 11.20200792 | P140: =[3]Chk!Q176 -> 10.13039017 | Q140: =[3]Chk!R176 -> 9.168032 | R140: =[3]Chk!S176 -> 11.83704486 | S140: =[3]Chk!T176 -> 12.82282365
A141: 1.2 | B141: Public Enterprise | C141: =[3]Chk!D177 -> 2.225298458 | D141: =[3]Chk!E177 -> 1.99525307 | E141: =[3]Chk!F177 -> 2.319546437 | F141: =[3]Chk!G177 -> 2.541215191 | G141: =[3]Chk!H177 -> 2.388501374 | H141: =[3]Chk!I177 -> 2.52456641 | I141: =[3]Chk!J177 -> 2.342313214 | J141: =[3]Chk!K177 -> 2.625773466 | K141: =[3]Chk!L177 -> 2.466087526 | L141: =[3]Chk!M177 -> 2.185152758 | M141: =[3]Chk!N177 -> 2.368757425 | N141: =[3]Chk!O177 -> 2.145030685 | O141: =[3]Chk!P177 -> 2.070385521 | P141: =[3]Chk!Q177 -> 2.089917819 | Q141: =[3]Chk!R177 -> 3.246590698 | R141: =[3]Chk!S177 -> 2.873165145 | S141: =[3]Chk!T177 -> 2.547838258
A142: 2 | B142: Finance (Banks) | C142: =[3]Chk!D178 -> 0.7406927816 | D142: =[3]Chk!E178 -> 0.7136225428 | E142: =[3]Chk!F178 -> 0.5549579448 | F142: =[3]Chk!G178 -> 0.4136781275 | G142: =[3]Chk!H178 -> 0.6269628394 | H142: =[3]Chk!I178 -> 0.9157320536 | I142: =[3]Chk!J178 -> 1.410318361 | J142: =[3]Chk!K178 -> 1.679589103 | K142: =[3]Chk!L178 -> 1.248377165 | L142: =[3]Chk!M178 -> 1.034500066 | M142: =[3]Chk!N178 -> 1.329991098 | N142: =[3]Chk!O178 -> 1.498475513 | O142: =[3]Chk!P178 -> 1.461413944 | P142: =[3]Chk!Q178 -> 1.25739919 | Q142: =[3]Chk!R178 -> 1.020279709 | R142: =[3]Chk!S178 -> 1.030526483 | S142: =[3]Chk!T178 -> 1.097899174
A143: 3 | B143: Government | C143: =[3]Chk!D179 -> 21.68303788 | D143: =[3]Chk!E179 -> 20.76225044 | E143: =[3]Chk!F179 -> 19.49051223 | F143: =[3]Chk!G179 -> 18.53702933 | G143: =[3]Chk!H179 -> 19.94019614 | H143: =[3]Chk!I179 -> 20.56981942 | I143: =[3]Chk!J179 -> 23.74214899 | J143: =[3]Chk!K179 -> 25.71009453 | K143: =[3]Chk!L179 -> 23.65711277 | L143: =[3]Chk!M179 -> 22.02356583 | M143: =[3]Chk!N179 -> 21.93034262 | N143: =[3]Chk!O179 -> 25.11227472 | O143: =[3]Chk!P179 -> 19.69292816 | P143: =[3]Chk!Q179 -> 17.56450466 | Q143: =[3]Chk!R179 -> 18.35359488 | R143: =[3]Chk!S179 -> 18.47380075 | S143: =[3]Chk!T179 -> 17.83410297
A144: 4 | B144: NGOs | C144: =[3]Chk!D180 -> 0.9113159625 | D144: =[3]Chk!E180 -> 0.8936243239 | E144: =[3]Chk!F180 -> 0.9337253714 | F144: =[3]Chk!G180 -> 0.9486649774 | G144: =[3]Chk!H180 -> 0.9730401239 | H144: =[3]Chk!I180 -> 0.8889065536 | I144: =[3]Chk!J180 -> 0.7477665922 | J144: =[3]Chk!K180 -> 0.8790778655 | K144: =[3]Chk!L180 -> 0.8696423249 | L144: =[3]Chk!M180 -> 0.8826161932 | M144: =[3]Chk!N180 -> 0.736365314 | N144: =[3]Chk!O180 -> 0.823250917 | O144: =[3]Chk!P180 -> 0.7823635744 | P144: =[3]Chk!Q180 -> 0.7713554437 | Q144: =[3]Chk!R180 -> 0.7568089853 | R144: =[3]Chk!S180 -> 0.7776458041 | S144: =[3]Chk!T180 -> 0.728895511
A145: 5 | B145: Households | C145: =[3]Chk!D181 -> 34.00530912 | D145: =[3]Chk!E181 -> 34.08995025 | E145: =[3]Chk!F181 -> 34.1627531 | F145: =[3]Chk!G181 -> 34.24608825 | G145: =[3]Chk!H181 -> 34.33824874 | H145: =[3]Chk!I181 -> 34.40095306 | I145: =[3]Chk!J181 -> 34.24318139 | J145: =[3]Chk!K181 -> 34.09230979 | K145: =[3]Chk!L181 -> 34.21197763 | L145: =[3]Chk!M181 -> 33.6308038 | M145: =[3]Chk!N181 -> 33.73929561 | N145: =[3]Chk!O181 -> 33.32432131 | O145: =[3]Chk!P181 -> 33.69822338 | P145: =[3]Chk!Q181 -> 32.89223585 | Q145: =[3]Chk!R181 -> 32.6234762 | R145: =[3]Chk!S181 -> 32.30953952 | S145: =[3]Chk!T181 -> 32.386816
B146: GDP at basic prices | C146: =[3]Chk!D182 -> 76.46966312 | D146: =[3]Chk!E182 -> 71.87011991 | E146: =[3]Chk!F182 -> 68.71172823 | F146: =[3]Chk!G182 -> 68.45742129 | G146: =[3]Chk!H182 -> 71.42939943 | H146: =[3]Chk!I182 -> 74.63789522 | I146: =[3]Chk!J182 -> 77.12848678 | J146: =[3]Chk!K182 -> 78.24386481 | K146: =[3]Chk!L182 -> 77.27216904 | L146: =[3]Chk!M182 -> 73.41385248 | M146: =[3]Chk!N182 -> 72.42716635 | N146: =[3]Chk!O182 -> 74.93241899 | O146: =[3]Chk!P182 -> 68.9073225 | P146: =[3]Chk!Q182 -> 64.70580314 | Q146: =[3]Chk!R182 -> 65.16878248 | R146: =[3]Chk!S182 -> 67.30172256 | S146: =[3]Chk!T182 -> 67.41837557
B147: Taxes on Products less Subsidies | C147: =[3]Chk!D183 -> 4.572286121 | D147: =[3]Chk!E183 -> 3.817696191 | E147: =[3]Chk!F183 -> 3.756238566 | F147: =[3]Chk!G183 -> 4.370654361 | G147: =[3]Chk!H183 -> 5.079301564 | H147: =[3]Chk!I183 -> 6.54496269 | I147: =[3]Chk!J183 -> 5.713947078 | J147: =[3]Chk!K183 -> 4.617976654 | K147: =[3]Chk!L183 -> 6.505726174 | L147: =[3]Chk!M183 -> 5.3353328 | M147: =[3]Chk!N183 -> 5.772614578 | N147: =[3]Chk!O183 -> 5.536684962 | O147: =[3]Chk!P183 -> 4.791754437 | P147: =[3]Chk!Q183 -> 4.300408792 | Q147: =[3]Chk!R183 -> 4.458280695 | R147: =[3]Chk!S183 -> 5.132383874 | S147: =[3]Chk!T183 -> 5.530216348
B148: Less intermediate FISIM | C148: =[3]Chk!D184 -> -0.6965273796 | D148: =[3]Chk!E184 -> -0.6835846689 | E148: =[3]Chk!F184 -> -0.583830297 | F148: =[3]Chk!G184 -> -0.4835789993 | G148: =[3]Chk!H184 -> -0.5598365152 | H148: =[3]Chk!I184 -> -0.8182134932 | I148: =[3]Chk!J184 -> -1.180260985 | J148: =[3]Chk!K184 -> -1.344686151 | K148: =[3]Chk!L184 -> -1.020149785 | L148: =[3]Chk!M184 -> -0.8603333786 | M148: =[3]Chk!N184 -> -1.004282677 | N148: =[3]Chk!O184 -> -1.157231734 | O148: =[3]Chk!P184 -> -1.14982357 | P148: =[3]Chk!Q184 -> -1.09186806 | Q148: =[3]Chk!R184 -> -0.9518599207 | R148: =[3]Chk!S184 -> -0.973245415 | S148: =[3]Chk!T184 -> -0.9679668189
B149: Real GDP at purchasers prices | C149: =[3]Chk!D185 -> 80.34542187 | D149: =[3]Chk!E185 -> 75.00423143 | E149: =[3]Chk!F185 -> 71.8841365 | F149: =[3]Chk!G185 -> 72.34449665 | G149: =[3]Chk!H185 -> 75.94886448 | H149: =[3]Chk!I185 -> 80.36464442 | I149: =[3]Chk!J185 -> 81.66217287 | J149: =[3]Chk!K185 -> 81.51715531 | K149: =[3]Chk!L185 -> 82.75774543 | L149: =[3]Chk!M185 -> 77.8888519 | M149: =[3]Chk!N185 -> 77.19549825 | N149: =[3]Chk!O185 -> 79.31187222 | O149: =[3]Chk!P185 -> 72.54925337 | P149: =[3]Chk!Q185 -> 67.91434387 | Q149: =[3]Chk!R185 -> 68.67520325 | R149: =[3]Chk!S185 -> 71.46086102 | S149: =[3]Chk!T185 -> 71.9806251
A150: Source: SBOC estimates
A151: Table 2h : Chuuk: Constant price GDP by institutional sector, annual % growth, FY2004-FY2011
C152: =C2 -> FY1995 | D152: FY1996 | E152: FY1997 | F152: FY1998 | G152: FY1999 | H152: FY2000 | I152: FY2001 | J152: FY2002 | K152: FY2003 | L152: FY2004 | M152: FY2005 | N152: FY2006 | O152: FY2007 | P152: FY2008 | Q152: FY2009 | R152: =R2 -> FY2010 | S152: =S2 -> FY2011
A153: 1.1 | B153: Private Enterprise | D153: =D140/C140-1 -> -0.2063764667 | E153: =E140/D140-1 -> -0.1613953395 | F153: 0.04626679899 | G153: 0.1182342111 | H153: 0.165278309 | I153: -0.04532293786 | J153: -0.09463641751 | K153: 0.1178207149 | L153: -0.07839665421 | M153: -0.09773586082 | N153: -0.02380608541 | O153: -0.06875495831 | P153: -0.09566300567 | Q153: -0.09499714764 | R153: 0.2911216776 | S153: 0.08327912962
A154: 1.2 | B154: Public Enterprise | D154: =D141/C141-1 -> -0.1033773186 | E154: 0.1625324486 | F154: 0.0955655598 | G154: -0.06009479928 | H154: 0.05696669795 | I154: -0.07219188039 | J154: 0.121017228 | K154: -0.06081481955 | L154: -0.1139192206 | M154: 0.08402372177 | N154: -0.09444898733 | O154: -0.03479911261 | P154: 0.009434136096 | Q154: 0.5534537617 | R154: -0.1150208289 | S154: -0.1132294421
A155: 2 | B155: Finance (Banks) | D155: -0.03654718853 | E155: -0.2223368637 | F155: -0.2545775201 | G155: 0.5155813126 | H155: 0.460584258 | I155: 0.5400993725 | J155: 0.1909290481 | K155: -0.2567365661 | L155: -0.1713241033 | M155: 0.2856365521 | N155: 0.1266808592 | O155: -0.02473284954 | P155: -0.1396009359 | Q155: -0.1885793168 | R155: 0.01004310235 | S155: 0.06537696273
A156: 3 | B156: Government | D156: -0.04246579498 | E156: -0.0612524258 | F156: -0.04892036151 | G156: 0.07569534406 | H156: 0.03157558083 | I156: 0.1542225291 | J156: 0.08288826517 | K156: -0.07985119456 | L156: -0.06905098509 | M156: -0.004232884495 | N156: 0.1450926762 | O156: -0.2158046859 | P156: -0.1080806004 | Q156: 0.04492527599 | R156: 0.006549445169 | S156: -0.03462729636
A157: 4 | B157: NGOs | D157: -0.01941328732 | E157: 0.04487461505 | F157: 0.016 | G157: 0.02569415665 | H157: -0.08646464646 | I157: -0.1587793012 | J157: 0.1756046267 | K157: -0.01073345259 | L157: 0.01491862568 | M157: -0.165701559 | N157: 0.1179925254 | O157: -0.04966571156 | P157: -0.01407035176 | Q157: -0.01885830785 | R157: 0.02753246753 | S157: -0.06268958544
A158: 5 | B158: Households | D158: 0.00248905622 | E158: 0.002135610534 | F158: 0.002439357003 | G158: 0.002691124485 | H158: 0.001826078017 | I158: -0.004586258713 | J158: -0.004405887424 | K158: 0.003510112314 | L158: -0.0169874373 | M158: 0.003225965357 | N158: -0.01229943565 | O158: 0.01122009547 | P158: -0.0239178048 | Q158: -0.008170914559 | R158: -0.009623029681 | S158: 0.002391754343
B159: GDP at basic prices | D159: -0.06014860046 | E159: -0.04394582458 | F159: -0.003701070291 | G159: 0.04341352746 | H159: 0.04491842035 | I159: 0.03336899511 | J159: 0.01446129791 | K159: -0.01241881093 | L159: -0.04993151619 | M159: -0.01344005388 | N159: 0.03458995794 | O159: -0.08040707308 | P159: -0.06097348161 | Q159: 0.007155144021 | R159: 0.03272947564 | S159: 0.001733284209
B160: Taxes on Products less Subsidies | D160: -0.1650355884 | E160: -0.01609809194 | F160: 0.1635720904 | G160: 0.1621375529 | H160: 0.2885556426 | I160: -0.1269702597 | J160: -0.1918061909 | K160: 0.4087828201 | L160: -0.1799020344 | M160: 0.08195960673 | N160: -0.04087049518 | O160: -0.1345445026 | P160: -0.1025398216 | Q160: 0.036710906 | R160: 0.1512024981 | S160: 0.07751416971
B161: Less intermediate FISIM | D161: -0.01858176878 | E161: -0.145928334 | F161: -0.1717130786 | G161: 0.157694019 | H161: 0.4615221962 | I161: 0.4424853592 | J161: 0.1393125488 | K161: -0.2413472956 | L161: -0.156659746 | M161: 0.1673180443 | N161: 0.1522968187 | O161: -0.00640162519 | P161: -0.05040382836 | Q161: -0.1282280748 | R161: 0.02246706038 | S161: -0.005423705083
B162: Real GDP at purchasers prices | D162: -0.06647784416 | E162: -0.04159891882 | F162: 0.00640419679 | G162: 0.04982228079 | H162: 0.05814148728 | I162: 0.01614551357 | J162: -0.001775823001 | K162: 0.01521876122 | L162: -0.05883308567 | M162: -0.008901834294 | N162: 0.02741576921 | O162: -0.0852661608 | P162: -0.0638863845 | Q162: 0.01120322069 | R162: 0.04056278877 | S162: 0.007273409196
A163: Source: SBOC estimates
A164: Table 2i : Chuuk: Current price GDP by institutional sector, FY2004-FY2011
B165: (US$ millions) | C165: =C2 -> FY1995 | D165: FY1996 | E165: FY1997 | F165: FY1998 | G165: FY1999 | H165: FY2000 | I165: FY2001 | J165: FY2002 | K165: FY2003 | L165: FY2004 | M165: FY2005 | N165: FY2006 | O165: FY2007 | P165: FY2008 | Q165: FY2009 | R165: =R2 -> FY2010 | S165: =S2 -> FY2011
A166: 1.1 | B166: Private Enterprise | C166: =[3]Chk!D204 -> 14.50192065 | D166: =[3]Chk!E204 -> 11.82159595 | E166: =[3]Chk!F204 -> 10.09731836 | F166: =[3]Chk!G204 -> 10.83792225 | G166: =[3]Chk!H204 -> 12.42365222 | H166: =[3]Chk!I204 -> 14.65356309 | I166: =[3]Chk!J204 -> 14.2563507 | J166: =[3]Chk!K204 -> 12.92959293 | K166: =[3]Chk!L204 -> 14.46366671 | L166: =[3]Chk!M204 -> 13.65721383 | M166: =[3]Chk!N204 -> 13.11850954 | N166: =[3]Chk!O204 -> 13.67390237 | O166: =[3]Chk!P204 -> 13.20647367 | P166: =[3]Chk!Q204 -> 12.99812078 | Q166: =[3]Chk!R204 -> 11.69962607 | R166: =[3]Chk!S204 -> 15.77295053 | S166: =[3]Chk!T204 -> 17.80662529
A167: 1.2 | B167: Public Enterprise | C167: =[3]Chk!D205 -> 2.095721097 | D167: =[3]Chk!E205 -> 1.701817023 | E167: =[3]Chk!F205 -> 2.894555805 | F167: =[3]Chk!G205 -> 3.279099121 | G167: =[3]Chk!H205 -> 2.820227225 | H167: =[3]Chk!I205 -> 3.765367272 | I167: =[3]Chk!J205 -> 3.403170261 | J167: =[3]Chk!K205 -> 2.686645554 | K167: =[3]Chk!L205 -> 2.789861174 | L167: =[3]Chk!M205 -> 2.185152758 | M167: =[3]Chk!N205 -> 2.403879979 | N167: =[3]Chk!O205 -> 1.914356472 | O167: =[3]Chk!P205 -> 1.918265581 | P167: =[3]Chk!Q205 -> 2.341786579 | Q167: =[3]Chk!R205 -> 5.002845018 | R167: =[3]Chk!S205 -> 3.816225045 | S167: =[3]Chk!T205 -> 3.500479476
A168: 2 | B168: Finance (Banks) | C168: =[3]Chk!D206 -> 0.6563428777 | D168: =[3]Chk!E206 -> 0.6500378116 | E168: =[3]Chk!F206 -> 0.5189907218 | F168: =[3]Chk!G206 -> 0.393182976 | G168: =[3]Chk!H206 -> 0.6073380535 | H168: =[3]Chk!I206 -> 0.9018832989 | I168: =[3]Chk!J206 -> 1.397151611 | J168: =[3]Chk!K206 -> 1.65905315 | K168: =[3]Chk!L206 -> 1.228556831 | L168: =[3]Chk!M206 -> 1.034500066 | M168: =[3]Chk!N206 -> 1.373743343 | N168: =[3]Chk!O206 -> 1.595743754 | O168: =[3]Chk!P206 -> 1.60177342 | P168: =[3]Chk!Q206 -> 1.470000514 | Q168: =[3]Chk!R206 -> 1.2846587 | R168: =[3]Chk!S206 -> 1.371107993 | S168: =[3]Chk!T206 -> 1.523580576
A169: 3 | B169: Government | C169: =[3]Chk!D207 -> 25.28926982 | D169: =[3]Chk!E207 -> 23.92643402 | E169: =[3]Chk!F207 -> 19.03108493 | F169: =[3]Chk!G207 -> 18.46875014 | G169: =[3]Chk!H207 -> 18.78467217 | H169: =[3]Chk!I207 -> 20.17456908 | I169: =[3]Chk!J207 -> 22.80892438 | J169: =[3]Chk!K207 -> 24.26168074 | K169: =[3]Chk!L207 -> 23.20760839 | L169: =[3]Chk!M207 -> 22.02356583 | M169: =[3]Chk!N207 -> 22.06468612 | N169: =[3]Chk!O207 -> 23.76247733 | O169: =[3]Chk!P207 -> 20.801191 | P169: =[3]Chk!Q207 -> 18.11945682 | Q169: =[3]Chk!R207 -> 19.58117273 | R169: =[3]Chk!S207 -> 21.44984403 | S169: =[3]Chk!T207 -> 20.45834382
A170: 4 | B170: NGOs | C170: =[3]Chk!D208 -> 0.721852561 | D170: =[3]Chk!E208 -> 0.7290906505 | E170: =[3]Chk!F208 -> 0.7389161457 | F170: =[3]Chk!G208 -> 0.7623368742 | G170: =[3]Chk!H208 -> 0.7492978441 | H170: =[3]Chk!I208 -> 0.7943838419 | I170: =[3]Chk!J208 -> 0.7309087584 | J170: =[3]Chk!K208 -> 0.858199645 | K170: =[3]Chk!L208 -> 0.8433633485 | L170: =[3]Chk!M208 -> 0.8826161932 | M170: =[3]Chk!N208 -> 0.8481798177 | N170: =[3]Chk!O208 -> 0.8799348091 | O170: =[3]Chk!P208 -> 0.8924125217 | P170: =[3]Chk!Q208 -> 0.9546030884 | Q170: =[3]Chk!R208 -> 0.9215884732 | R170: =[3]Chk!S208 -> 0.9531713917 | S170: =[3]Chk!T208 -> 0.9531604609
A171: 5 | B171: Households | C171: =[3]Chk!D209 -> 32.57199171 | D171: =[3]Chk!E209 -> 33.56506154 | E171: =[3]Chk!F209 -> 34.53250194 | F171: =[3]Chk!G209 -> 35.18070018 | G171: =[3]Chk!H209 -> 35.95105056 | H171: =[3]Chk!I209 -> 35.94725981 | I171: =[3]Chk!J209 -> 36.58365943 | J171: =[3]Chk!K209 -> 35.90028298 | K171: =[3]Chk!L209 -> 34.7439365 | L171: =[3]Chk!M209 -> 33.6308038 | M171: =[3]Chk!N209 -> 34.04959891 | N171: =[3]Chk!O209 -> 33.25149301 | O171: =[3]Chk!P209 -> 34.03038344 | P171: =[3]Chk!Q209 -> 33.71146148 | Q171: =[3]Chk!R209 -> 34.4385501 | R171: =[3]Chk!S209 -> 35.35721769 | S171: =[3]Chk!T209 -> 37.24833556
B172: GDP at basic prices | C172: =[3]Chk!D210 -> 75.83709871 | D172: =[3]Chk!E210 -> 72.39403699 | E172: =[3]Chk!F210 -> 67.81336791 | F172: =[3]Chk!G210 -> 68.92199154 | G172: =[3]Chk!H210 -> 71.33623807 | H172: =[3]Chk!I210 -> 76.23702639 | I172: =[3]Chk!J210 -> 79.18016514 | J172: =[3]Chk!K210 -> 78.295455 | K172: =[3]Chk!L210 -> 77.27699295 | L172: =[3]Chk!M210 -> 73.41385248 | M172: =[3]Chk!N210 -> 73.85859771 | N172: =[3]Chk!O210 -> 75.07790774 | O172: =[3]Chk!P210 -> 72.45049963 | P172: =[3]Chk!Q210 -> 69.59542927 | Q172: =[3]Chk!R210 -> 72.9284411 | R172: =[3]Chk!S210 -> 78.72051667 | S172: =[3]Chk!T210 -> 81.49052518
B173: Taxes on Products less Subsidies | C173: =[3]Chk!D211 -> 3.948303141 | D173: =[3]Chk!E211 -> 1.797196501 | E173: =[3]Chk!F211 -> 2.480025908 | F173: =[3]Chk!G211 -> 3.166447052 | G173: =[3]Chk!H211 -> 3.635051811 | H173: =[3]Chk!I211 -> 4.703522536 | I173: =[3]Chk!J211 -> 4.120957863 | J173: =[3]Chk!K211 -> 3.602495138 | K173: =[3]Chk!L211 -> 5.523323 | L173: =[3]Chk!M211 -> 5.3353328 | M173: =[3]Chk!N211 -> 5.687995053 | N173: =[3]Chk!O211 -> 5.64730004 | O173: =[3]Chk!P211 -> 5.06511424 | P173: =[3]Chk!Q211 -> 4.84662027 | Q173: =[3]Chk!R211 -> 5.78877901 | R173: =[3]Chk!S211 -> 7.217748 | S173: =[3]Chk!T211 -> 7.74714284
B174: Less intermediate FISIM | C174: =[3]Chk!D212 -> -0.6172070204 | D174: =[3]Chk!E212 -> -0.6226763527 | E174: =[3]Chk!F212 -> -0.5459918361 | F174: =[3]Chk!G212 -> -0.459620699 | G174: =[3]Chk!H212 -> -0.5423128742 | H174: =[3]Chk!I212 -> -0.8058395265 | I174: =[3]Chk!J212 -> -1.169242053 | J174: =[3]Chk!K212 -> -1.32824498 | K174: =[3]Chk!L212 -> -1.00395299 | L174: =[3]Chk!M212 -> -0.8603333786 | M174: =[3]Chk!N212 -> -1.037320207 | N174: =[3]Chk!O212 -> -1.23234934 | O174: =[3]Chk!P212 -> -1.26025678 | P174: =[3]Chk!Q212 -> -1.276481346 | Q174: =[3]Chk!R212 -> -1.1985097 | R174: =[3]Chk!S212 -> -1.294895948 | S174: =[3]Chk!T212 -> -1.343270382
B175: GDP at purchasers prices | C175: =[3]Chk!D213 -> 79.16819483 | D175: =[3]Chk!E213 -> 73.56855714 | E175: =[3]Chk!F213 -> 69.74740198 | F175: =[3]Chk!G213 -> 71.62881789 | G175: =[3]Chk!H213 -> 74.42897701 | H175: =[3]Chk!I213 -> 80.1347094 | I175: =[3]Chk!J213 -> 82.13188095 | J175: =[3]Chk!K213 -> 80.56970516 | K175: =[3]Chk!L213 -> 81.79636296 | L175: =[3]Chk!M213 -> 77.8888519 | M175: =[3]Chk!N213 -> 78.50927256 | N175: =[3]Chk!O213 -> 79.49285844 | O175: =[3]Chk!P213 -> 76.25535709 | P175: =[3]Chk!Q213 -> 73.16556819 | Q175: =[3]Chk!R213 -> 77.51871041 | R175: =[3]Chk!S213 -> 84.64336873 | S175: =[3]Chk!T213 -> 87.89439764
A176: Source: SBOC estimates
A177: Table 2j : Chuuk: Implicit GDP price deflators by institutional sector, FY2004-FY2011
B178: (FY2004=100) | C178: =C2 -> FY1995 | D178: FY1996 | E178: FY1997 | F178: FY1998 | G178: FY1999 | H178: FY2000 | I178: FY2001 | J178: FY2002 | K178: FY2003 | L178: FY2004 | M178: FY2005 | N178: FY2006 | O178: FY2007 | P178: FY2008 | Q178: FY2009 | R178: =R2 -> FY2010 | S178: =S2 -> FY2011
A179: 1.1 | B179: Private Enterprise | C179: =C166/C140*100 -> 85.78983078 | D179: 88.11946683 | E179: 89.75208104 | F179: 92.07507145 | G179: 94.38707855 | H179: 95.53815161 | I179: 97.36110149 | J179: 97.53016047 | K179: 97.60236451 | L179: 100 | M179: 106.4605461 | N179: 113.6738509 | O179: 117.8938077 | P179: 128.3081951 | Q179: 127.613277 | R179: =R166/R140*100 -> 133.2507456 | S179: 138.8666473
A180: 1.2 | B180: Public Enterprise | C180: =C167/C141*100 -> 94.17707949 | D180: 85.29329178 | E180: 124.789733 | F180: 129.0366567 | G180: 118.075177 | H180: 149.149068 | I180: 145.2909987 | J180: 102.3182536 | K180: 113.1290412 | L180: 100 | M180: 101.4827417 | N180: 89.24611126 | O180: 92.65257904 | P180: 112.0516107 | Q180: 154.0953413 | R180: =R167/R141*100 -> 132.8230315 | S180: 137.3901763
A181: 2 | B181: Finance (Banks) | C181: =C168/C142*100 -> 88.61202567 | D181: 91.0898651 | E181: 93.51892817 | F181: 95.04562846 | G181: 96.86986458 | H181: 98.48768484 | I181: 99.06639875 | J181: 98.7773228 | K181: 98.41231207 | L181: 100 | M181: 103.2896644 | N181: 106.4911465 | O181: 109.6043613 | P181: 116.9080215 | Q181: 125.9124031 | R181: =R168/R142*100 -> 133.0492729 | S181: 138.7723583
A182: 3 | B182: Government | C182: =C169/C143*100 -> 116.6315807 | D182: 115.24008 | E182: 97.64281567 | F182: 99.63166059 | G182: 94.20505215 | H182: 98.07849391 | I182: 96.06933386 | J182: 94.36636147 | K182: 98.09991867 | L182: 100 | M182: 100.6125919 | N182: 94.62494972 | O182: 105.6277199 | P182: 103.1595093 | Q182: 106.6884872 | R182: =R169/R143*100 -> 116.1095344 | S182: 114.7147342
A183: 4 | B183: NGOs | C183: =C170/C144*100 -> 79.2099108 | D183: 81.58804891 | E183: 79.13634654 | F183: 80.35891409 | G183: 77.00585265 | H183: 89.36640625 | I183: 97.74557542 | J183: 97.62498621 | K183: 96.97818567 | L183: 100 | M183: 115.1846511 | N183: 106.8853725 | O183: 114.0662156 | P183: 123.7565763 | Q183: 121.7729296 | R183: =R170/R144*100 -> 122.5714055 | S183: 130.7677776
A184: 5 | B184: Households | C184: =C171/C145*100 -> 95.78501872 | D184: 98.46028315 | E184: 101.0823157 | F184: 102.7291056 | G184: 104.6968086 | H184: 104.4949532 | I184: 106.8348732 | J184: 105.3031701 | K184: 101.5548907 | L184: 100 | M184: 100.9197089 | N184: 99.781456 | O184: 100.9856901 | P184: 102.4906353 | Q184: 105.5637048 | R184: =R171/R145*100 -> 109.4327502 | S184: 115.0107981
B185: GDP at basic prices | C185: =C172/C146*100 -> 99.17279038 | D185: 100.7289776 | E185: 98.69256625 | F185: 100.6786266 | G185: 99.86957561 | H185: 102.1425191 | I185: 102.6600786 | J185: 100.0659351 | K185: 100.0062427 | L185: 100 | M185: 101.9763736 | N185: 100.19416 | O185: 105.1419457 | P185: 107.5567042 | Q185: 111.9070179 | R185: =R172/R146*100 -> 116.9665704 | S185: 120.8728696
B186: Taxes on Products less Subsidies | C186: =C173/C147*100 -> 86.35293236 | D186: 47.0754196 | E186: 66.0241852 | F186: 72.44789431 | G186: 71.56597744 | H186: 71.86477232 | I186: 72.1210366 | J186: 78.01025012 | K186: 84.89940788 | L186: 100 | M186: 98.53412134 | N186: 101.9978575 | O186: 105.7047957 | P186: 112.701385 | Q186: 129.8433052 | R186: =R173/R147*100 -> 140.6314917 | S186: 140.0875183
B187: Less intermediate FISIM | C187: =C174/C148*100 -> 88.61202567 | D187: 91.0898651 | E187: 93.51892817 | F187: 95.04562846 | G187: 96.86986458 | H187: 98.48768484 | I187: 99.06639875 | J187: 98.7773228 | K187: 98.41231207 | L187: 100 | M187: 103.2896644 | N187: 106.4911465 | O187: 109.6043613 | P187: 116.9080215 | Q187: 125.9124031 | R187: =R174/R148*100 -> 133.0492729 | S187: 138.7723583
B188: GDP at purchasers prices | C188: =C175/C149*100 -> 98.53479264 | D188: 98.08587561 | E188: 97.02752982 | F188: 99.01073504 | G188: 97.99880159 | H188: 99.71388536 | I188: 100.5751844 | J188: 98.83772913 | K188: 98.83831722 | L188: 100 | M188: 101.7018794 | N188: 100.2281956 | O188: 105.1083968 | P188: 107.7321285 | Q188: 112.877293 | R188: =R175/R149*100 -> 118.4471717 | S188: 122.1084111
A189: Source: SBOC estimates
A190: Table 2k : Chuuk: Share of GDP by institutional sector, current prices, FY2004-FY2011
C191: =C2 -> FY1995 | D191: FY1996 | E191: FY1997 | F191: FY1998 | G191: FY1999 | H191: FY2000 | I191: FY2001 | J191: FY2002 | K191: FY2003 | L191: FY2004 | M191: FY2005 | N191: FY2006 | O191: FY2007 | P191: FY2008 | Q191: FY2009 | R191: =R2 -> FY2010 | S191: =S2 -> FY2011
A192: 1.1 | B192: Private Enterprise | C192: =C166/C$175 -> 0.1831786196 | D192: =D166/D$175 -> 0.1606881582 | E192: =E166/E$175 -> 0.1447698133 | F192: 0.1513067305 | G192: 0.1669195617 | H192: 0.1828616238 | I192: 0.1735787679 | J192: 0.1604771037 | K192: 0.1768253035 | L192: 0.1753423436 | M192: 0.1670950337 | N192: 0.1720142241 | O192: 0.1731874871 | P192: 0.1776535207 | Q192: =Q166/Q$175 -> 0.1509264797 | R192: 0.1863459685 | S192: =S166/S$175 -> 0.2025911294
A193: 1.2 | B193: Public Enterprise | C193: =C167/C$175 -> 0.02647175551 | D193: 0.02313239635 | E193: =E167/E$175 -> 0.04150055376 | F193: 0.04577904839 | G193: 0.03789152207 | H193: 0.04698796938 | I193: 0.04143543557 | J193: 0.03334560488 | K193: 0.03410739882 | L193: 0.02805475629 | M193: 0.03061905811 | N193: 0.02408211894 | O193: 0.02515581402 | P193: 0.03200667523 | Q193: =Q167/Q$175 -> 0.06453725806 | R193: 0.04508593056 | S193: =S167/S$175 -> 0.03982596809
A194: 2 | B194: Finance (Banks) | C194: 0.008290486844 | D194: 0.008835810255 | E194: =E168/E$175 -> 0.007441004354 | F194: 0.005489173039 | G194: 0.008159967769 | H194: 0.01125459 | I194: 0.0170110753 | J194: 0.02059152565 | K194: 0.01501969998 | L194: 0.01328174753 | M194: 0.01749784832 | N194: 0.02007405174 | O194: 0.02100538875 | P194: 0.02009142484 | Q194: =Q168/Q$175 -> 0.01657224034 | R194: 0.01619864631 | S194: =S168/S$175 -> 0.01733421716
A195: 3 | B195: Government | C195: 0.3194372421 | D195: 0.3252263596 | E195: =E169/E$175 -> 0.2728572591 | F195: 0.2578396613 | G195: 0.2523838554 | H195: 0.2517581861 | I195: 0.2777109706 | J195: 0.3011265921 | K195: 0.2837242091 | L195: 0.2827563289 | M195: 0.2810456065 | N195: 0.2989259387 | O195: 0.27278334 | P195: 0.2476500527 | Q195: =Q169/Q$175 -> 0.2525993096 | R195: 0.2534143472 | S195: =S169/S$175 -> 0.2327604986
A196: 4 | B196: NGOs | C196: 0.009117961608 | D196: 0.009910356799 | E196: =E170/E$175 -> 0.01059417447 | F196: 0.01064287945 | G196: 0.01006728662 | H196: 0.009913105666 | I196: 0.008899208808 | J196: 0.01065164187 | K196: 0.01031052382 | L196: 0.01133173967 | M196: 0.01080356231 | N196: 0.01106935675 | O196: 0.01170294856 | P196: 0.01304716292 | Q196: =Q170/Q$175 -> 0.01188859397 | R196: 0.01126102855 | S196: =S170/S$175 -> 0.01084438242
A197: 5 | B197: Households | C197: 0.4114277429 | D197: 0.4562419442 | E197: =E171/E$175 -> 0.4951080751 | F197: 0.4911528797 | G197: 0.4830249186 | H197: 0.4485853893 | I197: 0.4454258079 | J197: 0.445580419 | K197: 0.424761386 | L197: 0.4317794264 | M197: 0.4337016227 | N197: 0.4182953496 | O197: 0.4462687572 | P197: 0.4607558216 | Q197: =Q171/Q$175 -> 0.4442611329 | R197: 0.4177198783 | S197: =S171/S$175 -> 0.4237850939
B198: GDP at basic prices | C198: 0.9579238086 | D198: 0.9840350254 | E198: =E172/E$175 -> 0.9722708801 | F198: 0.9622103724 | G198: 0.9584471121 | H198: 0.9513608642 | I198: 0.9640612662 | J198: 0.9717728872 | K198: 0.9447485212 | L198: 0.9425463425 | M198: 0.9407627317 | N198: 0.9444610398 | O198: 0.9501037356 | P198: 0.951204658 | Q198: =Q172/Q$175 -> 0.9407850145 | R198: 0.9300257995 | S198: =S172/S$175 -> 0.9271412897
B199: Taxes on Products less Subsidies | C199: 0.04987234015 | D199: 0.02442886704 | E199: =E173/E$175 -> 0.03555725141 | F199: 0.04420632847 | G199: 0.04883920157 | H199: 0.05869519676 | I199: 0.05017488721 | J199: 0.04471277549 | K199: 0.06752528842 | L199: 0.06849931241 | M199: 0.07244997779 | N199: 0.07104160237 | O199: 0.06642306106 | P199: 0.06624181825 | Q199: =Q173/Q$175 -> 0.07467589411 | R199: 0.08527245676 | S199: =S173/S$175 -> 0.08814148624
B200: Less intermediate FISIM | C200: -0.007796148715 | D200: -0.008463892415 | E200: =E174/E$175 -> -0.007828131524 | F200: -0.006416700883 | G200: -0.00728631369 | H200: -0.01005606101 | I200: -0.01423615337 | J200: -0.01648566266 | K200: -0.01227380966 | L200: -0.0110456549 | M200: -0.01321270945 | N200: -0.01550264218 | O200: -0.01652679665 | P200: -0.01744647623 | Q200: =Q174/Q$175 -> -0.01546090864 | R200: -0.01529825629 | S200: =S174/S$175 -> -0.0152827759
... 44 more rows

Sheet gdp_K
A1: Table 3a : Kosrae: Constant price GDP by industry, FY2004-FY2011
B2: (constant prices of FY2004, US$ millions) | C2: FY1995 | D2: FY1996 | E2: FY1997 | F2: FY1998 | G2: FY1999 | H2: FY2000 | I2: FY2001 | J2: FY2002 | K2: FY2003 | L2: FY2004 | M2: FY2005 | N2: FY2006 | O2: FY2007 | P2: FY2008 | Q2: FY2009 | R2: FY2010 | S2: FY2011
A3: A | B3: Agriculture, Hunting and Forestry | C3: =[3]indKos!D3 -> 1.159658377 | D3: =[3]indKos!E3 -> 1.155253728 | E3: =[3]indKos!F3 -> 1.151680233 | F3: =[3]indKos!G3 -> 1.149293975 | G3: =[3]indKos!H3 -> 1.138095304 | H3: =[3]indKos!I3 -> 1.13443765 | I3: =[3]indKos!J3 -> 1.108660166 | J3: =[3]indKos!K3 -> 1.068677401 | K3: =[3]indKos!L3 -> 1.040880775 | L3: =[3]indKos!M3 -> 1.003865098 | M3: =[3]indKos!N3 -> 0.9756748254 | N3: =[3]indKos!O3 -> 0.9428955168 | O3: =[3]indKos!P3 -> 0.9390924853 | P3: =[3]indKos!Q3 -> 0.8994823185 | Q3: =[3]indKos!R3 -> 0.8800940656 | R3: =[3]indKos!S3 -> 0.8496312387 | S3: =[3]indKos!T3 -> 0.833578158
A4: B | B4: Fisheries | C4: =[3]indKos!D4 -> 1.421153244 | D4: =[3]indKos!E4 -> 0.8936414718 | E4: =[3]indKos!F4 -> 1.040351012 | F4: =[3]indKos!G4 -> 1.124893667 | G4: =[3]indKos!H4 -> 1.006811109 | H4: =[3]indKos!I4 -> 0.9380538498 | I4: =[3]indKos!J4 -> 0.8264028601 | J4: =[3]indKos!K4 -> 0.8148563092 | K4: =[3]indKos!L4 -> 0.7982703147 | L4: =[3]indKos!M4 -> 0.7817001666 | M4: =[3]indKos!N4 -> 0.7903702338 | N4: =[3]indKos!O4 -> 0.8035923221 | O4: =[3]indKos!P4 -> 0.8652089329 | P4: =[3]indKos!Q4 -> 0.8479288654 | Q4: =[3]indKos!R4 -> 0.9667977578 | R4: =[3]indKos!S4 -> 1.005783937 | S4: =[3]indKos!T4 -> 1.040120655
A5: C | B5: Mining and Quarrying | C5: =[3]indKos!D5 -> 0 | D5: =[3]indKos!E5 -> 0 | E5: =[3]indKos!F5 -> 0 | F5: =[3]indKos!G5 -> 0 | G5: =[3]indKos!H5 -> 0 | H5: =[3]indKos!I5 -> 0 | I5: =[3]indKos!J5 -> 0 | J5: =[3]indKos!K5 -> 0 | K5: =[3]indKos!L5 -> 0 | L5: =[3]indKos!M5 -> 0 | M5: =[3]indKos!N5 -> 0 | N5: =[3]indKos!O5 -> 0 | O5: =[3]indKos!P5 -> 0 | P5: =[3]indKos!Q5 -> 0 | Q5: =[3]indKos!R5 -> 0 | R5: =[3]indKos!S5 -> 0.0008510612449 | S5: =[3]indKos!T5 -> 0.003340676865
A6: D | B6: Manufacturing | C6: =[3]indKos!D6 -> 0.1127947637 | D6: =[3]indKos!E6 -> 0.1206223944 | E6: =[3]indKos!F6 -> 0.1874187959 | F6: =[3]indKos!G6 -> 0.3114411444 | G6: =[3]indKos!H6 -> 0.3373914115 | H6: =[3]indKos!I6 -> 0.4622651762 | I6: =[3]indKos!J6 -> 0.3075315928 | J6: =[3]indKos!K6 -> 0.3167288916 | K6: =[3]indKos!L6 -> 0.3148559864 | L6: =[3]indKos!M6 -> 0.286126085 | M6: =[3]indKos!N6 -> 0.243465265 | N6: =[3]indKos!O6 -> 0.2241527881 | O6: =[3]indKos!P6 -> 0.2357158313 | P6: =[3]indKos!Q6 -> 0.197193538 | Q6: =[3]indKos!R6 -> 0.155840176 | R6: =[3]indKos!S6 -> 0.2185069877 | S6: =[3]indKos!T6 -> 0.2111814458
A7: E | B7: Electricity, Gas and Water Supply | C7: =[3]indKos!D7 -> 0.7289729226 | D7: =[3]indKos!E7 -> 0.6116471733 | E7: =[3]indKos!F7 -> 0.5796330729 | F7: =[3]indKos!G7 -> 0.5738823919 | G7: =[3]indKos!H7 -> 0.5532813962 | H7: =[3]indKos!I7 -> 0.4918991889 | I7: =[3]indKos!J7 -> 0.4936692848 | J7: =[3]indKos!K7 -> 0.3717192766 | K7: =[3]indKos!L7 -> 0.4830572034 | L7: =[3]indKos!M7 -> 0.444166 | M7: =[3]indKos!N7 -> 0.4170133001 | N7: =[3]indKos!O7 -> 0.3890306049 | O7: =[3]indKos!P7 -> 0.3784185235 | P7: =[3]indKos!Q7 -> 0.3660871663 | Q7: =[3]indKos!R7 -> 0.3570165045 | R7: =[3]indKos!S7 -> 0.3855920534 | S7: =[3]indKos!T7 -> 0.3668578761
A8: F | B8: Construction | C8: =[3]indKos!D8 -> 1.217936229 | D8: =[3]indKos!E8 -> 1.721334511 | E8: =[3]indKos!F8 -> 1.186890403 | F8: =[3]indKos!G8 -> 0.9863787081 | G8: =[3]indKos!H8 -> 1.293305558 | H8: =[3]indKos!I8 -> 1.181046916 | I8: =[3]indKos!J8 -> 1.12849875 | J8: =[3]indKos!K8 -> 0.8988263366 | K8: =[3]indKos!L8 -> 1.198493463 | L8: =[3]indKos!M8 -> 1.212881613 | M8: =[3]indKos!N8 -> 1.094340572 | N8: =[3]indKos!O8 -> 1.027153518 | O8: =[3]indKos!P8 -> 0.9040982475 | P8: =[3]indKos!Q8 -> 1.073340068 | Q8: =[3]indKos!R8 -> 1.779540478 | R8: =[3]indKos!S8 -> 1.388753021 | S8: =[3]indKos!T8 -> 2.327225442
A9: G | B9: Wholesale and Retail Trade and Repairs | C9: =[3]indKos!D9 -> 2.199444988 | D9: =[3]indKos!E9 -> 2.139610241 | E9: =[3]indKos!F9 -> 1.517823918 | F9: =[3]indKos!G9 -> 1.072815884 | G9: =[3]indKos!H9 -> 1.34440968 | H9: =[3]indKos!I9 -> 1.300423764 | I9: =[3]indKos!J9 -> 3.106468404 | J9: =[3]indKos!K9 -> 2.012494838 | K9: =[3]indKos!L9 -> 1.85295226 | L9: =[3]indKos!M9 -> 1.971023973 | M9: =[3]indKos!N9 -> 1.709988682 | N9: =[3]indKos!O9 -> 1.900397075 | O9: =[3]indKos!P9 -> 1.753838736 | P9: =[3]indKos!Q9 -> 1.629160193 | Q9: =[3]indKos!R9 -> 1.727392962 | R9: =[3]indKos!S9 -> 1.925672397 | S9: =[3]indKos!T9 -> 1.777219767
A10: H | B10: Hotels and Restaurants | C10: =[3]indKos!D10 -> 0.2148601345 | D10: =[3]indKos!E10 -> 0.3201903437 | E10: =[3]indKos!F10 -> 0.3332153059 | F10: =[3]indKos!G10 -> 0.2629519123 | G10: =[3]indKos!H10 -> 0.2806126629 | H10: =[3]indKos!I10 -> 0.3133905838 | I10: =[3]indKos!J10 -> 0.3362662233 | J10: =[3]indKos!K10 -> 0.3046848724 | K10: =[3]indKos!L10 -> 0.2863629906 | L10: =[3]indKos!M10 -> 0.2686287489 | M10: =[3]indKos!N10 -> 0.2604633857 | N10: =[3]indKos!O10 -> 0.2448715428 | O10: =[3]indKos!P10 -> 0.2567771617 | P10: =[3]indKos!Q10 -> 0.2468463769 | Q10: =[3]indKos!R10 -> 0.2160998412 | R10: =[3]indKos!S10 -> 0.2481241013 | S10: =[3]indKos!T10 -> 0.2484588647
A11: I | B11: Transport, Storage and Communications | C11: =[3]indKos!D11 -> 0.9774825119 | D11: =[3]indKos!E11 -> 0.9557680615 | E11: =[3]indKos!F11 -> 0.9403758859 | F11: =[3]indKos!G11 -> 0.9218762483 | G11: =[3]indKos!H11 -> 1.106572605 | H11: =[3]indKos!I11 -> 1.078901 | I11: =[3]indKos!J11 -> 1.055912482 | J11: =[3]indKos!K11 -> 1.023083948 | K11: =[3]indKos!L11 -> 0.979284371 | L11: =[3]indKos!M11 -> 0.9373534119 | M11: =[3]indKos!N11 -> 0.8936680419 | N11: =[3]indKos!O11 -> 0.8273679736 | O11: =[3]indKos!P11 -> 0.7677673495 | P11: =[3]indKos!Q11 -> 0.7010784626 | Q11: =[3]indKos!R11 -> 0.7523093714 | R11: =[3]indKos!S11 -> 0.6967800158 | S11: =[3]indKos!T11 -> 0.7144507027
A12: J | B12: Financial Intermediation | C12: =[3]indKos!D12 -> 0.211064162 | D12: =[3]indKos!E12 -> 0.209451437 | E12: =[3]indKos!F12 -> 0.2257067356 | F12: =[3]indKos!G12 -> 0.1794534631 | G12: =[3]indKos!H12 -> 0.212938778 | H12: =[3]indKos!I12 -> 0.3729856547 | I12: =[3]indKos!J12 -> 0.4540085566 | J12: =[3]indKos!K12 -> 0.7480466351 | K12: =[3]indKos!L12 -> 0.2632310864 | L12: =[3]indKos!M12 -> 0.1879142613 | M12: =[3]indKos!N12 -> 0.2576408504 | N12: =[3]indKos!O12 -> 0.288507827 | O12: =[3]indKos!P12 -> 0.2979756847 | P12: =[3]indKos!Q12 -> 0.2743623408 | Q12: =[3]indKos!R12 -> 0.224157278 | R12: =[3]indKos!S12 -> 0.2960787648 | S12: =[3]indKos!T12 -> 0.3354851367
A13: K | B13: Real Estate, Renting, Business Activities | C13: =[3]indKos!D13 -> 1.607794206 | D13: =[3]indKos!E13 -> 1.699752546 | E13: =[3]indKos!F13 -> 1.770360909 | F13: =[3]indKos!G13 -> 1.801114662 | G13: =[3]indKos!H13 -> 1.945581365 | H13: =[3]indKos!I13 -> 2.045434741 | I13: =[3]indKos!J13 -> 2.093552159 | J13: =[3]indKos!K13 -> 2.063105288 | K13: =[3]indKos!L13 -> 1.998698915 | L13: =[3]indKos!M13 -> 2.011333584 | M13: =[3]indKos!N13 -> 1.953944525 | N13: =[3]indKos!O13 -> 1.841175198 | O13: =[3]indKos!P13 -> 1.832608095 | P13: =[3]indKos!Q13 -> 1.753298332 | Q13: =[3]indKos!R13 -> 1.721497757 | R13: =[3]indKos!S13 -> 1.746080419 | S13: =[3]indKos!T13 -> 1.75997444
A14: L | B14: Public Administration | C14: =[3]indKos!D14 -> 3.670689286 | D14: =[3]indKos!E14 -> 3.645555082 | E14: =[3]indKos!F14 -> 3.638094031 | F14: =[3]indKos!G14 -> 2.845536615 | G14: =[3]indKos!H14 -> 2.83757383 | H14: =[3]indKos!I14 -> 3.304477931 | I14: =[3]indKos!J14 -> 3.270683865 | J14: =[3]indKos!K14 -> 3.704880233 | K14: =[3]indKos!L14 -> 3.377877762 | L14: =[3]indKos!M14 -> 3.045820162 | M14: =[3]indKos!N14 -> 3.071500963 | N14: =[3]indKos!O14 -> 3.048032073 | O14: =[3]indKos!P14 -> 2.770218716 | P14: =[3]indKos!Q14 -> 2.428844824 | Q14: =[3]indKos!R14 -> 2.322224433 | R14: =[3]indKos!S14 -> 2.341092341 | S14: =[3]indKos!T14 -> 2.428718643
A15: M | B15: Education | C15: =[3]indKos!D15 -> 2.041431074 | D15: =[3]indKos!E15 -> 2.230964915 | E15: =[3]indKos!F15 -> 2.251834192 | F15: =[3]indKos!G15 -> 1.740078937 | G15: =[3]indKos!H15 -> 1.684540867 | H15: =[3]indKos!I15 -> 1.689811331 | I15: =[3]indKos!J15 -> 1.864953403 | J15: =[3]indKos!K15 -> 2.294358196 | K15: =[3]indKos!L15 -> 2.296460038 | L15: =[3]indKos!M15 -> 2.400773847 | M15: =[3]indKos!N15 -> 2.453052188 | N15: =[3]indKos!O15 -> 2.614575095 | O15: =[3]indKos!P15 -> 2.911029661 | P15: =[3]indKos!Q15 -> 2.903484362 | Q15: =[3]indKos!R15 -> 2.874204752 | R15: =[3]indKos!S15 -> 2.739528222 | S15: =[3]indKos!T15 -> 2.77042538
A16: N | B16: Health and Social Work | C16: =[3]indKos!D16 -> 0.781756817 | D16: =[3]indKos!E16 -> 0.7984293238 | E16: =[3]indKos!F16 -> 0.7625679248 | F16: =[3]indKos!G16 -> 0.591541044 | G16: =[3]indKos!H16 -> 0.6100326242 | H16: =[3]indKos!I16 -> 0.7766867437 | I16: =[3]indKos!J16 -> 0.8089843419 | J16: =[3]indKos!K16 -> 1.042294991 | K16: =[3]indKos!L16 -> 1.01268622 | L16: =[3]indKos!M16 -> 1.058882376 | M16: =[3]indKos!N16 -> 1.093997932 | N16: =[3]indKos!O16 -> 1.078843739 | O16: =[3]indKos!P16 -> 1.12929395 | P16: =[3]indKos!Q16 -> 1.142470749 | Q16: =[3]indKos!R16 -> 1.159705573 | R16: =[3]indKos!S16 -> 1.196699969 | S16: =[3]indKos!T16 -> 1.198094006
A17: O | B17: Other Community, Social, Personal Services | C17: =[3]indKos!D17 -> 0.1037642916 | D17: =[3]indKos!E17 -> 0.1016179106 | E17: =[3]indKos!F17 -> 0.07059629736 | F17: =[3]indKos!G17 -> 0.06430751387 | G17: =[3]indKos!H17 -> 0.04579629791 | H17: =[3]indKos!I17 -> 0.1395574458 | I17: =[3]indKos!J17 -> 0.20498242 | J17: =[3]indKos!K17 -> 0.2387056816 | K17: =[3]indKos!L17 -> 0.2147267074 | L17: =[3]indKos!M17 -> 0.09559220216 | M17: =[3]indKos!N17 -> 0.1042291153 | N17: =[3]indKos!O17 -> 0.1435712656 | O17: =[3]indKos!P17 -> 0.1903620472 | P17: =[3]indKos!Q17 -> 0.1547563956 | Q17: =[3]indKos!R17 -> 0.1494430937 | R17: =[3]indKos!S17 -> 0.1186652728 | S17: =[3]indKos!T17 -> 0.1231381377
B18: less intermediate FISIM | C18: =[3]indKos!D18 -> -0.1636115635 | D18: =[3]indKos!E18 -> -0.1624379132 | E18: =[3]indKos!F18 -> -0.1390717037 | F18: =[3]indKos!G18 -> -0.1904891549 | G18: =[3]indKos!H18 -> -0.1349049557 | H18: =[3]indKos!I18 -> -0.2821273299 | I18: =[3]indKos!J18 -> -0.2577271948 | J18: =[3]indKos!K18 -> -0.4960041774 | K18: =[3]indKos!L18 -> -0.1760287861 | L18: =[3]indKos!M18 -> -0.1227722278 | M18: =[3]indKos!N18 -> -0.1612602729 | N18: =[3]indKos!O18 -> -0.1859697801 | O18: =[3]indKos!P18 -> -0.1961667563 | P18: =[3]indKos!Q18 -> -0.1998298431 | Q18: =[3]indKos!R18 -> -0.1749026723 | R18: =[3]indKos!S18 -> -0.2253894406 | S18: =[3]indKos!T18 -> -0.2365722816
B19: GDP at basic prices | C19: =[3]indKos!D19 -> 16.28519144 | D19: =[3]indKos!E19 -> 16.44140123 | E19: =[3]indKos!F19 -> 15.51747701 | F19: =[3]indKos!G19 -> 13.43507701 | G19: =[3]indKos!H19 -> 14.26203853 | H19: =[3]indKos!I19 -> 14.94724465 | I19: =[3]indKos!J19 -> 16.80284731 | J19: =[3]indKos!K19 -> 16.40645872 | K19: =[3]indKos!L19 -> 15.94180931 | L19: =[3]indKos!M19 -> 15.5832893 | M19: =[3]indKos!N19 -> 15.15808961 | N19: =[3]indKos!O19 -> 15.18819676 | O19: =[3]indKos!P19 -> 15.03623866 | P19: =[3]indKos!Q19 -> 14.41850415 | Q19: =[3]indKos!R19 -> 15.11142137 | R19: =[3]indKos!S19 -> 14.93245036 | S19: =[3]indKos!T19 -> 15.90169705
B20: Taxes on products | C20: =[3]indKos!D20 -> 1.471589968 | D20: =[3]indKos!E20 -> 1.534618244 | E20: =[3]indKos!F20 -> 1.381899905 | F20: =[3]indKos!G20 -> 1.454690914 | G20: =[3]indKos!H20 -> 1.744938011 | H20: =[3]indKos!I20 -> 1.792209111 | I20: =[3]indKos!J20 -> 1.771930892 | J20: =[3]indKos!K20 -> 1.541737214 | K20: =[3]indKos!L20 -> 1.516441589 | L20: =[3]indKos!M20 -> 1.402754 | M20: =[3]indKos!N20 -> 1.491898522 | N20: =[3]indKos!O20 -> 1.332359785 | O20: =[3]indKos!P20 -> 1.429410443 | P20: =[3]indKos!Q20 -> 1.241788345 | Q20: =[3]indKos!R20 -> 1.332894175 | R20: =[3]indKos!S20 -> 1.267329395 | S20: =[3]indKos!T20 -> 1.493553284
B21: less subsidies | C21: =[3]indKos!D21 -> -0.4726027351 | D21: =[3]indKos!E21 -> -0.4070659752 | E21: =[3]indKos!F21 -> -0.363135351 | F21: =[3]indKos!G21 -> -0.3760760946 | G21: =[3]indKos!H21 -> -0.3767999713 | H21: =[3]indKos!I21 -> -0.2758871376 | I21: =[3]indKos!J21 -> -0.9320067841 | J21: =[3]indKos!K21 -> -0.2439107959 | K21: =[3]indKos!L21 -> -0.2434089931 | L21: =[3]indKos!M21 -> -0.223812 | M21: =[3]indKos!N21 -> -0.2128539908 | N21: =[3]indKos!O21 -> -0.1960296775 | O21: =[3]indKos!P21 -> -0.1906823273 | P21: =[3]indKos!Q21 -> -0.1844686466 | Q21: =[3]indKos!R21 -> -0.1798980064 | R21: =[3]indKos!S21 -> -0.1942970166 | S21: =[3]indKos!T21 -> -0.1848570016
B22: GDP at purchasers prices | C22: =[3]indKos!D22 -> 17.28417868 | D22: =[3]indKos!E22 -> 17.5689535 | E22: =[3]indKos!F22 -> 16.53624157 | F22: =[3]indKos!G22 -> 14.51369183 | G22: =[3]indKos!H22 -> 15.63017657 | H22: =[3]indKos!I22 -> 16.46356662 | I22: =[3]indKos!J22 -> 17.64277142 | J22: =[3]indKos!K22 -> 17.70428514 | K22: =[3]indKos!L22 -> 17.2148419 | L22: =[3]indKos!M22 -> 16.7622313 | M22: =[3]indKos!N22 -> 16.43713414 | N22: =[3]indKos!O22 -> 16.32452687 | O22: =[3]indKos!P22 -> 16.27496678 | P22: =[3]indKos!Q22 -> 15.47582385 | Q22: =[3]indKos!R22 -> 16.26441754 | R22: =[3]indKos!S22 -> 16.00548274 | S22: =[3]indKos!T22 -> 17.21039333
A23: Source: SBOC estimates
A24: Table 3b : Kosrae: Constant price GDP by industry sector, annual % growth, FY2004-FY2011
C25: =C2 -> FY1995 | D25: FY1996 | E25: FY1997 | F25: FY1998 | G25: FY1999 | H25: FY2000 | I25: FY2001 | J25: FY2002 | K25: FY2003 | L25: FY2004 | M25: FY2005 | N25: FY2006 | O25: FY2007 | P25: FY2008 | Q25: FY2009 | R25: =R2 -> FY2010 | S25: =S2 -> FY2011
A26: A | B26: Agriculture, Hunting and Forestry | D26: =IF(C3>0.1,D3/C3-1,"") -> -0.003798230003 | E26: =IF(D3>0.1,E3/D3-1,"") -> -0.003093255195 | F26: -0.002071980187 | G26: -0.009743956561 | H26: -0.00321383782 | I26: -0.02272269811 | J26: -0.0360640402 | K26: -0.02601030595 | L26: -0.03556187975 | M26: -0.02808173415 | N26: -0.03359655057 | O26: -0.004033354175 | P26: -0.04217919681 | Q26: -0.02155490163 | R26: -0.0346131489 | S26: -0.01889417423
A27: B | B27: Fisheries | D27: =IF(C4>0.1,D4/C4-1,"") -> -0.3711857073 | E27: 0.1641704699 | F27: 0.08126358648 | G27: -0.1049721956 | H27: -0.06829211376 | I27: -0.1190240728 | J27: -0.01397206061 | K27: -0.02035450215 | L27: -0.02075756522 | M27: 0.01109129501 | N27: 0.01672898058 | O27: 0.07667645541 | P27: -0.01997213254 | Q27: 0.1401873402 | R27: 0.04032506205 | S27: 0.03413925874
A28: C | B28: Mining and Quarrying
A29: D | B29: Manufacturing | D29: 0.0693971107 | E29: 0.5537645127 | F29: 0.6617391168 | G29: 0.08332318162 | H29: 0.3701154223 | I29: -0.3347290504 | J29: 0.02990684238 | K29: -0.005913275652 | L29: -0.09124775342 | M29: -0.1490979754 | N29: -0.07932333567 | O29: 0.05158554276 | P29: -0.1634268394 | Q29: -0.2097095189 | R29: 0.4021223105 | S29: -0.03352543524
A30: E | B30: Electricity, Gas and Water Supply | D30: -0.1609466493 | E30: -0.05234079674 | F30: -0.009921243735 | G30: -0.0358975916 | H30: -0.1109421131 | I30: 0.003598493278 | J30: -0.2470277411 | K30: 0.2995215311 | L30: -0.08051055474 | M30: -0.061131874 | N30: -0.0671026443 | O30: -0.02727826882 | P30: -0.03258655804 | Q30: -0.02477732794 | R30: 0.08003985387 | S30: -0.04858548585
A31: F | B31: Construction | D31: 0.4133207228 | E31: -0.3104824221 | F31: -0.1689386773 | G31: 0.3111653236 | H31: -0.08679978299 | I31: -0.04449286932 | J31: -0.2035203082 | K31: 0.3333982488 | L31: 0.01200519641 | M31: -0.09773504665 | N31: -0.06139501267 | O31: -0.1198022191 | P31: 0.1871940589 | Q31: 0.6579465639 | R31: -0.2196002067 | S31: 0.6757662499
A32: G | B32: Wholesale and Retail Trade and Repairs | D32: -0.02720447517 | E32: -0.2906072852 | F32: -0.2931881809 | G32: 0.2531597445 | H32: -0.03271764269 | I32: 1.388812393 | J32: -0.3521598883 | K32: -0.07927601844 | L32: 0.06372086081 | M32: -0.1324363857 | N32: 0.1113506743 | O32: -0.07711985099 | P32: -0.07108894314 | Q32: 0.06029656823 | R32: 0.1147853668 | S32: -0.07709132173
A33: H | B33: Hotels and Restaurants | D33: 0.4902268609 | E33: 0.04067881003 | F33: -0.2108648445 | G33: 0.06716342337 | H33: 0.116808417 | I33: 0.07299402305 | J33: -0.09391770188 | K33: -0.06013387435 | L33: -0.06192923758 | M33: -0.03039646076 | N33: -0.05986193746 | O33: 0.0486198552 | P33: -0.03867472001 | Q33: -0.1245573706 | R33: 0.1481919649 | S33: 0.00134917724
A34: I | B34: Transport, Storage and Communications | D34: -0.02221466891 | E34: -0.01610450928 | F34: -0.01967259891 | G34: 0.2003483193 | H34: -0.02500658802 | I34: -0.02130734669 | J34: -0.03109020368 | K34: -0.04281132284 | L34: -0.04281795999 | M34: -0.04660501522 | N34: -0.07418869785 | O34: -0.07203641667 | P34: -0.08686080095 | Q34: 0.07307442973 | R34: -0.07381186221 | S34: 0.02536049618
A35: J | B35: Financial Intermediation | D35: -0.007640923127 | E35: 0.07760891441 | F35: -0.2049264167 | G35: 0.186596092 | H35: 0.7516098208 | I35: 0.2172279303 | J35: 0.6476487597 | K35: -0.6481087221 | L35: -0.2861243561 | M35: 0.3710553348 | N35: 0.1198062208 | O35: 0.03281664055 | P35: -0.07924587494 | Q35: -0.1829881706 | R35: 0.3208527848 | S35: 0.1330942185
A36: K | B36: Real Estate, Renting, Business Activities | D36: 0.05719534207 | E36: 0.0415403777 | F36: 0.01737145999 | G36: 0.08020960906 | H36: 0.05132315569 | I36: 0.02352429924 | J36: -0.01454316339 | K36: -0.03121817103 | L36: 0.006321447337 | M36: -0.02853284005 | N36: -0.05771367882 | O36: -0.004653062591 | P36: -0.04327699046 | Q36: -0.01813757207 | R36: 0.01427981043 | S36: 0.007957263137
A37: L | B37: Public Administration | D37: -0.006847270756 | E37: -0.002046615991 | F37: -0.2178496238 | G37: -0.002798342166 | H37: 0.1645434194 | I37: -0.01022674885 | J37: 0.1327540008 | K37: -0.08826262942 | L37: -0.0983036166 | M37: 0.008431489681 | N37: -0.007640853717 | O37: -0.09114515567 | P37: -0.123229942 | Q37: -0.04389757221 | R37: 0.008124928731 | S37: 0.03742966522
A38: M | B38: Education | D38: 0.09284361554 | E38: 0.009354372301 | F38: -0.2272615172 | G38: -0.03191698286 | H38: 0.003128724179 | I38: 0.1036459333 | J38: 0.2302496092 | K38: 0.000916091604 | L38: 0.04542374212 | M38: 0.02177562089 | N38: 0.06584568735 | O38: 0.1133853706 | P38: -0.002591969132 | Q38: -0.01008430091 | R38: -0.04685697148 | S38: 0.01127827679
A39: N | B39: Health and Social Work | D39: 0.02132697332 | E39: -0.04491493219 | F39: -0.2242775696 | G39: 0.0312600121 | H39: 0.2731888639 | I39: 0.04158381541 | J39: 0.288399462 | K39: -0.02840728465 | L39: 0.04561744234 | M39: 0.03316284867 | N39: -0.01385212196 | O39: 0.04676322411 | P39: 0.01166817385 | Q39: 0.01508557139 | R39: 0.03189981766 | S39: 0.001164901358
A40: O | B40: Other Community, Social, Personal Services | D40: -0.02068516014 | E40: -0.3052770233 | I40: 0.4688031788 | J40: 0.1645178236 | K40: -0.100454141 | L40: -0.5548192244 | N40: 0.377458355 | O40: 0.3259063114 | P40: -0.1870417562 | Q40: -0.03433332705 | R40: -0.2059501053 | S40: 0.03769312416
B41: less intermediate FISIM
B42: GDP at basic prices | D42: 0.00959213679 | E42: -0.0561949801 | F42: -0.1341970734 | G42: 0.06155242142 | H42: 0.04804405147 | I42: 0.1241434601 | J42: -0.02359056092 | K42: -0.02832112779 | L42: -0.02248929215 | M42: -0.02728561902 | N42: 0.001986210327 | O42: -0.01000501226 | P42: -0.04108304806 | Q42: 0.04805749711 | R42: -0.01184342659 | S42: =IF(R19>0.1,S19/R19-1,"") -> 0.06490875015
B43: Taxes on products | D43: =IF(C20>0.1,D20/C20-1,"") -> 0.04283005266 | E43: -0.09951552431 | F43: 0.05267458902 | G43: 0.1995249261 | H43: 0.0270904179 | I43: -0.01131465009 | J43: -0.1299112053 | K43: -0.01640722265 | L43: -0.07496997539 | M43: 0.06354964709 | N43: -0.1069367215 | O43: 0.07284117932 | P43: -0.1312583791 | Q43: 0.07336663305 | R43: -0.04918978642 | S43: 0.1785044125
B44: less subsidies
B45: GDP at purchasers prices | D45: 0.01647604003 | E45: -0.05878050335 | F45: -0.1223101227 | G45: 0.07692630899 | H45: 0.05331929829 | I45: 0.07162511202 | J45: 0.003486624383 | K45: -0.02764546736 | L45: -0.02629188261 | M45: -0.01939462344 | N45: -0.006850784837 | O45: -0.003035927895 | P45: -0.04910258457 | Q45: 0.05095649183 | R45: -0.01592032416 | S45: 0.07528111543
A46: Source: SBOC estimates
A47: Table 3c : Kosrae: Constant price GDP by industry sector, contribution to % growth, FY2004-FY2011
C48: =C2 -> FY1995 | D48: =D2 -> FY1996 | E48: FY1997 | F48: FY1998 | G48: FY1999 | H48: FY2000 | I48: FY2001 | J48: FY2002 | K48: FY2003 | L48: FY2004 | M48: FY2005 | N48: FY2006 | O48: FY2007 | P48: FY2008 | Q48: =Q2 -> FY2009 | R48: FY2010 | S48: FY2011
A49: A | B49: Agriculture, Hunting and Forestry | D49: =(D3-C3)/(D$22-C$22)*((D$22-C$22)/C$22) -> -0.0002548370579 | E49: =(E3-D3)/(E$22-D$22)*((E$22-D$22)/D$22) -> -0.0002033982614 | F49: =(F3-E3)/(F$22-E$22)*((F$22-E$22)/E$22) -> -0.0001443047754 | G49: -0.0007715935199 | H49: -0.0002340123104 | I49: -0.001565729034 | J49: -0.002266240594 | K49: -0.00157005075 | L49: -0.002150218815 | M49: -0.001681773286 | N49: -0.001994222858 | O49: -0.0002329642752 | P49: -0.002433809377 | Q49: -0.001252809096 | R49: -0.001872973739 | S49: -0.001002973851
A50: B | B50: Fisheries | D50: =(D4-C4)/(D$22-C$22)*((D$22-C$22)/C$22) -> -0.03051992124 | E50: 0.008350499667 | F50: 0.005112567696 | G50: -0.008135942212 | H50: -0.004399007167 | I50: -0.006781701215 | J50: -0.000654463552 | K50: -0.0009368350299 | L50: -0.000962550119 | M50: 0.0005172382486 | N50: 0.0008044035037 | O50: 0.003774480654 | P50: -0.001061757466 | Q50: 0.007680941158 | R50: 0.002397022794 | S50: 0.002145309744
A51: C | B51: Mining and Quarrying | D51: 0 | E51: 0 | F51: 0 | G51: 0 | H51: 0 | I51: 0 | J51: 0 | K51: 0 | L51: 0 | M51: 0 | N51: 0 | O51: 0 | P51: 0 | Q51: 0 | R51: 5.232657381e-05 | S51: 0.0001555476746
A52: D | B52: Manufacturing | D52: 0.0004528783723 | E52: 0.003801956759 | F52: 0.00750003246 | G52: 0.001787985259 | H52: 0.007989274092 | I52: -0.009398545712 | J52: 0.0005213069223 | K52: -0.0001057882444 | L52: -0.001668903007 | M52: -0.002545056157 | N52: -0.001174929692 | O52: 0.0007083233302 | P52: -0.002366966018 | Q52: -0.002672126691 | R52: 0.003853000668 | S52: -0.0004576895295
A53: E | B53: Electricity, Gas and Water Supply | D53: -0.006788043073 | E53: -0.001822197343 | F53: -0.0003477622754 | G53: -0.001419418021 | H53: -0.003927160193 | I53: 0.0001075159451 | J53: -0.006912179802 | K53: 0.006288755856 | L53: -0.002259167039 | M53: -0.001619873838 | N53: -0.001702407178 | O53: -0.0006500697696 | P53: -0.0007576886237 | Q53: -0.0005861181842 | R53: 0.001756936502 | S53: -0.001170484987
A54: F | B54: Construction | D54: 0.02912480204 | E54: -0.03041980322 | F54: -0.01212559057 | G54: 0.02114740023 | H54: -0.007182173615 | I54: -0.003191785068 | J54: -0.01301793284 | K54: 0.01692624832 | L54: 0.0008357991033 | M54: -0.007071912974 | N54: -0.004087516273 | O54: -0.007538060485 | P54: 0.01039890421 | Q54: 0.04563249211 | R54: -0.0240271412 | S54: 0.05863443398
A55: G | B55: Wholesale and Retail Trade and Repairs | D55: -0.003461821802 | E55: -0.03539119868 | F55: -0.02691107478 | G55: 0.01871293661 | H55: -0.002814166259 | I55: 0.1096994765 | J55: -0.06200690015 | K55: -0.00901152329 | L55: 0.006858716084 | M55: -0.01557282479 | N55: 0.01158403839 | O55: -0.008977800118 | P55: -0.007660755554 | Q55: 0.006347498507 | R55: 0.01219099511 | S55: -0.00927511108
A56: H | B56: Hotels and Restaurants | D56: 0.006094024555 | E56: 0.0007413624363 | F56: -0.004249054622 | G56: 0.001216833788 | H56: 0.002097092173 | I56: 0.001389470461 | J56: -0.001790044781 | K56: -0.001034884023 | L56: -0.001030171626 | M56: -0.0004871286572 | N56: -0.0009485742937 | O56: 0.0007293086685 | P56: -0.0006101877177 | Q56: -0.001986746292 | R56: 0.001968976756 | S56: 2.091554473e-05
A57: I | B57: Transport, Storage and Communications | D57: -0.00125631948 | E57: -0.0008761008801 | F57: -0.001118732909 | G57: 0.0127256634 | H57: -0.001770396203 | I57: -0.0013963267 | J57: -0.001860735672 | K57: -0.002473953444 | L57: -0.002435744647 | M57: -0.002606178691 | N57: -0.004033554012 | O57: -0.003650986309 | P57: -0.004097635824 | Q57: 0.003310383302 | R57: -0.00341416196 | S57: 0.00110403961
A58: J | B58: Financial Intermediation | D58: -9.33064317e-05 | E58: 0.0009252286228 | F58: -0.002797084959 | G58: 0.0023071535 | H58: 0.01023960772 | I58: 0.004921345641 | J58: 0.01666620688 | K58: -0.02738407933 | L58: -0.004375109892 | M58: 0.004159743883 | N58: 0.001877880678 | O58: 0.0005799774616 | P58: -0.001450899665 | Q58: -0.003244096297 | R58: 0.004422014296 | S58: 0.002462054563
A59: K | B59: Real Estate, Renting, Business Activities | D59: 0.00532037659 | E59: 0.004018928206 | F59: 0.001859778933 | G59: 0.009953821855 | H59: 0.006388499506 | I59: 0.002922660687 | J59: -0.001725741971 | K59: -0.003637897449 | L59: 0.000733940515 | M59: -0.003423712418 | N59: -0.006860644065 | O59: -0.000524799494 | P59: -0.004873113666 | Q59: -0.002054855055 | R59: 0.001511438179 | S59: 0.0008680788686
A60: L | B60: Public Administration | D60: -0.001454174009 | E60: -0.0004246724956 | F60: -0.0479285098 | G60: -0.0005486395321 | H60: 0.02987196585 | I60: -0.002052657645 | J60: 0.02461044005 | K60: -0.01847024426 | L60: -0.01928902992 | M60: 0.001532063411 | N60: -0.001427796923 | O60: -0.01701815679 | P60: -0.02097539713 | Q60: -0.006889480786 | R60: 0.001160072777 | S60: 0.005474767864
A61: M | B61: Education | D61: 0.01096574187 | E61: 0.001187849715 | F61: -0.0309474951 | G61: -0.003826598377 | H61: 0.0003371979656 | I61: 0.01063816101 | J61: 0.02433885143 | K61: 0.0001187194096 | L61: 0.006059527538 | M61: 0.003118817548 | N61: 0.009826707385 | O61: 0.01816007095 | P61: -0.0004636137896 | Q61: -0.001891958082 | R61: -0.008280439787 | S61: 0.001930410851
A62: N | B62: Health and Social Work | D62: 0.0009646108787 | E62: -0.002041180139 | F62: -0.01034254853 | G62: 0.001274078326 | H62: 0.01066233121 | I62: 0.001961761927 | J62: 0.01322414962 | K62: -0.001672407006 | L62: 0.002683507378 | M62: 0.002094921336 | N62: -0.0009219485978 | O62: 0.003090454747 | P62: 0.000809635947 | Q62: 0.001113661166 | R62: 0.002274560169 | S62: 8.70974929e-05
A63: O | B63: Other Community, Social, Personal Services | D63: -0.0001241818329 | E63: -0.00176570638 | F63: -0.0003803030734 | G63: -0.00127543124 | H63: 0.005998726083 | I63: 0.003973924711 | J63: 0.001911449217 | K63: -0.001354416403 | L63: -0.006920453057 | M63: 0.0005152603459 | N63: 0.00239349208 | O63: 0.002866287151 | P63: -0.002187755718 | Q63: -0.0003433291821 | R63: -0.001892340799 | S63: 0.0002794582915
B64: less intermediate FISIM | D64: 6.790315823e-05 | E64: 0.001329971614 | F64: -0.003109379541 | G64: 0.003829776725 | H64: -0.009419111388 | I64: 0.001482068599 | J64: -0.01350564358 | K64: 0.0180733302 | L64: 0.003093642021 | M64: -0.002296117054 | N64: -0.001503273439 | O64: -0.0006246414555 | P64: -0.0002250749123 | Q64: 0.001610716884 | R64: -0.00310412397 | S64: -0.0006986881383
B65: GDP at basic prices | D65: =SUM(D49:D64) -> 0.009037732536 | E65: =SUM(E49:E64) -> -0.05258846038 | F65: =SUM(F49:F64) -> -0.1259294619 | G65: 0.05697802679 | H65: 0.04383866747 | I65: 0.1127096401 | J65: -0.02246747882 | K65: -0.02624502545 | L65: -0.02082621548 | M65: -0.02536653309 | N65: 0.001831654707 | O65: -0.009308575739 | P65: -0.03795611531 | Q65: 0.04477417346 | R65: -0.01100383762 | S65: 0.0605571669
B66: Taxes on products | D66: =(D20-C20)/(D$22-C$22)*((D$22-C$22)/C$22) -> 0.003646587842 | E66: -0.008692512003 | F66: 0.004401907728 | G66: 0.01999815763 | H66: 0.003024348427 | I66: -0.001231702672 | J66: -0.01304747833 | K66: -0.001428785492 | L66: -0.006604044882 | M66: 0.005318177518 | N66: -0.009705994691 | O66: 0.00594508244 | P66: -0.01152826303 | Q66: 0.005886977698 | R66: -0.004031179084 | S66: 0.0141341497
B67: less subsidies | D67: 0.003791719648 | E67: 0.002500469032 | F67: -0.0007825686106 | G67: -4.987543653e-05 | H67: 0.00645628239 | I67: -0.03985282544 | J67: 0.03900158154 | K67: 2.834358343e-05 | L67: 0.001138377754 | M67: 0.0006537321341 | N67: 0.001023555146 | O67: 0.0003275654041 | P67: 0.0003817937579 | Q67: 0.0002953406678 | R67: -0.0008853074578 | S67: 0.0005897988272
B68: GDP at purchasers prices | D68: =SUM(D65:D67) -> 0.01647604003 | E68: =SUM(E65:E67) -> -0.05878050335 | F68: =SUM(F65:F67) -> -0.1223101227 | G68: 0.07692630899 | H68: 0.05331929829 | I68: 0.07162511202 | J68: 0.003486624383 | K68: -0.02764546736 | L68: -0.02629188261 | M68: -0.01939462344 | N68: -0.006850784837 | O68: -0.003035927895 | P68: -0.04910258457 | Q68: 0.05095649183 | R68: -0.01592032416 | S68: 0.07528111543
A69: Source: SBOC estimates
A70: Table 3d : Kosrae: Current price GDP by industry, FY2004-FY2011
B71: (US$ millions) | C71: =C2 -> FY1995 | D71: FY1996 | E71: FY1997 | F71: FY1998 | G71: FY1999 | H71: FY2000 | I71: FY2001 | J71: FY2002 | K71: FY2003 | L71: FY2004 | M71: FY2005 | N71: FY2006 | O71: FY2007 | P71: FY2008 | Q71: FY2009 | R71: =R2 -> FY2010 | S71: =S2 -> FY2011
A72: A | B72: Agriculture, Hunting and Forestry | C72: =[3]indKos!D45 -> 1.014217276 | D72: =[3]indKos!E45 -> 1.038623091 | E72: =[3]indKos!F45 -> 1.06303843 | F72: =[3]indKos!G45 -> 1.078173165 | G72: =[3]indKos!H45 -> 1.088162853 | H72: =[3]indKos!I45 -> 1.078950276 | I72: =[3]indKos!J45 -> 1.051384905 | J72: =[3]indKos!K45 -> 1.010017889 | K72: =[3]indKos!L45 -> 0.9990838417 | L72: =[3]indKos!M45 -> 1.003865098 | M72: =[3]indKos!N45 -> 0.9843653549 | N72: =[3]indKos!O45 -> 0.9544333024 | O72: =[3]indKos!P45 -> 0.997047345 | P72: =[3]indKos!Q45 -> 1.048222587 | Q72: =[3]indKos!R45 -> 1.142101964 | R72: =[3]indKos!S45 -> 1.134071611 | S72: =[3]indKos!T45 -> 1.130505477
A73: B | B73: Fisheries | C73: =[3]indKos!D46 -> 1.353920011 | D73: =[3]indKos!E46 -> 0.758493269 | E73: =[3]indKos!F46 -> 0.9098652008 | F73: =[3]indKos!G46 -> 0.9651016676 | G73: =[3]indKos!H46 -> 0.9114629232 | H73: =[3]indKos!I46 -> 0.8756126625 | I73: =[3]indKos!J46 -> 0.8152357238 | J73: =[3]indKos!K46 -> 0.8036470468 | K73: =[3]indKos!L46 -> 0.7970584617 | L73: =[3]indKos!M46 -> 0.7817001666 | M73: =[3]indKos!N46 -> 0.8097099725 | N73: =[3]indKos!O46 -> 0.8232555949 | O73: =[3]indKos!P46 -> 0.9077458238 | P73: =[3]indKos!Q46 -> 1.092190706 | Q73: =[3]indKos!R46 -> 1.444523097 | R73: =[3]indKos!S46 -> 1.513467304 | S73: =[3]indKos!T46 -> 1.560195353
A74: C | B74: Mining and Quarrying | C74: =[3]indKos!D47 -> 0 | D74: =[3]indKos!E47 -> 0 | E74: =[3]indKos!F47 -> 0 | F74: =[3]indKos!G47 -> 0 | G74: =[3]indKos!H47 -> 0 | H74: =[3]indKos!I47 -> 0 | I74: =[3]indKos!J47 -> 0 | J74: =[3]indKos!K47 -> 0 | K74: =[3]indKos!L47 -> 0 | L74: =[3]indKos!M47 -> 0 | M74: =[3]indKos!N47 -> 0 | N74: =[3]indKos!O47 -> 0 | O74: =[3]indKos!P47 -> 0 | P74: =[3]indKos!Q47 -> 0 | Q74: =[3]indKos!R47 -> 0 | R74: =[3]indKos!S47 -> 0.001132330798 | S74: =[3]indKos!T47 -> 0.004635936069
A75: D | B75: Manufacturing | C75: =[3]indKos!D48 -> 0.099949725 | D75: =[3]indKos!E48 -> 0.1098747764 | E75: =[3]indKos!F48 -> 0.1747852911 | F75: =[3]indKos!G48 -> 0.2945613889 | G75: =[3]indKos!H48 -> 0.3251934 | H75: =[3]indKos!I48 -> 0.4533481638 | I75: =[3]indKos!J48 -> 0.3049101115 | J75: =[3]indKos!K48 -> 0.3130135408 | K75: =[3]indKos!L48 -> 0.3101065301 | L75: =[3]indKos!M48 -> 0.286126085 | M75: =[3]indKos!N48 -> 0.2526428875 | N75: =[3]indKos!O48 -> 0.240688626 | O75: =[3]indKos!P48 -> 0.260373825 | P75: =[3]indKos!Q48 -> 0.2320104818 | Q75: =[3]indKos!R48 -> 0.1963113545 | R75: =[3]indKos!S48 -> 0.2888934055 | S75: =[3]indKos!T48 -> 0.2907223814
A76: E | B76: Electricity, Gas and Water Supply | C76: =[3]indKos!D49 -> 0.997037 | D76: =[3]indKos!E49 -> 1.138714 | E76: =[3]indKos!F49 -> 0.774639 | F76: =[3]indKos!G49 -> 0.888129 | G76: =[3]indKos!H49 -> 0.7855726498 | H76: =[3]indKos!I49 -> 0.9381519991 | I76: =[3]indKos!J49 -> 1.159857 | J76: =[3]indKos!K49 -> 0.793282 | K76: =[3]indKos!L49 -> 0.808336 | L76: =[3]indKos!M49 -> 0.444166 | M76: =[3]indKos!N49 -> 0.243981 | N76: =[3]indKos!O49 -> 0.06268 | O76: =[3]indKos!P49 -> 0.083462 | P76: =[3]indKos!Q49 -> 0.093791 | Q76: =[3]indKos!R49 -> 0.179054 | R76: =[3]indKos!S49 -> 0.245338 | S76: =[3]indKos!T49 -> 0.251882
A77: F | B77: Construction | C77: =[3]indKos!D50 -> 1.113370022 | D77: =[3]indKos!E50 -> 1.591023646 | E77: =[3]indKos!F50 -> 1.118516232 | F77: =[3]indKos!G50 -> 0.9566495931 | G77: =[3]indKos!H50 -> 1.279355145 | H77: =[3]indKos!I50 -> 1.167971738 | I77: =[3]indKos!J50 -> 1.126137157 | J77: =[3]indKos!K50 -> 0.8951049504 | K77: =[3]indKos!L50 -> 1.177369677 | L77: =[3]indKos!M50 -> 1.212881613 | M77: =[3]indKos!N50 -> 0.9480443516 | N77: =[3]indKos!O50 -> 0.9204875866 | O77: =[3]indKos!P50 -> 0.8267447571 | P77: =[3]indKos!Q50 -> 1.183769727 | Q77: =[3]indKos!R50 -> 2.148073795 | R77: =[3]indKos!S50 -> 1.739421038 | S77: =[3]indKos!T50 -> 3.084041724
A78: G | B78: Wholesale and Retail Trade and Repairs | C78: =[3]indKos!D51 -> 1.780621998 | D78: =[3]indKos!E51 -> 1.802744592 | E78: =[3]indKos!F51 -> 1.406687671 | F78: =[3]indKos!G51 -> 1.130700799 | G78: =[3]indKos!H51 -> 1.363219776 | H78: =[3]indKos!I51 -> 1.369341095 | I78: =[3]indKos!J51 -> 2.868045946 | J78: =[3]indKos!K51 -> 1.949592975 | K78: =[3]indKos!L51 -> 1.82291047 | L78: =[3]indKos!M51 -> 1.971023973 | M78: =[3]indKos!N51 -> 1.779564001 | N78: =[3]indKos!O51 -> 2.139955349 | O78: =[3]indKos!P51 -> 2.050303638 | P78: =[3]indKos!Q51 -> 2.040173272 | Q78: =[3]indKos!R51 -> 2.40113793 | R78: =[3]indKos!S51 -> 2.791309324 | S78: =[3]indKos!T51 -> 2.671708101
A79: H | B79: Hotels and Restaurants | C79: =[3]indKos!D52 -> 0.1903919175 | D79: =[3]indKos!E52 -> 0.2916609522 | E79: =[3]indKos!F52 -> 0.3116193826 | F79: =[3]indKos!G52 -> 0.2499242975 | G79: =[3]indKos!H52 -> 0.2718291065 | H79: =[3]indKos!I52 -> 0.3086511305 | I79: =[3]indKos!J52 -> 0.3331268377 | J79: =[3]indKos!K52 -> 0.3009595599 | K79: =[3]indKos!L52 -> 0.2818164399 | L79: =[3]indKos!M52 -> 0.2686287489 | M79: =[3]indKos!N52 -> 0.2690317571 | N79: =[3]indKos!O52 -> 0.2607665132 | O79: =[3]indKos!P52 -> 0.2814389681 | P79: =[3]indKos!Q52 -> 0.2885832153 | Q79: =[3]indKos!R52 -> 0.2720965031 | R79: =[3]indKos!S52 -> 0.3301273127 | S79: =[3]indKos!T52 -> 0.3447922259
A80: I | B80: Transport, Storage and Communications | C80: =[3]indKos!D53 -> 0.8602241709 | D80: =[3]indKos!E53 -> 0.8647436812 | E80: =[3]indKos!F53 -> 0.8737137436 | F80: =[3]indKos!G53 -> 0.8704094939 | G80: =[3]indKos!H53 -> 1.064630214 | H80: =[3]indKos!I53 -> 1.057801742 | I80: =[3]indKos!J53 -> 1.047572926 | J80: =[3]indKos!K53 -> 1.011878517 | K80: =[3]indKos!L53 -> 0.9605700875 | L80: =[3]indKos!M53 -> 0.9373534119 | M80: =[3]indKos!N53 -> 0.925065853 | N80: =[3]indKos!O53 -> 0.8932817326 | O80: =[3]indKos!P53 -> 0.8581750216 | P80: =[3]indKos!Q53 -> 0.8458795646 | Q80: =[3]indKos!R53 -> 0.9928533876 | R80: =[3]indKos!S53 -> 0.9564240344 | S80: =[3]indKos!T53 -> 1.023700367
A81: J | B81: Financial Intermediation | C81: =[3]indKos!D54 -> 0.1870282294 | D81: =[3]indKos!E54 -> 0.1907890314 | E81: =[3]indKos!F54 -> 0.21107852 | F81: =[3]indKos!G54 -> 0.1705626718 | G81: =[3]indKos!H54 -> 0.2062735059 | H81: =[3]indKos!I54 -> 0.3673449361 | I81: =[3]indKos!J54 -> 0.449769927 | J81: =[3]indKos!K54 -> 0.7389004394 | K81: =[3]indKos!L54 -> 0.2590517982 | L81: =[3]indKos!M54 -> 0.1879142613 | M81: =[3]indKos!N54 -> 0.2661163699 | N81: =[3]indKos!O54 -> 0.3072352926 | O81: =[3]indKos!P54 -> 0.3265943461 | P81: =[3]indKos!Q54 -> 0.3207515843 | Q81: =[3]indKos!R54 -> 0.2822418153 | R81: =[3]indKos!S54 -> 0.3939306438 | S81: =[3]indKos!T54 -> 0.4655606358
A82: K | B82: Real Estate, Renting, Business Activities | C82: =[3]indKos!D55 -> 1.445928539 | D82: =[3]indKos!E55 -> 1.570471417 | E82: =[3]indKos!F55 -> 1.678743649 | F82: =[3]indKos!G55 -> 1.735751819 | G82: =[3]indKos!H55 -> 1.909396948 | H82: =[3]indKos!I55 -> 2.03494802 | I82: =[3]indKos!J55 -> 2.086562036 | J82: =[3]indKos!K55 -> 2.054232887 | K82: =[3]indKos!L55 -> 1.988080314 | L82: =[3]indKos!M55 -> 2.011333584 | M82: =[3]indKos!N55 -> 1.974992677 | N82: =[3]indKos!O55 -> 1.876130684 | O82: =[3]indKos!P55 -> 1.884629315 | P82: =[3]indKos!Q55 -> 1.833489554 | Q82: =[3]indKos!R55 -> 1.944884013 | R82: =[3]indKos!S55 -> 2.047962457 | S82: =[3]indKos!T55 -> 2.095392646
A83: L | B83: Public Administration | C83: =[3]indKos!D56 -> 3.497716309 | D83: =[3]indKos!E56 -> 3.484134633 | E83: =[3]indKos!F56 -> 3.490570448 | F83: =[3]indKos!G56 -> 2.800024565 | G83: =[3]indKos!H56 -> 2.886917771 | H83: =[3]indKos!I56 -> 3.294710986 | I83: =[3]indKos!J56 -> 3.303338103 | J83: =[3]indKos!K56 -> 3.72607328 | K83: =[3]indKos!L56 -> 3.373589593 | L83: =[3]indKos!M56 -> 3.045820162 | M83: =[3]indKos!N56 -> 3.341716493 | N83: =[3]indKos!O56 -> 3.359577172 | O83: =[3]indKos!P56 -> 3.094352457 | P83: =[3]indKos!Q56 -> 2.695309958 | Q83: =[3]indKos!R56 -> 2.652910286 | R83: =[3]indKos!S56 -> 2.217369784 | S83: =[3]indKos!T56 -> 2.347718507
A84: M | B84: Education | C84: =[3]indKos!D57 -> 1.917995925 | D84: =[3]indKos!E57 -> 2.119489478 | E84: =[3]indKos!F57 -> 2.141251899 | F84: =[3]indKos!G57 -> 1.723710188 | G84: =[3]indKos!H57 -> 1.791352908 | H84: =[3]indKos!I57 -> 1.715899688 | I84: =[3]indKos!J57 -> 1.938275644 | J84: =[3]indKos!K57 -> 2.344293354 | K84: =[3]indKos!L57 -> 2.30050799 | L84: =[3]indKos!M57 -> 2.400773847 | M84: =[3]indKos!N57 -> 2.346257516 | N84: =[3]indKos!O57 -> 2.490982056 | O84: =[3]indKos!P57 -> 2.789070226 | P84: =[3]indKos!Q57 -> 2.693978829 | Q84: =[3]indKos!R57 -> 2.795968857 | R84: =[3]indKos!S57 -> 2.950862758 | S84: =[3]indKos!T57 -> 2.908548564
A85: N | B85: Health and Social Work | C85: =[3]indKos!D58 -> 0.7293613348 | D85: =[3]indKos!E58 -> 0.7543787442 | E85: =[3]indKos!F58 -> 0.7221600902 | F85: =[3]indKos!G58 -> 0.581127961 | G85: =[3]indKos!H58 -> 0.6468401823 | H85: =[3]indKos!I58 -> 0.784702353 | I85: =[3]indKos!J58 -> 0.8280494887 | J85: =[3]indKos!K58 -> 1.049319798 | K85: =[3]indKos!L58 -> 1.015422661 | L85: =[3]indKos!M58 -> 1.058882376 | M85: =[3]indKos!N58 -> 1.04315155 | N85: =[3]indKos!O58 -> 1.052942106 | O85: =[3]indKos!P58 -> 1.119904574 | P85: =[3]indKos!Q58 -> 1.095529113 | Q85: =[3]indKos!R58 -> 1.226302792 | R85: =[3]indKos!S58 -> 1.553199274 | S85: =[3]indKos!T58 -> 1.466990509
A86: O | B86: Other Community, Social, Personal Services | C86: =[3]indKos!D59 -> 0.09194764073 | D86: =[3]indKos!E59 -> 0.09256361772 | E86: =[3]indKos!F59 -> 0.06602090062 | F86: =[3]indKos!G59 -> 0.06112148071 | G86: =[3]indKos!H59 -> 0.04436281176 | H86: =[3]indKos!I59 -> 0.1374468974 | I86: =[3]indKos!J59 -> 0.2030687016 | J86: =[3]indKos!K59 -> 0.2357870817 | K86: =[3]indKos!L59 -> 0.2113175174 | L86: =[3]indKos!M59 -> 0.09559220216 | M86: =[3]indKos!N59 -> 0.1076579034 | N86: =[3]indKos!O59 -> 0.1528906868 | O86: =[3]indKos!P59 -> 0.2086451061 | P86: =[3]indKos!Q59 -> 0.1809226402 | Q86: =[3]indKos!R59 -> 0.1881673904 | R86: =[3]indKos!S59 -> 0.1578832826 | S86: =[3]indKos!T59 -> 0.1708816976
B87: less intermediate FISIM | C87: =[3]indKos!D60 -> -0.1449795206 | D87: =[3]indKos!E60 -> -0.147964476 | E87: =[3]indKos!F60 -> -0.1300583667 | F87: =[3]indKos!G60 -> -0.1810516144 | G87: =[3]indKos!H60 -> -0.1306822479 | H87: =[3]indKos!I60 -> -0.2778606755 | I87: =[3]indKos!J60 -> -0.2553210505 | J87: =[3]indKos!K60 -> -0.4899396474 | K87: =[3]indKos!L60 -> -0.1732339983 | L87: =[3]indKos!M60 -> -0.1227722278 | M87: =[3]indKos!N60 -> -0.1665651948 | N87: =[3]indKos!O60 -> -0.1980413509 | O87: =[3]indKos!P60 -> -0.2150073204 | P87: =[3]indKos!Q60 -> -0.2336171158 | Q87: =[3]indKos!R60 -> -0.2202241577 | R87: =[3]indKos!S60 -> -0.2998790119 | S87: =[3]indKos!T60 -> -0.3282969342
B88: GDP at basic prices | C88: =[3]indKos!D61 -> 15.13473058 | D88: =[3]indKos!E61 -> 15.65974045 | E88: =[3]indKos!F61 -> 14.81263209 | F88: =[3]indKos!G61 -> 13.32489648 | G88: =[3]indKos!H61 -> 14.44388795 | H88: =[3]indKos!I61 -> 15.30702101 | I88: =[3]indKos!J61 -> 17.26001346 | J88: =[3]indKos!K61 -> 16.73616367 | K88: =[3]indKos!L61 -> 16.13198738 | L88: =[3]indKos!M61 -> 15.5832893 | M88: =[3]indKos!N61 -> 15.12573249 | N88: =[3]indKos!O61 -> 15.33726535 | O88: =[3]indKos!P61 -> 15.47348008 | P88: =[3]indKos!Q61 -> 15.41098512 | Q88: =[3]indKos!R61 -> 17.64640303 | R88: =[3]indKos!S61 -> 18.02151355 | S88: =[3]indKos!T61 -> 19.48897919
B89: Taxes on products | C89: =[3]indKos!D62 -> 1.267043 | D89: =[3]indKos!E62 -> 1.3713795 | E89: =[3]indKos!F62 -> 1.2678325 | F89: =[3]indKos!G62 -> 1.39409371 | G89: =[3]indKos!H62 -> 1.65863335 | H89: =[3]indKos!I62 -> 1.73742675 | I89: =[3]indKos!J62 -> 1.73931041 | J89: =[3]indKos!K62 -> 1.512527 | K89: =[3]indKos!L62 -> 1.487725 | L89: =[3]indKos!M62 -> 1.402754 | M89: =[3]indKos!N62 -> 1.55452111 | N89: =[3]indKos!O62 -> 1.4520555 | O89: =[3]indKos!P62 -> 1.60046885 | P89: =[3]indKos!Q62 -> 1.892520237 | Q89: =[3]indKos!R62 -> 2.123632287 | R89: =[3]indKos!S62 -> 2.142234 | S89: =[3]indKos!T62 -> 2.44305958
B90: less subsidies | C90: =[3]indKos!D63 -> -0.6864466821 | D90: =[3]indKos!E63 -> -0.5950523962 | E90: =[3]indKos!F63 -> -0.6465727978 | F90: =[3]indKos!G63 -> -0.6632014995 | G90: =[3]indKos!H63 -> -0.6688964215 | H90: =[3]indKos!I63 -> -0.7251843013 | I90: =[3]indKos!J63 -> -1.447094966 | J90: =[3]indKos!K63 -> -0.5826133593 | K90: =[3]indKos!L63 -> -0.625978 | L90: =[3]indKos!M63 -> -0.223812 | M90: =[3]indKos!N63 -> -0.09547660586 | N90: =[3]indKos!O63 -> -0.002143 | O90: =[3]indKos!P63 -> -0.010016 | P90: =[3]indKos!Q63 -> -0.012277 | Q90: =[3]indKos!R63 -> -0.008919 | R90: =[3]indKos!S63 -> 0 | S90: =[3]indKos!T63 -> -0.018066
B91: GDP at purchasers prices | C91: =[3]indKos!D64 -> 15.7153269 | D91: =[3]indKos!E64 -> 16.43606756 | E91: =[3]indKos!F64 -> 15.43389179 | F91: =[3]indKos!G64 -> 14.05578869 | G91: =[3]indKos!H64 -> 15.43362488 | H91: =[3]indKos!I64 -> 16.31926346 | I91: =[3]indKos!J64 -> 17.5522289 | J91: =[3]indKos!K64 -> 17.66607731 | K91: =[3]indKos!L64 -> 16.99373438 | L91: =[3]indKos!M64 -> 16.7622313 | M91: =[3]indKos!N64 -> 16.584777 | N91: =[3]indKos!O64 -> 16.78717785 | O91: =[3]indKos!P64 -> 17.06393293 | P91: =[3]indKos!Q64 -> 17.29122835 | Q91: =[3]indKos!R64 -> 19.76111631 | R91: =[3]indKos!S64 -> 20.16374755 | S91: =[3]indKos!T64 -> 21.91397277
A92: Source: SBOC estimates
A93: Table 3e : Kosrae: Implicit GDP price deflators by industry, FY2004-FY2011
B94: (FY2004=100) | C94: =C2 -> FY1995 | D94: FY1996 | E94: FY1997 | F94: FY1998 | G94: FY1999 | H94: FY2000 | I94: FY2001 | J94: FY2002 | K94: FY2003 | L94: FY2004 | M94: FY2005 | N94: FY2006 | O94: FY2007 | P94: FY2008 | Q94: FY2009 | R94: =R2 -> FY2010 | S94: =S2 -> FY2011
A95: A | B95: Agriculture, Hunting and Forestry | C95: =IF(C72<>0,C72/C3*100,0) -> 87.4582805 | D95: =IF(D72<>0,D72/D3*100,0) -> 89.90432717 | E95: 92.30326261 | F95: 93.81178256 | G95: 95.61263007 | H95: 95.10882113 | I95: 94.83383065 | J95: 94.51101779 | K95: 95.98446484 | L95: 100 | M95: 100.8907199 | N95: 101.2236547 | O95: 106.1713687 | P95: 116.5362082 | Q95: 129.7704426 | R95: =IF(R72<>0,R72/R3*100,0) -> 133.4780972 | S95: 135.6208133
A96: B | B96: Fisheries | C96: 95.26910749 | D96: =IF(D73<>0,D73/D4*100,0) -> 84.87668633 | E96: 87.4575206 | F96: 85.79492412 | G96: 90.52968481 | H96: 93.34353915 | I96: 98.64870551 | J96: 98.62438785 | K96: 99.84819015 | L96: 100 | M96: 102.4469214 | N96: 102.4469214 | O96: 104.9163721 | P96: 128.8068788 | Q96: 149.4131617 | R96: =IF(R73<>0,R73/R4*100,0) -> 150.4763845 | S96: 150.0013816
A97: C | B97: Mining and Quarrying | C97: 0 | D97: =IF(D74<>0,D74/D5*100,0) -> 0 | E97: 0 | F97: 0 | G97: 0 | H97: 0 | I97: 0 | J97: 0 | K97: 0 | L97: 0 | M97: 0 | N97: 0 | O97: 0 | P97: 0 | Q97: 0 | R97: =IF(R74<>0,R74/R5*100,0) -> 133.0492729 | S97: 138.7723583
A98: D | B98: Manufacturing | C98: 88.61202567 | D98: =IF(D75<>0,D75/D6*100,0) -> 91.0898651 | E98: 93.25921139 | F98: 94.58011383 | G98: 96.38461115 | H98: 98.07101792 | I98: 99.14757334 | J98: 98.82696183 | K98: 98.49154644 | L98: 100 | M98: 103.7695819 | N98: 107.3770387 | O98: 110.4608985 | P98: 117.6562296 | Q98: 125.9696694 | R98: =IF(R75<>0,R75/R6*100,0) -> 132.2124334 | S98: 137.6647367
A99: E | B99: Electricity, Gas and Water Supply | C99: 136.7728442 | D99: =IF(D76<>0,D76/D7*100,0) -> 186.1717097 | E99: 133.6429952 | F99: 154.7580153 | G99: 141.9842878 | H99: 190.7203793 | I99: 234.9461544 | J99: 213.4088948 | K99: 167.3375315 | L99: 100 | M99: 58.50676704 | N99: 16.11184293 | O99: 22.05547425 | P99: 25.61985468 | Q99: 50.15286345 | R99: =IF(R76<>0,R76/R7*100,0) -> 63.62631124 | S99: 68.65928644
A100: F | B100: Construction | C100: 91.41447604 | D100: =IF(D77<>0,D77/D8*100,0) -> 92.42966058 | E100: 94.23921784 | F100: 96.9860344 | G100: 98.92133662 | H100: 98.89291626 | I100: 99.79073144 | J100: 99.58597272 | K100: 98.23747168 | L100: 100 | M100: 86.63156389 | N100: 89.61538564 | O100: 91.44412783 | P100: 110.288413 | Q100: 120.7094653 | R100: =IF(R77<>0,R77/R8*100,0) -> 125.2505673 | S100: 132.5201104
A101: G | B101: Wholesale and Retail Trade and Repairs | C101: 80.95778744 | D101: =IF(D78<>0,D78/D9*100,0) -> 84.25574701 | E101: 92.6779223 | F101: 105.3956056 | G101: 101.3991342 | H101: 105.2996057 | I101: 92.32496756 | J101: 96.87443357 | K101: 98.37870677 | L101: 100 | M101: 104.068759 | N101: 112.6056958 | O101: 116.9037721 | P101: 125.2285245 | Q101: 139.0035726 | R101: =IF(R78<>0,R78/R9*100,0) -> 144.9524503 | S101: 150.3307667
A102: H | B102: Hotels and Restaurants | C102: 88.61202567 | D102: =IF(D79<>0,D79/D10*100,0) -> 91.0898651 | E102: 93.51892817 | F102: 95.04562846 | G102: 96.86986458 | H102: 98.48768484 | I102: 99.06639875 | J102: 98.7773228 | K102: 98.41231207 | L102: 100 | M102: 103.2896644 | N102: 106.4911465 | O102: 109.6043613 | P102: 116.9080215 | Q102: 125.9124031 | R102: =IF(R79<>0,R79/R10*100,0) -> 133.0492729 | S102: 138.7723583
A103: I | B103: Transport, Storage and Communications | C103: 88.00404718 | D103: =IF(D80<>0,D80/D11*100,0) -> 90.47631072 | E103: 92.91111743 | F103: 94.41717318 | G103: 96.20970272 | H103: 98.04437502 | I103: 99.21020385 | J103: 98.90473978 | K103: 98.08898375 | L103: 100 | M103: 103.513364 | N103: 107.96668 | O103: 111.7753994 | P103: 120.6540508 | Q103: 131.9740821 | R103: =IF(R80<>0,R80/R11*100,0) -> 137.2634135 | S103: 143.2849549
A104: J | B104: Financial Intermediation | C104: 88.61202567 | D104: =IF(D81<>0,D81/D12*100,0) -> 91.0898651 | E104: 93.51892817 | F104: 95.04562846 | G104: 96.86986458 | H104: 98.48768484 | I104: 99.06639875 | J104: 98.7773228 | K104: 98.41231207 | L104: 100 | M104: 103.2896644 | N104: 106.4911465 | O104: 109.6043613 | P104: 116.9080215 | Q104: 125.9124031 | R104: =IF(R81<>0,R81/R12*100,0) -> 133.0492729 | S104: 138.7723583
A105: K | B105: Real Estate, Renting, Business Activities | C105: 89.93243872 | D105: =IF(D82<>0,D82/D13*100,0) -> 92.39412057 | E105: 94.82493883 | F105: 96.37097821 | G105: 98.14017458 | H105: 99.4873109 | I105: 99.66611182 | J105: 99.56994919 | K105: 99.46872435 | L105: 100 | M105: 101.0772134 | N105: 101.8985421 | O105: 102.838644 | P105: 104.5737352 | Q105: 112.9762735 | R105: =IF(R82<>0,R82/R13*100,0) -> 117.2891257 | S105: 119.0581294
A106: L | B106: Public Administration | C106: 95.28772491 | D106: =IF(D83<>0,D83/D14*100,0) -> 95.57212973 | E106: 95.94503106 | F106: 98.40058114 | G106: 101.7389483 | H106: 99.70443305 | I106: 100.9983918 | J106: 100.5720306 | K106: 99.87305139 | L106: 100 | M106: 108.7975076 | N106: 110.2211883 | O106: 111.7006553 | P106: 110.9708587 | Q106: 114.2400471 | R106: =IF(R83<>0,R83/R14*100,0) -> 94.71517826 | S106: 96.66490245
A107: M | B107: Education | C107: 93.9534991 | D107: =IF(D84<>0,D84/D15*100,0) -> 95.00326355 | E107: 95.08923468 | F107: 99.05931 | G107: 106.3407213 | H107: 101.5438621 | I107: 103.9315857 | J107: 102.1764325 | K107: 100.1762692 | L107: 100 | M107: 95.64645743 | N107: 95.27292066 | O107: 95.81043652 | P107: 92.78434091 | Q107: 97.27799854 | R107: =IF(R84<>0,R84/R15*100,0) -> 107.7142675 | S107: 104.9856309
